Workbook

Sheet Inicio
J4: EstadisticAMIS Informe
D6: Con la finalidad de atender la solicitud de información, presentamos esta publicación comparando los datosprimas del periodo actual vs el mismo periodo del año anterior.
I10: Periodo: | J10: 2022-Q2
I11: Fecha de actualización: | J11: 2022-08-15
B13: No se incluyen la informaciónde de Protección Agropecuaria en virtud de que a la fecha de esta publicación, no se recibió su información.
B15: ANÁLISIS DE PRIMAS DIRECTAS | G15: ANÁLISIS DE SINIESTROS
B21: DEFINICIÓN DE TÉRMINOS
B23: Participación de mercado
B24: Porcentaje que representa la participación de las compañías sobre el total del ramo o subramo que se está consultando.
B26: Participación por operación
B27: Porcentaje que representa la participación del subramo sobre el ramo de la compañía.
B29: Participación por cartera
B30: Porcentaje que representa la participación del ramo o subramos sobre el total general sin pensiones de la compañía.
B32: Participación por sector
B33: Porcentaje que representa la participación de la compañía del ramo o subramo(s) sobre la suma del total general sin pensiones.

Sheet TDPrimas (hidden)
A3: periodo | B3: 2022-Q2
A4: Ramo_ | B4: 10 Total General
A6: Jerarquia 2 | B6: nombre_compania | C6: Suma de Prima_DirectaAct | D6: Suma de Prima_DirectaAnt | E6: Suma de %CARTERA | F6: Suma de %SECTOR
A7: 1 | B7: G.N.P. | C7: 42602746.8 | D7: 38102151.27 | E7: 100 | F7: 12.15273593
A8: 2 | B8: Metlife México | C8: 38882196.37 | D8: 34184463.63 | E8: 100 | F8: 11.09142251
A9: 3 | B9: BBVA Bancomer | C9: 28599066.23 | D9: 27409461.5 | E9: 100 | F9: 8.158086644
A10: 4 | B10: AXA Seguros | C10: 25525244.1 | D10: 24024425.93 | E10: 100 | F10: 7.281257061
A11: 5 | B11: Banorte | C11: 18509936.84 | D11: 17062555.77 | E11: 100 | F11: 5.280090869
A12: 5.1 | B12: TOTAL GRANDES | C12: 154119190.3 | D12: 140783058.1 | E12: 100 | F12: 43.96359301
A13: 6 | B13: Monterrey New York Life | C13: 18371993.44 | D13: 16818804.26 | E13: 100 | F13: 5.240741537
A14: 7 | B14: Quálitas | C14: 17603386.32 | D14: 17120707.77 | E14: 100 | F14: 5.021490899
A15: 8 | B15: Mapfre México | C15: 13083450.34 | D15: 22158336.07 | E15: 100 | F15: 3.732147079
A16: 9 | B16: Inbursa | C16: 12813718.78 | D16: 11790746.2 | E16: 100 | F16: 3.655204237
A17: 10 | B17: Chubb Seguros México | C17: 11404823.46 | D17: 9996125.326 | E17: 100 | F17: 3.253306845
A18: 11 | B18: Pensiones Banorte | C18: 9685850.343 | D18: 10279044.55 | E18: 0 | F18: 2.762957562
A19: 12 | B19: Allianz México | C19: 9107356.084 | D19: 8431085.086 | E19: 100 | F19: 2.597937969
A20: 13 | B20: Atlas | C20: 9090986.624 | D20: 7845638.522 | E20: 100 | F20: 2.593268464
A21: 14 | B21: Citibanamex Seguros | C21: 8872339.482 | D21: 12774522.25 | E21: 100 | F21: 2.530897815
A22: 15 | B22: GMX Seguros | C22: 7426007.052 | D22: 5612894.388 | E22: 100 | F22: 2.118321223
A23: 15.1 | B23: TOTAL MEDIANAS | C23: 117459911.9 | D23: 122827904.4 | E23: 108.9871813 | F23: 33.50627363
A24: 16 | B24: Zurich Santander | C24: 7240616.321 | D24: 7466541.419 | E24: 100 | F24: 2.065437201
A25: 17 | B25: Pensiones BBVA Bancomer | C25: 6898114.976 | D25: 6040258.755 | E25: 0 | F25: 1.967736261
A26: 18 | B26: ProFuturo G.N.P. | C26: 5415377.444 | D26: 6429027.211 | E26: 0 | F26: 1.544774855
A27: 19 | B27: HDI Seguros | C27: 4583351.908 | D27: 4133361.38 | E27: 100 | F27: 1.307433665
A28: 20 | B28: Zurich Daños | C28: 4063560.402 | D28: 3302182.14 | E28: 100 | F28: 1.159159449
A29: 21 | B29: Afirme | C29: 3775583.215 | D29: 5651004.016 | E29: 100 | F29: 1.077011912
A30: 22 | B30: Seguros SURA | C30: 3472716.022 | D30: 2522205.723 | E30: 100 | F30: 0.9906168953
A31: 23 | B31: AIG Seguros | C31: 3294828.76 | D31: 2838972.282 | E31: 100 | F31: 0.939873291
A32: 24 | B32: Agroasemex | C32: 3128814.921 | D32: 1587099.071 | E32: 100 | F32: 0.8925166651
A33: 25 | B33: HSBC Seguros | C33: 3007753.25 | D33: 2817200.879 | E33: 100 | F33: 0.8579829641
A34: 26 | B34: Seguros Azteca | C34: 2387879.911 | D34: 3559655.877 | E34: 100 | F34: 0.6811596942
A35: 27 | B35: Patrimonial Vida | C35: 2216494.766 | D35: 1019576.817 | E35: 100 | F35: 0.6322708651
A36: 28 | B36: Seguros Azteca Daños | C36: 2057482.598 | D36: 895944.6702 | E36: 100 | F36: 0.5869115156
A37: 29 | B37: Seguros Argos | C37: 1922501.305 | D37: 1337289.562 | E37: 100 | F37: 0.5484071436
A38: 30 | B38: Hir Seguros | C38: 1861513.895 | D38: 1282546.609 | E38: 100 | F38: 0.531010052
A39: 31 | B39: BUPA México | C39: 1795882.456 | D39: 1536603.521 | E39: 100 | F39: 0.512288218
A40: 32 | B40: Ve Por Más | C40: 1640257.721 | D40: 1866768.435 | E40: 100 | F40: 0.4678951578
A41: 33 | B41: Plan Seguro | C41: 1621341.633 | D41: 1332841.45 | E41: 100 | F41: 0.4624992093
A42: 34 | B42: Cardif Vida | C42: 1540302.894 | D42: 1327513.669 | E42: 100 | F42: 0.4393823338
A43: 35 | B43: ANA | C43: 1478999.982 | D43: 1304127.8 | E43: 100 | F43: 0.421895243
A44: 36 | B44: FM Global | C44: 1318097.101 | D44: 1317101.242 | E44: 100 | F44: 0.3759965541
A45: 37 | B45: General de Seguros | C45: 1281068.288 | D45: 1158864.578 | E45: 100 | F45: 0.3654338224
A46: 38 | B46: El Potosí | C46: 1055531.499 | D46: 966253.4281 | E46: 100 | F46: 0.3010978524
A47: 39 | B47: Tokio Marine | C47: 995247.5867 | D47: 898062.6442 | E47: 100 | F47: 0.2839014386
A48: 40 | B48: Insignia Life | C48: 766919.544 | D48: 699225.8606 | E48: 100 | F48: 0.2187692437
A49: 41 | B49: Prudential | C49: 727320.8938 | D49: 519351.5095 | E49: 100 | F49: 0.2074734476
A50: 42 | B50: Zurich Vida | C50: 706727.7084 | D50: 761720.7133 | E50: 100 | F50: 0.2015990953
A51: 43 | B51: La Latinoamericana | C51: 681751.0774 | D51: 671496.8819 | E51: 100 | F51: 0.194474334
A52: 44 | B52: El Águila | C52: 653610.2495 | D52: 596158.6917 | E52: 100 | F52: 0.1864469631
A53: 45 | B53: HDI Global Seguros | C53: 624651.3889 | D53: 600298.3309 | E53: 100 | F53: 0.1781862426
A54: 46 | B54: Cardif Seguros Generales | C54: 592169.6989 | D54: 399467.4637 | E54: 100 | F54: 0.1689206099
A55: 47 | B55: AXA Salud | C55: 514706.5958 | D55: 135403.4425 | E55: 100 | F55: 0.1468237099
A56: 48 | B56: Primero Seguros | C56: 481643.7617 | D56: 376731.6264 | E56: 100 | F56: 0.1373923018
A57: 49 | B57: Sompo Japan | C57: 461795.1686 | D57: 463005.6529 | E57: 100 | F57: 0.1317303498
A58: 50 | B58: Patrimonial Inbursa | C58: 457358.6663 | D58: 515353.3463 | E58: 100 | F58: 0.130464806
A59: 51 | B59: Atradius | C59: 426948.4712 | D59: 327740.3361 | E59: 100 | F59: 0.121790082
A60: 52 | B60: Pan-American México | C60: 385801.3783 | D60: 319591.086 | E60: 100 | F60: 0.1100525816
A61: 53 | B61: Solunion Crédito | C61: 333930.4897 | D61: 318818.9922 | E61: 100 | F61: 0.09525604248
A62: 54 | B62: General de Salud | C62: 315959.032 | D62: 208485.5687 | E62: 100 | F62: 0.0901295566
A63: 55 | B63: Berkley Seguros | C63: 293792.1733 | D63: 205159.3339 | E63: 100 | F63: 0.08380630283
A64: 56 | B64: PREVEM Seguros | C64: 276711.6238 | D64: 229344.1818 | E64: 100 | F64: 0.07893395484
A65: 57 | B65: Swiss Re Corporate Solutions | C65: 273004.4273 | D65: 86787.25894 | E65: 100 | F65: 0.07787645072
A66: 58 | B66: Coface | C66: 248590.0138 | D66: 0 | E66: 100 | F66: 0.07091206598
A67: 59 | B67: Skandia Life | C67: 247785.1426 | D67: 216736.6044 | E67: 100 | F67: 0.07068247076
A68: 60 | B68: Dentegra | C68: 234301.8599 | D68: 192540.77 | E68: 100 | F68: 0.06683626867
A69: 61 | B69: SHF Cred Vivienda | C69: 193780.4651 | D69: 216017.4569 | E69: 100 | F69: 0.05527725315
A70: 62 | B70: BBVA Bancomer Salud | C70: 160911.5315 | D70: 386681.0289 | E70: 100 | F70: 0.04590115653
A71: 63 | B71: Zurich Aseguradora Mexicana | C71: 124375.2312 | D71: 156417.469 | E71: 100 | F71: 0.03547891754
A72: 64 | B72: Assurant Daños | C72: 116998.4534 | D72: 80092.18774 | E72: 100 | F72: 0.03337463931
A73: 65 | B73: SIS NOVA | C73: 112971.2501 | D73: 363190.4224 | E73: 100 | F73: 0.03222585098
A74: 66 | B74: Centauro | C74: 82942.37157 | D74: 72071.53699 | E74: 100 | F74: 0.02365990023
A75: 67 | B75: MediAccess | C75: 78274.22715 | D75: 87696.39647 | E75: 100 | F75: 0.0223282789
A76: 68 | B76: Assurant Vida | C76: 59247.18156 | D76: 92074.25407 | E76: 100 | F76: 0.01690067909
A77: 69 | B77: Virginia Surety | C77: 51924.74403 | D77: 23252.8876 | E77: 100 | F77: 0.01481190181
A78: 70 | B78: Tláloc Seguros | C78: 50109.55349 | D78: 57638.39231 | E78: 100 | F78: 0.01429410582
A79: 71 | B79: Odontoprev | C79: 47281.41634 | D79: 51971.83992 | E79: 100 | F79: 0.01348735962
A80: 72 | B80: Genworth Seg. de Crédito | C80: 30358.64992 | D80: 33351.85043 | E80: 100 | F80: 0.008660020381
A81: 73 | B81: Metlife Más | C81: 26744.36012 | D81: 29954.5614 | E81: 100 | F81: 0.007629018561
A82: 74 | B82: SPP Seguros | C82: 26491.25311 | D82: 5453.14707 | E82: 100 | F82: 0.007556817989
A83: 75 | B83: Metlife Pensiones | C83: 16711.76856 | D83: 3344.72863 | E83: 0 | F83: 0.004767150605
A84: 76 | B84: Citibanamex Pensiones | C84: 14949.41692 | D84: 7377.15314 | E84: 0 | F84: 0.00426442729
A85: 77 | B85: SPT | C85: 14683.97963 | D85: 0 | E85: 100 | F85: 0.004188709419
A86: 78 | B86: Crabi | C86: 12967.71767 | D86: 17817.24175 | E86: 100 | F86: 0.003699133513
A87: 79 | B87: Pensiones Inbursa | C87: 722.38706 | D87: 53.8609 | E87: 0 | F87: 0.0002060660365
A88: 80 | B88: Aserta Seguros de Vida | C88: 605.8929 | D88: 118922.6627 | E88: 100 | F88: 0.0001728352505
A89: 81 | B89: Principal México | C89: 0 | D89: 112.54928 | E89: 0 | F89: 0
A90: 82 | B90: HSBC Pensiones | C90: 0 | D90: 3576.22487 | E90: 0 | F90: 0
A91: 150.1 | B91: TOTAL RESTO | C91: 78981850.07 | D91: 72241488.68 | E91: 118.5273438 | F91: 22.53013336
A92: 151.1 | B92: TOTAL | C92: 350560952.3 | D92: 335852451.2 | E92: 106.7061694 | F92: 100

Sheet TDPrimas Vida (hidden)
A2: periodo | B2: 2022-Q2
A3: Ramo2 | B3: 12 Vida Total
A4: subramo | B4: (Varios elementos)
A6: Jerarquia 2 | B6: nombre_compania | C6: Suma de Prima_DirectaAct | D6: Suma de Prima_DirectaAnt | E6: Suma de %CARTERA | F6: Suma de Prima_Directa_Act1anio | G6: Suma de Prima_Directa_Ant1anio | H6: Suma de %CARTERA_1anio | I6: Suma de PrimaDirectaAct_Renov | J6: Suma de PrimaDirectaAnt_Renov | K6: Suma de %CARTERA_Renov | L6: Suma de PrimaDirectaAct_Unica | M6: Suma de PrimaDirectaAnt_Unica | N6: Suma de %CARTERA_uni
A7: 1 | B7: Metlife México | C7: 27318453.45 | D7: 25834248.85 | E7: 70.25954291 | F7: 4552954.008 | G7: 4305259.649 | H7: 11.70961117 | I7: 19555964.16 | J7: 18581390.38 | K7: 50.29542048 | L7: 3209535.28 | M7: 2947598.826 | N7: 8.254511265
A8: 2 | B8: BBVA Bancomer | C8: 23210937.64 | D8: 22596794.93 | E8: 81.15977443 | F8: 20352632.24 | G8: 20235488.4 | H8: 71.1653733 | I8: 1829783.148 | J8: 1765060.483 | K8: 6.398052067 | L8: 1028522.25 | M8: 596246.0496 | N8: 3.596349062
A9: 3 | B9: G.N.P. | C9: 14839603.46 | D9: 14136497.58 | E9: 34.83250395 | F9: 3014544.09 | G9: 2897814.091 | H9: 7.075938328 | I9: 8374876.286 | J9: 7982219.842 | K9: 19.65806648 | L9: 3450183.085 | M9: 3256463.648 | N9: 8.098499144
A10: 4 | B10: Monterrey New York Life | C10: 12366540.38 | D10: 11486031.33 | E10: 67.31191374 | F10: 1101765.55 | G10: 1071158.749 | H10: 5.996984233 | I10: 8158729.689 | J10: 7477865.285 | K10: 44.40851623 | L10: 3106045.139 | M10: 2937007.297 | N10: 16.90641328
A11: 5 | B11: Banorte | C11: 11676310.84 | D11: 10641220.85 | E11: 63.08131109 | F11: 2819216.692 | G11: 1953400.795 | H11: 15.23082827 | I11: 7429052.427 | J11: 7132290.461 | K11: 40.13548232 | L11: 1428041.72 | M11: 1555529.596 | N11: 7.715000503
A12: 5.1 | B12: TOTAL GRANDES | C12: 89411845.76 | D12: 84694793.55 | E12: 60.83848132 | F12: 31841112.58 | G12: 30463121.69 | H12: 21.6656408 | I12: 45348405.71 | J12: 42938826.45 | K12: 30.8564051 | L12: 12222327.47 | M12: 11292845.42 | N12: 8.316435427
A13: 6 | B13: Citibanamex Seguros | C13: 8414678.178 | D13: 12347637.76 | E13: 94.84170658 | F13: 4888035.687 | G13: 7390405.421 | H13: 55.09297403 | I13: 3526642.491 | J13: 4957232.342 | K13: 39.74873255 | L13: 0 | M13: 0 | N13: 0
A14: 7 | B14: Zurich Santander | C14: 4825198.451 | D14: 5262630.548 | E14: 66.64071451 | F14: 1897312.568 | G14: 2971722.7 | H14: 26.20374405 | I14: 688417.8136 | J14: 601578.4027 | K14: 9.507723971 | L14: 2239468.069 | M14: 1689329.446 | N14: 30.92924649
A15: 8 | B15: Allianz México | C15: 4577049.652 | D15: 4437046.522 | E15: 50.25662343 | F15: 2149406.017 | G15: 2290813.003 | H15: 23.6007684 | I15: 2427643.635 | J15: 2146233.519 | K15: 26.65585503 | L15: 0 | M15: 0 | N15: 0
A16: 9 | B16: Inbursa | C16: 3081362.417 | D16: 3143864.516 | E16: 24.04737039 | F16: 1948690.125 | G16: 2086856.862 | H16: 15.20784214 | I16: 1132672.292 | J16: 1057007.654 | K16: 8.839528255 | L16: 0 | M16: 0 | N16: 0
A17: 10 | B17: AXA Seguros | C17: 2816308.991 | D17: 2910306.753 | E17: 11.03342628 | F17: 586811.4678 | G17: 569625.6737 | H17: 2.298945568 | I17: 2227667.075 | J17: 2338140.439 | K17: 8.727309586 | L17: 1830.44806 | M17: 2540.64067 | N17: 0.007171128523
A18: 11 | B18: HSBC Seguros | C18: 2810516.831 | D18: 2661628.648 | E18: 93.44240027 | F18: 1742244.943 | G18: 1755634.092 | H18: 57.92512876 | I18: 1068271.888 | J18: 905994.5556 | K18: 35.51727151 | L18: 0 | M18: 0 | N18: 0
A19: 12 | B19: Mapfre México | C19: 2621174.193 | D19: 2369796.855 | E19: 20.03427326 | F19: 2199992.515 | G19: 1975049.299 | H19: 16.81507903 | I19: 421348.1401 | J19: 394416.9167 | K19: 3.220466536 | L19: -166.46212 | M19: 330.63931 | N19: -0.001272310558
A20: 13 | B20: Seguros Azteca | C20: 2291506.533 | D20: 3466688.312 | E20: 95.96406093 | F20: 2244156.464 | G20: 3416387.57 | H20: 93.98112749 | I20: 3755.71059 | J20: 2487.26237 | K20: 0.1572822223 | L20: 43594.35851 | M20: 47813.47897 | N20: 1.825651211
A21: 14 | B21: Patrimonial Vida | C21: 2216494.766 | D21: 1019576.817 | E21: 100 | F21: 2216494.766 | G21: 1019576.817 | H21: 100 | I21: 0 | J21: 0 | K21: 0 | L21: 0 | M21: 0 | N21: 0
A22: 15 | B22: Seguros Argos | C22: 1922501.305 | D22: 1337289.562 | E22: 100 | F22: 679770.6615 | G22: 367215.1912 | H22: 35.358658 | I22: 1101487.54 | J22: 720702.8072 | K22: 57.29450153 | L22: 141243.1039 | M22: 249371.5631 | N22: 7.346840468
A23: 15.1 | B23: TOTAL MEDIANAS | C23: 35576791.32 | D23: 38956466.3 | E23: 41.28322526 | F23: 20552915.21 | G23: 23843286.63 | H23: 23.84955464 | I23: 12597906.59 | J23: 13123793.9 | K23: 14.61858128 | L23: 2425969.518 | M23: 1989385.768 | N23: 2.815089342
A24: 16 | B24: Hir Seguros | C24: 1849323.173 | D24: 1273070.499 | E24: 99.34511786 | F24: 633454.1664 | G24: 174167.4951 | H24: 34.02897867 | I24: 1215869.007 | J24: 1098903.004 | K24: 65.31613919 | L24: 0 | M24: 0 | N24: 0
A25: 17 | B25: Atlas | C25: 1635605.923 | D25: 1240077.801 | E25: 17.99151171 | F25: 1282119.609 | G25: 862923.0918 | H25: 14.10319542 | I25: 319240.1723 | J25: 290611.5135 | K25: 3.511611946 | L25: 34246.14094 | M25: 86543.19539 | N25: 0.3767043376
A26: 18 | B26: Cardif Vida | C26: 1417017.494 | D26: 1263020.487 | E26: 91.99602881 | F26: 231792.766 | G26: 23620.79885 | H26: 15.0485185 | I26: 858692.57 | J26: 1008050.705 | K26: 55.74829298 | L26: 326532.1579 | M26: 231348.9831 | N26: 21.19921732
A27: 19 | B27: Afirme | C27: 1318775.509 | D27: 1668681.277 | E27: 34.92905425 | F27: 1318775.509 | G27: 1668681.277 | H27: 34.92905425 | I27: 0 | J27: 0 | K27: 0 | L27: 0 | M27: 0 | N27: 0
A28: 20 | B28: Seguros SURA | C28: 980852.8888 | D28: 674731.0438 | E28: 28.24454642 | F28: 825574.2479 | G28: 478351.6215 | H28: 23.77315746 | I28: 154371.5903 | J28: 193281.4987 | K28: 4.445269619 | L28: 907.05056 | M28: 3097.92357 | N28: 0.02611934158
A29: 21 | B29: Insignia Life | C29: 766919.544 | D29: 699225.8606 | E29: 100 | F29: 248225.3129 | G29: 246873.0395 | H29: 32.36653895 | I29: 519929.2129 | J29: 457003.423 | K29: 67.79449252 | L29: -1234.98186 | M29: -4650.60189 | N29: -0.1610314758
A30: 22 | B30: Prudential | C30: 727320.8938 | D30: 519351.5095 | E30: 100 | F30: 269116.9808 | G30: 204902.3507 | H30: 37.00113431 | I30: 445600.5236 | J30: 294514.5044 | K30: 61.26601441 | L30: 12603.38939 | M30: 19934.65445 | N30: 1.732851276
A31: 23 | B31: Chubb Seguros México | C31: 592571.0396 | D31: 666479.0692 | E31: 5.195793182 | F31: 592571.0396 | G31: 666479.0692 | H31: 5.195793182 | I31: 0 | J31: 0 | K31: 0 | L31: 0 | M31: 0 | N31: 0
A32: 24 | B32: Ve Por Más | C32: 320459.1933 | D32: 530490.6573 | E32: 19.53712451 | F32: 71102.00924 | G32: 46868.57459 | H32: 4.334807166 | I32: 186068.1841 | J32: 353840.7354 | K32: 11.34383833 | L32: 63289 | M32: 129781.3473 | N32: 3.858479017
A33: 25 | B33: General de Seguros | C33: 316649.8536 | D33: 356933.035 | E33: 24.71764047 | F33: 63650.48621 | G33: 219903.7307 | H33: 4.968547486 | I33: 252999.3674 | J33: 137029.3043 | K33: 19.74909299 | L33: 0 | M33: 0 | N33: 0
A34: 26 | B34: Patrimonial Inbursa | C34: 305561.8961 | D34: 343098.1235 | E34: 66.81012489 | F34: 305561.8961 | G34: 343098.1235 | H34: 66.81012489 | I34: 0 | J34: 0 | K34: 0 | L34: 0 | M34: 0 | N34: 0
A35: 27 | B35: Skandia Life | C35: 247785.1426 | D35: 216736.6044 | E35: 100 | F35: 130027.7971 | G35: 116821.0794 | H35: 52.47602649 | I35: 117757.3455 | J35: 99915.52508 | K35: 47.52397351 | L35: 0 | M35: 0 | N35: 0
A36: 28 | B36: Zurich Vida | C36: 240159.4534 | D36: 246247.7121 | E36: 33.98189296 | F36: -5108.74368 | G36: 32094.35738 | H36: -0.7228729848 | I36: 130401.6105 | J36: 144057.1233 | K36: 18.45146425 | L36: 114866.5866 | M36: 70096.23145 | N36: 16.2533017
A37: 29 | B37: La Latinoamericana | C37: 198016.8525 | D37: 205337.9579 | E37: 29.04533033 | F37: 91827.96701 | G37: 97835.80626 | H37: 13.46942749 | I37: 106188.8855 | J37: 107502.1516 | K37: 15.57590285 | L37: 0 | M37: 0 | N37: 0
A38: 30 | B38: El Potosí | C38: 148742.3828 | D38: 115934.0464 | E38: 14.09170479 | F38: 50504.09346 | G38: 32542.06545 | H38: 4.784707373 | I38: 98129.45319 | J38: 83391.981 | K38: 9.296686388 | L38: 108.83614 | M38: 0 | N38: 0.0103110272
A39: 31 | B39: Pan-American México | C39: 123298.0927 | D39: 60231.8981 | E39: 31.95895601 | F39: 34133.73456 | G39: 29344.92833 | H39: 8.847489015 | I39: 54463.83949 | J39: 199.91439 | K39: 14.11706711 | L39: 34700.5187 | M39: 30687.05538 | N39: 8.994399879
A40: 32 | B40: Zurich Aseguradora Mexicana | C40: 121647.8225 | D40: 152712.7145 | E40: 97.80711268 | F40: 121647.8225 | G40: 152712.7145 | H40: 97.80711268 | I40: 0 | J40: 0 | K40: 0 | L40: 0 | M40: 0 | N40: 0
A41: 33 | B41: Assurant Vida | C41: 59247.18156 | D41: 92074.25407 | E41: 100 | F41: 53588.26745 | G41: 86516.27607 | H41: 90.44863576 | I41: 5658.91411 | J41: 5557.978 | K41: 9.551364235 | L41: 0 | M41: 0 | N41: 0
A42: 34 | B42: Tokio Marine | C42: 28094.89386 | D42: 24516.87635 | E42: 2.822904997 | F42: 13061.93717 | G42: 13244.99442 | H42: 1.312430931 | I42: 15032.95669 | J42: 11271.88193 | K42: 1.510474066 | L42: 0 | M42: 0 | N42: 0
A43: 35 | B43: Agroasemex | C43: 7382.02907 | D43: 6341.69299 | E43: 0.2359369044 | F43: 7382.02907 | G43: 6341.69299 | H43: 0.2359369044 | I43: 0 | J43: 0 | K43: 0 | L43: 0 | M43: 0 | N43: 0
A44: 36 | B44: HDI Seguros | C44: 1483.49153 | D44: 341.86928 | E44: 0.03236695676 | F44: 0 | G44: 0 | H44: 0 | I44: 1483.49153 | J44: 341.86928 | K44: 0.03236695676 | L44: 0 | M44: 0 | N44: 0
A45: 37 | B45: Aserta Seguros de Vida | C45: 605.8929 | D45: 118972.278 | E45: 100 | F45: 621.52768 | G45: 59378.72649 | H45: 102.5804527 | I45: 0.49532 | J45: 33335.21922 | K45: 0.08175042157 | L45: -16.1301 | M45: 26258.33227 | N45: -2.662203172
A46: 38 | B46: Principal México | C46: 0 | D46: 112.54928 | E46: 0 | F46: 0 | G46: 0 | H46: 0 | I46: 0 | J46: 0 | K46: 0 | L46: 0 | M46: 0 | N46: 0
A47: 150.1 | B47: TOTAL RESTO | C47: 11407520.64 | D47: 10474719.82 | E47: 23.77156596 | F47: 6339630.456 | G47: 5562701.814 | H47: 13.21084118 | I47: 4481887.619 | J47: 4318808.332 | K47: 9.339583112 | L47: 586002.5683 | M47: 593097.121 | N47: 1.221141661
A48: 151.1 | B48: TOTAL | C48: 136396157.7 | D48: 134125979.7 | E48: 48.51687329 | F48: 58733658.25 | G48: 59869110.13 | H48: 20.8918895 | I48: 62428199.91 | J48: 60381428.68 | K48: 22.20605855 | L48: 15234299.56 | M48: 13875328.31 | N48: 5.418925237

Sheet TD Siniestros (hidden)
A3: periodo | B3: 2022-Q2
A4: Ramo_ | B4: 10 Total General
A6: Jerarquia 2 | B6: nombre_compania | C6: Suma de CostoSin_Act | D6: Suma de IncSin | E6: Suma de IncResvDivAct | F6: Suma de %SinvsPrm_Act | G6: Suma de %SinvsPrm_Ant | H6: Suma de Costo_Sin_RetAct | I6: Suma de IncSin_Ret | J6: Suma de Prima_DevengadaAct | K6: Suma de IncSin_PDev | L6: Suma de %SinvsPDev_Act | M6: Suma de %SinvsPDev_Ant
A7: 1 | B7: G.N.P. | C7: 27030057.25 | D7: 7.086143762 | E7: 51153.7352 | F7: 63.44674765 | G7: 66.24669082 | H7: 25044946.35 | I7: 3.188333879 | J7: 33538723.52 | K7: 10.8806702 | L7: 74.67471543 | M7: 80.24145931
A8: 2 | B8: Metlife México | C8: 23725249.41 | D8: -8.355676716 | E8: 2807.09149 | F8: 61.01828503 | G8: 75.73148065 | H8: 22737819.13 | I8: -9.047062959 | J8: 31352661.86 | K8: 6.837288276 | L8: 72.5227709 | M8: 85.18841098
A9: 3 | B9: BBVA Bancomer | C9: 13631769.42 | D9: -6.709337218 | E9: 0 | F9: 47.66508566 | G9: 53.31059742 | H9: 13580935.04 | I9: -4.436908958 | J9: 19982346.76 | K9: 26.09784383 | L9: 67.96466505 | M9: 89.68104345
A10: 4 | B10: AXA Seguros | C10: 15578044.5 | D10: 13.4435443 | E10: 226138.9196 | F10: 61.02995309 | G10: 57.15840936 | H10: 14093975.53 | I10: 5.745672711 | J10: 19153663.15 | K10: 1.738807086 | L10: 73.58370783 | M10: 70.79550836
A11: 5 | B11: Banorte | C11: 8669162.051 | D11: -15.40950712 | E11: 28458.55515 | F11: 46.83517901 | G11: 60.06361704 | H11: 7664390.316 | I11: -7.371670866 | J11: 11724510.22 | K11: 7.056726893 | L11: 65.37066513 | M11: 75.55322987
A12: 5.1 | B12: TOTAL GRANDES | C12: 88634282.63 | D12: -1.212683313 | E12: 308558.3014 | F12: 57.51021819 | G12: 63.73091448 | H12: 83122066.37 | I12: -2.306638237 | J12: 115751905.5 | K12: 10.01103206 | L12: 71.81053824 | M12: 80.864772
A13: 6 | B13: Monterrey New York Life | C13: 11974512.22 | D13: -7.921195309 | E13: 38422.54134 | F13: 65.17807805 | G13: 77.32199353 | H13: 11134517.68 | I13: -8.55440588 | J13: 16428111.85 | K13: 21.68441373 | L13: 67.77722104 | M13: 90.18948902
A14: 7 | B14: Quálitas | C14: 11860216.21 | D14: 18.97118866 | E14: 47347.58894 | F14: 67.37462896 | G14: 58.227627 | H14: 11849721.24 | I14: 18.86270834 | J14: 17760360.42 | K14: 7.141926841 | L14: 66.72004939 | M14: 60.14093697
A15: 8 | B15: Mapfre México | C15: 6907395.482 | D15: -3.203487776 | E15: 245421.7262 | F15: 52.79490732 | G15: 32.20456728 | H15: 4751064.257 | I15: -8.855919308 | J15: 7501574.044 | K15: 13.53933814 | L15: 63.33423131 | M15: 78.89625579
A16: 9 | B16: Inbursa | C16: 5334262.431 | D16: 0.06169551762 | E16: 177232.3262 | F16: 41.62930779 | G16: 45.21319831 | H16: 4969228.99 | I16: -3.084176035 | J16: 7536726.286 | K16: 9.908319996 | L16: 65.93352075 | M16: 74.77254178
A17: 10 | B17: Chubb Seguros México | C17: 5205978.485 | D17: 10.03135386 | E17: 82766.57699 | F17: 45.64716415 | G17: 47.33193068 | H17: 2572020.829 | I17: 13.89169028 | J17: 4593428.684 | K17: 4.407545945 | L17: 55.99348561 | M17: 51.33071962
A18: 11 | B18: Pensiones Banorte | C18: 5736006.334 | D18: 24.10494916 | E18: 0 | F18: 59.22047246 | G18: 44.96429338 | H18: 5736006.334 | I18: 24.10494916 | J18: -3618252.351 | K18: 54.69158425 | L18: -158.529748 | M18: -197.600644
A19: 12 | B19: Allianz México | C19: 6044829.607 | D19: 28.2401468 | E19: 27915.29785 | F19: 66.3730456 | G19: 55.90833833 | H19: 3946887.405 | I19: 1.116525261 | J19: 8019373.844 | K19: 240.3252651 | L19: 49.21690249 | M19: 165.6480515
A20: 13 | B20: Atlas | C20: 4527990.421 | D20: 3.651537987 | E20: 23738.90917 | F20: 49.80746984 | G20: 55.68028559 | H20: 3428131.199 | I20: 11.52526617 | J20: 5051665.442 | K20: 11.4826102 | L20: 67.86140608 | M20: 67.83545058
A21: 14 | B21: Citibanamex Seguros | C21: 16347858.8 | D21: 29.29906903 | E21: 0 | F21: 184.2564617 | G21: 98.97392947 | H21: 16331594.06 | I21: 29.74688531 | J21: 23820623.39 | K21: 155.7039021 | L21: 68.56073326 | M21: 135.1188276
A22: 15 | B22: GMX Seguros | C22: 2635157.16 | D22: 26.9234294 | E22: 0 | F22: 35.48551923 | G22: 36.98944823 | H22: 589879.4748 | I22: 44.52734623 | J22: 1360007.369 | K22: 15.69359721 | L22: 43.37325578 | M22: 34.72012816
A23: 15.1 | B23: TOTAL MEDIANAS | C23: 76574207.16 | D23: 11.63132969 | E23: 642844.9666 | F23: 65.19177982 | G23: 55.84693829 | H23: 65309051.48 | I23: 10.06238589 | J23: 88453618.98 | K23: 40.44525698 | L23: 73.83423339 | M23: 94.21627379
A24: 16 | B24: Zurich Santander | C24: 1511985.587 | D24: -26.01988455 | E24: 0 | F24: 20.8820012 | G24: 27.37241828 | H24: 1421370.93 | I24: -17.72046713 | J24: 5457589.235 | K24: 22.88821452 | L24: 26.04393384 | M24: 38.89779653
A25: 17 | B25: Pensiones BBVA Bancomer | C25: 3789272.896 | D25: 14.86904362 | E25: 0 | F25: 54.93200546 | G25: 54.61316358 | H25: 3789272.896 | I25: 14.86904362 | J25: -2403684.145 | K25: 39.06588528 | L25: -157.644377 | M25: -190.8517226
A26: 18 | B26: ProFuturo G.N.P. | C26: 2349738.2 | D26: 22.66293417 | E26: 0 | F26: 43.39010945 | G26: 29.79619888 | H26: 2349738.2 | I26: 22.66293417 | J26: -1661761.911 | K26: 38.19119776 | L26: -141.4004127 | M26: -159.3007091
A27: 19 | B27: HDI Seguros | C27: 2752618.16 | D27: 18.43921297 | E27: 0 | F27: 60.05688011 | G27: 56.22728072 | H27: 2591869.365 | I27: 12.31300383 | J27: 4505438.929 | K27: 15.95634404 | L27: 57.52756625 | M27: 59.39371254
A28: 20 | B28: Zurich Daños | C28: 1212204.651 | D28: -43.41383315 | E28: 22481.42615 | F28: 29.83109714 | G28: 64.87309917 | H28: 1154579.251 | I28: 17.85949013 | J28: 2086341.263 | K28: 1.239142187 | L28: 55.33990396 | M28: 47.53596337
A29: 21 | B29: Afirme | C29: 2583834.101 | D29: 37.57216765 | E29: 7044.11671 | F29: 68.43536358 | G29: 33.23597544 | H29: 1905228.771 | I29: 28.93101092 | J29: 2283848.765 | K29: -5.035612676 | L29: 83.42184472 | M29: 61.44452229
A30: 22 | B30: Seguros SURA | C30: 2149041.58 | D30: 40.44735965 | E30: 11286.01917 | F30: 61.88359678 | G30: 60.66675039 | H30: 1359683.512 | I30: 20.71866316 | J30: 2733343.706 | K30: 36.86085112 | L30: 49.74432996 | M30: 56.39601333
A31: 23 | B31: AIG Seguros | C31: 564428.2744 | D31: 36.58472362 | E31: 5527.79892 | F31: 17.13073169 | G31: 14.55611508 | H31: 254372.7964 | I31: 51.41706801 | J31: 467202.078 | K31: 1.716433327 | L31: 54.44598994 | M31: 36.57481933
A32: 24 | B32: Agroasemex | C32: 419723.2028 | D32: -8.080544457 | E32: 13799.40595 | F32: 13.41476608 | G32: 28.77077082 | H32: 492820.8164 | I32: -28.29913763 | J32: 2623932.074 | K32: 93.3551635 | L32: 18.78176731 | M32: 50.64864728
A33: 25 | B33: HSBC Seguros | C33: 1437572.92 | D33: 18.83294656 | E33: 0 | F33: 47.79557366 | G33: 42.94130139 | H33: 1416223.168 | I33: 18.74102329 | J33: 2260044.733 | K33: 37.67496281 | L33: 62.66350162 | M33: 72.65555758
A34: 26 | B34: Seguros Azteca | C34: 1621087.006 | D34: -23.83059126 | E34: 0 | F34: 67.88812948 | G34: 59.78850922 | H34: 758019.3019 | I34: -31.72920027 | J34: 1401896.367 | K34: -30.20662948 | L34: 54.07099408 | M34: 55.27688176
A35: 27 | B35: Patrimonial Vida | C35: 776146.4646 | D35: 2.252880107 | E35: 607.16678 | F35: 35.01684175 | G35: 74.44716811 | H35: 331436.3274 | I35: -14.60250328 | J35: 448873.1114 | K35: -27.43512312 | L35: 73.83742066 | M35: 62.74192505
A36: 28 | B36: Seguros Azteca Daños | C36: 300246.2168 | D36: -30.77661657 | E36: 15602.87127 | F36: 14.59289216 | G36: 48.41094174 | H36: 60879.37628 | I36: -31.1237737 | J36: 183359.2439 | K36: -12.62942217 | L36: 33.20224004 | M36: 42.1175644
A37: 29 | B37: Seguros Argos | C37: 1250272.268 | D37: -32.9007555 | E37: 9206.03304 | F37: 65.03362388 | G37: 139.3354143 | H37: 973873.5355 | I37: -38.160573 | J37: 1356253.192 | K37: -0.133647139 | L37: 71.80617463 | M37: 115.9619537
A38: 30 | B38: Hir Seguros | C38: 749624.7603 | D38: -25.92588125 | E38: 184198.2161 | F38: 40.26963012 | G38: 78.90495433 | H38: 610217.8295 | I38: 4.33950085 | J38: 813726.33 | K38: 15.93350016 | L38: 74.99054744 | M38: 83.32334899
A39: 31 | B39: BUPA México | C39: 1380233.611 | D39: 26.42683038 | E39: 0 | F39: 76.85545379 | G39: 71.04794568 | H39: 1259943.091 | I39: 799.5960828 | J39: 1924770.833 | K39: 884.2585458 | L39: 65.45938192 | M39: 71.61987172
A40: 32 | B40: Ve Por Más | C40: 1029987.276 | D40: -2.228151081 | E40: 918.57585 | F40: 62.79423429 | G40: 56.43227817 | H40: 712201.7648 | I40: 1.08658249 | J40: 1298804.187 | K40: 13.59359987 | L40: 54.83519164 | M40: 61.6197191
A41: 33 | B41: Plan Seguro | C41: 936660.9815 | D41: 18.01577614 | E41: 0 | F41: 57.77073522 | G41: 59.54754646 | H41: 687606.7396 | I41: 18.23674909 | J41: 1063495.521 | K41: 13.86378542 | L41: 64.6553489 | M41: 62.26408312
A42: 34 | B42: Cardif Vida | C42: 483637.2385 | D42: -46.60475679 | E42: 47625.66428 | F42: 31.39883983 | G42: 68.23043845 | H42: 370801.8507 | I42: -39.36748739 | J42: 1079142.469 | K42: 38.82870558 | L42: 34.36078752 | M42: 78.67501193
A43: 35 | B43: ANA | C43: 897696.4823 | D43: 34.4231289 | E43: 11350.24476 | F43: 60.6961794 | G43: 51.20771188 | H43: 682840.7976 | I43: 34.59025178 | J43: 1148596.492 | K43: 14.69106985 | L43: 59.45001597 | M43: 50.66032528
A44: 36 | B44: FM Global | C44: 109945.058 | D44: -328.9882251 | E44: 0 | F44: 8.341195643 | G44: -3.645385001 | H44: 3294.67925 | I44: -46.00512863 | J44: 23185.35635 | K44: 329.1267503 | L44: 14.21017301 | M44: 112.9360106
A45: 37 | B45: General de Seguros | C45: 986902.1871 | D45: 36.9403861 | E45: -156.58766 | F45: 77.03743793 | G45: 62.18847043 | H45: 850216.6579 | I45: 34.94175275 | J45: 1045456.139 | K45: 24.27557503 | L45: 81.32494766 | M45: 74.89679383
A46: 38 | B46: El Potosí | C46: 583242.012 | D46: 12.01257528 | E46: 2885.84704 | F46: 55.25576571 | G46: 53.88786402 | H46: 490505.1774 | I46: 20.68601495 | J46: 743221.0237 | K46: 14.76002737 | L46: 65.99721506 | M46: 62.75658543
A47: 39 | B47: Tokio Marine | C47: 283275.7682 | D47: -8.724672202 | E47: 3401.89888 | F47: 28.46284402 | G47: 34.55806306 | H47: 51921.3017 | I47: -37.10447666 | J47: 96711.58734 | K47: -8.338732916 | L47: 53.68674337 | M47: 78.24078187
A48: 40 | B48: Insignia Life | C48: 449552.659 | D48: -35.41415456 | E48: 8142.11215 | F48: 58.6179688 | G48: 99.54644146 | H48: 423097.4194 | I48: -28.17613969 | J48: 615042.9456 | K48: 18.47485539 | L48: 68.79152463 | M48: 113.4729587
A49: 41 | B49: Prudential | C49: 88642.14298 | D49: 18.89300379 | E49: 0 | F49: 12.18748749 | G49: 14.35563968 | H49: 254487.1399 | I49: 46.94500724 | J49: 1336472.132 | K49: 11.8149159 | L49: 19.04170943 | M49: 14.48941463
A50: 42 | B50: Zurich Vida | C50: 533949.9211 | D50: -45.84881768 | E50: -8528.72918 | F50: 75.55242489 | G50: 129.4484391 | H50: 469277.86 | I50: -43.59267087 | J50: 900276.5589 | K50: 4.603984248 | L50: 52.12596678 | M50: 96.6644564
A51: 43 | B51: La Latinoamericana | C51: 435004.1928 | D51: 2.970601294 | E51: 1581.55113 | F51: 63.80689481 | G51: 62.91239142 | H51: 263953.0154 | I51: 17.60502927 | J51: 389771.3461 | K51: 11.21594168 | L51: 67.71996403 | M51: 64.04096506
A52: 44 | B52: El Águila | C52: 231235.4318 | D52: 12.35246966 | E52: 0 | F52: 35.37818325 | G52: 34.52310726 | H52: 217832.229 | I52: 14.13742519 | J52: 494797.7227 | K52: 9.812672629 | L52: 44.02450113 | M52: 42.3563798
A53: 45 | B53: HDI Global Seguros | C53: 137349.8754 | D53: -35.30436613 | E53: 0 | F53: 21.98824462 | G53: 35.36601784 | H53: 417.44169 | I53: -113.6027449 | J53: -2249.69864 | K53: -76.59201869 | L53: -18.55544928 | M53: 31.93073256
A54: 46 | B54: Cardif Seguros Generales | C54: 84703.71014 | D54: -28.65873513 | E54: 0 | F54: 14.30395886 | G54: 29.72214963 | H54: 126643.0202 | I54: -30.25865921 | J54: 689428.564 | K54: 24.6320042 | L54: 18.36927374 | M54: 32.82700585
A55: 47 | B55: AXA Salud | C55: 223628.7221 | D55: -13.72189486 | E55: 0 | F55: 43.44780578 | G55: 191.4243925 | H55: 28453.61843 | I55: -5.433954875 | J55: 3804.15396 | K55: -79.84233476 | L55: 747.9617999 | M55: 159.4352768
A56: 48 | B56: Primero Seguros | C56: 270004.2095 | D56: -15.27762728 | E56: 0 | F56: 56.05890305 | G56: 84.59415262 | H56: 227113.0567 | I56: -16.71349684 | J56: 361707.0615 | K56: 22.08572403 | L56: 62.78922389 | M56: 92.03973715
A57: 49 | B57: Sompo Japan | C57: -13324.5966 | D57: -145.3634009 | E57: 0 | F57: -2.885391079 | G57: 6.343985331 | H57: -4763.01142 | I57: -665.3624582 | J57: 70856.10489 | K57: -9.329383595 | L57: -6.722090393 | M57: 1.078062525
A58: 50 | B58: Patrimonial Inbursa | C58: 23297.86881 | D58: -83.7670871 | E58: 0 | F58: 5.094004012 | G58: 27.84932264 | H58: 23207.34493 | I58: -83.81306316 | J58: 375675.6768 | K58: -12.7374927 | L58: 6.177494676 | M58: 33.30238944
A59: 51 | B59: Atradius | C59: 86875.42517 | D59: -728.7570296 | E59: 11050.4345 | F59: 20.34798835 | G59: -4.215840725 | H59: 33885.20278 | I59: -889.847455 | J59: 95258.80341 | K59: 44.19961863 | L59: 35.57172835 | M59: -6.494202937
A60: 52 | B60: Pan-American México | C60: 299493.7439 | D60: 2.225690263 | E60: 5994.26782 | F60: 77.62899791 | G60: 91.67122726 | H60: 216212.319 | I60: -17.11597337 | J60: 392303.921 | K60: 41.11557085 | L60: 55.11347388 | M60: 93.83435679
A61: 53 | B61: Solunion Crédito | C61: 51752.91106 | D61: -63.71012373 | E61: 18.14347 | F61: 15.49810894 | G61: 44.73063994 | H61: 5835.29333 | I61: -62.2136707 | J61: 7806.76446 | K61: 44.21419912 | L61: 74.7466298 | M61: 285.2758009
A62: 54 | B62: General de Salud | C62: 260966.8448 | D62: 37.49328032 | E62: 0 | F62: 82.59515265 | G62: 91.03908048 | H62: 254941.4408 | I62: 50.16271149 | J62: 270894.413 | K62: 16.23444874 | L62: 94.11099991 | M62: 72.8472474
A63: 55 | B63: Berkley Seguros | C63: 117240.2509 | D63: 46.75952335 | E63: 2242.56171 | F63: 39.90584554 | G63: 38.93849539 | H63: 8450.85865 | I63: 204.9990212 | J63: 9339.02426 | K63: -3.420057116 | L63: 90.4897387 | M63: 28.65416998
A64: 56 | B64: PREVEM Seguros | C64: 168906.757 | D64: 56.65807609 | E64: 0 | F64: 61.04071619 | G64: 47.01175972 | H64: 144253.105 | I64: 57.35543977 | J64: 274612.0301 | K64: 33.43284744 | L64: 52.52978353 | M64: 44.54373235
A65: 57 | B65: Swiss Re Corporate Solutions | C65: 2048.92224 | D65: -6.37436814 | E65: 546.63357 | F65: 0.7505087959 | G65: 2.521591564 | H65: 2336.83988 | I65: 330.1780194 | J65: -3321.93855 | K65: -355.9523526 | L65: -70.3456685 | M65: 41.85508913
A66: 58 | B66: Coface | C66: 22808.80026 | D66: 0 | E66: 7878.12342 | F66: 9.175268109 | G66: 0 | H66: 11845.54683 | I66: 0 | J66: 34277.83841 | K66: 0 | L66: 34.55744988 | M66: 0
A67: 59 | B67: Skandia Life | C67: 43242.24679 | D67: 31.90568009 | E67: 0 | F67: 17.45150913 | G67: 15.12559573 | H67: 38817.76006 | I67: 68.50612785 | J67: 205169.8518 | K67: 36.53455327 | L67: 18.91981678 | M67: 15.33005811
A68: 60 | B68: Dentegra | C68: 78631.62563 | D68: 28.82870625 | E68: 26.27072 | F68: 33.55996647 | G68: 31.70019287 | H68: 78631.62563 | I68: 28.82870625 | J68: 228111.1112 | K68: 16.56392062 | L68: 34.47075648 | M68: 31.18906212
A69: 61 | B69: SHF Cred Vivienda | C69: -29067.32422 | D69: -73.3170395 | E69: 0 | F69: -15.00013131 | G69: -50.42921322 | H69: -27376.48579 | I69: -76.90587599 | J69: 203369.1263 | K69: -5.279317546 | L69: -13.46147584 | M69: -55.21232058
A70: 62 | B70: BBVA Bancomer Salud | C70: 296983.0418 | D70: -7.931864581 | E70: 0 | F70: 184.5629329 | G70: 83.41985637 | H70: 265301.5427 | I70: -8.957845755 | J70: 559422.4511 | K70: 146.5233074 | L70: 47.42418582 | M70: 128.4148781
A71: 63 | B71: Zurich Aseguradora Mexicana | C71: 64530.52862 | D71: -45.65795218 | E71: 3976.23925 | F71: 51.88374566 | G71: 75.91786185 | H71: 58757.58471 | I71: -46.7646205 | J71: 101439.3892 | K71: -6.166129202 | L71: 57.9238353 | M71: 102.0978479
A72: 64 | B72: Assurant Daños | C72: 25174.11041 | D72: 0.2811170048 | E72: 232.46508 | F72: 21.51661811 | G72: 31.34330675 | H72: 7626.66987 | I72: 74.74013571 | J72: 30593.35066 | K72: 66.07342548 | L72: 24.92917482 | M72: 23.69274489
A73: 65 | B73: SIS NOVA | C73: 144473.7944 | D73: -69.27272822 | E73: 0 | F73: 127.8854525 | G73: 129.4585356 | H73: 113752.8826 | I73: -62.28608872 | J73: 382786.4218 | K73: -32.05444184 | L73: 29.71706313 | M73: 53.53839931
A74: 66 | B74: Centauro | C74: 42392.96059 | D74: 23.92806256 | E74: -20.15149 | F74: 51.11134368 | G74: 47.46355934 | H74: 42392.96059 | I74: 23.92806256 | J74: 83889.94044 | K74: 27.1595853 | L74: 50.53402156 | M74: 51.85173634
A75: 67 | B75: MediAccess | C75: 65546.54348 | D75: 8.556810261 | E75: 0 | F75: 83.73962397 | G75: 68.85111417 | H75: 56545.99949 | I75: -3.602710489 | J75: 99752.41474 | K75: -11.72774211 | L75: 56.68634653 | M75: 51.90842839
A76: 68 | B76: Assurant Vida | C76: 139610.1636 | D76: -57.95565793 | E76: 6716.2703 | F76: 235.6401772 | G76: 360.6378176 | H76: 22147.78557 | I76: 28.15594555 | J76: 72606.154 | K76: 1.165602644 | L76: 30.504006 | M76: 24.07969553
A77: 69 | B77: Virginia Surety | C77: 11431.82471 | D77: 131.5604248 | E77: 0 | F77: 22.01614071 | G77: 21.2311895 | H77: 7959.22105 | I77: 80.75377636 | J77: 19822.67051 | K77: 71.77052427 | L77: 40.15211294 | M77: 38.1565997
A78: 70 | B78: Tláloc Seguros | C78: 26123.64202 | D78: -36.21802756 | E78: 0 | F78: 52.13305687 | G78: 71.05978999 | H78: 3000.58757 | I78: -32.29032724 | J78: 13406.53437 | K78: 27.7803002 | L78: 22.38153043 | M78: 42.23796336
A79: 71 | B79: Odontoprev | C79: 9927.6801 | D79: 35.26329178 | E79: 0 | F79: 20.99700235 | G79: 14.12211456 | H79: 9862.6801 | I79: 38.23882014 | J79: 34624.32388 | K79: -20.6697891 | L79: 28.48483088 | M79: 16.34640428
A80: 72 | B80: Genworth Seg. de Crédito | C80: -1298.00715 | D80: -92.66679491 | E80: 0 | F80: -4.275576 | G80: -53.07173905 | H80: -935.43693 | I80: -91.92316551 | J80: 74021.84083 | K80: 17.21644057 | L80: -1.263730974 | M80: -18.3401117
A81: 73 | B81: Metlife Más | C81: 1411.85009 | D81: 22.4828269 | E81: 0 | F81: 5.27905728 | G81: 3.848136064 | H81: 1398.33328 | I81: 17.63074487 | J81: 17206.44557 | K81: -5.769198252 | L81: 8.126799195 | M81: 6.510158586
A82: 74 | B82: SPP Seguros | C82: 2226.35466 | D82: 169.1985477 | E82: 0 | F82: 8.404112296 | G82: 15.16611783 | H82: 2226.35466 | I82: 169.1985477 | J82: 8918.4294 | K82: 592.4551421 | L82: 24.96352844 | M82: 64.21328713
A83: 75 | B83: Metlife Pensiones | C83: 175592.0041 | D83: 3.793822517 | E83: 0 | F83: 1050.708688 | G83: 5057.924492 | H83: 175592.0041 | I83: 3.793822517 | J83: -39651.41494 | K83: 17.09834546 | L83: -442.8391885 | M83: -499.6033003
A84: 76 | B84: Citibanamex Pensiones | C84: 375794.5886 | D84: 3.930471856 | E84: 0 | F84: 2513.77422 | G84: 4901.385075 | H84: 375794.5886 | I84: 3.930471856 | J84: -138018.3205 | K84: 70.99821868 | L84: -272.2787723 | M84: -447.9839668
A85: 77 | B85: SPT | C85: 8278.69228 | D85: 0 | E85: 0 | F85: 56.37907767 | G85: 0 | H85: 8278.69228 | I85: 0 | J85: 15485.22506 | K85: 0 | L85: 53.46187897 | M85: 0
A86: 78 | B86: Crabi | C86: 16287.30838 | D86: -24.62583006 | E86: 0 | F86: 125.5988817 | G86: 121.2791946 | H86: 4277.12619 | I86: -1.551260531 | J86: 4446.63803 | K86: 36.97270185 | L86: 96.1878651 | M86: 133.8271251
A87: 79 | B87: Pensiones Inbursa | C87: 12111.23476 | D87: 4.319076804 | E87: 0 | F87: 1676.557545 | G87: 21555.15158 | H87: 12111.23476 | I87: 4.319076804 | J87: -3845.28496 | K87: -22.05100084 | L87: -314.9632572 | M87: -235.3459351
A88: 80 | B88: Aserta Seguros de Vida | C88: 23036.63652 | D88: -91.96176605 | E88: 0 | F88: 3802.097123 | G88: 240.9871043 | H88: 5231.35499 | I88: -96.7972662 | J88: 8130.77951 | K88: -93.90864788 | L88: 64.34014086 | M88: 122.3699744
A89: 81 | B89: Principal México | C89: 0 | D89: 0 | E89: 0 | F89: 0 | G89: 0 | H89: 0 | I89: -100 | J89: 0 | K89: -100 | L89: 0 | M89: 117.8701957
A90: 82 | B90: HSBC Pensiones | C90: 0 | D90: -100 | E90: 0 | F90: 0 | G90: 8356.040229 | H90: 0 | I90: -100 | J90: 0 | K90: -100 | L90: 0 | M90: -659.9938032
A91: 150.1 | B91: TOTAL RESTO | C91: 35165956.19 | D91: -2.931854515 | E91: 375634.8897 | F91: 44.52409783 | G91: 50.14862288 | H91: 28547792.94 | I91: 4.423831555 | J91: 39278228.08 | K91: 17.89720057 | L91: 72.68095924 | M91: 82.05867857
A92: 151.1 | B92: TOTAL | C92: 200374446 | D92: 2.995886803 | E92: 1327038.158 | F92: 57.15823301 | G92: 57.92605216 | H92: 176978910.8 | I92: 3.037733128 | J92: 243483752.6 | K92: 20.82663739 | L92: 72.68612748 | M92: 85.23499209
A93: 200 | B93: Patria | C93: 0 | D93: 0 | E93: 0 | F93: 0 | G93: 0 | H93: 2164735.546 | I93: 0 | J93: 4029188.884 | K93: 0 | L93: 53.7263357 | M93: 0

Sheet TD Operación (hidden)
B4: periodo | C4: 2022-Q2
B6: nombre_compania | C6: Ramo_ | D6: Suma de Prima_DirectaAct
A7: =B7&"|"&C7 -> Afirme|10 Total General | B7: Afirme | C7: 10 Total General | D7: 3775583.215
A8: =B8&"|"&C8 -> Afirme|11 Total General Sin Pensiones | B8: Afirme | C8: 11 Total General Sin Pensiones | D8: 3775583.215
A9: Afirme|12 Vida Total | B9: Afirme | C9: 12 Vida Total | D9: 1318775.509
A10: Afirme|13 Vida Individual | B10: Afirme | C10: 13 Vida Individual | D10: 1076140.618
A11: Afirme|14 Vida Gpo y Col | B11: Afirme | C11: 14 Vida Gpo y Col | D11: 242634.8916
A12: Afirme|28 Daños Total | B12: Afirme | C12: 28 Daños Total | D12: 2456807.706
A13: Afirme|29 Automoviles Total | B13: Afirme | C13: 29 Automoviles Total | D13: 1278346.953
A14: Afirme|30 Automoviles Residentes | B14: Afirme | C14: 30 Automoviles Residentes | D14: 977608.7698
A15: Afirme|31 Camiones | B15: Afirme | C15: 31 Camiones | D15: 286891.4001
A16: Afirme|33 Otros Automoviles y Obligatorios | B16: Afirme | C16: 33 Otros Automoviles y Obligatorios | D16: 13846.78354
A17: Afirme|34 Daños Sin Autos Total | B17: Afirme | C17: 34 Daños Sin Autos Total | D17: 1178460.752
A18: Afirme|35 Responsabilidad Civil y Riesgos Profesionales | B18: Afirme | C18: 35 Responsabilidad Civil y Riesgos Profesionales | D18: 235161.8097
A19: Afirme|36 RC General | B19: Afirme | C19: 36 RC General | D19: 144511.3204
A20: Afirme|37 RC Aviones y Barcos | B20: Afirme | C20: 37 RC Aviones y Barcos | D20: 50114.39107
A21: Afirme|38 RC Viajero | B21: Afirme | C21: 38 RC Viajero | D21: 1221.14755
A22: Afirme|39 RC Otros | B22: Afirme | C22: 39 RC Otros | D22: 39314.95073
A23: Afirme|40 Maritimo y Transportes | B23: Afirme | C23: 40 Maritimo y Transportes | D23: 242408.1513
A24: Afirme|41 MyT Carga | B24: Afirme | C24: 41 MyT Carga | D24: 96634.61544
A25: Afirme|42 MyT Cascos | B25: Afirme | C25: 42 MyT Cascos | D25: 145773.5359
A26: Afirme|43 Incendio | B26: Afirme | C26: 43 Incendio | D26: 269638.2688
A27: Afirme|44 Riesgos Catastroficos | B27: Afirme | C27: 44 Riesgos Catastroficos | D27: 205863.3924
A28: Afirme|45 Terremoto y Erupcion Volcanica | B28: Afirme | C28: 45 Terremoto y Erupcion Volcanica | D28: 85899.90614
A29: Afirme|46 Huracan y Otros Riesgos Hidrometeorologicos | B29: Afirme | C29: 46 Huracan y Otros Riesgos Hidrometeorologicos | D29: 119963.4862
A30: Afirme|52 Diversos | B30: Afirme | C30: 52 Diversos | D30: 225389.1302
A31: Afirme|53 Miscelaneos | B31: Afirme | C31: 53 Miscelaneos | D31: 122529.9269
A32: Afirme|54 Tecnicos | B32: Afirme | C32: 54 Tecnicos | D32: 102859.2033
A33: Agroasemex|10 Total General | B33: Agroasemex | C33: 10 Total General | D33: 3128814.921
A34: Agroasemex|11 Total General Sin Pensiones | B34: Agroasemex | C34: 11 Total General Sin Pensiones | D34: 3128814.921
A35: Agroasemex|12 Vida Total | B35: Agroasemex | C35: 12 Vida Total | D35: 7382.02907
A36: Agroasemex|14 Vida Gpo y Col | B36: Agroasemex | C36: 14 Vida Gpo y Col | D36: 7382.02907
A37: Agroasemex|18 Accidentes y Enfermedades Total | B37: Agroasemex | C37: 18 Accidentes y Enfermedades Total | D37: 0
A38: Agroasemex|19 Accidentes Personales | B38: Agroasemex | C38: 19 Accidentes Personales | D38: 0
A39: Agroasemex|21 AP Gpo y Col | B39: Agroasemex | C39: 21 AP Gpo y Col | D39: 0
A40: Agroasemex|28 Daños Total | B40: Agroasemex | C40: 28 Daños Total | D40: 3121432.892
A41: Agroasemex|34 Daños Sin Autos Total | B41: Agroasemex | C41: 34 Daños Sin Autos Total | D41: 3121432.892
A42: Agroasemex|35 Responsabilidad Civil y Riesgos Profesionales | B42: Agroasemex | C42: 35 Responsabilidad Civil y Riesgos Profesionales | D42: 151609.6289
A43: Agroasemex|36 RC General | B43: Agroasemex | C43: 36 RC General | D43: 137780.5717
A44: Agroasemex|37 RC Aviones y Barcos | B44: Agroasemex | C44: 37 RC Aviones y Barcos | D44: 2577.1404
A45: Agroasemex|38 RC Viajero | B45: Agroasemex | C45: 38 RC Viajero | D45: 11251.91685
A46: Agroasemex|39 RC Otros | B46: Agroasemex | C46: 39 RC Otros | D46: 0
A47: Agroasemex|40 Maritimo y Transportes | B47: Agroasemex | C47: 40 Maritimo y Transportes | D47: 242202.3674
A48: Agroasemex|41 MyT Carga | B48: Agroasemex | C48: 41 MyT Carga | D48: 41813.10612
A49: Agroasemex|42 MyT Cascos | B49: Agroasemex | C49: 42 MyT Cascos | D49: 200389.2613
A50: Agroasemex|43 Incendio | B50: Agroasemex | C50: 43 Incendio | D50: 583063.503
A51: Agroasemex|44 Riesgos Catastroficos | B51: Agroasemex | C51: 44 Riesgos Catastroficos | D51: 1738805.376
A52: Agroasemex|45 Terremoto y Erupcion Volcanica | B52: Agroasemex | C52: 45 Terremoto y Erupcion Volcanica | D52: 817552.6462
A53: Agroasemex|46 Huracan y Otros Riesgos Hidrometeorologicos | B53: Agroasemex | C53: 46 Huracan y Otros Riesgos Hidrometeorologicos | D53: 829677.1377
A54: Agroasemex|47 Otros Riesgos Catastroficos | B54: Agroasemex | C54: 47 Otros Riesgos Catastroficos | D54: 91575.59217
A55: Agroasemex|48 Agricola y de Animales | B55: Agroasemex | C55: 48 Agricola y de Animales | D55: 8151.76387
A56: Agroasemex|49 AyA Agricola | B56: Agroasemex | C56: 49 AyA Agricola | D56: 888.54231
A57: Agroasemex|50 AyA Otros | B57: Agroasemex | C57: 50 AyA Otros | D57: 0
A58: Agroasemex|51 AyA Pecuario | B58: Agroasemex | C58: 51 AyA Pecuario | D58: 7263.22156
A59: Agroasemex|52 Diversos | B59: Agroasemex | C59: 52 Diversos | D59: 397600.2526
A60: Agroasemex|53 Miscelaneos | B60: Agroasemex | C60: 53 Miscelaneos | D60: 163812.8996
A61: Agroasemex|54 Tecnicos | B61: Agroasemex | C61: 54 Tecnicos | D61: 233787.353
A62: AIG Seguros|10 Total General | B62: AIG Seguros | C62: 10 Total General | D62: 3294828.76
A63: AIG Seguros|11 Total General Sin Pensiones | B63: AIG Seguros | C63: 11 Total General Sin Pensiones | D63: 3294828.76
A64: AIG Seguros|18 Accidentes y Enfermedades Total | B64: AIG Seguros | C64: 18 Accidentes y Enfermedades Total | D64: 125265.4545
A65: AIG Seguros|19 Accidentes Personales | B65: AIG Seguros | C65: 19 Accidentes Personales | D65: 125265.4545
A66: AIG Seguros|20 AP Individual | B66: AIG Seguros | C66: 20 AP Individual | D66: 35008.76379
A67: AIG Seguros|21 AP Gpo y Col | B67: AIG Seguros | C67: 21 AP Gpo y Col | D67: 90256.69074
A68: AIG Seguros|28 Daños Total | B68: AIG Seguros | C68: 28 Daños Total | D68: 3169563.305
A69: AIG Seguros|29 Automoviles Total | B69: AIG Seguros | C69: 29 Automoviles Total | D69: 232355.9249
A70: AIG Seguros|30 Automoviles Residentes | B70: AIG Seguros | C70: 30 Automoviles Residentes | D70: 131922.9933
A71: AIG Seguros|31 Camiones | B71: AIG Seguros | C71: 31 Camiones | D71: 45162.24366
A72: =B72&"|"&C72 -> AIG Seguros|32 Automoviles Turistas | B72: AIG Seguros | C72: 32 Automoviles Turistas | D72: 48287.91715
A73: AIG Seguros|33 Otros Automoviles y Obligatorios | B73: AIG Seguros | C73: 33 Otros Automoviles y Obligatorios | D73: 6982.77082
A74: AIG Seguros|34 Daños Sin Autos Total | B74: AIG Seguros | C74: 34 Daños Sin Autos Total | D74: 2937207.38
A75: AIG Seguros|35 Responsabilidad Civil y Riesgos Profesionales | B75: AIG Seguros | C75: 35 Responsabilidad Civil y Riesgos Profesionales | D75: 898267.9323
A76: AIG Seguros|36 RC General | B76: AIG Seguros | C76: 36 RC General | D76: 897430.7154
A77: AIG Seguros|37 RC Aviones y Barcos | B77: AIG Seguros | C77: 37 RC Aviones y Barcos | D77: 837.21693
A78: AIG Seguros|40 Maritimo y Transportes | B78: AIG Seguros | C78: 40 Maritimo y Transportes | D78: 465223.9833
A79: AIG Seguros|41 MyT Carga | B79: AIG Seguros | C79: 41 MyT Carga | D79: 464673.6246
A80: AIG Seguros|42 MyT Cascos | B80: AIG Seguros | C80: 42 MyT Cascos | D80: 550.35874
A81: AIG Seguros|43 Incendio | B81: AIG Seguros | C81: 43 Incendio | D81: 1081198.198
A82: AIG Seguros|44 Riesgos Catastroficos | B82: AIG Seguros | C82: 44 Riesgos Catastroficos | D82: 321142.8566
A83: AIG Seguros|45 Terremoto y Erupcion Volcanica | B83: AIG Seguros | C83: 45 Terremoto y Erupcion Volcanica | D83: 167597.9856
A84: AIG Seguros|46 Huracan y Otros Riesgos Hidrometeorologicos | B84: AIG Seguros | C84: 46 Huracan y Otros Riesgos Hidrometeorologicos | D84: 153544.871
A85: AIG Seguros|52 Diversos | B85: AIG Seguros | C85: 52 Diversos | D85: 165270.5686
A86: AIG Seguros|53 Miscelaneos | B86: AIG Seguros | C86: 53 Miscelaneos | D86: 100664.6039
A87: AIG Seguros|54 Tecnicos | B87: AIG Seguros | C87: 54 Tecnicos | D87: 64605.96472
A88: AIG Seguros|55 Credito | B88: AIG Seguros | C88: 55 Credito | D88: 6103.84081
A89: Allianz México|10 Total General | B89: Allianz México | C89: 10 Total General | D89: 9107356.084
A90: Allianz México|11 Total General Sin Pensiones | B90: Allianz México | C90: 11 Total General Sin Pensiones | D90: 9107356.084
A91: Allianz México|12 Vida Total | B91: Allianz México | C91: 12 Vida Total | D91: 4577049.652
A92: Allianz México|13 Vida Individual | B92: Allianz México | C92: 13 Vida Individual | D92: 4464867.474
A93: Allianz México|14 Vida Gpo y Col | B93: Allianz México | C93: 14 Vida Gpo y Col | D93: 112182.1777
A94: Allianz México|18 Accidentes y Enfermedades Total | B94: Allianz México | C94: 18 Accidentes y Enfermedades Total | D94: 1217076.901
A95: Allianz México|19 Accidentes Personales | B95: Allianz México | C95: 19 Accidentes Personales | D95: 0
A96: Allianz México|20 AP Individual | B96: Allianz México | C96: 20 AP Individual | D96: 0
A97: Allianz México|21 AP Gpo y Col | B97: Allianz México | C97: 21 AP Gpo y Col | D97: 0
A98: Allianz México|22 Gastos Medicos | B98: Allianz México | C98: 22 Gastos Medicos | D98: 1217076.901
A99: Allianz México|23 GMM. Individual | B99: Allianz México | C99: 23 GMM. Individual | D99: 698640.3038
A100: Allianz México|24 GMM. Gpo y Col | B100: Allianz México | C100: 24 GMM. Gpo y Col | D100: 518436.5967
A101: Allianz México|28 Daños Total | B101: Allianz México | C101: 28 Daños Total | D101: 3313229.532
A102: Allianz México|29 Automoviles Total | B102: Allianz México | C102: 29 Automoviles Total | D102: 29318.29976
A103: Allianz México|30 Automoviles Residentes | B103: Allianz México | C103: 30 Automoviles Residentes | D103: 29318.29976
A104: Allianz México|31 Camiones | B104: Allianz México | C104: 31 Camiones | D104: 0
A105: Allianz México|34 Daños Sin Autos Total | B105: Allianz México | C105: 34 Daños Sin Autos Total | D105: 3283911.233
A106: Allianz México|35 Responsabilidad Civil y Riesgos Profesionales | B106: Allianz México | C106: 35 Responsabilidad Civil y Riesgos Profesionales | D106: 133214.6016
A107: Allianz México|36 RC General | B107: Allianz México | C107: 36 RC General | D107: 120652.3071
A108: Allianz México|37 RC Aviones y Barcos | B108: Allianz México | C108: 37 RC Aviones y Barcos | D108: 12562.29449
A109: Allianz México|39 RC Otros | B109: Allianz México | C109: 39 RC Otros | D109: 0
A110: Allianz México|40 Maritimo y Transportes | B110: Allianz México | C110: 40 Maritimo y Transportes | D110: 141158.5212
A111: Allianz México|41 MyT Carga | B111: Allianz México | C111: 41 MyT Carga | D111: 121908.9916
A112: Allianz México|42 MyT Cascos | B112: Allianz México | C112: 42 MyT Cascos | D112: 19249.52956
A113: Allianz México|43 Incendio | B113: Allianz México | C113: 43 Incendio | D113: 550016.9543
A114: Allianz México|44 Riesgos Catastroficos | B114: Allianz México | C114: 44 Riesgos Catastroficos | D114: 289837.0082
A115: Allianz México|45 Terremoto y Erupcion Volcanica | B115: Allianz México | C115: 45 Terremoto y Erupcion Volcanica | D115: 127519.0272
A116: Allianz México|46 Huracan y Otros Riesgos Hidrometeorologicos | B116: Allianz México | C116: 46 Huracan y Otros Riesgos Hidrometeorologicos | D116: 162317.981
A117: Allianz México|52 Diversos | B117: Allianz México | C117: 52 Diversos | D117: 2169684.147
A118: Allianz México|53 Miscelaneos | B118: Allianz México | C118: 53 Miscelaneos | D118: 70348.38407
A119: Allianz México|54 Tecnicos | B119: Allianz México | C119: 54 Tecnicos | D119: 2099335.763
A120: ANA|10 Total General | B120: ANA | C120: 10 Total General | D120: 1478999.982
A121: ANA|11 Total General Sin Pensiones | B121: ANA | C121: 11 Total General Sin Pensiones | D121: 1478999.982
A122: ANA|28 Daños Total | B122: ANA | C122: 28 Daños Total | D122: 1478999.982
A123: ANA|29 Automoviles Total | B123: ANA | C123: 29 Automoviles Total | D123: 1478999.982
A124: ANA|30 Automoviles Residentes | B124: ANA | C124: 30 Automoviles Residentes | D124: 843756.5588
A125: ANA|31 Camiones | B125: ANA | C125: 31 Camiones | D125: 543443.2402
A126: ANA|32 Automoviles Turistas | B126: ANA | C126: 32 Automoviles Turistas | D126: 58954.41063
A127: ANA|33 Otros Automoviles y Obligatorios | B127: ANA | C127: 33 Otros Automoviles y Obligatorios | D127: 32845.77205
A128: Aserta Seguros de Vida|10 Total General | B128: Aserta Seguros de Vida | C128: 10 Total General | D128: 605.8929
A129: Aserta Seguros de Vida|11 Total General Sin Pensiones | B129: Aserta Seguros de Vida | C129: 11 Total General Sin Pensiones | D129: 605.8929
A130: Aserta Seguros de Vida|12 Vida Total | B130: Aserta Seguros de Vida | C130: 12 Vida Total | D130: 605.8929
A131: Aserta Seguros de Vida|13 Vida Individual | B131: Aserta Seguros de Vida | C131: 13 Vida Individual | D131: 2.65
A132: Aserta Seguros de Vida|14 Vida Gpo y Col | B132: Aserta Seguros de Vida | C132: 14 Vida Gpo y Col | D132: 603.2429
A133: Aserta Seguros de Vida|18 Accidentes y Enfermedades Total | B133: Aserta Seguros de Vida | C133: 18 Accidentes y Enfermedades Total | D133: 0
A134: Aserta Seguros de Vida|19 Accidentes Personales | B134: Aserta Seguros de Vida | C134: 19 Accidentes Personales | D134: 0
A135: Aserta Seguros de Vida|20 AP Individual | B135: Aserta Seguros de Vida | C135: 20 AP Individual | D135: 0
A136: =B136&"|"&C136 -> Aserta Seguros de Vida|21 AP Gpo y Col | B136: Aserta Seguros de Vida | C136: 21 AP Gpo y Col | D136: 0
A137: Aserta Seguros de Vida|22 Gastos Medicos | B137: Aserta Seguros de Vida | C137: 22 Gastos Medicos | D137: 0
A138: Aserta Seguros de Vida|23 GMM. Individual | B138: Aserta Seguros de Vida | C138: 23 GMM. Individual | D138: 0
A139: Assurant Daños|10 Total General | B139: Assurant Daños | C139: 10 Total General | D139: 116998.4534
A140: Assurant Daños|11 Total General Sin Pensiones | B140: Assurant Daños | C140: 11 Total General Sin Pensiones | D140: 116998.4534
A141: Assurant Daños|28 Daños Total | B141: Assurant Daños | C141: 28 Daños Total | D141: 116998.4534
A142: Assurant Daños|29 Automoviles Total | B142: Assurant Daños | C142: 29 Automoviles Total | D142: 6438.41654
A143: Assurant Daños|30 Automoviles Residentes | B143: Assurant Daños | C143: 30 Automoviles Residentes | D143: 6438.41654
A144: Assurant Daños|34 Daños Sin Autos Total | B144: Assurant Daños | C144: 34 Daños Sin Autos Total | D144: 110560.0369
A145: Assurant Daños|35 Responsabilidad Civil y Riesgos Profesionales | B145: Assurant Daños | C145: 35 Responsabilidad Civil y Riesgos Profesionales | D145: 0
A146: Assurant Daños|36 RC General | B146: Assurant Daños | C146: 36 RC General | D146: 0
A147: Assurant Daños|43 Incendio | B147: Assurant Daños | C147: 43 Incendio | D147: 0
A148: Assurant Daños|44 Riesgos Catastroficos | B148: Assurant Daños | C148: 44 Riesgos Catastroficos | D148: 0
A149: Assurant Daños|45 Terremoto y Erupcion Volcanica | B149: Assurant Daños | C149: 45 Terremoto y Erupcion Volcanica | D149: 0
A150: Assurant Daños|46 Huracan y Otros Riesgos Hidrometeorologicos | B150: Assurant Daños | C150: 46 Huracan y Otros Riesgos Hidrometeorologicos | D150: 0
A151: Assurant Daños|52 Diversos | B151: Assurant Daños | C151: 52 Diversos | D151: 110560.0369
A152: Assurant Daños|53 Miscelaneos | B152: Assurant Daños | C152: 53 Miscelaneos | D152: 93736.51431
A153: Assurant Daños|54 Tecnicos | B153: Assurant Daños | C153: 54 Tecnicos | D153: 16823.52255
A154: Assurant Vida|10 Total General | B154: Assurant Vida | C154: 10 Total General | D154: 59247.18156
A155: Assurant Vida|11 Total General Sin Pensiones | B155: Assurant Vida | C155: 11 Total General Sin Pensiones | D155: 59247.18156
A156: Assurant Vida|12 Vida Total | B156: Assurant Vida | C156: 12 Vida Total | D156: 59247.18156
A157: Assurant Vida|14 Vida Gpo y Col | B157: Assurant Vida | C157: 14 Vida Gpo y Col | D157: 59247.18156
A158: Assurant Vida|18 Accidentes y Enfermedades Total | B158: Assurant Vida | C158: 18 Accidentes y Enfermedades Total | D158: 0
A159: Assurant Vida|19 Accidentes Personales | B159: Assurant Vida | C159: 19 Accidentes Personales | D159: 0
A160: Assurant Vida|20 AP Individual | B160: Assurant Vida | C160: 20 AP Individual | D160: 0
A161: Assurant Vida|21 AP Gpo y Col | B161: Assurant Vida | C161: 21 AP Gpo y Col | D161: 0
A162: Assurant Vida|22 Gastos Medicos | B162: Assurant Vida | C162: 22 Gastos Medicos | D162: 0
A163: Assurant Vida|23 GMM. Individual | B163: Assurant Vida | C163: 23 GMM. Individual | D163: 0
A164: Atlas|10 Total General | B164: Atlas | C164: 10 Total General | D164: 9090986.624
A165: Atlas|11 Total General Sin Pensiones | B165: Atlas | C165: 11 Total General Sin Pensiones | D165: 9090986.624
A166: Atlas|12 Vida Total | B166: Atlas | C166: 12 Vida Total | D166: 1635605.923
A167: Atlas|13 Vida Individual | B167: Atlas | C167: 13 Vida Individual | D167: 412218.0974
A168: Atlas|14 Vida Gpo y Col | B168: Atlas | C168: 14 Vida Gpo y Col | D168: 1223387.825
A169: Atlas|18 Accidentes y Enfermedades Total | B169: Atlas | C169: 18 Accidentes y Enfermedades Total | D169: 2785200.674
A170: Atlas|19 Accidentes Personales | B170: Atlas | C170: 19 Accidentes Personales | D170: 122428.2824
A171: Atlas|20 AP Individual | B171: Atlas | C171: 20 AP Individual | D171: 3577.36744
A172: Atlas|21 AP Gpo y Col | B172: Atlas | C172: 21 AP Gpo y Col | D172: 118850.915
A173: Atlas|22 Gastos Medicos | B173: Atlas | C173: 22 Gastos Medicos | D173: 2662772.392
A174: Atlas|23 GMM. Individual | B174: Atlas | C174: 23 GMM. Individual | D174: 635995.065
A175: Atlas|24 GMM. Gpo y Col | B175: Atlas | C175: 24 GMM. Gpo y Col | D175: 2026777.327
A176: Atlas|28 Daños Total | B176: Atlas | C176: 28 Daños Total | D176: 4670180.027
A177: Atlas|29 Automoviles Total | B177: Atlas | C177: 29 Automoviles Total | D177: 1633167.008
A178: Atlas|30 Automoviles Residentes | B178: Atlas | C178: 30 Automoviles Residentes | D178: 977929.6762
A179: Atlas|31 Camiones | B179: Atlas | C179: 31 Camiones | D179: 622726.3067
A180: Atlas|32 Automoviles Turistas | B180: Atlas | C180: 32 Automoviles Turistas | D180: 1974.6647
A181: Atlas|33 Otros Automoviles y Obligatorios | B181: Atlas | C181: 33 Otros Automoviles y Obligatorios | D181: 30536.36026
A182: Atlas|34 Daños Sin Autos Total | B182: Atlas | C182: 34 Daños Sin Autos Total | D182: 3037013.019
A183: Atlas|35 Responsabilidad Civil y Riesgos Profesionales | B183: Atlas | C183: 35 Responsabilidad Civil y Riesgos Profesionales | D183: 343881.9247
A184: Atlas|36 RC General | B184: Atlas | C184: 36 RC General | D184: 258829.0042
A185: Atlas|37 RC Aviones y Barcos | B185: Atlas | C185: 37 RC Aviones y Barcos | D185: 76658.54444
A186: Atlas|38 RC Viajero | B186: Atlas | C186: 38 RC Viajero | D186: 8394.37605
A187: Atlas|40 Maritimo y Transportes | B187: Atlas | C187: 40 Maritimo y Transportes | D187: 583332.578
A188: Atlas|41 MyT Carga | B188: Atlas | C188: 41 MyT Carga | D188: 360852.5294
A189: Atlas|42 MyT Cascos | B189: Atlas | C189: 42 MyT Cascos | D189: 222480.0486
A190: Atlas|43 Incendio | B190: Atlas | C190: 43 Incendio | D190: 606246.0774
A191: Atlas|44 Riesgos Catastroficos | B191: Atlas | C191: 44 Riesgos Catastroficos | D191: 818010.4145
A192: Atlas|45 Terremoto y Erupcion Volcanica | B192: Atlas | C192: 45 Terremoto y Erupcion Volcanica | D192: 238387.6952
A193: Atlas|46 Huracan y Otros Riesgos Hidrometeorologicos | B193: Atlas | C193: 46 Huracan y Otros Riesgos Hidrometeorologicos | D193: 579622.7193
A194: Atlas|52 Diversos | B194: Atlas | C194: 52 Diversos | D194: 685542.0249
A195: Atlas|53 Miscelaneos | B195: Atlas | C195: 53 Miscelaneos | D195: 173130.8458
A196: Atlas|54 Tecnicos | B196: Atlas | C196: 54 Tecnicos | D196: 512411.1791
A197: Atradius|10 Total General | B197: Atradius | C197: 10 Total General | D197: 426948.4712
A198: Atradius|11 Total General Sin Pensiones | B198: Atradius | C198: 11 Total General Sin Pensiones | D198: 426948.4712
A199: Atradius|28 Daños Total | B199: Atradius | C199: 28 Daños Total | D199: 426948.4712
A200: =B200&"|"&C200 -> Atradius|34 Daños Sin Autos Total | B200: Atradius | C200: 34 Daños Sin Autos Total | D200: 426948.4712
A201: Atradius|55 Credito | B201: Atradius | C201: 55 Credito | D201: 426948.4712
A202: AXA Salud|10 Total General | B202: AXA Salud | C202: 10 Total General | D202: 514706.5958
A203: AXA Salud|11 Total General Sin Pensiones | B203: AXA Salud | C203: 11 Total General Sin Pensiones | D203: 514706.5958
A204: AXA Salud|18 Accidentes y Enfermedades Total | B204: AXA Salud | C204: 18 Accidentes y Enfermedades Total | D204: 514706.5958
... 1412 more rows

Sheet TD Siniestros Daños (hidden)
A1: periodo | B1: 2022-Q2
A2: Ramo3 | B2: 28 Daños Total
A3: operacion | B3: (Varios elementos)
A4: ramo_complemento | B4: (Varios elementos)
A6: Jerarquia 2 | B6: nombre_compania | C6: Suma de CostoSin_Act | D6: Suma de IncSin | E6: Suma de IncResvDivAct | F6: Suma de %SinvsPrm_Act | G6: Suma de %SinvsPrm_Ant | H6: Suma de Costo_Sin_RetAct | I6: Suma de IncSin_Ret | J6: Suma de Prima_DevengadaAct | K6: Suma de IncSin_PDev | L6: Suma de %SinvsPDev_Act | M6: Suma de %SinvsPDev_Ant
A7: 1 | B7: Quálitas | C7: 11860216.21 | D7: 18.97118866 | E7: 47347.58894 | F7: 67.37462896 | G7: 58.227627 | H7: 11849721.24 | I7: 18.86270834 | J7: 17760360.42 | K7: 7.141926841 | L7: 66.72004939 | M7: 60.14093697
A8: 2 | B8: G.N.P. | C8: 6091765.81 | D8: 20.25143102 | E8: 15922.40391 | F8: 56.43090561 | G8: 51.72361598 | H8: 5124435.196 | I8: 9.046744112 | J8: 8089821.974 | K8: 4.985973399 | L8: 63.34422701 | M8: 60.98536354
A9: 3 | B9: AXA Seguros | C9: 5029529.853 | D9: 84.51998166 | E9: 102469.7048 | F9: 47.94467965 | G9: 27.10873745 | H9: 4015997.416 | I9: 45.14533425 | J9: 6636024.632 | K9: 3.417165182 | L9: 60.518121 | M9: 43.11962592
A10: 4 | B10: Chubb Seguros México | C10: 4703224.616 | D10: 15.45510232 | E10: 45667.61183 | F10: 47.07661687 | G10: 46.64441423 | H10: 2195443.803 | I10: 28.56059181 | J10: 3726711.317 | K10: 6.759147996 | L10: 58.91102413 | M10: 48.92082912
A11: 5 | B11: Mapfre México | C11: 3634980.372 | D11: 12.63332942 | E11: 214083.8085 | F11: 43.64586512 | G11: 18.10108297 | H11: 1496238.061 | I11: 12.45215996 | J11: 2570587.438 | K11: 13.76772402 | L11: 58.20607536 | M11: 58.88702111
A12: 5.1 | B12: TOTAL GRANDES | C12: 31319716.87 | D12: 24.97151423 | E12: 425491.118 | F12: 54.74740276 | G12: 39.44692296 | H12: 24681835.72 | I12: 20.55386823 | J12: 38783505.78 | K12: 6.404487801 | L12: 63.6400326 | M12: 56.17061627
A13: 6 | B13: GMX Seguros | C13: 2635157.16 | D13: 26.9234294 | E13: 0 | F13: 35.48551923 | G13: 36.98944823 | H13: 589879.4748 | I13: 44.52734623 | J13: 1360007.369 | K13: 15.69359721 | L13: 43.37325578 | M13: 34.72012816
A14: 7 | B14: Inbursa | C14: 1873776.988 | D14: 33.87041496 | E14: 100.32393 | F14: 26.20459118 | G14: 21.29103336 | H14: 1576463.275 | I14: 24.85240051 | J14: 2642179.987 | K14: 9.98265755 | L14: 59.66524923 | M14: 52.55920308
A15: 8 | B15: Banorte | C15: 1736151.565 | D15: 27.37916332 | E15: 998.60718 | F15: 33.26627543 | G15: 27.41269532 | H15: 1703950.039 | I15: 40.35387433 | J15: 3621169.227 | K15: 3.93743483 | L15: 47.05524465 | M15: 34.84621602
A16: 9 | B16: BBVA Bancomer | C16: 2301846.65 | D16: 17.51452125 | E16: 0 | F16: 45.09064144 | G16: 43.11012887 | H16: 2290879.409 | I16: 18.02361813 | J16: 4404788.588 | K16: 12.83788638 | L16: 52.0088391 | M16: 49.72367032
A17: 10 | B17: Atlas | C17: 1728982.021 | D17: 2.770879374 | E17: 22563.11604 | F17: 37.02174243 | G17: 36.24544328 | H17: 1127604.864 | I17: 12.42620036 | J17: 1995736.379 | K17: -4.553093734 | L17: 56.50069194 | M17: 47.96761102
A18: 11 | B18: HDI Seguros | C18: 2740302.096 | D18: 18.68869363 | E18: 0 | F18: 59.86493815 | G18: 55.89598111 | H18: 2579553.301 | I18: 12.52347962 | J18: 4489895.298 | K18: 15.7633375 | L18: 57.45241547 | M18: 59.10662721
A19: 12 | B19: Zurich Daños | C19: 1212204.651 | D19: -43.41383315 | E19: 22481.42615 | F19: 29.83109714 | G19: 64.87309917 | H19: 1154579.251 | I19: 17.85949013 | J19: 2086341.263 | K19: 1.239142187 | L19: 55.33990396 | M19: 47.53596337
A20: 13 | B20: Allianz México | C20: 2113061.594 | D20: 145.2579986 | E20: 7529.12469 | F20: 63.77649278 | G20: 29.22339597 | H20: 93188.06634 | I20: -39.962164 | J20: 298476.728 | K20: 14.20883984 | L20: 31.2212168 | M20: 59.39153019
A21: 14 | B21: AIG Seguros | C21: 524973.9462 | D21: 33.67558842 | E21: 5433.05238 | F21: 16.562974 | G21: 14.37333988 | H21: 217914.4395 | I21: 46.80130349 | J21: 377626.928 | K21: -5.432069041 | L21: 57.70627657 | M21: 37.17380601
A22: 15 | B22: Agroasemex | C22: 276596.6553 | D22: -11.3345822 | E22: 13800.82265 | F22: 8.861207812 | G22: 19.76937375 | H22: 349914.3329 | I22: -36.56364303 | J22: 2736351.555 | K22: 79.11050214 | L22: 12.78762344 | M22: 36.10544119
A23: 15.1 | B23: TOTAL MEDIANAS | C23: 17143053.33 | D23: 18.25011998 | E23: 72906.47302 | F23: 35.85220186 | G23: 35.32860166 | H23: 11683926.45 | I23: 17.3533937 | J23: 24012573.32 | K23: 13.35143847 | L23: 48.65753576 | M23: 46.998229
A24: 16 | B24: Afirme | C24: 1878103.682 | D24: 86.98237392 | E24: -646.72764 | F24: 76.44487915 | G24: 25.22216957 | H24: 1253997.847 | I24: 51.53510658 | J24: 1577134.684 | K24: -5.149483973 | L24: 79.51114507 | M24: 49.76848804
A25: 17 | B25: Seguros SURA | C25: 1374491.083 | D25: 103.1607575 | E25: 5696.02694 | F25: 64.27345629 | G25: 44.38345582 | H25: 740919.7273 | I25: 61.03313263 | J25: 1585578.746 | K25: 35.58282815 | L25: 46.72866164 | M25: 39.34348166
A26: 18 | B26: Seguros Azteca Daños | C26: 300246.2168 | D26: -30.77661657 | E26: 15602.87127 | F26: 14.59289216 | G26: 48.41094174 | H26: 60879.37628 | I26: -31.1237737 | J26: 183359.2439 | K26: -12.62942217 | L26: 33.20224004 | M26: 42.1175644
A27: 19 | B27: Zurich Santander | C27: 105755.1407 | D27: 23.62374312 | E27: 0 | F27: 5.581431664 | G27: 4.958758341 | H27: 106876.1712 | I27: 41.81894179 | J27: 1365177.616 | K27: 10.31641599 | L27: 7.828737446 | M27: 6.089724306
A28: 20 | B28: ANA | C28: 897696.4823 | D28: 34.4231289 | E28: 11350.24476 | F28: 60.6961794 | G28: 51.20771188 | H28: 682840.7976 | I28: 34.59025178 | J28: 1148596.492 | K28: 14.69106985 | L28: 59.45001597 | M28: 50.66032528
A29: 21 | B29: FM Global | C29: 109945.058 | D29: -328.9882251 | E29: 0 | F29: 8.341195643 | G29: -3.645385001 | H29: 3294.67925 | I29: -46.00512863 | J29: 23185.35635 | K29: 329.1267503 | L29: 14.21017301 | M29: 112.9360106
A30: 22 | B30: Tokio Marine | C30: 266612.9266 | D30: 2.703883481 | E30: 3020.79701 | F30: 27.56678739 | G30: 29.71725374 | H30: 40020.48535 | I30: -3.11498342 | J30: 64448.42072 | K30: -10.50328036 | L30: 62.0969217 | M30: 57.36150942
A31: 23 | B31: General de Seguros | C31: 728342.3975 | D31: 37.99300297 | E31: -983.93294 | F31: 76.74998066 | G31: 66.76708526 | H31: 628659.5907 | I31: 36.66255607 | J31: 716976.4504 | K31: 12.7286627 | L31: 87.68204176 | M31: 72.32617035
A32: 24 | B32: El Potosí | C32: 495398.2125 | D32: 30.37560212 | E32: 0 | F32: 55.92219836 | G32: 45.62625778 | H32: 414186.4876 | I32: 24.56481094 | J32: 637199.7196 | K32: 14.6763993 | L32: 65.00104674 | M32: 59.8410252
A33: 25 | B33: El Águila | C33: 231235.4318 | D33: 12.35246966 | E33: 0 | F33: 35.37818325 | G33: 34.52310726 | H33: 217832.229 | I33: 14.13742519 | J33: 494797.7227 | K33: 9.812672629 | L33: 44.02450113 | M33: 42.3563798
A34: 26 | B34: HDI Global Seguros | C34: 137349.8754 | D34: -35.30436613 | E34: 0 | F34: 21.98824462 | G34: 35.36601784 | H34: 417.44169 | I34: -113.6027449 | J34: -2249.69864 | K34: -76.59201869 | L34: -18.55544928 | M34: 31.93073256
A35: 27 | B35: Cardif Seguros Generales | C35: 84703.71014 | D35: -28.65873513 | E35: 0 | F35: 14.30395886 | G35: 29.72214963 | H35: 126643.0202 | I35: -30.25865921 | J35: 689428.564 | K35: 24.6320042 | L35: 18.36927374 | M35: 32.82700585
A36: 28 | B36: Primero Seguros | C36: 270004.2095 | D36: -15.27762728 | E36: 0 | F36: 56.05890305 | G36: 84.59415262 | H36: 227113.0567 | I36: -16.71349684 | J36: 361707.0615 | K36: 22.08572403 | L36: 62.78922389 | M36: 92.03973715
A37: 29 | B37: Sompo Japan | C37: -13324.5966 | D37: -145.3634009 | E37: 0 | F37: -2.885391079 | G37: 6.343985331 | H37: -4763.01142 | I37: -665.3624582 | J37: 70856.10489 | K37: -9.329383595 | L37: -6.722090393 | M37: 1.078062525
A38: 30 | B38: Atradius | C38: 86875.42517 | D38: -728.7570296 | E38: 11050.4345 | F38: 20.34798835 | G38: -4.215840725 | H38: 33885.20278 | I38: -889.847455 | J38: 95258.80341 | K38: 44.19961863 | L38: 35.57172835 | M38: -6.494202937
A39: 31 | B39: Solunion Crédito | C39: 51752.91106 | D39: -63.71012373 | E39: 18.14347 | F39: 15.49810894 | G39: 44.73063994 | H39: 5835.29333 | I39: -62.2136707 | J39: 7806.76446 | K39: 44.21419912 | L39: 74.7466298 | M39: 285.2758009
A40: 32 | B40: Ve Por Más | C40: 170507.1079 | D40: 61.20218242 | E40: 0 | F40: 53.08198872 | G40: 26.93823172 | H40: 52868.20733 | I40: -27.29632464 | J40: 118737.0002 | K40: -11.29153345 | L40: 44.52546993 | M40: 54.32718691
A41: 33 | B41: Berkley Seguros | C41: 117240.2509 | D41: 46.75952335 | E41: 2242.56171 | F41: 39.90584554 | G41: 38.93849539 | H41: 8450.85865 | I41: 204.9990212 | J41: 9339.02426 | K41: -3.420057116 | L41: 90.4897387 | M41: 28.65416998
A42: 34 | B42: Swiss Re Corporate Solutions | C42: 2048.92224 | D42: -6.37436814 | E42: 546.63357 | F42: 0.7505087959 | G42: 2.521591564 | H42: 2336.83988 | I42: 330.1780194 | J42: -3321.93855 | K42: -355.9523526 | L42: -70.3456685 | M42: 41.85508913
A43: 35 | B43: La Latinoamericana | C43: 165204.4114 | D43: 18.66335755 | E43: 1093.68892 | F43: 63.02162285 | G43: 58.008521 | H43: 70187.39817 | I43: 18.48465954 | J43: 119098.4698 | K43: 6.988222588 | L43: 58.93224178 | M43: 53.2141108
A44: 36 | B44: Coface | C44: 22808.80026 | D44: 0 | E44: 7878.12342 | F44: 9.175268109 | G44: 0 | H44: 11845.54683 | I44: 0 | J44: 34277.83841 | K44: 0 | L44: 34.55744988 | M44: 0
A45: 37 | B45: SHF Cred Vivienda | C45: -29067.32422 | D45: -73.3170395 | E45: 0 | F45: -15.00013131 | G45: -50.42921322 | H45: -27376.48579 | I45: -76.90587599 | J45: 203369.1263 | K45: -5.279317546 | L45: -13.46147584 | M45: -55.21232058
A46: 38 | B46: Patrimonial Inbursa | C46: -662.10817 | D46: -83.52796089 | E46: 0 | F46: -0.5134887397 | G46: -2.707836539 | H46: -687.05155 | I46: -83.01881929 | J46: 94061.05396 | K46: -11.86122748 | L46: -0.7304314815 | M46: -3.791216599
A47: 39 | B47: Assurant Daños | C47: 25174.11041 | D47: 0.2811170048 | E47: 232.46508 | F47: 21.51661811 | G47: 31.34330675 | H47: 7626.66987 | I47: 74.74013571 | J47: 30593.35066 | K47: 66.07342548 | L47: 24.92917482 | M47: 23.69274489
A48: 40 | B48: Citibanamex Seguros | C48: 10296.83087 | D48: -75.36460151 | E48: 0 | F48: 15.47552954 | G48: 55.50935617 | H48: 4714.7415 | I48: -313.5644632 | J48: 102.79274 | K48: -98.97684897 | L48: 4586.648337 | M48: -21.97385219
A49: 41 | B49: Virginia Surety | C49: 11431.82471 | D49: 131.5604248 | E49: 0 | F49: 22.01614071 | G49: 21.2311895 | H49: 7959.22105 | I49: 80.75377636 | J49: 19822.67051 | K49: 71.77052427 | L49: 40.15211294 | M49: 38.1565997
A50: 42 | B50: Tláloc Seguros | C50: 26123.64202 | D50: -36.21802756 | E50: 0 | F50: 52.13305687 | G50: 71.05978999 | H50: 3000.58757 | I50: -32.29032724 | J50: 13406.53437 | K50: 27.7803002 | L50: 22.38153043 | M50: 42.23796336
A51: 43 | B51: Genworth Seg. de Crédito | C51: -1298.00715 | D51: -92.66679491 | E51: 0 | F51: -4.275576 | G51: -53.07173905 | H51: -935.43693 | I51: -91.92316551 | J51: 74021.84083 | K51: 17.21644057 | L51: -1.263730974 | M51: -18.3401117
A52: 44 | B52: SPP Seguros | C52: 740.39382 | D52: -9.263285999 | E52: 0 | F52: 3.002998687 | G52: 15.94112817 | H52: 740.39382 | I52: -9.263285999 | J52: 7174.75667 | K52: 608.887432 | L52: 10.3194276 | M52: 80.6213076
A53: 45 | B53: SPT | C53: 8278.69228 | D53: 0 | E53: 0 | F53: 56.37907767 | G53: 0 | H53: 8278.69228 | I53: 0 | J53: 15485.22506 | K53: 0 | L53: 53.46187897 | M53: 0
A54: 46 | B54: Crabi | C54: 16287.30838 | D54: -24.62583006 | E54: 0 | F54: 125.5988817 | G54: 121.2791946 | H54: 4277.12619 | I54: -1.551260531 | J54: 4446.63803 | K54: 36.97270185 | L54: 96.1878651 | M54: 133.8271251
A55: 47 | B55: Zurich Aseguradora Mexicana | C55: -6198.65741 | D55: -32.1330438 | E55: 0 | F55: -317.7132665 | G55: -850.5771414 | H55: -6395.28152 | I55: -15.02553887 | J55: -27.63267 | K55: -102.1621983 | L55: 23143.9145 | M55: -588.9032188
A56: 145 | B56: HSBC Seguros | D56: 0 | E56: 0 | F56: 0 | G56: 0 | H56: 0 | I56: 0 | J56: 0 | K56: 0 | L56: 0 | M56: 0
A57: 150.1 | B57: TOTAL RESTO | C57: 7544104.363 | D57: 41.70932634 | E57: 57101.33007 | F57: 38.07641814 | G57: 29.72314881 | H57: 4685530.422 | I57: 35.32465683 | J57: 9759848.802 | K57: 12.35100135 | L57: 48.00822755 | M57: 39.85801675
A58: 151.1 | B58: TOTAL | C58: 56006874.56 | D58: 24.78579018 | E58: 555498.9211 | F58: 44.86413198 | G58: 36.64514193 | H58: 41051292.59 | I58: 21.122681 | J58: 72555927.9 | K58: 9.402402221 | L58: 56.57882654 | M58: 51.10404994
A59: 200 | B59: Patria | C59: 0 | D59: 0 | E59: 0 | F59: 0 | G59: 0 | H59: 1506268.328 | I59: 0 | J59: 3575806.681 | K59: 0 | L59: 42.12387476 | M59: 0

Sheet Primas Directas
B1: PRIMAS DIRECTAS | L1: =VLOOKUP(RIGHT(TDPrimas!B3,2),Cat!$N$2:$O$5,2,0)&" "&LEFT(TDPrimas!B3,4) -> Segundo Trimestre 2022
B2: =UPPER(RIGHT(TDPrimas!$B$4,LEN(TDPrimas!$B$4)-3)) -> TOTAL GENERAL
L3: Cifras en miles
D4: 2 | E4: 3 | F4: 4 | G4: 5 | H4: 6 | I4: 7 | J4: 8 | K4: 9 | L4: 10
D5: Primas Directas | F5: % Part. en Merc. | H5: Incremento | J5: % de Cartera
B6: Compañías | D6: =LEFT(TDPrimas!B3,4) -> 2022 | E6: =D6-1 -> 2021 | F6: =D6 -> 2022 | G6: =E6 -> 2021 | H6: Importe | I6: % | J6: Por | K6: Total | L6: Total
D7: Importe | E7: Importe | F7: =RIGHT(TDPrimas!B3,2) -> Q2 | G7: =RIGHT(TDPrimas!B3,2) -> Q2 | J7: Operación | K7: Cartera | L7: Sector
C8: TOTAL | D8: =VLOOKUP($C$8,$C$9:$L$125,D$4,0) -> 350560952.3 | E8: =VLOOKUP($C$8,$C$9:$L$125,E$4,0) -> 335852451.2 | F8: 100 | G8: 100 | H8: 14708501.13 | I8: 4.379453263 | J8: 100 | K8: 106.7061694 | L8: 100
B9: =IF(TDPrimas!A7="","",TDPrimas!A7) -> 1 | C9: =IF(TDPrimas!B7="","",TDPrimas!B7) -> G.N.P. | D9: =IF(TDPrimas!C7="","",TDPrimas!C7) -> 42602746.8 | E9: =IF(TDPrimas!D7="","",TDPrimas!D7) -> 38102151.27 | F9: =IFERROR(D9/VLOOKUP("TOTAL",$C$9:$D$125,2,0)*100,"") -> 12.15273593 | G9: =IFERROR(E9/VLOOKUP("TOTAL",$C$9:$E$125,3,0)*100,"") -> 11.3449079 | H9: =IFERROR(D9-E9,"") -> 4500595.532 | I9: =IFERROR((D9/E9-1)*100,"") -> 11.81191975 | J9: =IF(D9="","",IFERROR((D9/VLOOKUP(C9&"|"&VLOOKUP(TDPrimas!$B$4,Cat!R:T,2,0),'TD Operación'!A:D,4,0))*100,"ND")) -> 100 | K9: =IF(TDPrimas!E7="","",TDPrimas!E7) -> 100 | L9: =IF(TDPrimas!F7="","",TDPrimas!F7) -> 12.15273593
B10: =IF(TDPrimas!A8="","",TDPrimas!A8) -> 2 | C10: =IF(TDPrimas!B8="","",TDPrimas!B8) -> Metlife México | D10: =IF(TDPrimas!C8="","",TDPrimas!C8) -> 38882196.37 | E10: =IF(TDPrimas!D8="","",TDPrimas!D8) -> 34184463.63 | F10: =IFERROR(D10/VLOOKUP("TOTAL",$C$9:$D$125,2,0)*100,"") -> 11.09142251 | G10: =IFERROR(E10/VLOOKUP("TOTAL",$C$9:$E$125,3,0)*100,"") -> 10.17841719 | H10: =IFERROR(D10-E10,"") -> 4697732.747 | I10: =IFERROR((D10/E10-1)*100,"") -> 13.74230352 | J10: =IF(D10="","",IFERROR((D10/VLOOKUP(C10&"|"&VLOOKUP(TDPrimas!$B$4,Cat!R:T,2,0),'TD Operación'!A:D,4,0))*100,"ND")) -> 100 | K10: =IF(TDPrimas!E8="","",TDPrimas!E8) -> 100 | L10: =IF(TDPrimas!F8="","",TDPrimas!F8) -> 11.09142251
B11: =IF(TDPrimas!A9="","",TDPrimas!A9) -> 3 | C11: =IF(TDPrimas!B9="","",TDPrimas!B9) -> BBVA Bancomer | D11: =IF(TDPrimas!C9="","",TDPrimas!C9) -> 28599066.23 | E11: =IF(TDPrimas!D9="","",TDPrimas!D9) -> 27409461.5 | F11: 8.158086644 | G11: 8.161161667 | H11: 1189604.727 | I11: 4.340124403 | J11: =IF(D11="","",IFERROR((D11/VLOOKUP(C11&"|"&VLOOKUP(TDPrimas!$B$4,Cat!R:T,2,0),'TD Operación'!A:D,4,0))*100,"ND")) -> 100 | K11: =IF(TDPrimas!E9="","",TDPrimas!E9) -> 100 | L11: =IF(TDPrimas!F9="","",TDPrimas!F9) -> 8.158086644
B12: =IF(TDPrimas!A10="","",TDPrimas!A10) -> 4 | C12: =IF(TDPrimas!B10="","",TDPrimas!B10) -> AXA Seguros | D12: =IF(TDPrimas!C10="","",TDPrimas!C10) -> 25525244.1 | E12: =IF(TDPrimas!D10="","",TDPrimas!D10) -> 24024425.93 | F12: 7.281257061 | G12: 7.153268004 | H12: 1500818.163 | I12: 6.247051093 | J12: =IF(D12="","",IFERROR((D12/VLOOKUP(C12&"|"&VLOOKUP(TDPrimas!$B$4,Cat!R:T,2,0),'TD Operación'!A:D,4,0))*100,"ND")) -> 100 | K12: =IF(TDPrimas!E10="","",TDPrimas!E10) -> 100 | L12: =IF(TDPrimas!F10="","",TDPrimas!F10) -> 7.281257061
B13: =IF(TDPrimas!A11="","",TDPrimas!A11) -> 5 | C13: =IF(TDPrimas!B11="","",TDPrimas!B11) -> Banorte | D13: =IF(TDPrimas!C11="","",TDPrimas!C11) -> 18509936.84 | E13: =IF(TDPrimas!D11="","",TDPrimas!D11) -> 17062555.77 | F13: 5.280090869 | G13: 5.080372558 | H13: 1447381.068 | I13: 8.482791723 | J13: =IF(D13="","",IFERROR((D13/VLOOKUP(C13&"|"&VLOOKUP(TDPrimas!$B$4,Cat!R:T,2,0),'TD Operación'!A:D,4,0))*100,"ND")) -> 100 | K13: =IF(TDPrimas!E11="","",TDPrimas!E11) -> 100 | L13: =IF(TDPrimas!F11="","",TDPrimas!F11) -> 5.280090869
B14: =IF(TDPrimas!A12="","",TDPrimas!A12) -> 5.1 | C14: =IF(TDPrimas!B12="","",TDPrimas!B12) -> TOTAL GRANDES | D14: =IF(TDPrimas!C12="","",TDPrimas!C12) -> 154119190.3 | E14: =IF(TDPrimas!D12="","",TDPrimas!D12) -> 140783058.1 | F14: 43.96359301 | G14: 41.91812732 | H14: 13336132.24 | I14: 9.472824655 | J14: =IF(D14="","",IFERROR((D14/VLOOKUP(C14&"|"&VLOOKUP(TDPrimas!$B$4,Cat!R:T,2,0),'TD Operación'!A:D,4,0))*100,"ND")) -> 100 | K14: =IF(TDPrimas!E12="","",TDPrimas!E12) -> 100 | L14: =IF(TDPrimas!F12="","",TDPrimas!F12) -> 43.96359301
B15: =IF(TDPrimas!A13="","",TDPrimas!A13) -> 6 | C15: =IF(TDPrimas!B13="","",TDPrimas!B13) -> Monterrey New York Life | D15: =IF(TDPrimas!C13="","",TDPrimas!C13) -> 18371993.44 | E15: =IF(TDPrimas!D13="","",TDPrimas!D13) -> 16818804.26 | F15: 5.240741537 | G15: 5.007795596 | H15: 1553189.183 | I15: 9.234837143 | J15: =IF(D15="","",IFERROR((D15/VLOOKUP(C15&"|"&VLOOKUP(TDPrimas!$B$4,Cat!R:T,2,0),'TD Operación'!A:D,4,0))*100,"ND")) -> 100 | K15: =IF(TDPrimas!E13="","",TDPrimas!E13) -> 100 | L15: =IF(TDPrimas!F13="","",TDPrimas!F13) -> 5.240741537
B16: =IF(TDPrimas!A14="","",TDPrimas!A14) -> 7 | C16: =IF(TDPrimas!B14="","",TDPrimas!B14) -> Quálitas | D16: =IF(TDPrimas!C14="","",TDPrimas!C14) -> 17603386.32 | E16: =IF(TDPrimas!D14="","",TDPrimas!D14) -> 17120707.77 | F16: 5.021490899 | G16: 5.097687304 | H16: 482678.5495 | I16: 2.819267498 | J16: =IF(D16="","",IFERROR((D16/VLOOKUP(C16&"|"&VLOOKUP(TDPrimas!$B$4,Cat!R:T,2,0),'TD Operación'!A:D,4,0))*100,"ND")) -> 100 | K16: =IF(TDPrimas!E14="","",TDPrimas!E14) -> 100 | L16: =IF(TDPrimas!F14="","",TDPrimas!F14) -> 5.021490899
B17: =IF(TDPrimas!A15="","",TDPrimas!A15) -> 8 | C17: =IF(TDPrimas!B15="","",TDPrimas!B15) -> Mapfre México | D17: =IF(TDPrimas!C15="","",TDPrimas!C15) -> 13083450.34 | E17: =IF(TDPrimas!D15="","",TDPrimas!D15) -> 22158336.07 | F17: 3.732147079 | G17: 6.597640123 | H17: -9074885.73 | I17: -40.95472557 | J17: =IF(D17="","",IFERROR((D17/VLOOKUP(C17&"|"&VLOOKUP(TDPrimas!$B$4,Cat!R:T,2,0),'TD Operación'!A:D,4,0))*100,"ND")) -> 100 | K17: =IF(TDPrimas!E15="","",TDPrimas!E15) -> 100 | L17: =IF(TDPrimas!F15="","",TDPrimas!F15) -> 3.732147079
B18: =IF(TDPrimas!A16="","",TDPrimas!A16) -> 9 | C18: =IF(TDPrimas!B16="","",TDPrimas!B16) -> Inbursa | D18: =IF(TDPrimas!C16="","",TDPrimas!C16) -> 12813718.78 | E18: =IF(TDPrimas!D16="","",TDPrimas!D16) -> 11790746.2 | F18: 3.655204237 | G18: 3.510692315 | H18: 1022972.588 | I18: 8.676063173 | J18: =IF(D18="","",IFERROR((D18/VLOOKUP(C18&"|"&VLOOKUP(TDPrimas!$B$4,Cat!R:T,2,0),'TD Operación'!A:D,4,0))*100,"ND")) -> 100 | K18: =IF(TDPrimas!E16="","",TDPrimas!E16) -> 100 | L18: =IF(TDPrimas!F16="","",TDPrimas!F16) -> 3.655204237
B19: =IF(TDPrimas!A17="","",TDPrimas!A17) -> 10 | C19: =IF(TDPrimas!B17="","",TDPrimas!B17) -> Chubb Seguros México | D19: =IF(TDPrimas!C17="","",TDPrimas!C17) -> 11404823.46 | E19: =IF(TDPrimas!D17="","",TDPrimas!D17) -> 9996125.326 | F19: 3.253306845 | G19: 2.976344311 | H19: 1408698.132 | I19: 14.09244168 | J19: =IF(D19="","",IFERROR((D19/VLOOKUP(C19&"|"&VLOOKUP(TDPrimas!$B$4,Cat!R:T,2,0),'TD Operación'!A:D,4,0))*100,"ND")) -> 100 | K19: =IF(TDPrimas!E17="","",TDPrimas!E17) -> 100 | L19: =IF(TDPrimas!F17="","",TDPrimas!F17) -> 3.253306845
B20: =IF(TDPrimas!A18="","",TDPrimas!A18) -> 11 | C20: =IF(TDPrimas!B18="","",TDPrimas!B18) -> Pensiones Banorte | D20: =IF(TDPrimas!C18="","",TDPrimas!C18) -> 9685850.343 | E20: =IF(TDPrimas!D18="","",TDPrimas!D18) -> 10279044.55 | F20: 2.762957562 | G20: 3.060583454 | H20: -593194.2095 | I20: -5.770908049 | J20: =IF(D20="","",IFERROR((D20/VLOOKUP(C20&"|"&VLOOKUP(TDPrimas!$B$4,Cat!R:T,2,0),'TD Operación'!A:D,4,0))*100,"ND")) -> 100 | K20: =IF(TDPrimas!E18="","",TDPrimas!E18) -> 0 | L20: =IF(TDPrimas!F18="","",TDPrimas!F18) -> 2.762957562
B21: =IF(TDPrimas!A19="","",TDPrimas!A19) -> 12 | C21: =IF(TDPrimas!B19="","",TDPrimas!B19) -> Allianz México | D21: =IF(TDPrimas!C19="","",TDPrimas!C19) -> 9107356.084 | E21: =IF(TDPrimas!D19="","",TDPrimas!D19) -> 8431085.086 | F21: 2.597937969 | G21: 2.510353894 | H21: 676270.9984 | I21: 8.021162063 | J21: =IF(D21="","",IFERROR((D21/VLOOKUP(C21&"|"&VLOOKUP(TDPrimas!$B$4,Cat!R:T,2,0),'TD Operación'!A:D,4,0))*100,"ND")) -> 100 | K21: =IF(TDPrimas!E19="","",TDPrimas!E19) -> 100 | L21: =IF(TDPrimas!F19="","",TDPrimas!F19) -> 2.597937969
B22: =IF(TDPrimas!A20="","",TDPrimas!A20) -> 13 | C22: =IF(TDPrimas!B20="","",TDPrimas!B20) -> Atlas | D22: =IF(TDPrimas!C20="","",TDPrimas!C20) -> 9090986.624 | E22: =IF(TDPrimas!D20="","",TDPrimas!D20) -> 7845638.522 | F22: 2.593268464 | G22: 2.336037297 | H22: 1245348.102 | I22: 15.87312618 | J22: =IF(D22="","",IFERROR((D22/VLOOKUP(C22&"|"&VLOOKUP(TDPrimas!$B$4,Cat!R:T,2,0),'TD Operación'!A:D,4,0))*100,"ND")) -> 100 | K22: =IF(TDPrimas!E20="","",TDPrimas!E20) -> 100 | L22: =IF(TDPrimas!F20="","",TDPrimas!F20) -> 2.593268464
B23: =IF(TDPrimas!A21="","",TDPrimas!A21) -> 14 | C23: =IF(TDPrimas!B21="","",TDPrimas!B21) -> Citibanamex Seguros | D23: =IF(TDPrimas!C21="","",TDPrimas!C21) -> 8872339.482 | E23: =IF(TDPrimas!D21="","",TDPrimas!D21) -> 12774522.25 | F23: 2.530897815 | G23: 3.803611439 | H23: -3902182.771 | I23: -30.54660435 | J23: =IF(D23="","",IFERROR((D23/VLOOKUP(C23&"|"&VLOOKUP(TDPrimas!$B$4,Cat!R:T,2,0),'TD Operación'!A:D,4,0))*100,"ND")) -> 100 | K23: =IF(TDPrimas!E21="","",TDPrimas!E21) -> 100 | L23: =IF(TDPrimas!F21="","",TDPrimas!F21) -> 2.530897815
B24: =IF(TDPrimas!A22="","",TDPrimas!A22) -> 15 | C24: =IF(TDPrimas!B22="","",TDPrimas!B22) -> GMX Seguros | D24: =IF(TDPrimas!C22="","",TDPrimas!C22) -> 7426007.052 | E24: =IF(TDPrimas!D22="","",TDPrimas!D22) -> 5612894.388 | F24: 2.118321223 | G24: 1.671238178 | H24: 1813112.665 | I24: 32.30263282 | J24: =IF(D24="","",IFERROR((D24/VLOOKUP(C24&"|"&VLOOKUP(TDPrimas!$B$4,Cat!R:T,2,0),'TD Operación'!A:D,4,0))*100,"ND")) -> 100 | K24: =IF(TDPrimas!E22="","",TDPrimas!E22) -> 100 | L24: =IF(TDPrimas!F22="","",TDPrimas!F22) -> 2.118321223
B25: =IF(TDPrimas!A23="","",TDPrimas!A23) -> 15.1 | C25: =IF(TDPrimas!B23="","",TDPrimas!B23) -> TOTAL MEDIANAS | D25: =IF(TDPrimas!C23="","",TDPrimas!C23) -> 117459911.9 | E25: =IF(TDPrimas!D23="","",TDPrimas!D23) -> 122827904.4 | F25: 33.50627363 | G25: 36.57198391 | H25: -5367992.493 | I25: -4.3703363 | J25: =IF(D25="","",IFERROR((D25/VLOOKUP(C25&"|"&VLOOKUP(TDPrimas!$B$4,Cat!R:T,2,0),'TD Operación'!A:D,4,0))*100,"ND")) -> 100 | K25: =IF(TDPrimas!E23="","",TDPrimas!E23) -> 108.9871813 | L25: =IF(TDPrimas!F23="","",TDPrimas!F23) -> 33.50627363
B26: =IF(TDPrimas!A24="","",TDPrimas!A24) -> 16 | C26: =IF(TDPrimas!B24="","",TDPrimas!B24) -> Zurich Santander | D26: =IF(TDPrimas!C24="","",TDPrimas!C24) -> 7240616.321 | E26: =IF(TDPrimas!D24="","",TDPrimas!D24) -> 7466541.419 | F26: 2.065437201 | G26: 2.22316121 | H26: -225925.0982 | I26: -3.025833321 | J26: =IF(D26="","",IFERROR((D26/VLOOKUP(C26&"|"&VLOOKUP(TDPrimas!$B$4,Cat!R:T,2,0),'TD Operación'!A:D,4,0))*100,"ND")) -> 100 | K26: =IF(TDPrimas!E24="","",TDPrimas!E24) -> 100 | L26: =IF(TDPrimas!F24="","",TDPrimas!F24) -> 2.065437201
B27: =IF(TDPrimas!A25="","",TDPrimas!A25) -> 17 | C27: =IF(TDPrimas!B25="","",TDPrimas!B25) -> Pensiones BBVA Bancomer | D27: =IF(TDPrimas!C25="","",TDPrimas!C25) -> 6898114.976 | E27: =IF(TDPrimas!D25="","",TDPrimas!D25) -> 6040258.755 | F27: 1.967736261 | G27: 1.798485833 | H27: 857856.2216 | I27: 14.20230915 | J27: =IF(D27="","",IFERROR((D27/VLOOKUP(C27&"|"&VLOOKUP(TDPrimas!$B$4,Cat!R:T,2,0),'TD Operación'!A:D,4,0))*100,"ND")) -> 100 | K27: =IF(TDPrimas!E25="","",TDPrimas!E25) -> 0 | L27: =IF(TDPrimas!F25="","",TDPrimas!F25) -> 1.967736261
B28: =IF(TDPrimas!A26="","",TDPrimas!A26) -> 18 | C28: =IF(TDPrimas!B26="","",TDPrimas!B26) -> ProFuturo G.N.P. | D28: =IF(TDPrimas!C26="","",TDPrimas!C26) -> 5415377.444 | E28: =IF(TDPrimas!D26="","",TDPrimas!D26) -> 6429027.211 | F28: 1.544774855 | G28: 1.914241563 | H28: -1013649.767 | I28: -15.76676741 | J28: =IF(D28="","",IFERROR((D28/VLOOKUP(C28&"|"&VLOOKUP(TDPrimas!$B$4,Cat!R:T,2,0),'TD Operación'!A:D,4,0))*100,"ND")) -> 100 | K28: =IF(TDPrimas!E26="","",TDPrimas!E26) -> 0 | L28: =IF(TDPrimas!F26="","",TDPrimas!F26) -> 1.544774855
B29: =IF(TDPrimas!A27="","",TDPrimas!A27) -> 19 | C29: =IF(TDPrimas!B27="","",TDPrimas!B27) -> HDI Seguros | D29: =IF(TDPrimas!C27="","",TDPrimas!C27) -> 4583351.908 | E29: =IF(TDPrimas!D27="","",TDPrimas!D27) -> 4133361.38 | F29: 1.307433665 | G29: 1.230707522 | H29: 449990.5274 | I29: 10.88679372 | J29: =IF(D29="","",IFERROR((D29/VLOOKUP(C29&"|"&VLOOKUP(TDPrimas!$B$4,Cat!R:T,2,0),'TD Operación'!A:D,4,0))*100,"ND")) -> 100 | K29: =IF(TDPrimas!E27="","",TDPrimas!E27) -> 100 | L29: =IF(TDPrimas!F27="","",TDPrimas!F27) -> 1.307433665
B30: =IF(TDPrimas!A28="","",TDPrimas!A28) -> 20 | C30: =IF(TDPrimas!B28="","",TDPrimas!B28) -> Zurich Daños | D30: =IF(TDPrimas!C28="","",TDPrimas!C28) -> 4063560.402 | E30: =IF(TDPrimas!D28="","",TDPrimas!D28) -> 3302182.14 | F30: 1.159159449 | G30: 0.9832240702 | H30: 761378.2618 | I30: 23.05682211 | J30: =IF(D30="","",IFERROR((D30/VLOOKUP(C30&"|"&VLOOKUP(TDPrimas!$B$4,Cat!R:T,2,0),'TD Operación'!A:D,4,0))*100,"ND")) -> 100 | K30: =IF(TDPrimas!E28="","",TDPrimas!E28) -> 100 | L30: =IF(TDPrimas!F28="","",TDPrimas!F28) -> 1.159159449
B31: =IF(TDPrimas!A29="","",TDPrimas!A29) -> 21 | C31: =IF(TDPrimas!B29="","",TDPrimas!B29) -> Afirme | D31: =IF(TDPrimas!C29="","",TDPrimas!C29) -> 3775583.215 | E31: =IF(TDPrimas!D29="","",TDPrimas!D29) -> 5651004.016 | F31: 1.077011912 | G31: 1.682585313 | H31: -1875420.801 | I31: -33.18739105 | J31: =IF(D31="","",IFERROR((D31/VLOOKUP(C31&"|"&VLOOKUP(TDPrimas!$B$4,Cat!R:T,2,0),'TD Operación'!A:D,4,0))*100,"ND")) -> 100 | K31: =IF(TDPrimas!E29="","",TDPrimas!E29) -> 100 | L31: =IF(TDPrimas!F29="","",TDPrimas!F29) -> 1.077011912
B32: =IF(TDPrimas!A30="","",TDPrimas!A30) -> 22 | C32: =IF(TDPrimas!B30="","",TDPrimas!B30) -> Seguros SURA | D32: =IF(TDPrimas!C30="","",TDPrimas!C30) -> 3472716.022 | E32: =IF(TDPrimas!D30="","",TDPrimas!D30) -> 2522205.723 | F32: 0.9906168953 | G32: 0.7509862482 | H32: 950510.2992 | I32: 37.68567689 | J32: =IF(D32="","",IFERROR((D32/VLOOKUP(C32&"|"&VLOOKUP(TDPrimas!$B$4,Cat!R:T,2,0),'TD Operación'!A:D,4,0))*100,"ND")) -> 100 | K32: =IF(TDPrimas!E30="","",TDPrimas!E30) -> 100 | L32: =IF(TDPrimas!F30="","",TDPrimas!F30) -> 0.9906168953
B33: =IF(TDPrimas!A31="","",TDPrimas!A31) -> 23 | C33: =IF(TDPrimas!B31="","",TDPrimas!B31) -> AIG Seguros | D33: =IF(TDPrimas!C31="","",TDPrimas!C31) -> 3294828.76 | E33: =IF(TDPrimas!D31="","",TDPrimas!D31) -> 2838972.282 | F33: 0.939873291 | G33: 0.8453034276 | H33: 455856.4777 | I33: 16.05709505 | J33: =IF(D33="","",IFERROR((D33/VLOOKUP(C33&"|"&VLOOKUP(TDPrimas!$B$4,Cat!R:T,2,0),'TD Operación'!A:D,4,0))*100,"ND")) -> 100 | K33: =IF(TDPrimas!E31="","",TDPrimas!E31) -> 100 | L33: =IF(TDPrimas!F31="","",TDPrimas!F31) -> 0.939873291
B34: =IF(TDPrimas!A32="","",TDPrimas!A32) -> 24 | C34: =IF(TDPrimas!B32="","",TDPrimas!B32) -> Agroasemex | D34: =IF(TDPrimas!C32="","",TDPrimas!C32) -> 3128814.921 | E34: =IF(TDPrimas!D32="","",TDPrimas!D32) -> 1587099.071 | F34: 0.8925166651 | G34: 0.4725584301 | H34: 1541715.85 | I34: 97.14049224 | J34: =IF(D34="","",IFERROR((D34/VLOOKUP(C34&"|"&VLOOKUP(TDPrimas!$B$4,Cat!R:T,2,0),'TD Operación'!A:D,4,0))*100,"ND")) -> 100 | K34: =IF(TDPrimas!E32="","",TDPrimas!E32) -> 100 | L34: =IF(TDPrimas!F32="","",TDPrimas!F32) -> 0.8925166651
B35: =IF(TDPrimas!A33="","",TDPrimas!A33) -> 25 | C35: =IF(TDPrimas!B33="","",TDPrimas!B33) -> HSBC Seguros | D35: =IF(TDPrimas!C33="","",TDPrimas!C33) -> 3007753.25 | E35: =IF(TDPrimas!D33="","",TDPrimas!D33) -> 2817200.879 | F35: 0.8579829641 | G35: 0.8388209967 | H35: 190552.3712 | I35: 6.763890094 | J35: =IF(D35="","",IFERROR((D35/VLOOKUP(C35&"|"&VLOOKUP(TDPrimas!$B$4,Cat!R:T,2,0),'TD Operación'!A:D,4,0))*100,"ND")) -> 100 | K35: =IF(TDPrimas!E33="","",TDPrimas!E33) -> 100 | L35: =IF(TDPrimas!F33="","",TDPrimas!F33) -> 0.8579829641
B36: =IF(TDPrimas!A34="","",TDPrimas!A34) -> 26 | C36: =IF(TDPrimas!B34="","",TDPrimas!B34) -> Seguros Azteca | D36: =IF(TDPrimas!C34="","",TDPrimas!C34) -> 2387879.911 | E36: =IF(TDPrimas!D34="","",TDPrimas!D34) -> 3559655.877 | F36: 0.6811596942 | G36: 1.059886824 | H36: -1171775.966 | I36: -32.91823722 | J36: =IF(D36="","",IFERROR((D36/VLOOKUP(C36&"|"&VLOOKUP(TDPrimas!$B$4,Cat!R:T,2,0),'TD Operación'!A:D,4,0))*100,"ND")) -> 100 | K36: =IF(TDPrimas!E34="","",TDPrimas!E34) -> 100 | L36: =IF(TDPrimas!F34="","",TDPrimas!F34) -> 0.6811596942
B37: =IF(TDPrimas!A35="","",TDPrimas!A35) -> 27 | C37: =IF(TDPrimas!B35="","",TDPrimas!B35) -> Patrimonial Vida | D37: =IF(TDPrimas!C35="","",TDPrimas!C35) -> 2216494.766 | E37: =IF(TDPrimas!D35="","",TDPrimas!D35) -> 1019576.817 | F37: 0.6322708651 | G37: 0.3035787927 | H37: 1196917.949 | I37: 117.3936019 | J37: =IF(D37="","",IFERROR((D37/VLOOKUP(C37&"|"&VLOOKUP(TDPrimas!$B$4,Cat!R:T,2,0),'TD Operación'!A:D,4,0))*100,"ND")) -> 100 | K37: =IF(TDPrimas!E35="","",TDPrimas!E35) -> 100 | L37: =IF(TDPrimas!F35="","",TDPrimas!F35) -> 0.6322708651
B38: =IF(TDPrimas!A36="","",TDPrimas!A36) -> 28 | C38: =IF(TDPrimas!B36="","",TDPrimas!B36) -> Seguros Azteca Daños | D38: =IF(TDPrimas!C36="","",TDPrimas!C36) -> 2057482.598 | E38: =IF(TDPrimas!D36="","",TDPrimas!D36) -> 895944.6702 | F38: 0.5869115156 | G38: 0.2667673459 | H38: 1161537.928 | I38: 129.6439353 | J38: =IF(D38="","",IFERROR((D38/VLOOKUP(C38&"|"&VLOOKUP(TDPrimas!$B$4,Cat!R:T,2,0),'TD Operación'!A:D,4,0))*100,"ND")) -> 100 | K38: =IF(TDPrimas!E36="","",TDPrimas!E36) -> 100 | L38: =IF(TDPrimas!F36="","",TDPrimas!F36) -> 0.5869115156
B39: =IF(TDPrimas!A37="","",TDPrimas!A37) -> 29 | C39: =IF(TDPrimas!B37="","",TDPrimas!B37) -> Seguros Argos | D39: =IF(TDPrimas!C37="","",TDPrimas!C37) -> 1922501.305 | E39: =IF(TDPrimas!D37="","",TDPrimas!D37) -> 1337289.562 | F39: 0.5484071436 | G39: 0.3981776988 | H39: 585211.7436 | I39: 43.76103429 | J39: =IF(D39="","",IFERROR((D39/VLOOKUP(C39&"|"&VLOOKUP(TDPrimas!$B$4,Cat!R:T,2,0),'TD Operación'!A:D,4,0))*100,"ND")) -> 100 | K39: =IF(TDPrimas!E37="","",TDPrimas!E37) -> 100 | L39: =IF(TDPrimas!F37="","",TDPrimas!F37) -> 0.5484071436
B40: =IF(TDPrimas!A38="","",TDPrimas!A38) -> 30 | C40: =IF(TDPrimas!B38="","",TDPrimas!B38) -> Hir Seguros | D40: =IF(TDPrimas!C38="","",TDPrimas!C38) -> 1861513.895 | E40: =IF(TDPrimas!D38="","",TDPrimas!D38) -> 1282546.609 | F40: 0.531010052 | G40: 0.3818779956 | H40: 578967.2865 | I40: 45.1420075 | J40: =IF(D40="","",IFERROR((D40/VLOOKUP(C40&"|"&VLOOKUP(TDPrimas!$B$4,Cat!R:T,2,0),'TD Operación'!A:D,4,0))*100,"ND")) -> 100 | K40: =IF(TDPrimas!E38="","",TDPrimas!E38) -> 100 | L40: =IF(TDPrimas!F38="","",TDPrimas!F38) -> 0.531010052
B41: =IF(TDPrimas!A39="","",TDPrimas!A39) -> 31 | C41: =IF(TDPrimas!B39="","",TDPrimas!B39) -> BUPA México | D41: =IF(TDPrimas!C39="","",TDPrimas!C39) -> 1795882.456 | E41: =IF(TDPrimas!D39="","",TDPrimas!D39) -> 1536603.521 | F41: 0.512288218 | G41: 0.4575233903 | H41: 259278.9348 | I41: 16.87350909 | J41: =IF(D41="","",IFERROR((D41/VLOOKUP(C41&"|"&VLOOKUP(TDPrimas!$B$4,Cat!R:T,2,0),'TD Operación'!A:D,4,0))*100,"ND")) -> 100 | K41: =IF(TDPrimas!E39="","",TDPrimas!E39) -> 100 | L41: =IF(TDPrimas!F39="","",TDPrimas!F39) -> 0.512288218
B42: =IF(TDPrimas!A40="","",TDPrimas!A40) -> 32 | C42: =IF(TDPrimas!B40="","",TDPrimas!B40) -> Ve Por Más | D42: =IF(TDPrimas!C40="","",TDPrimas!C40) -> 1640257.721 | E42: =IF(TDPrimas!D40="","",TDPrimas!D40) -> 1866768.435 | F42: 0.4678951578 | G42: 0.5558299272 | H42: -226510.7137 | I42: -12.133841 | J42: =IF(D42="","",IFERROR((D42/VLOOKUP(C42&"|"&VLOOKUP(TDPrimas!$B$4,Cat!R:T,2,0),'TD Operación'!A:D,4,0))*100,"ND")) -> 100 | K42: =IF(TDPrimas!E40="","",TDPrimas!E40) -> 100 | L42: =IF(TDPrimas!F40="","",TDPrimas!F40) -> 0.4678951578
B43: =IF(TDPrimas!A41="","",TDPrimas!A41) -> 33 | C43: =IF(TDPrimas!B41="","",TDPrimas!B41) -> Plan Seguro | D43: =IF(TDPrimas!C41="","",TDPrimas!C41) -> 1621341.633 | E43: =IF(TDPrimas!D41="","",TDPrimas!D41) -> 1332841.45 | F43: 0.4624992093 | G43: 0.3968532745 | H43: 288500.1827 | I43: 21.645499 | J43: =IF(D43="","",IFERROR((D43/VLOOKUP(C43&"|"&VLOOKUP(TDPrimas!$B$4,Cat!R:T,2,0),'TD Operación'!A:D,4,0))*100,"ND")) -> 100 | K43: =IF(TDPrimas!E41="","",TDPrimas!E41) -> 100 | L43: =IF(TDPrimas!F41="","",TDPrimas!F41) -> 0.4624992093
B44: =IF(TDPrimas!A42="","",TDPrimas!A42) -> 34 | C44: =IF(TDPrimas!B42="","",TDPrimas!B42) -> Cardif Vida | D44: =IF(TDPrimas!C42="","",TDPrimas!C42) -> 1540302.894 | E44: =IF(TDPrimas!D42="","",TDPrimas!D42) -> 1327513.669 | F44: 0.4393823338 | G44: 0.3952669289 | H44: 212789.2243 | I44: 16.02915504 | J44: =IF(D44="","",IFERROR((D44/VLOOKUP(C44&"|"&VLOOKUP(TDPrimas!$B$4,Cat!R:T,2,0),'TD Operación'!A:D,4,0))*100,"ND")) -> 100 | K44: =IF(TDPrimas!E42="","",TDPrimas!E42) -> 100 | L44: =IF(TDPrimas!F42="","",TDPrimas!F42) -> 0.4393823338
B45: =IF(TDPrimas!A43="","",TDPrimas!A43) -> 35 | C45: =IF(TDPrimas!B43="","",TDPrimas!B43) -> ANA | D45: =IF(TDPrimas!C43="","",TDPrimas!C43) -> 1478999.982 | E45: =IF(TDPrimas!D43="","",TDPrimas!D43) -> 1304127.8 | F45: 0.421895243 | G45: 0.3883037908 | H45: 174872.1821 | I45: 13.40912924 | J45: =IF(D45="","",IFERROR((D45/VLOOKUP(C45&"|"&VLOOKUP(TDPrimas!$B$4,Cat!R:T,2,0),'TD Operación'!A:D,4,0))*100,"ND")) -> 100 | K45: =IF(TDPrimas!E43="","",TDPrimas!E43) -> 100 | L45: =IF(TDPrimas!F43="","",TDPrimas!F43) -> 0.421895243
B46: =IF(TDPrimas!A44="","",TDPrimas!A44) -> 36 | C46: =IF(TDPrimas!B44="","",TDPrimas!B44) -> FM Global | D46: =IF(TDPrimas!C44="","",TDPrimas!C44) -> 1318097.101 | E46: =IF(TDPrimas!D44="","",TDPrimas!D44) -> 1317101.242 | F46: 0.3759965541 | G46: 0.3921666308 | H46: 995.85859 | I46: 0.07560987402 | J46: =IF(D46="","",IFERROR((D46/VLOOKUP(C46&"|"&VLOOKUP(TDPrimas!$B$4,Cat!R:T,2,0),'TD Operación'!A:D,4,0))*100,"ND")) -> 100 | K46: =IF(TDPrimas!E44="","",TDPrimas!E44) -> 100 | L46: =IF(TDPrimas!F44="","",TDPrimas!F44) -> 0.3759965541
B47: =IF(TDPrimas!A45="","",TDPrimas!A45) -> 37 | C47: =IF(TDPrimas!B45="","",TDPrimas!B45) -> General de Seguros | D47: =IF(TDPrimas!C45="","",TDPrimas!C45) -> 1281068.288 | E47: =IF(TDPrimas!D45="","",TDPrimas!D45) -> 1158864.578 | F47: 0.3654338224 | G47: 0.3450516956 | H47: 122203.7101 | I47: 10.5451243 | J47: =IF(D47="","",IFERROR((D47/VLOOKUP(C47&"|"&VLOOKUP(TDPrimas!$B$4,Cat!R:T,2,0),'TD Operación'!A:D,4,0))*100,"ND")) -> 100 | K47: =IF(TDPrimas!E45="","",TDPrimas!E45) -> 100 | L47: =IF(TDPrimas!F45="","",TDPrimas!F45) -> 0.3654338224
B48: =IF(TDPrimas!A46="","",TDPrimas!A46) -> 38 | C48: =IF(TDPrimas!B46="","",TDPrimas!B46) -> El Potosí | D48: =IF(TDPrimas!C46="","",TDPrimas!C46) -> 1055531.499 | E48: =IF(TDPrimas!D46="","",TDPrimas!D46) -> 966253.4281 | F48: 0.3010978524 | G48: 0.2877017645 | H48: 89278.0709 | I48: 9.239612332 | J48: =IF(D48="","",IFERROR((D48/VLOOKUP(C48&"|"&VLOOKUP(TDPrimas!$B$4,Cat!R:T,2,0),'TD Operación'!A:D,4,0))*100,"ND")) -> 100 | K48: =IF(TDPrimas!E46="","",TDPrimas!E46) -> 100 | L48: =IF(TDPrimas!F46="","",TDPrimas!F46) -> 0.3010978524
B49: =IF(TDPrimas!A47="","",TDPrimas!A47) -> 39 | C49: =IF(TDPrimas!B47="","",TDPrimas!B47) -> Tokio Marine | D49: =IF(TDPrimas!C47="","",TDPrimas!C47) -> 995247.5867 | E49: =IF(TDPrimas!D47="","",TDPrimas!D47) -> 898062.6442 | F49: 0.2839014386 | G49: 0.2673979722 | H49: 97184.94251 | I49: 10.82162176 | J49: =IF(D49="","",IFERROR((D49/VLOOKUP(C49&"|"&VLOOKUP(TDPrimas!$B$4,Cat!R:T,2,0),'TD Operación'!A:D,4,0))*100,"ND")) -> 100 | K49: =IF(TDPrimas!E47="","",TDPrimas!E47) -> 100 | L49: =IF(TDPrimas!F47="","",TDPrimas!F47) -> 0.2839014386
B50: =IF(TDPrimas!A48="","",TDPrimas!A48) -> 40 | C50: =IF(TDPrimas!B48="","",TDPrimas!B48) -> Insignia Life | D50: =IF(TDPrimas!C48="","",TDPrimas!C48) -> 766919.544 | E50: =IF(TDPrimas!D48="","",TDPrimas!D48) -> 699225.8606 | F50: 0.2187692437 | G50: 0.2081943598 | H50: 67693.68337 | I50: 9.681232801 | J50: =IF(D50="","",IFERROR((D50/VLOOKUP(C50&"|"&VLOOKUP(TDPrimas!$B$4,Cat!R:T,2,0),'TD Operación'!A:D,4,0))*100,"ND")) -> 100 | K50: =IF(TDPrimas!E48="","",TDPrimas!E48) -> 100 | L50: =IF(TDPrimas!F48="","",TDPrimas!F48) -> 0.2187692437
B51: =IF(TDPrimas!A49="","",TDPrimas!A49) -> 41 | C51: =IF(TDPrimas!B49="","",TDPrimas!B49) -> Prudential | D51: =IF(TDPrimas!C49="","",TDPrimas!C49) -> 727320.8938 | E51: =IF(TDPrimas!D49="","",TDPrimas!D49) -> 519351.5095 | F51: 0.2074734476 | G51: 0.1546368078 | H51: 207969.3843 | I51: 40.04405118 | J51: =IF(D51="","",IFERROR((D51/VLOOKUP(C51&"|"&VLOOKUP(TDPrimas!$B$4,Cat!R:T,2,0),'TD Operación'!A:D,4,0))*100,"ND")) -> 100 | K51: =IF(TDPrimas!E49="","",TDPrimas!E49) -> 100 | L51: =IF(TDPrimas!F49="","",TDPrimas!F49) -> 0.2074734476
B52: =IF(TDPrimas!A50="","",TDPrimas!A50) -> 42 | C52: =IF(TDPrimas!B50="","",TDPrimas!B50) -> Zurich Vida | D52: =IF(TDPrimas!C50="","",TDPrimas!C50) -> 706727.7084 | E52: =IF(TDPrimas!D50="","",TDPrimas!D50) -> 761720.7133 | F52: 0.2015990953 | G52: 0.2268021896 | H52: -54993.00491 | I52: -7.219575883 | J52: =IF(D52="","",IFERROR((D52/VLOOKUP(C52&"|"&VLOOKUP(TDPrimas!$B$4,Cat!R:T,2,0),'TD Operación'!A:D,4,0))*100,"ND")) -> 100 | K52: =IF(TDPrimas!E50="","",TDPrimas!E50) -> 100 | L52: =IF(TDPrimas!F50="","",TDPrimas!F50) -> 0.2015990953
B53: =IF(TDPrimas!A51="","",TDPrimas!A51) -> 43 | C53: =IF(TDPrimas!B51="","",TDPrimas!B51) -> La Latinoamericana | D53: =IF(TDPrimas!C51="","",TDPrimas!C51) -> 681751.0774 | E53: =IF(TDPrimas!D51="","",TDPrimas!D51) -> 671496.8819 | F53: 0.194474334 | G53: 0.1999380619 | H53: 10254.19559 | I53: 1.527065258 | J53: =IF(D53="","",IFERROR((D53/VLOOKUP(C53&"|"&VLOOKUP(TDPrimas!$B$4,Cat!R:T,2,0),'TD Operación'!A:D,4,0))*100,"ND")) -> 100 | K53: =IF(TDPrimas!E51="","",TDPrimas!E51) -> 100 | L53: =IF(TDPrimas!F51="","",TDPrimas!F51) -> 0.194474334
B54: =IF(TDPrimas!A52="","",TDPrimas!A52) -> 44 | C54: =IF(TDPrimas!B52="","",TDPrimas!B52) -> El Águila | D54: =IF(TDPrimas!C52="","",TDPrimas!C52) -> 653610.2495 | E54: =IF(TDPrimas!D52="","",TDPrimas!D52) -> 596158.6917 | F54: 0.1864469631 | G54: 0.1775061309 | H54: 57451.55782 | I54: 9.636957177 | J54: =IF(D54="","",IFERROR((D54/VLOOKUP(C54&"|"&VLOOKUP(TDPrimas!$B$4,Cat!R:T,2,0),'TD Operación'!A:D,4,0))*100,"ND")) -> 100 | K54: =IF(TDPrimas!E52="","",TDPrimas!E52) -> 100 | L54: =IF(TDPrimas!F52="","",TDPrimas!F52) -> 0.1864469631
B55: =IF(TDPrimas!A53="","",TDPrimas!A53) -> 45 | C55: =IF(TDPrimas!B53="","",TDPrimas!B53) -> HDI Global Seguros | D55: =IF(TDPrimas!C53="","",TDPrimas!C53) -> 624651.3889 | E55: =IF(TDPrimas!D53="","",TDPrimas!D53) -> 600298.3309 | F55: 0.1781862426 | G55: 0.1787387077 | H55: 24353.05799 | I55: 4.056825871 | J55: =IF(D55="","",IFERROR((D55/VLOOKUP(C55&"|"&VLOOKUP(TDPrimas!$B$4,Cat!R:T,2,0),'TD Operación'!A:D,4,0))*100,"ND")) -> 100 | K55: =IF(TDPrimas!E53="","",TDPrimas!E53) -> 100 | L55: =IF(TDPrimas!F53="","",TDPrimas!F53) -> 0.1781862426
B56: =IF(TDPrimas!A54="","",TDPrimas!A54) -> 46 | C56: =IF(TDPrimas!B54="","",TDPrimas!B54) -> Cardif Seguros Generales | D56: =IF(TDPrimas!C54="","",TDPrimas!C54) -> 592169.6989 | E56: =IF(TDPrimas!D54="","",TDPrimas!D54) -> 399467.4637 | F56: 0.1689206099 | G56: 0.1189413572 | H56: 192702.2352 | I56: 48.23978238 | J56: =IF(D56="","",IFERROR((D56/VLOOKUP(C56&"|"&VLOOKUP(TDPrimas!$B$4,Cat!R:T,2,0),'TD Operación'!A:D,4,0))*100,"ND")) -> 100 | K56: =IF(TDPrimas!E54="","",TDPrimas!E54) -> 100 | L56: =IF(TDPrimas!F54="","",TDPrimas!F54) -> 0.1689206099
B57: =IF(TDPrimas!A55="","",TDPrimas!A55) -> 47 | C57: =IF(TDPrimas!B55="","",TDPrimas!B55) -> AXA Salud | D57: =IF(TDPrimas!C55="","",TDPrimas!C55) -> 514706.5958 | E57: =IF(TDPrimas!D55="","",TDPrimas!D55) -> 135403.4425 | F57: 0.1468237099 | G57: 0.04031634786 | H57: 379303.1533 | I57: 280.1281461 | J57: =IF(D57="","",IFERROR((D57/VLOOKUP(C57&"|"&VLOOKUP(TDPrimas!$B$4,Cat!R:T,2,0),'TD Operación'!A:D,4,0))*100,"ND")) -> 100 | K57: =IF(TDPrimas!E55="","",TDPrimas!E55) -> 100 | L57: =IF(TDPrimas!F55="","",TDPrimas!F55) -> 0.1468237099
B58: =IF(TDPrimas!A56="","",TDPrimas!A56) -> 48 | C58: =IF(TDPrimas!B56="","",TDPrimas!B56) -> Primero Seguros | D58: =IF(TDPrimas!C56="","",TDPrimas!C56) -> 481643.7617 | E58: =IF(TDPrimas!D56="","",TDPrimas!D56) -> 376731.6264 | F58: 0.1373923018 | G58: 0.1121717662 | H58: 104912.1353 | I58: 27.84797664 | J58: =IF(D58="","",IFERROR((D58/VLOOKUP(C58&"|"&VLOOKUP(TDPrimas!$B$4,Cat!R:T,2,0),'TD Operación'!A:D,4,0))*100,"ND")) -> 100 | K58: =IF(TDPrimas!E56="","",TDPrimas!E56) -> 100 | L58: =IF(TDPrimas!F56="","",TDPrimas!F56) -> 0.1373923018
B59: =IF(TDPrimas!A57="","",TDPrimas!A57) -> 49 | C59: =IF(TDPrimas!B57="","",TDPrimas!B57) -> Sompo Japan | D59: =IF(TDPrimas!C57="","",TDPrimas!C57) -> 461795.1686 | E59: =IF(TDPrimas!D57="","",TDPrimas!D57) -> 463005.6529 | F59: 0.1317303498 | G59: 0.1378598403 | H59: -1210.48429 | I59: -0.2614404991 | J59: =IF(D59="","",IFERROR((D59/VLOOKUP(C59&"|"&VLOOKUP(TDPrimas!$B$4,Cat!R:T,2,0),'TD Operación'!A:D,4,0))*100,"ND")) -> 100 | K59: =IF(TDPrimas!E57="","",TDPrimas!E57) -> 100 | L59: =IF(TDPrimas!F57="","",TDPrimas!F57) -> 0.1317303498
B60: =IF(TDPrimas!A58="","",TDPrimas!A58) -> 50 | C60: =IF(TDPrimas!B58="","",TDPrimas!B58) -> Patrimonial Inbursa | D60: =IF(TDPrimas!C58="","",TDPrimas!C58) -> 457358.6663 | E60: =IF(TDPrimas!D58="","",TDPrimas!D58) -> 515353.3463 | F60: 0.130464806 | G60: 0.1534463555 | H60: -57994.68003 | I60: -11.25338187 | J60: =IF(D60="","",IFERROR((D60/VLOOKUP(C60&"|"&VLOOKUP(TDPrimas!$B$4,Cat!R:T,2,0),'TD Operación'!A:D,4,0))*100,"ND")) -> 100 | K60: =IF(TDPrimas!E58="","",TDPrimas!E58) -> 100 | L60: =IF(TDPrimas!F58="","",TDPrimas!F58) -> 0.130464806
B61: =IF(TDPrimas!A59="","",TDPrimas!A59) -> 51 | C61: =IF(TDPrimas!B59="","",TDPrimas!B59) -> Atradius | D61: =IF(TDPrimas!C59="","",TDPrimas!C59) -> 426948.4712 | E61: =IF(TDPrimas!D59="","",TDPrimas!D59) -> 327740.3361 | F61: 0.121790082 | G61: 0.09758461935 | H61: 99208.13506 | I61: 30.27034641 | J61: =IF(D61="","",IFERROR((D61/VLOOKUP(C61&"|"&VLOOKUP(TDPrimas!$B$4,Cat!R:T,2,0),'TD Operación'!A:D,4,0))*100,"ND")) -> 100 | K61: =IF(TDPrimas!E59="","",TDPrimas!E59) -> 100 | L61: =IF(TDPrimas!F59="","",TDPrimas!F59) -> 0.121790082
B62: =IF(TDPrimas!A60="","",TDPrimas!A60) -> 52 | C62: =IF(TDPrimas!B60="","",TDPrimas!B60) -> Pan-American México | D62: =IF(TDPrimas!C60="","",TDPrimas!C60) -> 385801.3783 | E62: =IF(TDPrimas!D60="","",TDPrimas!D60) -> 319591.086 | F62: 0.1100525816 | G62: 0.09515818178 | H62: 66210.29224 | I62: 20.71718991 | J62: =IF(D62="","",IFERROR((D62/VLOOKUP(C62&"|"&VLOOKUP(TDPrimas!$B$4,Cat!R:T,2,0),'TD Operación'!A:D,4,0))*100,"ND")) -> 100 | K62: =IF(TDPrimas!E60="","",TDPrimas!E60) -> 100 | L62: =IF(TDPrimas!F60="","",TDPrimas!F60) -> 0.1100525816
B63: =IF(TDPrimas!A61="","",TDPrimas!A61) -> 53 | C63: =IF(TDPrimas!B61="","",TDPrimas!B61) -> Solunion Crédito | D63: =IF(TDPrimas!C61="","",TDPrimas!C61) -> 333930.4897 | E63: =IF(TDPrimas!D61="","",TDPrimas!D61) -> 318818.9922 | F63: 0.09525604248 | G63: 0.09492829099 | H63: 15111.49748 | I63: 4.739836036 | J63: =IF(D63="","",IFERROR((D63/VLOOKUP(C63&"|"&VLOOKUP(TDPrimas!$B$4,Cat!R:T,2,0),'TD Operación'!A:D,4,0))*100,"ND")) -> 100 | K63: =IF(TDPrimas!E61="","",TDPrimas!E61) -> 100 | L63: =IF(TDPrimas!F61="","",TDPrimas!F61) -> 0.09525604248
B64: =IF(TDPrimas!A62="","",TDPrimas!A62) -> 54 | C64: =IF(TDPrimas!B62="","",TDPrimas!B62) -> General de Salud | D64: =IF(TDPrimas!C62="","",TDPrimas!C62) -> 315959.032 | E64: =IF(TDPrimas!D62="","",TDPrimas!D62) -> 208485.5687 | F64: 0.0901295566 | G64: 0.06207653628 | H64: 107473.4633 | I64: 51.54959354 | J64: =IF(D64="","",IFERROR((D64/VLOOKUP(C64&"|"&VLOOKUP(TDPrimas!$B$4,Cat!R:T,2,0),'TD Operación'!A:D,4,0))*100,"ND")) -> 100 | K64: =IF(TDPrimas!E62="","",TDPrimas!E62) -> 100 | L64: =IF(TDPrimas!F62="","",TDPrimas!F62) -> 0.0901295566
B65: =IF(TDPrimas!A63="","",TDPrimas!A63) -> 55 | C65: =IF(TDPrimas!B63="","",TDPrimas!B63) -> Berkley Seguros | D65: =IF(TDPrimas!C63="","",TDPrimas!C63) -> 293792.1733 | E65: =IF(TDPrimas!D63="","",TDPrimas!D63) -> 205159.3339 | F65: 0.08380630283 | G65: 0.06108615054 | H65: 88632.83939 | I65: 43.20195318 | J65: =IF(D65="","",IFERROR((D65/VLOOKUP(C65&"|"&VLOOKUP(TDPrimas!$B$4,Cat!R:T,2,0),'TD Operación'!A:D,4,0))*100,"ND")) -> 100 | K65: =IF(TDPrimas!E63="","",TDPrimas!E63) -> 100 | L65: =IF(TDPrimas!F63="","",TDPrimas!F63) -> 0.08380630283
B66: =IF(TDPrimas!A64="","",TDPrimas!A64) -> 56 | C66: =IF(TDPrimas!B64="","",TDPrimas!B64) -> PREVEM Seguros | D66: =IF(TDPrimas!C64="","",TDPrimas!C64) -> 276711.6238 | E66: =IF(TDPrimas!D64="","",TDPrimas!D64) -> 229344.1818 | F66: 0.07893395484 | G66: 0.06828718414 | H66: 47367.442 | I66: 20.65343085 | J66: =IF(D66="","",IFERROR((D66/VLOOKUP(C66&"|"&VLOOKUP(TDPrimas!$B$4,Cat!R:T,2,0),'TD Operación'!A:D,4,0))*100,"ND")) -> 100 | K66: =IF(TDPrimas!E64="","",TDPrimas!E64) -> 100 | L66: =IF(TDPrimas!F64="","",TDPrimas!F64) -> 0.07893395484
B67: =IF(TDPrimas!A65="","",TDPrimas!A65) -> 57 | C67: =IF(TDPrimas!B65="","",TDPrimas!B65) -> Swiss Re Corporate Solutions | D67: =IF(TDPrimas!C65="","",TDPrimas!C65) -> 273004.4273 | E67: =IF(TDPrimas!D65="","",TDPrimas!D65) -> 86787.25894 | F67: 0.07787645072 | G67: 0.02584088895 | H67: 186217.1683 | I67: 214.5674038 | J67: =IF(D67="","",IFERROR((D67/VLOOKUP(C67&"|"&VLOOKUP(TDPrimas!$B$4,Cat!R:T,2,0),'TD Operación'!A:D,4,0))*100,"ND")) -> 100 | K67: =IF(TDPrimas!E65="","",TDPrimas!E65) -> 100 | L67: =IF(TDPrimas!F65="","",TDPrimas!F65) -> 0.07787645072
B68: =IF(TDPrimas!A66="","",TDPrimas!A66) -> 58 | C68: =IF(TDPrimas!B66="","",TDPrimas!B66) -> Coface | D68: =IF(TDPrimas!C66="","",TDPrimas!C66) -> 248590.0138 | E68: =IF(TDPrimas!D66="","",TDPrimas!D66) -> 0 | F68: 0.07091206598 | G68: 0 | H68: 248590.0138 | J68: =IF(D68="","",IFERROR((D68/VLOOKUP(C68&"|"&VLOOKUP(TDPrimas!$B$4,Cat!R:T,2,0),'TD Operación'!A:D,4,0))*100,"ND")) -> 100 | K68: =IF(TDPrimas!E66="","",TDPrimas!E66) -> 100 | L68: =IF(TDPrimas!F66="","",TDPrimas!F66) -> 0.07091206598
B69: =IF(TDPrimas!A67="","",TDPrimas!A67) -> 59 | C69: =IF(TDPrimas!B67="","",TDPrimas!B67) -> Skandia Life | D69: =IF(TDPrimas!C67="","",TDPrimas!C67) -> 247785.1426 | E69: =IF(TDPrimas!D67="","",TDPrimas!D67) -> 216736.6044 | F69: 0.07068247076 | G69: 0.06453328051 | H69: 31048.5382 | I69: 14.32547044 | J69: =IF(D69="","",IFERROR((D69/VLOOKUP(C69&"|"&VLOOKUP(TDPrimas!$B$4,Cat!R:T,2,0),'TD Operación'!A:D,4,0))*100,"ND")) -> 100 | K69: =IF(TDPrimas!E67="","",TDPrimas!E67) -> 100 | L69: =IF(TDPrimas!F67="","",TDPrimas!F67) -> 0.07068247076
B70: =IF(TDPrimas!A68="","",TDPrimas!A68) -> 60 | C70: =IF(TDPrimas!B68="","",TDPrimas!B68) -> Dentegra | D70: =IF(TDPrimas!C68="","",TDPrimas!C68) -> 234301.8599 | E70: =IF(TDPrimas!D68="","",TDPrimas!D68) -> 192540.77 | F70: 0.06683626867 | G70: 0.05732897567 | H70: 41761.0899 | I70: 21.68947901 | J70: =IF(D70="","",IFERROR((D70/VLOOKUP(C70&"|"&VLOOKUP(TDPrimas!$B$4,Cat!R:T,2,0),'TD Operación'!A:D,4,0))*100,"ND")) -> 100 | K70: =IF(TDPrimas!E68="","",TDPrimas!E68) -> 100 | L70: =IF(TDPrimas!F68="","",TDPrimas!F68) -> 0.06683626867
B71: =IF(TDPrimas!A69="","",TDPrimas!A69) -> 61 | C71: =IF(TDPrimas!B69="","",TDPrimas!B69) -> SHF Cred Vivienda | D71: =IF(TDPrimas!C69="","",TDPrimas!C69) -> 193780.4651 | E71: =IF(TDPrimas!D69="","",TDPrimas!D69) -> 216017.4569 | F71: 0.05527725315 | G71: 0.06431915448 | H71: -22236.99182 | I71: -10.29407166 | J71: =IF(D71="","",IFERROR((D71/VLOOKUP(C71&"|"&VLOOKUP(TDPrimas!$B$4,Cat!R:T,2,0),'TD Operación'!A:D,4,0))*100,"ND")) -> 100 | K71: =IF(TDPrimas!E69="","",TDPrimas!E69) -> 100 | L71: =IF(TDPrimas!F69="","",TDPrimas!F69) -> 0.05527725315
B72: =IF(TDPrimas!A70="","",TDPrimas!A70) -> 62 | C72: =IF(TDPrimas!B70="","",TDPrimas!B70) -> BBVA Bancomer Salud | D72: =IF(TDPrimas!C70="","",TDPrimas!C70) -> 160911.5315 | E72: =IF(TDPrimas!D70="","",TDPrimas!D70) -> 386681.0289 | F72: 0.04590115653 | G72: 0.1151341988 | H72: -225769.4975 | I72: -58.38649444 | J72: =IF(D72="","",IFERROR((D72/VLOOKUP(C72&"|"&VLOOKUP(TDPrimas!$B$4,Cat!R:T,2,0),'TD Operación'!A:D,4,0))*100,"ND")) -> 100 | K72: =IF(TDPrimas!E70="","",TDPrimas!E70) -> 100 | L72: =IF(TDPrimas!F70="","",TDPrimas!F70) -> 0.04590115653
B73: =IF(TDPrimas!A71="","",TDPrimas!A71) -> 63 | C73: =IF(TDPrimas!B71="","",TDPrimas!B71) -> Zurich Aseguradora Mexicana | D73: =IF(TDPrimas!C71="","",TDPrimas!C71) -> 124375.2312 | E73: =IF(TDPrimas!D71="","",TDPrimas!D71) -> 156417.469 | F73: 0.03547891754 | G73: 0.04657327003 | H73: -32042.23781 | I73: -20.48507626 | J73: =IF(D73="","",IFERROR((D73/VLOOKUP(C73&"|"&VLOOKUP(TDPrimas!$B$4,Cat!R:T,2,0),'TD Operación'!A:D,4,0))*100,"ND")) -> 100 | K73: =IF(TDPrimas!E71="","",TDPrimas!E71) -> 100 | L73: =IF(TDPrimas!F71="","",TDPrimas!F71) -> 0.03547891754
B74: =IF(TDPrimas!A72="","",TDPrimas!A72) -> 64 | C74: =IF(TDPrimas!B72="","",TDPrimas!B72) -> Assurant Daños | D74: =IF(TDPrimas!C72="","",TDPrimas!C72) -> 116998.4534 | E74: =IF(TDPrimas!D72="","",TDPrimas!D72) -> 80092.18774 | F74: =IFERROR(D74/VLOOKUP("TOTAL",$C$9:$D$125,2,0)*100,"") -> 0.03337463931 | G74: =IFERROR(E74/VLOOKUP("TOTAL",$C$9:$E$125,3,0)*100,"") -> 0.02384743284 | H74: =IFERROR(D74-E74,"") -> 36906.26566 | I74: =IFERROR((D74/E74-1)*100,"") -> 46.07973225 | J74: =IF(D74="","",IFERROR((D74/VLOOKUP(C74&"|"&VLOOKUP(TDPrimas!$B$4,Cat!R:T,2,0),'TD Operación'!A:D,4,0))*100,"ND")) -> 100 | K74: =IF(TDPrimas!E72="","",TDPrimas!E72) -> 100 | L74: =IF(TDPrimas!F72="","",TDPrimas!F72) -> 0.03337463931
B75: =IF(TDPrimas!A73="","",TDPrimas!A73) -> 65 | C75: =IF(TDPrimas!B73="","",TDPrimas!B73) -> SIS NOVA | D75: =IF(TDPrimas!C73="","",TDPrimas!C73) -> 112971.2501 | E75: =IF(TDPrimas!D73="","",TDPrimas!D73) -> 363190.4224 | F75: 0.03222585098 | G75: 0.1081398754 | H75: -250219.1723 | I75: -68.89476067 | J75: =IF(D75="","",IFERROR((D75/VLOOKUP(C75&"|"&VLOOKUP(TDPrimas!$B$4,Cat!R:T,2,0),'TD Operación'!A:D,4,0))*100,"ND")) -> 100 | K75: =IF(TDPrimas!E73="","",TDPrimas!E73) -> 100 | L75: =IF(TDPrimas!F73="","",TDPrimas!F73) -> 0.03222585098
B76: =IF(TDPrimas!A74="","",TDPrimas!A74) -> 66 | C76: =IF(TDPrimas!B74="","",TDPrimas!B74) -> Centauro | D76: =IF(TDPrimas!C74="","",TDPrimas!C74) -> 82942.37157 | E76: =IF(TDPrimas!D74="","",TDPrimas!D74) -> 72071.53699 | F76: 0.02365990023 | G76: 0.02145928569 | H76: 10870.83458 | I76: 15.08339496 | J76: =IF(D76="","",IFERROR((D76/VLOOKUP(C76&"|"&VLOOKUP(TDPrimas!$B$4,Cat!R:T,2,0),'TD Operación'!A:D,4,0))*100,"ND")) -> 100 | K76: =IF(TDPrimas!E74="","",TDPrimas!E74) -> 100 | L76: =IF(TDPrimas!F74="","",TDPrimas!F74) -> 0.02365990023
B77: =IF(TDPrimas!A75="","",TDPrimas!A75) -> 67 | C77: =IF(TDPrimas!B75="","",TDPrimas!B75) -> MediAccess | D77: =IF(TDPrimas!C75="","",TDPrimas!C75) -> 78274.22715 | E77: =IF(TDPrimas!D75="","",TDPrimas!D75) -> 87696.39647 | F77: 0.0223282789 | G77: 0.02611158446 | H77: -9422.16932 | I77: -10.74407809 | J77: =IF(D77="","",IFERROR((D77/VLOOKUP(C77&"|"&VLOOKUP(TDPrimas!$B$4,Cat!R:T,2,0),'TD Operación'!A:D,4,0))*100,"ND")) -> 100 | K77: =IF(TDPrimas!E75="","",TDPrimas!E75) -> 100 | L77: =IF(TDPrimas!F75="","",TDPrimas!F75) -> 0.0223282789
B78: =IF(TDPrimas!A76="","",TDPrimas!A76) -> 68 | C78: =IF(TDPrimas!B76="","",TDPrimas!B76) -> Assurant Vida | D78: =IF(TDPrimas!C76="","",TDPrimas!C76) -> 59247.18156 | E78: =IF(TDPrimas!D76="","",TDPrimas!D76) -> 92074.25407 | F78: 0.01690067909 | G78: 0.02741509069 | H78: -32827.07251 | I78: -35.65282482 | J78: =IF(D78="","",IFERROR((D78/VLOOKUP(C78&"|"&VLOOKUP(TDPrimas!$B$4,Cat!R:T,2,0),'TD Operación'!A:D,4,0))*100,"ND")) -> 100 | K78: =IF(TDPrimas!E76="","",TDPrimas!E76) -> 100 | L78: =IF(TDPrimas!F76="","",TDPrimas!F76) -> 0.01690067909
B79: =IF(TDPrimas!A77="","",TDPrimas!A77) -> 69 | C79: =IF(TDPrimas!B77="","",TDPrimas!B77) -> Virginia Surety | D79: =IF(TDPrimas!C77="","",TDPrimas!C77) -> 51924.74403 | E79: =IF(TDPrimas!D77="","",TDPrimas!D77) -> 23252.8876 | F79: 0.01481190181 | G79: 0.00692354262 | H79: 28671.85643 | I79: 123.3044984 | J79: =IF(D79="","",IFERROR((D79/VLOOKUP(C79&"|"&VLOOKUP(TDPrimas!$B$4,Cat!R:T,2,0),'TD Operación'!A:D,4,0))*100,"ND")) -> 100 | K79: =IF(TDPrimas!E77="","",TDPrimas!E77) -> 100 | L79: =IF(TDPrimas!F77="","",TDPrimas!F77) -> 0.01481190181
B80: =IF(TDPrimas!A78="","",TDPrimas!A78) -> 70 | C80: =IF(TDPrimas!B78="","",TDPrimas!B78) -> Tláloc Seguros | D80: =IF(TDPrimas!C78="","",TDPrimas!C78) -> 50109.55349 | E80: =IF(TDPrimas!D78="","",TDPrimas!D78) -> 57638.39231 | F80: 0.01429410582 | G80: 0.01716181975 | H80: -7528.83882 | I80: -13.06219434 | J80: =IF(D80="","",IFERROR((D80/VLOOKUP(C80&"|"&VLOOKUP(TDPrimas!$B$4,Cat!R:T,2,0),'TD Operación'!A:D,4,0))*100,"ND")) -> 100 | K80: =IF(TDPrimas!E78="","",TDPrimas!E78) -> 100 | L80: =IF(TDPrimas!F78="","",TDPrimas!F78) -> 0.01429410582
B81: =IF(TDPrimas!A79="","",TDPrimas!A79) -> 71 | C81: =IF(TDPrimas!B79="","",TDPrimas!B79) -> Odontoprev | D81: =IF(TDPrimas!C79="","",TDPrimas!C79) -> 47281.41634 | E81: =IF(TDPrimas!D79="","",TDPrimas!D79) -> 51971.83992 | F81: 0.01348735962 | G81: 0.01547460491 | H81: -4690.42358 | I81: -9.024932708 | J81: =IF(D81="","",IFERROR((D81/VLOOKUP(C81&"|"&VLOOKUP(TDPrimas!$B$4,Cat!R:T,2,0),'TD Operación'!A:D,4,0))*100,"ND")) -> 100 | K81: =IF(TDPrimas!E79="","",TDPrimas!E79) -> 100 | L81: =IF(TDPrimas!F79="","",TDPrimas!F79) -> 0.01348735962
B82: =IF(TDPrimas!A80="","",TDPrimas!A80) -> 72 | C82: =IF(TDPrimas!B80="","",TDPrimas!B80) -> Genworth Seg. de Crédito | D82: =IF(TDPrimas!C80="","",TDPrimas!C80) -> 30358.64992 | E82: =IF(TDPrimas!D80="","",TDPrimas!D80) -> 33351.85043 | F82: 0.008660020381 | G82: 0.009930506778 | H82: -2993.20051 | I82: -8.974616015 | J82: =IF(D82="","",IFERROR((D82/VLOOKUP(C82&"|"&VLOOKUP(TDPrimas!$B$4,Cat!R:T,2,0),'TD Operación'!A:D,4,0))*100,"ND")) -> 100 | K82: =IF(TDPrimas!E80="","",TDPrimas!E80) -> 100 | L82: =IF(TDPrimas!F80="","",TDPrimas!F80) -> 0.008660020381
B83: =IF(TDPrimas!A81="","",TDPrimas!A81) -> 73 | C83: =IF(TDPrimas!B81="","",TDPrimas!B81) -> Metlife Más | D83: =IF(TDPrimas!C81="","",TDPrimas!C81) -> 26744.36012 | E83: =IF(TDPrimas!D81="","",TDPrimas!D81) -> 29954.5614 | F83: 0.007629018561 | G83: 0.00891896465 | H83: -3210.20128 | I83: -10.71690297 | J83: =IF(D83="","",IFERROR((D83/VLOOKUP(C83&"|"&VLOOKUP(TDPrimas!$B$4,Cat!R:T,2,0),'TD Operación'!A:D,4,0))*100,"ND")) -> 100 | K83: =IF(TDPrimas!E81="","",TDPrimas!E81) -> 100 | L83: =IF(TDPrimas!F81="","",TDPrimas!F81) -> 0.007629018561
B84: =IF(TDPrimas!A82="","",TDPrimas!A82) -> 74 | C84: =IF(TDPrimas!B82="","",TDPrimas!B82) -> SPP Seguros | D84: =IF(TDPrimas!C82="","",TDPrimas!C82) -> 26491.25311 | E84: =IF(TDPrimas!D82="","",TDPrimas!D82) -> 5453.14707 | F84: 0.007556817989 | G84: 0.001623673447 | H84: 21038.10604 | I84: 385.7975178 | J84: =IF(D84="","",IFERROR((D84/VLOOKUP(C84&"|"&VLOOKUP(TDPrimas!$B$4,Cat!R:T,2,0),'TD Operación'!A:D,4,0))*100,"ND")) -> 100 | K84: =IF(TDPrimas!E82="","",TDPrimas!E82) -> 100 | L84: =IF(TDPrimas!F82="","",TDPrimas!F82) -> 0.007556817989
B85: =IF(TDPrimas!A83="","",TDPrimas!A83) -> 75 | C85: =IF(TDPrimas!B83="","",TDPrimas!B83) -> Metlife Pensiones | D85: =IF(TDPrimas!C83="","",TDPrimas!C83) -> 16711.76856 | E85: =IF(TDPrimas!D83="","",TDPrimas!D83) -> 3344.72863 | F85: 0.004767150605 | G85: 0.0009958922789 | H85: 13367.03993 | I85: 399.644976 | J85: =IF(D85="","",IFERROR((D85/VLOOKUP(C85&"|"&VLOOKUP(TDPrimas!$B$4,Cat!R:T,2,0),'TD Operación'!A:D,4,0))*100,"ND")) -> 100 | K85: =IF(TDPrimas!E83="","",TDPrimas!E83) -> 0 | L85: =IF(TDPrimas!F83="","",TDPrimas!F83) -> 0.004767150605
B86: =IF(TDPrimas!A84="","",TDPrimas!A84) -> 76 | C86: =IF(TDPrimas!B84="","",TDPrimas!B84) -> Citibanamex Pensiones | D86: =IF(TDPrimas!C84="","",TDPrimas!C84) -> 14949.41692 | E86: =IF(TDPrimas!D84="","",TDPrimas!D84) -> 7377.15314 | F86: 0.00426442729 | G86: 0.002196545868 | H86: 7572.26378 | I86: 102.6447958 | J86: =IF(D86="","",IFERROR((D86/VLOOKUP(C86&"|"&VLOOKUP(TDPrimas!$B$4,Cat!R:T,2,0),'TD Operación'!A:D,4,0))*100,"ND")) -> 100 | K86: =IF(TDPrimas!E84="","",TDPrimas!E84) -> 0 | L86: =IF(TDPrimas!F84="","",TDPrimas!F84) -> 0.00426442729
B87: =IF(TDPrimas!A85="","",TDPrimas!A85) -> 77 | C87: =IF(TDPrimas!B85="","",TDPrimas!B85) -> SPT | D87: =IF(TDPrimas!C85="","",TDPrimas!C85) -> 14683.97963 | E87: =IF(TDPrimas!D85="","",TDPrimas!D85) -> 0 | F87: 0.004188709419 | G87: 0 | H87: 14683.97963 | J87: =IF(D87="","",IFERROR((D87/VLOOKUP(C87&"|"&VLOOKUP(TDPrimas!$B$4,Cat!R:T,2,0),'TD Operación'!A:D,4,0))*100,"ND")) -> 100 | K87: =IF(TDPrimas!E85="","",TDPrimas!E85) -> 100 | L87: =IF(TDPrimas!F85="","",TDPrimas!F85) -> 0.004188709419
B88: =IF(TDPrimas!A86="","",TDPrimas!A86) -> 78 | C88: =IF(TDPrimas!B86="","",TDPrimas!B86) -> Crabi | D88: =IF(TDPrimas!C86="","",TDPrimas!C86) -> 12967.71767 | E88: =IF(TDPrimas!D86="","",TDPrimas!D86) -> 17817.24175 | F88: 0.003699133513 | G88: 0.005305080158 | H88: -4849.52408 | I88: -27.21815278 | J88: =IF(D88="","",IFERROR((D88/VLOOKUP(C88&"|"&VLOOKUP(TDPrimas!$B$4,Cat!R:T,2,0),'TD Operación'!A:D,4,0))*100,"ND")) -> 100 | K88: =IF(TDPrimas!E86="","",TDPrimas!E86) -> 100 | L88: =IF(TDPrimas!F86="","",TDPrimas!F86) -> 0.003699133513
B89: =IF(TDPrimas!A87="","",TDPrimas!A87) -> 79 | C89: =IF(TDPrimas!B87="","",TDPrimas!B87) -> Pensiones Inbursa | D89: =IF(TDPrimas!C87="","",TDPrimas!C87) -> 722.38706 | E89: =IF(TDPrimas!D87="","",TDPrimas!D87) -> 53.8609 | F89: 0.0002060660365 | G89: 1.603707217e-05 | H89: 668.52616 | I89: 1241.208669 | J89: =IF(D89="","",IFERROR((D89/VLOOKUP(C89&"|"&VLOOKUP(TDPrimas!$B$4,Cat!R:T,2,0),'TD Operación'!A:D,4,0))*100,"ND")) -> 100 | K89: =IF(TDPrimas!E87="","",TDPrimas!E87) -> 0 | L89: =IF(TDPrimas!F87="","",TDPrimas!F87) -> 0.0002060660365
B90: =IF(TDPrimas!A88="","",TDPrimas!A88) -> 80 | C90: =IF(TDPrimas!B88="","",TDPrimas!B88) -> Aserta Seguros de Vida | D90: =IF(TDPrimas!C88="","",TDPrimas!C88) -> 605.8929 | E90: =IF(TDPrimas!D88="","",TDPrimas!D88) -> 118922.6627 | F90: 0.0001728352505 | G90: 0.03540919896 | H90: -118316.7698 | I90: -99.49051519 | J90: =IF(D90="","",IFERROR((D90/VLOOKUP(C90&"|"&VLOOKUP(TDPrimas!$B$4,Cat!R:T,2,0),'TD Operación'!A:D,4,0))*100,"ND")) -> 100 | K90: =IF(TDPrimas!E88="","",TDPrimas!E88) -> 100 | L90: =IF(TDPrimas!F88="","",TDPrimas!F88) -> 0.0001728352505
B91: =IF(TDPrimas!A89="","",TDPrimas!A89) -> 81 | C91: =IF(TDPrimas!B89="","",TDPrimas!B89) -> Principal México | D91: =IF(TDPrimas!C89="","",TDPrimas!C89) -> 0 | E91: =IF(TDPrimas!D89="","",TDPrimas!D89) -> 112.54928 | F91: 0 | G91: 3.351152555e-05 | H91: -112.54928 | I91: -100 | J91: =IF(D91="","",IFERROR((D91/VLOOKUP(C91&"|"&VLOOKUP(TDPrimas!$B$4,Cat!R:T,2,0),'TD Operación'!A:D,4,0))*100,"ND")) -> ND | K91: =IF(TDPrimas!E89="","",TDPrimas!E89) -> 0 | L91: =IF(TDPrimas!F89="","",TDPrimas!F89) -> 0
B92: =IF(TDPrimas!A90="","",TDPrimas!A90) -> 82 | C92: =IF(TDPrimas!B90="","",TDPrimas!B90) -> HSBC Pensiones | D92: =IF(TDPrimas!C90="","",TDPrimas!C90) -> 0 | E92: =IF(TDPrimas!D90="","",TDPrimas!D90) -> 3576.22487 | F92: 0 | G92: 0.001064820238 | H92: -3576.22487 | I92: -100 | J92: =IF(D92="","",IFERROR((D92/VLOOKUP(C92&"|"&VLOOKUP(TDPrimas!$B$4,Cat!R:T,2,0),'TD Operación'!A:D,4,0))*100,"ND")) -> ND | K92: =IF(TDPrimas!E90="","",TDPrimas!E90) -> 0 | L92: =IF(TDPrimas!F90="","",TDPrimas!F90) -> 0
B93: =IF(TDPrimas!A91="","",TDPrimas!A91) -> 150.1 | C93: =IF(TDPrimas!B91="","",TDPrimas!B91) -> TOTAL RESTO | D93: =IF(TDPrimas!C91="","",TDPrimas!C91) -> 78981850.07 | E93: =IF(TDPrimas!D91="","",TDPrimas!D91) -> 72241488.68 | F93: 22.53013336 | G93: 21.50988877 | H93: 6740361.388 | I93: 9.330319061 | J93: =IF(D93="","",IFERROR((D93/VLOOKUP(C93&"|"&VLOOKUP(TDPrimas!$B$4,Cat!R:T,2,0),'TD Operación'!A:D,4,0))*100,"ND")) -> 100 | K93: =IF(TDPrimas!E91="","",TDPrimas!E91) -> 118.5273438 | L93: =IF(TDPrimas!F91="","",TDPrimas!F91) -> 22.53013336
B94: =IF(TDPrimas!A92="","",TDPrimas!A92) -> 151.1 | C94: =IF(TDPrimas!B92="","",TDPrimas!B92) -> TOTAL | D94: =IF(TDPrimas!C92="","",TDPrimas!C92) -> 350560952.3 | E94: =IF(TDPrimas!D92="","",TDPrimas!D92) -> 335852451.2 | F94: 100 | G94: 100 | H94: 14708501.13 | I94: 4.379453263 | J94: =IF(D94="","",IFERROR((D94/VLOOKUP(C94&"|"&VLOOKUP(TDPrimas!$B$4,Cat!R:T,2,0),'TD Operación'!A:D,4,0))*100,"ND")) -> 100 | K94: =IF(TDPrimas!E92="","",TDPrimas!E92) -> 106.7061694 | L94: =IF(TDPrimas!F92="","",TDPrimas!F92) -> 100
B95: =IF(TDPrimas!A93="","",TDPrimas!A93) ->  | C95: =IF(TDPrimas!B93="","",TDPrimas!B93) ->  | D95: =IF(TDPrimas!C93="","",TDPrimas!C93) ->  | E95: =IF(TDPrimas!D93="","",TDPrimas!D93) ->  | J95: =IF(D95="","",IFERROR((D95/VLOOKUP(C95&"|"&VLOOKUP(TDPrimas!$B$4,Cat!R:T,2,0),'TD Operación'!A:D,4,0))*100,"ND")) ->  | K95: =IF(TDPrimas!E93="","",TDPrimas!E93) ->  | L95: =IF(TDPrimas!F93="","",TDPrimas!F93) -> 
B96: =IF(TDPrimas!A94="","",TDPrimas!A94) ->  | C96: =IF(TDPrimas!B94="","",TDPrimas!B94) ->  | D96: =IF(TDPrimas!C94="","",TDPrimas!C94) ->  | E96: =IF(TDPrimas!D94="","",TDPrimas!D94) ->  | J96: =IF(D96="","",IFERROR((D96/VLOOKUP(C96&"|"&VLOOKUP(TDPrimas!$B$4,Cat!R:T,2,0),'TD Operación'!A:D,4,0))*100,"ND")) ->  | K96: =IF(TDPrimas!E94="","",TDPrimas!E94) ->  | L96: =IF(TDPrimas!F94="","",TDPrimas!F94) -> 
B97: =IF(TDPrimas!A95="","",TDPrimas!A95) ->  | C97: =IF(TDPrimas!B95="","",TDPrimas!B95) ->  | D97: =IF(TDPrimas!C95="","",TDPrimas!C95) ->  | E97: =IF(TDPrimas!D95="","",TDPrimas!D95) ->  | J97: =IF(D97="","",IFERROR((D97/VLOOKUP(C97&"|"&VLOOKUP(TDPrimas!$B$4,Cat!R:T,2,0),'TD Operación'!A:D,4,0))*100,"ND")) ->  | K97: =IF(TDPrimas!E95="","",TDPrimas!E95) ->  | L97: =IF(TDPrimas!F95="","",TDPrimas!F95) -> 
B98: =IF(TDPrimas!A96="","",TDPrimas!A96) ->  | C98: =IF(TDPrimas!B96="","",TDPrimas!B96) ->  | D98: =IF(TDPrimas!C96="","",TDPrimas!C96) ->  | E98: =IF(TDPrimas!D96="","",TDPrimas!D96) ->  | J98: =IF(D98="","",IFERROR((D98/VLOOKUP(C98&"|"&VLOOKUP(TDPrimas!$B$4,Cat!R:T,2,0),'TD Operación'!A:D,4,0))*100,"ND")) ->  | K98: =IF(TDPrimas!E96="","",TDPrimas!E96) ->  | L98: =IF(TDPrimas!F96="","",TDPrimas!F96) -> 
B99: =IF(TDPrimas!A97="","",TDPrimas!A97) ->  | C99: =IF(TDPrimas!B97="","",TDPrimas!B97) ->  | D99: =IF(TDPrimas!C97="","",TDPrimas!C97) ->  | E99: =IF(TDPrimas!D97="","",TDPrimas!D97) ->  | J99: =IF(D99="","",IFERROR((D99/VLOOKUP(C99&"|"&VLOOKUP(TDPrimas!$B$4,Cat!R:T,2,0),'TD Operación'!A:D,4,0))*100,"ND")) ->  | K99: =IF(TDPrimas!E97="","",TDPrimas!E97) ->  | L99: =IF(TDPrimas!F97="","",TDPrimas!F97) -> 
B100: =IF(TDPrimas!A98="","",TDPrimas!A98) ->  | C100: =IF(TDPrimas!B98="","",TDPrimas!B98) ->  | D100: =IF(TDPrimas!C98="","",TDPrimas!C98) ->  | E100: =IF(TDPrimas!D98="","",TDPrimas!D98) ->  | J100: =IF(D100="","",IFERROR((D100/VLOOKUP(C100&"|"&VLOOKUP(TDPrimas!$B$4,Cat!R:T,2,0),'TD Operación'!A:D,4,0))*100,"ND")) ->  | K100: =IF(TDPrimas!E98="","",TDPrimas!E98) ->  | L100: =IF(TDPrimas!F98="","",TDPrimas!F98) -> 
B101: =IF(TDPrimas!A99="","",TDPrimas!A99) ->  | C101: =IF(TDPrimas!B99="","",TDPrimas!B99) ->  | D101: =IF(TDPrimas!C99="","",TDPrimas!C99) ->  | E101: =IF(TDPrimas!D99="","",TDPrimas!D99) ->  | J101: =IF(D101="","",IFERROR((D101/VLOOKUP(C101&"|"&VLOOKUP(TDPrimas!$B$4,Cat!R:T,2,0),'TD Operación'!A:D,4,0))*100,"ND")) ->  | K101: =IF(TDPrimas!E99="","",TDPrimas!E99) ->  | L101: =IF(TDPrimas!F99="","",TDPrimas!F99) -> 
B102: =IF(TDPrimas!A100="","",TDPrimas!A100) ->  | C102: =IF(TDPrimas!B100="","",TDPrimas!B100) ->  | D102: =IF(TDPrimas!C100="","",TDPrimas!C100) ->  | E102: =IF(TDPrimas!D100="","",TDPrimas!D100) ->  | J102: =IF(D102="","",IFERROR((D102/VLOOKUP(C102&"|"&VLOOKUP(TDPrimas!$B$4,Cat!R:T,2,0),'TD Operación'!A:D,4,0))*100,"ND")) ->  | K102: =IF(TDPrimas!E100="","",TDPrimas!E100) ->  | L102: =IF(TDPrimas!F100="","",TDPrimas!F100) -> 
B103: =IF(TDPrimas!A101="","",TDPrimas!A101) ->  | C103: =IF(TDPrimas!B101="","",TDPrimas!B101) ->  | D103: =IF(TDPrimas!C101="","",TDPrimas!C101) ->  | E103: =IF(TDPrimas!D101="","",TDPrimas!D101) ->  | J103: =IF(D103="","",IFERROR((D103/VLOOKUP(C103&"|"&VLOOKUP(TDPrimas!$B$4,Cat!R:T,2,0),'TD Operación'!A:D,4,0))*100,"ND")) ->  | K103: =IF(TDPrimas!E101="","",TDPrimas!E101) ->  | L103: =IF(TDPrimas!F101="","",TDPrimas!F101) -> 
B104: =IF(TDPrimas!A102="","",TDPrimas!A102) ->  | C104: =IF(TDPrimas!B102="","",TDPrimas!B102) ->  | D104: =IF(TDPrimas!C102="","",TDPrimas!C102) ->  | E104: =IF(TDPrimas!D102="","",TDPrimas!D102) ->  | J104: =IF(D104="","",IFERROR((D104/VLOOKUP(C104&"|"&VLOOKUP(TDPrimas!$B$4,Cat!R:T,2,0),'TD Operación'!A:D,4,0))*100,"ND")) ->  | K104: =IF(TDPrimas!E102="","",TDPrimas!E102) ->  | L104: =IF(TDPrimas!F102="","",TDPrimas!F102) -> 
B105: =IF(TDPrimas!A103="","",TDPrimas!A103) ->  | C105: =IF(TDPrimas!B103="","",TDPrimas!B103) ->  | D105: =IF(TDPrimas!C103="","",TDPrimas!C103) ->  | E105: =IF(TDPrimas!D103="","",TDPrimas!D103) ->  | J105: =IF(D105="","",IFERROR((D105/VLOOKUP(C105&"|"&VLOOKUP(TDPrimas!$B$4,Cat!R:T,2,0),'TD Operación'!A:D,4,0))*100,"ND")) ->  | K105: =IF(TDPrimas!E103="","",TDPrimas!E103) ->  | L105: =IF(TDPrimas!F103="","",TDPrimas!F103) -> 
B106: =IF(TDPrimas!A104="","",TDPrimas!A104) ->  | C106: =IF(TDPrimas!B104="","",TDPrimas!B104) ->  | D106: =IF(TDPrimas!C104="","",TDPrimas!C104) ->  | E106: =IF(TDPrimas!D104="","",TDPrimas!D104) ->  | J106: =IF(D106="","",IFERROR((D106/VLOOKUP(C106&"|"&VLOOKUP(TDPrimas!$B$4,Cat!R:T,2,0),'TD Operación'!A:D,4,0))*100,"ND")) ->  | K106: =IF(TDPrimas!E104="","",TDPrimas!E104) ->  | L106: =IF(TDPrimas!F104="","",TDPrimas!F104) -> 
B107: =IF(TDPrimas!A105="","",TDPrimas!A105) ->  | C107: =IF(TDPrimas!B105="","",TDPrimas!B105) ->  | D107: =IF(TDPrimas!C105="","",TDPrimas!C105) ->  | E107: =IF(TDPrimas!D105="","",TDPrimas!D105) ->  | J107: =IF(D107="","",IFERROR((D107/VLOOKUP(C107&"|"&VLOOKUP(TDPrimas!$B$4,Cat!R:T,2,0),'TD Operación'!A:D,4,0))*100,"ND")) ->  | K107: =IF(TDPrimas!E105="","",TDPrimas!E105) ->  | L107: =IF(TDPrimas!F105="","",TDPrimas!F105) -> 
B108: =IF(TDPrimas!A106="","",TDPrimas!A106) ->  | C108: =IF(TDPrimas!B106="","",TDPrimas!B106) ->  | D108: =IF(TDPrimas!C106="","",TDPrimas!C106) ->  | E108: =IF(TDPrimas!D106="","",TDPrimas!D106) ->  | J108: =IF(D108="","",IFERROR((D108/VLOOKUP(C108&"|"&VLOOKUP(TDPrimas!$B$4,Cat!R:T,2,0),'TD Operación'!A:D,4,0))*100,"ND")) ->  | K108: =IF(TDPrimas!E106="","",TDPrimas!E106) ->  | L108: =IF(TDPrimas!F106="","",TDPrimas!F106) -> 
B109: =IF(TDPrimas!A107="","",TDPrimas!A107) ->  | C109: =IF(TDPrimas!B107="","",TDPrimas!B107) ->  | D109: =IF(TDPrimas!C107="","",TDPrimas!C107) ->  | E109: =IF(TDPrimas!D107="","",TDPrimas!D107) ->  | J109: =IF(D109="","",IFERROR((D109/VLOOKUP(C109&"|"&VLOOKUP(TDPrimas!$B$4,Cat!R:T,2,0),'TD Operación'!A:D,4,0))*100,"ND")) ->  | K109: =IF(TDPrimas!E107="","",TDPrimas!E107) ->  | L109: =IF(TDPrimas!F107="","",TDPrimas!F107) -> 
B110: =IF(TDPrimas!A108="","",TDPrimas!A108) ->  | C110: =IF(TDPrimas!B108="","",TDPrimas!B108) ->  | D110: =IF(TDPrimas!C108="","",TDPrimas!C108) ->  | E110: =IF(TDPrimas!D108="","",TDPrimas!D108) ->  | J110: =IF(D110="","",IFERROR((D110/VLOOKUP(C110&"|"&VLOOKUP(TDPrimas!$B$4,Cat!R:T,2,0),'TD Operación'!A:D,4,0))*100,"ND")) ->  | K110: =IF(TDPrimas!E108="","",TDPrimas!E108) ->  | L110: =IF(TDPrimas!F108="","",TDPrimas!F108) -> 
B111: =IF(TDPrimas!A109="","",TDPrimas!A109) ->  | C111: =IF(TDPrimas!B109="","",TDPrimas!B109) ->  | D111: =IF(TDPrimas!C109="","",TDPrimas!C109) ->  | E111: =IF(TDPrimas!D109="","",TDPrimas!D109) ->  | J111: =IF(D111="","",IFERROR((D111/VLOOKUP(C111&"|"&VLOOKUP(TDPrimas!$B$4,Cat!R:T,2,0),'TD Operación'!A:D,4,0))*100,"ND")) ->  | K111: =IF(TDPrimas!E109="","",TDPrimas!E109) ->  | L111: =IF(TDPrimas!F109="","",TDPrimas!F109) -> 
B112: =IF(TDPrimas!A110="","",TDPrimas!A110) ->  | C112: =IF(TDPrimas!B110="","",TDPrimas!B110) ->  | D112: =IF(TDPrimas!C110="","",TDPrimas!C110) ->  | E112: =IF(TDPrimas!D110="","",TDPrimas!D110) ->  | J112: =IF(D112="","",IFERROR((D112/VLOOKUP(C112&"|"&VLOOKUP(TDPrimas!$B$4,Cat!R:T,2,0),'TD Operación'!A:D,4,0))*100,"ND")) ->  | K112: =IF(TDPrimas!E110="","",TDPrimas!E110) ->  | L112: =IF(TDPrimas!F110="","",TDPrimas!F110) -> 
B113: =IF(TDPrimas!A111="","",TDPrimas!A111) ->  | C113: =IF(TDPrimas!B111="","",TDPrimas!B111) ->  | D113: =IF(TDPrimas!C111="","",TDPrimas!C111) ->  | E113: =IF(TDPrimas!D111="","",TDPrimas!D111) ->  | J113: =IF(D113="","",IFERROR((D113/VLOOKUP(C113&"|"&VLOOKUP(TDPrimas!$B$4,Cat!R:T,2,0),'TD Operación'!A:D,4,0))*100,"ND")) ->  | K113: =IF(TDPrimas!E111="","",TDPrimas!E111) ->  | L113: =IF(TDPrimas!F111="","",TDPrimas!F111) -> 
B114: =IF(TDPrimas!A112="","",TDPrimas!A112) ->  | C114: =IF(TDPrimas!B112="","",TDPrimas!B112) ->  | D114: =IF(TDPrimas!C112="","",TDPrimas!C112) ->  | E114: =IF(TDPrimas!D112="","",TDPrimas!D112) ->  | J114: =IF(D114="","",IFERROR((D114/VLOOKUP(C114&"|"&VLOOKUP(TDPrimas!$B$4,Cat!R:T,2,0),'TD Operación'!A:D,4,0))*100,"ND")) ->  | K114: =IF(TDPrimas!E112="","",TDPrimas!E112) ->  | L114: =IF(TDPrimas!F112="","",TDPrimas!F112) -> 
B115: =IF(TDPrimas!A113="","",TDPrimas!A113) ->  | C115: =IF(TDPrimas!B113="","",TDPrimas!B113) ->  | D115: =IF(TDPrimas!C113="","",TDPrimas!C113) ->  | E115: =IF(TDPrimas!D113="","",TDPrimas!D113) ->  | J115: =IF(D115="","",IFERROR((D115/VLOOKUP(C115&"|"&VLOOKUP(TDPrimas!$B$4,Cat!R:T,2,0),'TD Operación'!A:D,4,0))*100,"ND")) ->  | K115: =IF(TDPrimas!E113="","",TDPrimas!E113) ->  | L115: =IF(TDPrimas!F113="","",TDPrimas!F113) -> 
B116: =IF(TDPrimas!A114="","",TDPrimas!A114) ->  | C116: =IF(TDPrimas!B114="","",TDPrimas!B114) ->  | D116: =IF(TDPrimas!C114="","",TDPrimas!C114) ->  | E116: =IF(TDPrimas!D114="","",TDPrimas!D114) ->  | J116: =IF(D116="","",IFERROR((D116/VLOOKUP(C116&"|"&VLOOKUP(TDPrimas!$B$4,Cat!R:T,2,0),'TD Operación'!A:D,4,0))*100,"ND")) ->  | K116: =IF(TDPrimas!E114="","",TDPrimas!E114) ->  | L116: =IF(TDPrimas!F114="","",TDPrimas!F114) -> 
B117: =IF(TDPrimas!A115="","",TDPrimas!A115) ->  | C117: =IF(TDPrimas!B115="","",TDPrimas!B115) ->  | D117: =IF(TDPrimas!C115="","",TDPrimas!C115) ->  | E117: =IF(TDPrimas!D115="","",TDPrimas!D115) ->  | J117: =IF(D117="","",IFERROR((D117/VLOOKUP(C117&"|"&VLOOKUP(TDPrimas!$B$4,Cat!R:T,2,0),'TD Operación'!A:D,4,0))*100,"ND")) ->  | K117: =IF(TDPrimas!E115="","",TDPrimas!E115) ->  | L117: =IF(TDPrimas!F115="","",TDPrimas!F115) -> 
B118: =IF(TDPrimas!A116="","",TDPrimas!A116) ->  | C118: =IF(TDPrimas!B116="","",TDPrimas!B116) ->  | D118: =IF(TDPrimas!C116="","",TDPrimas!C116) ->  | E118: =IF(TDPrimas!D116="","",TDPrimas!D116) ->  | J118: =IF(D118="","",IFERROR((D118/VLOOKUP(C118&"|"&VLOOKUP(TDPrimas!$B$4,Cat!R:T,2,0),'TD Operación'!A:D,4,0))*100,"ND")) ->  | K118: =IF(TDPrimas!E116="","",TDPrimas!E116) ->  | L118: =IF(TDPrimas!F116="","",TDPrimas!F116) -> 
B119: =IF(TDPrimas!A117="","",TDPrimas!A117) ->  | C119: =IF(TDPrimas!B117="","",TDPrimas!B117) ->  | D119: =IF(TDPrimas!C117="","",TDPrimas!C117) ->  | E119: =IF(TDPrimas!D117="","",TDPrimas!D117) ->  | J119: =IF(D119="","",IFERROR((D119/VLOOKUP(C119&"|"&VLOOKUP(TDPrimas!$B$4,Cat!R:T,2,0),'TD Operación'!A:D,4,0))*100,"ND")) ->  | K119: =IF(TDPrimas!E117="","",TDPrimas!E117) ->  | L119: =IF(TDPrimas!F117="","",TDPrimas!F117) -> 
B120: =IF(TDPrimas!A118="","",TDPrimas!A118) ->  | C120: =IF(TDPrimas!B118="","",TDPrimas!B118) ->  | D120: =IF(TDPrimas!C118="","",TDPrimas!C118) ->  | E120: =IF(TDPrimas!D118="","",TDPrimas!D118) ->  | J120: =IF(D120="","",IFERROR((D120/VLOOKUP(C120&"|"&VLOOKUP(TDPrimas!$B$4,Cat!R:T,2,0),'TD Operación'!A:D,4,0))*100,"ND")) ->  | K120: =IF(TDPrimas!E118="","",TDPrimas!E118) ->  | L120: =IF(TDPrimas!F118="","",TDPrimas!F118) -> 
B121: =IF(TDPrimas!A119="","",TDPrimas!A119) ->  | C121: =IF(TDPrimas!B119="","",TDPrimas!B119) ->  | D121: =IF(TDPrimas!C119="","",TDPrimas!C119) ->  | E121: =IF(TDPrimas!D119="","",TDPrimas!D119) ->  | J121: =IF(D121="","",IFERROR((D121/VLOOKUP(C121&"|"&VLOOKUP(TDPrimas!$B$4,Cat!R:T,2,0),'TD Operación'!A:D,4,0))*100,"ND")) ->  | K121: =IF(TDPrimas!E119="","",TDPrimas!E119) ->  | L121: =IF(TDPrimas!F119="","",TDPrimas!F119) -> 
B122: =IF(TDPrimas!A120="","",TDPrimas!A120) ->  | C122: =IF(TDPrimas!B120="","",TDPrimas!B120) ->  | D122: =IF(TDPrimas!C120="","",TDPrimas!C120) ->  | E122: =IF(TDPrimas!D120="","",TDPrimas!D120) ->  | J122: =IF(D122="","",IFERROR((D122/VLOOKUP(C122&"|"&VLOOKUP(TDPrimas!$B$4,Cat!R:T,2,0),'TD Operación'!A:D,4,0))*100,"ND")) ->  | K122: =IF(TDPrimas!E120="","",TDPrimas!E120) ->  | L122: =IF(TDPrimas!F120="","",TDPrimas!F120) -> 
B123: =IF(TDPrimas!A121="","",TDPrimas!A121) ->  | C123: =IF(TDPrimas!B121="","",TDPrimas!B121) ->  | D123: =IF(TDPrimas!C121="","",TDPrimas!C121) ->  | E123: =IF(TDPrimas!D121="","",TDPrimas!D121) ->  | J123: =IF(D123="","",IFERROR((D123/VLOOKUP(C123&"|"&VLOOKUP(TDPrimas!$B$4,Cat!R:T,2,0),'TD Operación'!A:D,4,0))*100,"ND")) ->  | K123: =IF(TDPrimas!E121="","",TDPrimas!E121) ->  | L123: =IF(TDPrimas!F121="","",TDPrimas!F121) -> 
B124: =IF(TDPrimas!A122="","",TDPrimas!A122) ->  | C124: =IF(TDPrimas!B122="","",TDPrimas!B122) ->  | D124: =IF(TDPrimas!C122="","",TDPrimas!C122) ->  | E124: =IF(TDPrimas!D122="","",TDPrimas!D122) ->  | J124: =IF(D124="","",IFERROR((D124/VLOOKUP(C124&"|"&VLOOKUP(TDPrimas!$B$4,Cat!R:T,2,0),'TD Operación'!A:D,4,0))*100,"ND")) ->  | K124: =IF(TDPrimas!E122="","",TDPrimas!E122) ->  | L124: =IF(TDPrimas!F122="","",TDPrimas!F122) -> 
B125: =IF(TDPrimas!A123="","",TDPrimas!A123) ->  | C125: =IF(TDPrimas!B123="","",TDPrimas!B123) ->  | D125: =IF(TDPrimas!C123="","",TDPrimas!C123) ->  | E125: =IF(TDPrimas!D123="","",TDPrimas!D123) ->  | J125: =IF(D125="","",IFERROR((D125/VLOOKUP(C125&"|"&VLOOKUP(TDPrimas!$B$4,Cat!R:T,2,0),'TD Operación'!A:D,4,0))*100,"ND")) ->  | K125: =IF(TDPrimas!E123="","",TDPrimas!E123) ->  | L125: =IF(TDPrimas!F123="","",TDPrimas!F123) -> 
B128: NE = No Existe
B129: * % Extraordinario mayor de 1000%

Sheet Siniestros
B1: SINIESTROS DIRECTOS | I1: ='Primas Directas'!L1 -> Segundo Trimestre 2022
B2: =UPPER(RIGHT(TDPrimas!$B$4,LEN(TDPrimas!$B$4)-3)) -> TOTAL GENERAL
D4: Siniestros Directos
B5: Compañías | D5: Importe | E5: Incr. % | F5: Inc. Rva. Dividendos | G5: % vs. Prima Directa | I5: % Participac de Mercado
D6: ='Primas Directas'!D6 -> 2022 | G6: ='Primas Directas'!D6 -> 2022 | H6: ='Primas Directas'!E6 -> 2021
C7: TOTAL | D7: =VLOOKUP(C7,'TD Siniestros'!$B$7:$M$154,2,0) -> 200374446 | E7: =VLOOKUP(C7,'TD Siniestros'!$B$7:$M$154,3,0) -> 2.995886803 | F7: =VLOOKUP(C7,'TD Siniestros'!$B$7:$M$154,4,0) -> 1327038.158 | G7: =VLOOKUP(C7,'TD Siniestros'!$B$7:$M$154,5,0) -> 57.15823301 | H7: =VLOOKUP(C7,'TD Siniestros'!$B$7:$M$154,6,0) -> 57.92605216 | I7: =IFERROR(D7/VLOOKUP("TOTAL",$C$8:$D$124,2,0)*100,"") -> 100
B8: =IF('TD Siniestros'!A7="","",'TD Siniestros'!A7) -> 1 | C8: =IF('TD Siniestros'!B7="","",'TD Siniestros'!B7) -> G.N.P. | D8: =IF('TD Siniestros'!C7="","",'TD Siniestros'!C7) -> 27030057.25 | E8: =IF('TD Siniestros'!D7="","",'TD Siniestros'!D7) -> 7.086143762 | F8: =IF('TD Siniestros'!E7="","",'TD Siniestros'!E7) -> 51153.7352 | G8: =IF('TD Siniestros'!F7="","",'TD Siniestros'!F7) -> 63.44674765 | H8: =IF('TD Siniestros'!G7="","",'TD Siniestros'!G7) -> 66.24669082 | I8: =IFERROR(D8/VLOOKUP("TOTAL",$C$8:$D$124,2,0)*100,"") -> 13.48977267
B9: =IF('TD Siniestros'!A8="","",'TD Siniestros'!A8) -> 2 | C9: =IF('TD Siniestros'!B8="","",'TD Siniestros'!B8) -> Metlife México | D9: =IF('TD Siniestros'!C8="","",'TD Siniestros'!C8) -> 23725249.41 | E9: =IF('TD Siniestros'!D8="","",'TD Siniestros'!D8) -> -8.355676716 | F9: =IF('TD Siniestros'!E8="","",'TD Siniestros'!E8) -> 2807.09149 | G9: =IF('TD Siniestros'!F8="","",'TD Siniestros'!F8) -> 61.01828503 | H9: =IF('TD Siniestros'!G8="","",'TD Siniestros'!G8) -> 75.73148065 | I9: =IFERROR(D9/VLOOKUP("TOTAL",$C$8:$D$124,2,0)*100,"") -> 11.84045665
B10: =IF('TD Siniestros'!A9="","",'TD Siniestros'!A9) -> 3 | C10: =IF('TD Siniestros'!B9="","",'TD Siniestros'!B9) -> BBVA Bancomer | D10: =IF('TD Siniestros'!C9="","",'TD Siniestros'!C9) -> 13631769.42 | E10: =IF('TD Siniestros'!D9="","",'TD Siniestros'!D9) -> -6.709337218 | F10: =IF('TD Siniestros'!E9="","",'TD Siniestros'!E9) -> 0 | G10: =IF('TD Siniestros'!F9="","",'TD Siniestros'!F9) -> 47.66508566 | H10: =IF('TD Siniestros'!G9="","",'TD Siniestros'!G9) -> 53.31059742 | I10: 6.803147651
B11: =IF('TD Siniestros'!A10="","",'TD Siniestros'!A10) -> 4 | C11: =IF('TD Siniestros'!B10="","",'TD Siniestros'!B10) -> AXA Seguros | D11: =IF('TD Siniestros'!C10="","",'TD Siniestros'!C10) -> 15578044.5 | E11: =IF('TD Siniestros'!D10="","",'TD Siniestros'!D10) -> 13.4435443 | F11: =IF('TD Siniestros'!E10="","",'TD Siniestros'!E10) -> 226138.9196 | G11: =IF('TD Siniestros'!F10="","",'TD Siniestros'!F10) -> 61.02995309 | H11: =IF('TD Siniestros'!G10="","",'TD Siniestros'!G10) -> 57.15840936 | I11: 7.77446666
B12: =IF('TD Siniestros'!A11="","",'TD Siniestros'!A11) -> 5 | C12: =IF('TD Siniestros'!B11="","",'TD Siniestros'!B11) -> Banorte | D12: =IF('TD Siniestros'!C11="","",'TD Siniestros'!C11) -> 8669162.051 | E12: =IF('TD Siniestros'!D11="","",'TD Siniestros'!D11) -> -15.40950712 | F12: =IF('TD Siniestros'!E11="","",'TD Siniestros'!E11) -> 28458.55515 | G12: =IF('TD Siniestros'!F11="","",'TD Siniestros'!F11) -> 46.83517901 | H12: =IF('TD Siniestros'!G11="","",'TD Siniestros'!G11) -> 60.06361704 | I12: 4.326480859
B13: =IF('TD Siniestros'!A12="","",'TD Siniestros'!A12) -> 5.1 | C13: =IF('TD Siniestros'!B12="","",'TD Siniestros'!B12) -> TOTAL GRANDES | D13: =IF('TD Siniestros'!C12="","",'TD Siniestros'!C12) -> 88634282.63 | E13: =IF('TD Siniestros'!D12="","",'TD Siniestros'!D12) -> -1.212683313 | F13: =IF('TD Siniestros'!E12="","",'TD Siniestros'!E12) -> 308558.3014 | G13: =IF('TD Siniestros'!F12="","",'TD Siniestros'!F12) -> 57.51021819 | H13: =IF('TD Siniestros'!G12="","",'TD Siniestros'!G12) -> 63.73091448 | I13: 44.23432449
B14: =IF('TD Siniestros'!A13="","",'TD Siniestros'!A13) -> 6 | C14: =IF('TD Siniestros'!B13="","",'TD Siniestros'!B13) -> Monterrey New York Life | D14: =IF('TD Siniestros'!C13="","",'TD Siniestros'!C13) -> 11974512.22 | E14: =IF('TD Siniestros'!D13="","",'TD Siniestros'!D13) -> -7.921195309 | F14: =IF('TD Siniestros'!E13="","",'TD Siniestros'!E13) -> 38422.54134 | G14: =IF('TD Siniestros'!F13="","",'TD Siniestros'!F13) -> 65.17807805 | H14: =IF('TD Siniestros'!G13="","",'TD Siniestros'!G13) -> 77.32199353 | I14: 5.976067539
B15: =IF('TD Siniestros'!A14="","",'TD Siniestros'!A14) -> 7 | C15: =IF('TD Siniestros'!B14="","",'TD Siniestros'!B14) -> Quálitas | D15: =IF('TD Siniestros'!C14="","",'TD Siniestros'!C14) -> 11860216.21 | E15: =IF('TD Siniestros'!D14="","",'TD Siniestros'!D14) -> 18.97118866 | F15: =IF('TD Siniestros'!E14="","",'TD Siniestros'!E14) -> 47347.58894 | G15: =IF('TD Siniestros'!F14="","",'TD Siniestros'!F14) -> 67.37462896 | H15: =IF('TD Siniestros'!G14="","",'TD Siniestros'!G14) -> 58.227627 | I15: 5.919026329
B16: =IF('TD Siniestros'!A15="","",'TD Siniestros'!A15) -> 8 | C16: =IF('TD Siniestros'!B15="","",'TD Siniestros'!B15) -> Mapfre México | D16: =IF('TD Siniestros'!C15="","",'TD Siniestros'!C15) -> 6907395.482 | E16: =IF('TD Siniestros'!D15="","",'TD Siniestros'!D15) -> -3.203487776 | F16: =IF('TD Siniestros'!E15="","",'TD Siniestros'!E15) -> 245421.7262 | G16: =IF('TD Siniestros'!F15="","",'TD Siniestros'!F15) -> 52.79490732 | H16: =IF('TD Siniestros'!G15="","",'TD Siniestros'!G15) -> 32.20456728 | I16: 3.447243708
B17: =IF('TD Siniestros'!A16="","",'TD Siniestros'!A16) -> 9 | C17: =IF('TD Siniestros'!B16="","",'TD Siniestros'!B16) -> Inbursa | D17: =IF('TD Siniestros'!C16="","",'TD Siniestros'!C16) -> 5334262.431 | E17: =IF('TD Siniestros'!D16="","",'TD Siniestros'!D16) -> 0.06169551762 | F17: =IF('TD Siniestros'!E16="","",'TD Siniestros'!E16) -> 177232.3262 | G17: =IF('TD Siniestros'!F16="","",'TD Siniestros'!F16) -> 41.62930779 | H17: =IF('TD Siniestros'!G16="","",'TD Siniestros'!G16) -> 45.21319831 | I17: 2.662147064
B18: =IF('TD Siniestros'!A17="","",'TD Siniestros'!A17) -> 10 | C18: =IF('TD Siniestros'!B17="","",'TD Siniestros'!B17) -> Chubb Seguros México | D18: =IF('TD Siniestros'!C17="","",'TD Siniestros'!C17) -> 5205978.485 | E18: =IF('TD Siniestros'!D17="","",'TD Siniestros'!D17) -> 10.03135386 | F18: =IF('TD Siniestros'!E17="","",'TD Siniestros'!E17) -> 82766.57699 | G18: =IF('TD Siniestros'!F17="","",'TD Siniestros'!F17) -> 45.64716415 | H18: =IF('TD Siniestros'!G17="","",'TD Siniestros'!G17) -> 47.33193068 | I18: 2.598124955
B19: =IF('TD Siniestros'!A18="","",'TD Siniestros'!A18) -> 11 | C19: =IF('TD Siniestros'!B18="","",'TD Siniestros'!B18) -> Pensiones Banorte | D19: =IF('TD Siniestros'!C18="","",'TD Siniestros'!C18) -> 5736006.334 | E19: =IF('TD Siniestros'!D18="","",'TD Siniestros'!D18) -> 24.10494916 | F19: =IF('TD Siniestros'!E18="","",'TD Siniestros'!E18) -> 0 | G19: =IF('TD Siniestros'!F18="","",'TD Siniestros'!F18) -> 59.22047246 | H19: =IF('TD Siniestros'!G18="","",'TD Siniestros'!G18) -> 44.96429338 | I19: 2.86264364
B20: =IF('TD Siniestros'!A19="","",'TD Siniestros'!A19) -> 12 | C20: =IF('TD Siniestros'!B19="","",'TD Siniestros'!B19) -> Allianz México | D20: =IF('TD Siniestros'!C19="","",'TD Siniestros'!C19) -> 6044829.607 | E20: =IF('TD Siniestros'!D19="","",'TD Siniestros'!D19) -> 28.2401468 | F20: =IF('TD Siniestros'!E19="","",'TD Siniestros'!E19) -> 27915.29785 | G20: =IF('TD Siniestros'!F19="","",'TD Siniestros'!F19) -> 66.3730456 | H20: =IF('TD Siniestros'!G19="","",'TD Siniestros'!G19) -> 55.90833833 | I20: 3.016766722
B21: =IF('TD Siniestros'!A20="","",'TD Siniestros'!A20) -> 13 | C21: =IF('TD Siniestros'!B20="","",'TD Siniestros'!B20) -> Atlas | D21: =IF('TD Siniestros'!C20="","",'TD Siniestros'!C20) -> 4527990.421 | E21: =IF('TD Siniestros'!D20="","",'TD Siniestros'!D20) -> 3.651537987 | F21: =IF('TD Siniestros'!E20="","",'TD Siniestros'!E20) -> 23738.90917 | G21: =IF('TD Siniestros'!F20="","",'TD Siniestros'!F20) -> 49.80746984 | H21: =IF('TD Siniestros'!G20="","",'TD Siniestros'!G20) -> 55.68028559 | I21: 2.259764412
B22: =IF('TD Siniestros'!A21="","",'TD Siniestros'!A21) -> 14 | C22: =IF('TD Siniestros'!B21="","",'TD Siniestros'!B21) -> Citibanamex Seguros | D22: =IF('TD Siniestros'!C21="","",'TD Siniestros'!C21) -> 16347858.8 | E22: =IF('TD Siniestros'!D21="","",'TD Siniestros'!D21) -> 29.29906903 | F22: =IF('TD Siniestros'!E21="","",'TD Siniestros'!E21) -> 0 | G22: =IF('TD Siniestros'!F21="","",'TD Siniestros'!F21) -> 184.2564617 | H22: =IF('TD Siniestros'!G21="","",'TD Siniestros'!G21) -> 98.97392947 | I22: 8.158654525
B23: =IF('TD Siniestros'!A22="","",'TD Siniestros'!A22) -> 15 | C23: =IF('TD Siniestros'!B22="","",'TD Siniestros'!B22) -> GMX Seguros | D23: =IF('TD Siniestros'!C22="","",'TD Siniestros'!C22) -> 2635157.16 | E23: =IF('TD Siniestros'!D22="","",'TD Siniestros'!D22) -> 26.9234294 | F23: =IF('TD Siniestros'!E22="","",'TD Siniestros'!E22) -> 0 | G23: =IF('TD Siniestros'!F22="","",'TD Siniestros'!F22) -> 35.48551923 | H23: =IF('TD Siniestros'!G22="","",'TD Siniestros'!G22) -> 36.98944823 | I23: 1.31511638
B24: =IF('TD Siniestros'!A23="","",'TD Siniestros'!A23) -> 15.1 | C24: =IF('TD Siniestros'!B23="","",'TD Siniestros'!B23) -> TOTAL MEDIANAS | D24: =IF('TD Siniestros'!C23="","",'TD Siniestros'!C23) -> 76574207.16 | E24: =IF('TD Siniestros'!D23="","",'TD Siniestros'!D23) -> 11.63132969 | F24: =IF('TD Siniestros'!E23="","",'TD Siniestros'!E23) -> 642844.9666 | G24: =IF('TD Siniestros'!F23="","",'TD Siniestros'!F23) -> 65.19177982 | H24: =IF('TD Siniestros'!G23="","",'TD Siniestros'!G23) -> 55.84693829 | I24: 38.21555528
B25: =IF('TD Siniestros'!A24="","",'TD Siniestros'!A24) -> 16 | C25: =IF('TD Siniestros'!B24="","",'TD Siniestros'!B24) -> Zurich Santander | D25: =IF('TD Siniestros'!C24="","",'TD Siniestros'!C24) -> 1511985.587 | E25: =IF('TD Siniestros'!D24="","",'TD Siniestros'!D24) -> -26.01988455 | F25: =IF('TD Siniestros'!E24="","",'TD Siniestros'!E24) -> 0 | G25: =IF('TD Siniestros'!F24="","",'TD Siniestros'!F24) -> 20.8820012 | H25: =IF('TD Siniestros'!G24="","",'TD Siniestros'!G24) -> 27.37241828 | I25: 0.754580046
B26: =IF('TD Siniestros'!A25="","",'TD Siniestros'!A25) -> 17 | C26: =IF('TD Siniestros'!B25="","",'TD Siniestros'!B25) -> Pensiones BBVA Bancomer | D26: =IF('TD Siniestros'!C25="","",'TD Siniestros'!C25) -> 3789272.896 | E26: =IF('TD Siniestros'!D25="","",'TD Siniestros'!D25) -> 14.86904362 | F26: =IF('TD Siniestros'!E25="","",'TD Siniestros'!E25) -> 0 | G26: =IF('TD Siniestros'!F25="","",'TD Siniestros'!F25) -> 54.93200546 | H26: =IF('TD Siniestros'!G25="","",'TD Siniestros'!G25) -> 54.61316358 | I26: 1.891095881
B27: =IF('TD Siniestros'!A26="","",'TD Siniestros'!A26) -> 18 | C27: =IF('TD Siniestros'!B26="","",'TD Siniestros'!B26) -> ProFuturo G.N.P. | D27: =IF('TD Siniestros'!C26="","",'TD Siniestros'!C26) -> 2349738.2 | E27: =IF('TD Siniestros'!D26="","",'TD Siniestros'!D26) -> 22.66293417 | F27: =IF('TD Siniestros'!E26="","",'TD Siniestros'!E26) -> 0 | G27: =IF('TD Siniestros'!F26="","",'TD Siniestros'!F26) -> 43.39010945 | H27: =IF('TD Siniestros'!G26="","",'TD Siniestros'!G26) -> 29.79619888 | I27: 1.172673585
B28: =IF('TD Siniestros'!A27="","",'TD Siniestros'!A27) -> 19 | C28: =IF('TD Siniestros'!B27="","",'TD Siniestros'!B27) -> HDI Seguros | D28: =IF('TD Siniestros'!C27="","",'TD Siniestros'!C27) -> 2752618.16 | E28: =IF('TD Siniestros'!D27="","",'TD Siniestros'!D27) -> 18.43921297 | F28: =IF('TD Siniestros'!E27="","",'TD Siniestros'!E27) -> 0 | G28: =IF('TD Siniestros'!F27="","",'TD Siniestros'!F27) -> 60.05688011 | H28: =IF('TD Siniestros'!G27="","",'TD Siniestros'!G27) -> 56.22728072 | I28: 1.373737128
B29: =IF('TD Siniestros'!A28="","",'TD Siniestros'!A28) -> 20 | C29: =IF('TD Siniestros'!B28="","",'TD Siniestros'!B28) -> Zurich Daños | D29: =IF('TD Siniestros'!C28="","",'TD Siniestros'!C28) -> 1212204.651 | E29: =IF('TD Siniestros'!D28="","",'TD Siniestros'!D28) -> -43.41383315 | F29: =IF('TD Siniestros'!E28="","",'TD Siniestros'!E28) -> 22481.42615 | G29: =IF('TD Siniestros'!F28="","",'TD Siniestros'!F28) -> 29.83109714 | H29: =IF('TD Siniestros'!G28="","",'TD Siniestros'!G28) -> 64.87309917 | I29: 0.6049696831
B30: =IF('TD Siniestros'!A29="","",'TD Siniestros'!A29) -> 21 | C30: =IF('TD Siniestros'!B29="","",'TD Siniestros'!B29) -> Afirme | D30: =IF('TD Siniestros'!C29="","",'TD Siniestros'!C29) -> 2583834.101 | E30: =IF('TD Siniestros'!D29="","",'TD Siniestros'!D29) -> 37.57216765 | F30: =IF('TD Siniestros'!E29="","",'TD Siniestros'!E29) -> 7044.11671 | G30: =IF('TD Siniestros'!F29="","",'TD Siniestros'!F29) -> 68.43536358 | H30: =IF('TD Siniestros'!G29="","",'TD Siniestros'!G29) -> 33.23597544 | I30: 1.289502805
B31: =IF('TD Siniestros'!A30="","",'TD Siniestros'!A30) -> 22 | C31: =IF('TD Siniestros'!B30="","",'TD Siniestros'!B30) -> Seguros SURA | D31: =IF('TD Siniestros'!C30="","",'TD Siniestros'!C30) -> 2149041.58 | E31: =IF('TD Siniestros'!D30="","",'TD Siniestros'!D30) -> 40.44735965 | F31: =IF('TD Siniestros'!E30="","",'TD Siniestros'!E30) -> 11286.01917 | G31: =IF('TD Siniestros'!F30="","",'TD Siniestros'!F30) -> 61.88359678 | H31: =IF('TD Siniestros'!G30="","",'TD Siniestros'!G30) -> 60.66675039 | I31: 1.0725128
B32: =IF('TD Siniestros'!A31="","",'TD Siniestros'!A31) -> 23 | C32: =IF('TD Siniestros'!B31="","",'TD Siniestros'!B31) -> AIG Seguros | D32: =IF('TD Siniestros'!C31="","",'TD Siniestros'!C31) -> 564428.2744 | E32: =IF('TD Siniestros'!D31="","",'TD Siniestros'!D31) -> 36.58472362 | F32: =IF('TD Siniestros'!E31="","",'TD Siniestros'!E31) -> 5527.79892 | G32: =IF('TD Siniestros'!F31="","",'TD Siniestros'!F31) -> 17.13073169 | H32: =IF('TD Siniestros'!G31="","",'TD Siniestros'!G31) -> 14.55611508 | I32: 0.2816867548
B33: =IF('TD Siniestros'!A32="","",'TD Siniestros'!A32) -> 24 | C33: =IF('TD Siniestros'!B32="","",'TD Siniestros'!B32) -> Agroasemex | D33: =IF('TD Siniestros'!C32="","",'TD Siniestros'!C32) -> 419723.2028 | E33: =IF('TD Siniestros'!D32="","",'TD Siniestros'!D32) -> -8.080544457 | F33: =IF('TD Siniestros'!E32="","",'TD Siniestros'!E32) -> 13799.40595 | G33: =IF('TD Siniestros'!F32="","",'TD Siniestros'!F32) -> 13.41476608 | H33: =IF('TD Siniestros'!G32="","",'TD Siniestros'!G32) -> 28.77077082 | I33: 0.2094694265
B34: =IF('TD Siniestros'!A33="","",'TD Siniestros'!A33) -> 25 | C34: =IF('TD Siniestros'!B33="","",'TD Siniestros'!B33) -> HSBC Seguros | D34: =IF('TD Siniestros'!C33="","",'TD Siniestros'!C33) -> 1437572.92 | E34: =IF('TD Siniestros'!D33="","",'TD Siniestros'!D33) -> 18.83294656 | F34: =IF('TD Siniestros'!E33="","",'TD Siniestros'!E33) -> 0 | G34: =IF('TD Siniestros'!F33="","",'TD Siniestros'!F33) -> 47.79557366 | H34: =IF('TD Siniestros'!G33="","",'TD Siniestros'!G33) -> 42.94130139 | I34: 0.7174432413
B35: =IF('TD Siniestros'!A34="","",'TD Siniestros'!A34) -> 26 | C35: =IF('TD Siniestros'!B34="","",'TD Siniestros'!B34) -> Seguros Azteca | D35: =IF('TD Siniestros'!C34="","",'TD Siniestros'!C34) -> 1621087.006 | E35: =IF('TD Siniestros'!D34="","",'TD Siniestros'!D34) -> -23.83059126 | F35: =IF('TD Siniestros'!E34="","",'TD Siniestros'!E34) -> 0 | G35: =IF('TD Siniestros'!F34="","",'TD Siniestros'!F34) -> 67.88812948 | H35: =IF('TD Siniestros'!G34="","",'TD Siniestros'!G34) -> 59.78850922 | I35: 0.809028815
B36: =IF('TD Siniestros'!A35="","",'TD Siniestros'!A35) -> 27 | C36: =IF('TD Siniestros'!B35="","",'TD Siniestros'!B35) -> Patrimonial Vida | D36: =IF('TD Siniestros'!C35="","",'TD Siniestros'!C35) -> 776146.4646 | E36: =IF('TD Siniestros'!D35="","",'TD Siniestros'!D35) -> 2.252880107 | F36: =IF('TD Siniestros'!E35="","",'TD Siniestros'!E35) -> 607.16678 | G36: =IF('TD Siniestros'!F35="","",'TD Siniestros'!F35) -> 35.01684175 | H36: =IF('TD Siniestros'!G35="","",'TD Siniestros'!G35) -> 74.44716811 | I36: 0.3873480277
B37: =IF('TD Siniestros'!A36="","",'TD Siniestros'!A36) -> 28 | C37: =IF('TD Siniestros'!B36="","",'TD Siniestros'!B36) -> Seguros Azteca Daños | D37: =IF('TD Siniestros'!C36="","",'TD Siniestros'!C36) -> 300246.2168 | E37: =IF('TD Siniestros'!D36="","",'TD Siniestros'!D36) -> -30.77661657 | F37: =IF('TD Siniestros'!E36="","",'TD Siniestros'!E36) -> 15602.87127 | G37: =IF('TD Siniestros'!F36="","",'TD Siniestros'!F36) -> 14.59289216 | H37: =IF('TD Siniestros'!G36="","",'TD Siniestros'!G36) -> 48.41094174 | I37: 0.1498425686
B38: =IF('TD Siniestros'!A37="","",'TD Siniestros'!A37) -> 29 | C38: =IF('TD Siniestros'!B37="","",'TD Siniestros'!B37) -> Seguros Argos | D38: =IF('TD Siniestros'!C37="","",'TD Siniestros'!C37) -> 1250272.268 | E38: =IF('TD Siniestros'!D37="","",'TD Siniestros'!D37) -> -32.9007555 | F38: =IF('TD Siniestros'!E37="","",'TD Siniestros'!E37) -> 9206.03304 | G38: =IF('TD Siniestros'!F37="","",'TD Siniestros'!F37) -> 65.03362388 | H38: =IF('TD Siniestros'!G37="","",'TD Siniestros'!G37) -> 139.3354143 | I38: 0.6239679225
B39: =IF('TD Siniestros'!A38="","",'TD Siniestros'!A38) -> 30 | C39: =IF('TD Siniestros'!B38="","",'TD Siniestros'!B38) -> Hir Seguros | D39: =IF('TD Siniestros'!C38="","",'TD Siniestros'!C38) -> 749624.7603 | E39: =IF('TD Siniestros'!D38="","",'TD Siniestros'!D38) -> -25.92588125 | F39: =IF('TD Siniestros'!E38="","",'TD Siniestros'!E38) -> 184198.2161 | G39: =IF('TD Siniestros'!F38="","",'TD Siniestros'!F38) -> 40.26963012 | H39: =IF('TD Siniestros'!G38="","",'TD Siniestros'!G38) -> 78.90495433 | I39: 0.3741119566
B40: =IF('TD Siniestros'!A39="","",'TD Siniestros'!A39) -> 31 | C40: =IF('TD Siniestros'!B39="","",'TD Siniestros'!B39) -> BUPA México | D40: =IF('TD Siniestros'!C39="","",'TD Siniestros'!C39) -> 1380233.611 | E40: =IF('TD Siniestros'!D39="","",'TD Siniestros'!D39) -> 26.42683038 | F40: =IF('TD Siniestros'!E39="","",'TD Siniestros'!E39) -> 0 | G40: =IF('TD Siniestros'!F39="","",'TD Siniestros'!F39) -> 76.85545379 | H40: =IF('TD Siniestros'!G39="","",'TD Siniestros'!G39) -> 71.04794568 | I40: 0.6888271627
B41: =IF('TD Siniestros'!A40="","",'TD Siniestros'!A40) -> 32 | C41: =IF('TD Siniestros'!B40="","",'TD Siniestros'!B40) -> Ve Por Más | D41: =IF('TD Siniestros'!C40="","",'TD Siniestros'!C40) -> 1029987.276 | E41: =IF('TD Siniestros'!D40="","",'TD Siniestros'!D40) -> -2.228151081 | F41: =IF('TD Siniestros'!E40="","",'TD Siniestros'!E40) -> 918.57585 | G41: =IF('TD Siniestros'!F40="","",'TD Siniestros'!F40) -> 62.79423429 | H41: =IF('TD Siniestros'!G40="","",'TD Siniestros'!G40) -> 56.43227817 | I41: 0.5140312535
B42: =IF('TD Siniestros'!A41="","",'TD Siniestros'!A41) -> 33 | C42: =IF('TD Siniestros'!B41="","",'TD Siniestros'!B41) -> Plan Seguro | D42: =IF('TD Siniestros'!C41="","",'TD Siniestros'!C41) -> 936660.9815 | E42: =IF('TD Siniestros'!D41="","",'TD Siniestros'!D41) -> 18.01577614 | F42: =IF('TD Siniestros'!E41="","",'TD Siniestros'!E41) -> 0 | G42: =IF('TD Siniestros'!F41="","",'TD Siniestros'!F41) -> 57.77073522 | H42: =IF('TD Siniestros'!G41="","",'TD Siniestros'!G41) -> 59.54754646 | I42: 0.4674553069
B43: =IF('TD Siniestros'!A42="","",'TD Siniestros'!A42) -> 34 | C43: =IF('TD Siniestros'!B42="","",'TD Siniestros'!B42) -> Cardif Vida | D43: =IF('TD Siniestros'!C42="","",'TD Siniestros'!C42) -> 483637.2385 | E43: =IF('TD Siniestros'!D42="","",'TD Siniestros'!D42) -> -46.60475679 | F43: =IF('TD Siniestros'!E42="","",'TD Siniestros'!E42) -> 47625.66428 | G43: =IF('TD Siniestros'!F42="","",'TD Siniestros'!F42) -> 31.39883983 | H43: =IF('TD Siniestros'!G42="","",'TD Siniestros'!G42) -> 68.23043845 | I43: 0.2413667253
B44: =IF('TD Siniestros'!A43="","",'TD Siniestros'!A43) -> 35 | C44: =IF('TD Siniestros'!B43="","",'TD Siniestros'!B43) -> ANA | D44: =IF('TD Siniestros'!C43="","",'TD Siniestros'!C43) -> 897696.4823 | E44: =IF('TD Siniestros'!D43="","",'TD Siniestros'!D43) -> 34.4231289 | F44: =IF('TD Siniestros'!E43="","",'TD Siniestros'!E43) -> 11350.24476 | G44: =IF('TD Siniestros'!F43="","",'TD Siniestros'!F43) -> 60.6961794 | H44: =IF('TD Siniestros'!G43="","",'TD Siniestros'!G43) -> 51.20771188 | I44: 0.4480094644
B45: =IF('TD Siniestros'!A44="","",'TD Siniestros'!A44) -> 36 | C45: =IF('TD Siniestros'!B44="","",'TD Siniestros'!B44) -> FM Global | D45: =IF('TD Siniestros'!C44="","",'TD Siniestros'!C44) -> 109945.058 | E45: =IF('TD Siniestros'!D44="","",'TD Siniestros'!D44) -> -328.9882251 | F45: =IF('TD Siniestros'!E44="","",'TD Siniestros'!E44) -> 0 | G45: =IF('TD Siniestros'!F44="","",'TD Siniestros'!F44) -> 8.341195643 | H45: =IF('TD Siniestros'!G44="","",'TD Siniestros'!G44) -> -3.645385001 | I45: 0.05486980009
B46: =IF('TD Siniestros'!A45="","",'TD Siniestros'!A45) -> 37 | C46: =IF('TD Siniestros'!B45="","",'TD Siniestros'!B45) -> General de Seguros | D46: =IF('TD Siniestros'!C45="","",'TD Siniestros'!C45) -> 986902.1871 | E46: =IF('TD Siniestros'!D45="","",'TD Siniestros'!D45) -> 36.9403861 | F46: =IF('TD Siniestros'!E45="","",'TD Siniestros'!E45) -> -156.58766 | G46: =IF('TD Siniestros'!F45="","",'TD Siniestros'!F45) -> 77.03743793 | H46: =IF('TD Siniestros'!G45="","",'TD Siniestros'!G45) -> 62.18847043 | I46: 0.4925289661
B47: =IF('TD Siniestros'!A46="","",'TD Siniestros'!A46) -> 38 | C47: =IF('TD Siniestros'!B46="","",'TD Siniestros'!B46) -> El Potosí | D47: =IF('TD Siniestros'!C46="","",'TD Siniestros'!C46) -> 583242.012 | E47: =IF('TD Siniestros'!D46="","",'TD Siniestros'!D46) -> 12.01257528 | F47: =IF('TD Siniestros'!E46="","",'TD Siniestros'!E46) -> 2885.84704 | G47: =IF('TD Siniestros'!F46="","",'TD Siniestros'!F46) -> 55.25576571 | H47: =IF('TD Siniestros'!G46="","",'TD Siniestros'!G46) -> 53.88786402 | I47: 0.2910760447
B48: =IF('TD Siniestros'!A47="","",'TD Siniestros'!A47) -> 39 | C48: =IF('TD Siniestros'!B47="","",'TD Siniestros'!B47) -> Tokio Marine | D48: =IF('TD Siniestros'!C47="","",'TD Siniestros'!C47) -> 283275.7682 | E48: =IF('TD Siniestros'!D47="","",'TD Siniestros'!D47) -> -8.724672202 | F48: =IF('TD Siniestros'!E47="","",'TD Siniestros'!E47) -> 3401.89888 | G48: =IF('TD Siniestros'!F47="","",'TD Siniestros'!F47) -> 28.46284402 | H48: =IF('TD Siniestros'!G47="","",'TD Siniestros'!G47) -> 34.55806306 | I48: 0.141373201
B49: =IF('TD Siniestros'!A48="","",'TD Siniestros'!A48) -> 40 | C49: =IF('TD Siniestros'!B48="","",'TD Siniestros'!B48) -> Insignia Life | D49: =IF('TD Siniestros'!C48="","",'TD Siniestros'!C48) -> 449552.659 | E49: =IF('TD Siniestros'!D48="","",'TD Siniestros'!D48) -> -35.41415456 | F49: =IF('TD Siniestros'!E48="","",'TD Siniestros'!E48) -> 8142.11215 | G49: =IF('TD Siniestros'!F48="","",'TD Siniestros'!F48) -> 58.6179688 | H49: =IF('TD Siniestros'!G48="","",'TD Siniestros'!G48) -> 99.54644146 | I49: 0.224356283
B50: =IF('TD Siniestros'!A49="","",'TD Siniestros'!A49) -> 41 | C50: =IF('TD Siniestros'!B49="","",'TD Siniestros'!B49) -> Prudential | D50: =IF('TD Siniestros'!C49="","",'TD Siniestros'!C49) -> 88642.14298 | E50: =IF('TD Siniestros'!D49="","",'TD Siniestros'!D49) -> 18.89300379 | F50: =IF('TD Siniestros'!E49="","",'TD Siniestros'!E49) -> 0 | G50: =IF('TD Siniestros'!F49="","",'TD Siniestros'!F49) -> 12.18748749 | H50: =IF('TD Siniestros'!G49="","",'TD Siniestros'!G49) -> 14.35563968 | I50: 0.04423824732
B51: =IF('TD Siniestros'!A50="","",'TD Siniestros'!A50) -> 42 | C51: =IF('TD Siniestros'!B50="","",'TD Siniestros'!B50) -> Zurich Vida | D51: =IF('TD Siniestros'!C50="","",'TD Siniestros'!C50) -> 533949.9211 | E51: =IF('TD Siniestros'!D50="","",'TD Siniestros'!D50) -> -45.84881768 | F51: =IF('TD Siniestros'!E50="","",'TD Siniestros'!E50) -> -8528.72918 | G51: =IF('TD Siniestros'!F50="","",'TD Siniestros'!F50) -> 75.55242489 | H51: =IF('TD Siniestros'!G50="","",'TD Siniestros'!G50) -> 129.4484391 | I51: 0.2664760561
B52: =IF('TD Siniestros'!A51="","",'TD Siniestros'!A51) -> 43 | C52: =IF('TD Siniestros'!B51="","",'TD Siniestros'!B51) -> La Latinoamericana | D52: =IF('TD Siniestros'!C51="","",'TD Siniestros'!C51) -> 435004.1928 | E52: =IF('TD Siniestros'!D51="","",'TD Siniestros'!D51) -> 2.970601294 | F52: =IF('TD Siniestros'!E51="","",'TD Siniestros'!E51) -> 1581.55113 | G52: =IF('TD Siniestros'!F51="","",'TD Siniestros'!F51) -> 63.80689481 | H52: =IF('TD Siniestros'!G51="","",'TD Siniestros'!G51) -> 62.91239142 | I52: 0.2170956435
B53: =IF('TD Siniestros'!A52="","",'TD Siniestros'!A52) -> 44 | C53: =IF('TD Siniestros'!B52="","",'TD Siniestros'!B52) -> El Águila | D53: =IF('TD Siniestros'!C52="","",'TD Siniestros'!C52) -> 231235.4318 | E53: =IF('TD Siniestros'!D52="","",'TD Siniestros'!D52) -> 12.35246966 | F53: =IF('TD Siniestros'!E52="","",'TD Siniestros'!E52) -> 0 | G53: =IF('TD Siniestros'!F52="","",'TD Siniestros'!F52) -> 35.37818325 | H53: =IF('TD Siniestros'!G52="","",'TD Siniestros'!G52) -> 34.52310726 | I53: 0.1154016575
B54: =IF('TD Siniestros'!A53="","",'TD Siniestros'!A53) -> 45 | C54: =IF('TD Siniestros'!B53="","",'TD Siniestros'!B53) -> HDI Global Seguros | D54: =IF('TD Siniestros'!C53="","",'TD Siniestros'!C53) -> 137349.8754 | E54: =IF('TD Siniestros'!D53="","",'TD Siniestros'!D53) -> -35.30436613 | F54: =IF('TD Siniestros'!E53="","",'TD Siniestros'!E53) -> 0 | G54: =IF('TD Siniestros'!F53="","",'TD Siniestros'!F53) -> 21.98824462 | H54: =IF('TD Siniestros'!G53="","",'TD Siniestros'!G53) -> 35.36601784 | I54: 0.06854660271
B55: =IF('TD Siniestros'!A54="","",'TD Siniestros'!A54) -> 46 | C55: =IF('TD Siniestros'!B54="","",'TD Siniestros'!B54) -> Cardif Seguros Generales | D55: =IF('TD Siniestros'!C54="","",'TD Siniestros'!C54) -> 84703.71014 | E55: =IF('TD Siniestros'!D54="","",'TD Siniestros'!D54) -> -28.65873513 | F55: =IF('TD Siniestros'!E54="","",'TD Siniestros'!E54) -> 0 | G55: =IF('TD Siniestros'!F54="","",'TD Siniestros'!F54) -> 14.30395886 | H55: =IF('TD Siniestros'!G54="","",'TD Siniestros'!G54) -> 29.72214963 | I55: 0.04227271084
B56: =IF('TD Siniestros'!A55="","",'TD Siniestros'!A55) -> 47 | C56: =IF('TD Siniestros'!B55="","",'TD Siniestros'!B55) -> AXA Salud | D56: =IF('TD Siniestros'!C55="","",'TD Siniestros'!C55) -> 223628.7221 | E56: =IF('TD Siniestros'!D55="","",'TD Siniestros'!D55) -> -13.72189486 | F56: =IF('TD Siniestros'!E55="","",'TD Siniestros'!E55) -> 0 | G56: =IF('TD Siniestros'!F55="","",'TD Siniestros'!F55) -> 43.44780578 | H56: =IF('TD Siniestros'!G55="","",'TD Siniestros'!G55) -> 191.4243925 | I56: 0.1116054101
B57: =IF('TD Siniestros'!A56="","",'TD Siniestros'!A56) -> 48 | C57: =IF('TD Siniestros'!B56="","",'TD Siniestros'!B56) -> Primero Seguros | D57: =IF('TD Siniestros'!C56="","",'TD Siniestros'!C56) -> 270004.2095 | E57: =IF('TD Siniestros'!D56="","",'TD Siniestros'!D56) -> -15.27762728 | F57: =IF('TD Siniestros'!E56="","",'TD Siniestros'!E56) -> 0 | G57: =IF('TD Siniestros'!F56="","",'TD Siniestros'!F56) -> 56.05890305 | H57: =IF('TD Siniestros'!G56="","",'TD Siniestros'!G56) -> 84.59415262 | I57: 0.1347498221
B58: =IF('TD Siniestros'!A57="","",'TD Siniestros'!A57) -> 49 | C58: =IF('TD Siniestros'!B57="","",'TD Siniestros'!B57) -> Sompo Japan | D58: =IF('TD Siniestros'!C57="","",'TD Siniestros'!C57) -> -13324.5966 | E58: =IF('TD Siniestros'!D57="","",'TD Siniestros'!D57) -> -145.3634009 | F58: =IF('TD Siniestros'!E57="","",'TD Siniestros'!E57) -> 0 | G58: =IF('TD Siniestros'!F57="","",'TD Siniestros'!F57) -> -2.885391079 | H58: =IF('TD Siniestros'!G57="","",'TD Siniestros'!G57) -> 6.343985331 | I58: -0.006649848255
B59: =IF('TD Siniestros'!A58="","",'TD Siniestros'!A58) -> 50 | C59: =IF('TD Siniestros'!B58="","",'TD Siniestros'!B58) -> Patrimonial Inbursa | D59: =IF('TD Siniestros'!C58="","",'TD Siniestros'!C58) -> 23297.86881 | E59: =IF('TD Siniestros'!D58="","",'TD Siniestros'!D58) -> -83.7670871 | F59: =IF('TD Siniestros'!E58="","",'TD Siniestros'!E58) -> 0 | G59: =IF('TD Siniestros'!F58="","",'TD Siniestros'!F58) -> 5.094004012 | H59: =IF('TD Siniestros'!G58="","",'TD Siniestros'!G58) -> 27.84932264 | I59: 0.01162716568
B60: =IF('TD Siniestros'!A59="","",'TD Siniestros'!A59) -> 51 | C60: =IF('TD Siniestros'!B59="","",'TD Siniestros'!B59) -> Atradius | D60: =IF('TD Siniestros'!C59="","",'TD Siniestros'!C59) -> 86875.42517 | E60: =IF('TD Siniestros'!D59="","",'TD Siniestros'!D59) -> -728.7570296 | F60: =IF('TD Siniestros'!E59="","",'TD Siniestros'!E59) -> 11050.4345 | G60: =IF('TD Siniestros'!F59="","",'TD Siniestros'!F59) -> 20.34798835 | H60: =IF('TD Siniestros'!G59="","",'TD Siniestros'!G59) -> -4.215840725 | I60: 0.04335653917
B61: =IF('TD Siniestros'!A60="","",'TD Siniestros'!A60) -> 52 | C61: =IF('TD Siniestros'!B60="","",'TD Siniestros'!B60) -> Pan-American México | D61: =IF('TD Siniestros'!C60="","",'TD Siniestros'!C60) -> 299493.7439 | E61: =IF('TD Siniestros'!D60="","",'TD Siniestros'!D60) -> 2.225690263 | F61: =IF('TD Siniestros'!E60="","",'TD Siniestros'!E60) -> 5994.26782 | G61: =IF('TD Siniestros'!F60="","",'TD Siniestros'!F60) -> 77.62899791 | H61: =IF('TD Siniestros'!G60="","",'TD Siniestros'!G60) -> 91.67122726 | I61: 0.1494670353
B62: =IF('TD Siniestros'!A61="","",'TD Siniestros'!A61) -> 53 | C62: =IF('TD Siniestros'!B61="","",'TD Siniestros'!B61) -> Solunion Crédito | D62: =IF('TD Siniestros'!C61="","",'TD Siniestros'!C61) -> 51752.91106 | E62: =IF('TD Siniestros'!D61="","",'TD Siniestros'!D61) -> -63.71012373 | F62: =IF('TD Siniestros'!E61="","",'TD Siniestros'!E61) -> 18.14347 | G62: =IF('TD Siniestros'!F61="","",'TD Siniestros'!F61) -> 15.49810894 | H62: =IF('TD Siniestros'!G61="","",'TD Siniestros'!G61) -> 44.73063994 | I62: 0.02582809939
B63: =IF('TD Siniestros'!A62="","",'TD Siniestros'!A62) -> 54 | C63: =IF('TD Siniestros'!B62="","",'TD Siniestros'!B62) -> General de Salud | D63: =IF('TD Siniestros'!C62="","",'TD Siniestros'!C62) -> 260966.8448 | E63: =IF('TD Siniestros'!D62="","",'TD Siniestros'!D62) -> 37.49328032 | F63: =IF('TD Siniestros'!E62="","",'TD Siniestros'!E62) -> 0 | G63: =IF('TD Siniestros'!F62="","",'TD Siniestros'!F62) -> 82.59515265 | H63: =IF('TD Siniestros'!G62="","",'TD Siniestros'!G62) -> 91.03908048 | I63: 0.1302395839
B64: =IF('TD Siniestros'!A63="","",'TD Siniestros'!A63) -> 55 | C64: =IF('TD Siniestros'!B63="","",'TD Siniestros'!B63) -> Berkley Seguros | D64: =IF('TD Siniestros'!C63="","",'TD Siniestros'!C63) -> 117240.2509 | E64: =IF('TD Siniestros'!D63="","",'TD Siniestros'!D63) -> 46.75952335 | F64: =IF('TD Siniestros'!E63="","",'TD Siniestros'!E63) -> 2242.56171 | G64: =IF('TD Siniestros'!F63="","",'TD Siniestros'!F63) -> 39.90584554 | H64: =IF('TD Siniestros'!G63="","",'TD Siniestros'!G63) -> 38.93849539 | I64: 0.05851058018
B65: =IF('TD Siniestros'!A64="","",'TD Siniestros'!A64) -> 56 | C65: =IF('TD Siniestros'!B64="","",'TD Siniestros'!B64) -> PREVEM Seguros | D65: =IF('TD Siniestros'!C64="","",'TD Siniestros'!C64) -> 168906.757 | E65: =IF('TD Siniestros'!D64="","",'TD Siniestros'!D64) -> 56.65807609 | F65: =IF('TD Siniestros'!E64="","",'TD Siniestros'!E64) -> 0 | G65: =IF('TD Siniestros'!F64="","",'TD Siniestros'!F64) -> 61.04071619 | H65: =IF('TD Siniestros'!G64="","",'TD Siniestros'!G64) -> 47.01175972 | I65: 0.08429555781
B66: =IF('TD Siniestros'!A65="","",'TD Siniestros'!A65) -> 57 | C66: =IF('TD Siniestros'!B65="","",'TD Siniestros'!B65) -> Swiss Re Corporate Solutions | D66: =IF('TD Siniestros'!C65="","",'TD Siniestros'!C65) -> 2048.92224 | E66: =IF('TD Siniestros'!D65="","",'TD Siniestros'!D65) -> -6.37436814 | F66: =IF('TD Siniestros'!E65="","",'TD Siniestros'!E65) -> 546.63357 | G66: =IF('TD Siniestros'!F65="","",'TD Siniestros'!F65) -> 0.7505087959 | H66: =IF('TD Siniestros'!G65="","",'TD Siniestros'!G65) -> 2.521591564 | I66: 0.001022546677
B67: =IF('TD Siniestros'!A66="","",'TD Siniestros'!A66) -> 58 | C67: =IF('TD Siniestros'!B66="","",'TD Siniestros'!B66) -> Coface | D67: =IF('TD Siniestros'!C66="","",'TD Siniestros'!C66) -> 22808.80026 | E67: =IF('TD Siniestros'!D66="","",'TD Siniestros'!D66) -> 0 | F67: =IF('TD Siniestros'!E66="","",'TD Siniestros'!E66) -> 7878.12342 | G67: =IF('TD Siniestros'!F66="","",'TD Siniestros'!F66) -> 9.175268109 | H67: =IF('TD Siniestros'!G66="","",'TD Siniestros'!G66) -> 0 | I67: 0.01138308837
B68: =IF('TD Siniestros'!A67="","",'TD Siniestros'!A67) -> 59 | C68: =IF('TD Siniestros'!B67="","",'TD Siniestros'!B67) -> Skandia Life | D68: =IF('TD Siniestros'!C67="","",'TD Siniestros'!C67) -> 43242.24679 | E68: =IF('TD Siniestros'!D67="","",'TD Siniestros'!D67) -> 31.90568009 | F68: =IF('TD Siniestros'!E67="","",'TD Siniestros'!E67) -> 0 | G68: =IF('TD Siniestros'!F67="","",'TD Siniestros'!F67) -> 17.45150913 | H68: =IF('TD Siniestros'!G67="","",'TD Siniestros'!G67) -> 15.12559573 | I68: 0.02158071933
B69: =IF('TD Siniestros'!A68="","",'TD Siniestros'!A68) -> 60 | C69: =IF('TD Siniestros'!B68="","",'TD Siniestros'!B68) -> Dentegra | D69: =IF('TD Siniestros'!C68="","",'TD Siniestros'!C68) -> 78631.62563 | E69: =IF('TD Siniestros'!D68="","",'TD Siniestros'!D68) -> 28.82870625 | F69: =IF('TD Siniestros'!E68="","",'TD Siniestros'!E68) -> 26.27072 | G69: =IF('TD Siniestros'!F68="","",'TD Siniestros'!F68) -> 33.55996647 | H69: =IF('TD Siniestros'!G68="","",'TD Siniestros'!G68) -> 31.70019287 | I69: 0.03924234213
B70: =IF('TD Siniestros'!A69="","",'TD Siniestros'!A69) -> 61 | C70: =IF('TD Siniestros'!B69="","",'TD Siniestros'!B69) -> SHF Cred Vivienda | D70: =IF('TD Siniestros'!C69="","",'TD Siniestros'!C69) -> -29067.32422 | E70: =IF('TD Siniestros'!D69="","",'TD Siniestros'!D69) -> -73.3170395 | F70: =IF('TD Siniestros'!E69="","",'TD Siniestros'!E69) -> 0 | G70: =IF('TD Siniestros'!F69="","",'TD Siniestros'!F69) -> -15.00013131 | H70: =IF('TD Siniestros'!G69="","",'TD Siniestros'!G69) -> -50.42921322 | I70: -0.0145065026
B71: =IF('TD Siniestros'!A70="","",'TD Siniestros'!A70) -> 62 | C71: =IF('TD Siniestros'!B70="","",'TD Siniestros'!B70) -> BBVA Bancomer Salud | D71: =IF('TD Siniestros'!C70="","",'TD Siniestros'!C70) -> 296983.0418 | E71: =IF('TD Siniestros'!D70="","",'TD Siniestros'!D70) -> -7.931864581 | F71: =IF('TD Siniestros'!E70="","",'TD Siniestros'!E70) -> 0 | G71: =IF('TD Siniestros'!F70="","",'TD Siniestros'!F70) -> 184.5629329 | H71: =IF('TD Siniestros'!G70="","",'TD Siniestros'!G70) -> 83.41985637 | I71: 0.1482140302
B72: =IF('TD Siniestros'!A71="","",'TD Siniestros'!A71) -> 63 | C72: =IF('TD Siniestros'!B71="","",'TD Siniestros'!B71) -> Zurich Aseguradora Mexicana | D72: =IF('TD Siniestros'!C71="","",'TD Siniestros'!C71) -> 64530.52862 | E72: =IF('TD Siniestros'!D71="","",'TD Siniestros'!D71) -> -45.65795218 | F72: =IF('TD Siniestros'!E71="","",'TD Siniestros'!E71) -> 3976.23925 | G72: =IF('TD Siniestros'!F71="","",'TD Siniestros'!F71) -> 51.88374566 | H72: =IF('TD Siniestros'!G71="","",'TD Siniestros'!G71) -> 75.91786185 | I72: 0.0322049692
B73: =IF('TD Siniestros'!A72="","",'TD Siniestros'!A72) -> 64 | C73: =IF('TD Siniestros'!B72="","",'TD Siniestros'!B72) -> Assurant Daños | D73: =IF('TD Siniestros'!C72="","",'TD Siniestros'!C72) -> 25174.11041 | E73: =IF('TD Siniestros'!D72="","",'TD Siniestros'!D72) -> 0.2811170048 | F73: =IF('TD Siniestros'!E72="","",'TD Siniestros'!E72) -> 232.46508 | G73: =IF('TD Siniestros'!F72="","",'TD Siniestros'!F72) -> 21.51661811 | H73: =IF('TD Siniestros'!G72="","",'TD Siniestros'!G72) -> 31.34330675 | I73: =IFERROR(D73/VLOOKUP("TOTAL",$C$8:$D$124,2,0)*100,"") -> 0.01256353338
B74: =IF('TD Siniestros'!A73="","",'TD Siniestros'!A73) -> 65 | C74: =IF('TD Siniestros'!B73="","",'TD Siniestros'!B73) -> SIS NOVA | D74: =IF('TD Siniestros'!C73="","",'TD Siniestros'!C73) -> 144473.7944 | E74: =IF('TD Siniestros'!D73="","",'TD Siniestros'!D73) -> -69.27272822 | F74: =IF('TD Siniestros'!E73="","",'TD Siniestros'!E73) -> 0 | G74: =IF('TD Siniestros'!F73="","",'TD Siniestros'!F73) -> 127.8854525 | H74: =IF('TD Siniestros'!G73="","",'TD Siniestros'!G73) -> 129.4585356 | I74: 0.07210190585
B75: =IF('TD Siniestros'!A74="","",'TD Siniestros'!A74) -> 66 | C75: =IF('TD Siniestros'!B74="","",'TD Siniestros'!B74) -> Centauro | D75: =IF('TD Siniestros'!C74="","",'TD Siniestros'!C74) -> 42392.96059 | E75: =IF('TD Siniestros'!D74="","",'TD Siniestros'!D74) -> 23.92806256 | F75: =IF('TD Siniestros'!E74="","",'TD Siniestros'!E74) -> -20.15149 | G75: =IF('TD Siniestros'!F74="","",'TD Siniestros'!F74) -> 51.11134368 | H75: =IF('TD Siniestros'!G74="","",'TD Siniestros'!G74) -> 47.46355934 | I75: 0.02115686977
B76: =IF('TD Siniestros'!A75="","",'TD Siniestros'!A75) -> 67 | C76: =IF('TD Siniestros'!B75="","",'TD Siniestros'!B75) -> MediAccess | D76: =IF('TD Siniestros'!C75="","",'TD Siniestros'!C75) -> 65546.54348 | E76: =IF('TD Siniestros'!D75="","",'TD Siniestros'!D75) -> 8.556810261 | F76: =IF('TD Siniestros'!E75="","",'TD Siniestros'!E75) -> 0 | G76: =IF('TD Siniestros'!F75="","",'TD Siniestros'!F75) -> 83.73962397 | H76: =IF('TD Siniestros'!G75="","",'TD Siniestros'!G75) -> 68.85111417 | I76: 0.0327120273
B77: =IF('TD Siniestros'!A76="","",'TD Siniestros'!A76) -> 68 | C77: =IF('TD Siniestros'!B76="","",'TD Siniestros'!B76) -> Assurant Vida | D77: =IF('TD Siniestros'!C76="","",'TD Siniestros'!C76) -> 139610.1636 | E77: =IF('TD Siniestros'!D76="","",'TD Siniestros'!D76) -> -57.95565793 | F77: =IF('TD Siniestros'!E76="","",'TD Siniestros'!E76) -> 6716.2703 | G77: =IF('TD Siniestros'!F76="","",'TD Siniestros'!F76) -> 235.6401772 | H77: =IF('TD Siniestros'!G76="","",'TD Siniestros'!G76) -> 360.6378176 | I77: 0.06967463488
B78: =IF('TD Siniestros'!A77="","",'TD Siniestros'!A77) -> 69 | C78: =IF('TD Siniestros'!B77="","",'TD Siniestros'!B77) -> Virginia Surety | D78: =IF('TD Siniestros'!C77="","",'TD Siniestros'!C77) -> 11431.82471 | E78: =IF('TD Siniestros'!D77="","",'TD Siniestros'!D77) -> 131.5604248 | F78: =IF('TD Siniestros'!E77="","",'TD Siniestros'!E77) -> 0 | G78: =IF('TD Siniestros'!F77="","",'TD Siniestros'!F77) -> 22.01614071 | H78: =IF('TD Siniestros'!G77="","",'TD Siniestros'!G77) -> 21.2311895 | I78: 0.005705230851
B79: =IF('TD Siniestros'!A78="","",'TD Siniestros'!A78) -> 70 | C79: =IF('TD Siniestros'!B78="","",'TD Siniestros'!B78) -> Tláloc Seguros | D79: =IF('TD Siniestros'!C78="","",'TD Siniestros'!C78) -> 26123.64202 | E79: =IF('TD Siniestros'!D78="","",'TD Siniestros'!D78) -> -36.21802756 | F79: =IF('TD Siniestros'!E78="","",'TD Siniestros'!E78) -> 0 | G79: =IF('TD Siniestros'!F78="","",'TD Siniestros'!F78) -> 52.13305687 | H79: =IF('TD Siniestros'!G78="","",'TD Siniestros'!G78) -> 71.05978999 | I79: 0.01303741198
B80: =IF('TD Siniestros'!A79="","",'TD Siniestros'!A79) -> 71 | C80: =IF('TD Siniestros'!B79="","",'TD Siniestros'!B79) -> Odontoprev | D80: =IF('TD Siniestros'!C79="","",'TD Siniestros'!C79) -> 9927.6801 | E80: =IF('TD Siniestros'!D79="","",'TD Siniestros'!D79) -> 35.26329178 | F80: =IF('TD Siniestros'!E79="","",'TD Siniestros'!E79) -> 0 | G80: =IF('TD Siniestros'!F79="","",'TD Siniestros'!F79) -> 20.99700235 | H80: =IF('TD Siniestros'!G79="","",'TD Siniestros'!G79) -> 14.12211456 | I80: 0.004954563967
B81: =IF('TD Siniestros'!A80="","",'TD Siniestros'!A80) -> 72 | C81: =IF('TD Siniestros'!B80="","",'TD Siniestros'!B80) -> Genworth Seg. de Crédito | D81: =IF('TD Siniestros'!C80="","",'TD Siniestros'!C80) -> -1298.00715 | E81: =IF('TD Siniestros'!D80="","",'TD Siniestros'!D80) -> -92.66679491 | F81: =IF('TD Siniestros'!E80="","",'TD Siniestros'!E80) -> 0 | G81: =IF('TD Siniestros'!F80="","",'TD Siniestros'!F80) -> -4.275576 | H81: =IF('TD Siniestros'!G80="","",'TD Siniestros'!G80) -> -53.07173905 | I81: -0.0006477907617
B82: =IF('TD Siniestros'!A81="","",'TD Siniestros'!A81) -> 73 | C82: =IF('TD Siniestros'!B81="","",'TD Siniestros'!B81) -> Metlife Más | D82: =IF('TD Siniestros'!C81="","",'TD Siniestros'!C81) -> 1411.85009 | E82: =IF('TD Siniestros'!D81="","",'TD Siniestros'!D81) -> 22.4828269 | F82: =IF('TD Siniestros'!E81="","",'TD Siniestros'!E81) -> 0 | G82: =IF('TD Siniestros'!F81="","",'TD Siniestros'!F81) -> 5.27905728 | H82: =IF('TD Siniestros'!G81="","",'TD Siniestros'!G81) -> 3.848136064 | I82: 0.0007046058608
B83: =IF('TD Siniestros'!A82="","",'TD Siniestros'!A82) -> 74 | C83: =IF('TD Siniestros'!B82="","",'TD Siniestros'!B82) -> SPP Seguros | D83: =IF('TD Siniestros'!C82="","",'TD Siniestros'!C82) -> 2226.35466 | E83: =IF('TD Siniestros'!D82="","",'TD Siniestros'!D82) -> 169.1985477 | F83: =IF('TD Siniestros'!E82="","",'TD Siniestros'!E82) -> 0 | G83: =IF('TD Siniestros'!F82="","",'TD Siniestros'!F82) -> 8.404112296 | H83: =IF('TD Siniestros'!G82="","",'TD Siniestros'!G82) -> 15.16611783 | I83: 0.001111097101
B84: =IF('TD Siniestros'!A83="","",'TD Siniestros'!A83) -> 75 | C84: =IF('TD Siniestros'!B83="","",'TD Siniestros'!B83) -> Metlife Pensiones | D84: =IF('TD Siniestros'!C83="","",'TD Siniestros'!C83) -> 175592.0041 | E84: =IF('TD Siniestros'!D83="","",'TD Siniestros'!D83) -> 3.793822517 | F84: =IF('TD Siniestros'!E83="","",'TD Siniestros'!E83) -> 0 | G84: =IF('TD Siniestros'!F83="","",'TD Siniestros'!F83) -> 1050.708688 | H84: =IF('TD Siniestros'!G83="","",'TD Siniestros'!G83) -> 5057.924492 | I84: 0.08763193494
B85: =IF('TD Siniestros'!A84="","",'TD Siniestros'!A84) -> 76 | C85: =IF('TD Siniestros'!B84="","",'TD Siniestros'!B84) -> Citibanamex Pensiones | D85: =IF('TD Siniestros'!C84="","",'TD Siniestros'!C84) -> 375794.5886 | E85: =IF('TD Siniestros'!D84="","",'TD Siniestros'!D84) -> 3.930471856 | F85: =IF('TD Siniestros'!E84="","",'TD Siniestros'!E84) -> 0 | G85: =IF('TD Siniestros'!F84="","",'TD Siniestros'!F84) -> 2513.77422 | H85: =IF('TD Siniestros'!G84="","",'TD Siniestros'!G84) -> 4901.385075 | I85: 0.1875461647
B86: =IF('TD Siniestros'!A85="","",'TD Siniestros'!A85) -> 77 | C86: =IF('TD Siniestros'!B85="","",'TD Siniestros'!B85) -> SPT | D86: =IF('TD Siniestros'!C85="","",'TD Siniestros'!C85) -> 8278.69228 | E86: =IF('TD Siniestros'!D85="","",'TD Siniestros'!D85) -> 0 | F86: =IF('TD Siniestros'!E85="","",'TD Siniestros'!E85) -> 0 | G86: =IF('TD Siniestros'!F85="","",'TD Siniestros'!F85) -> 56.37907767 | H86: =IF('TD Siniestros'!G85="","",'TD Siniestros'!G85) -> 0 | I86: 0.004131610815
B87: =IF('TD Siniestros'!A86="","",'TD Siniestros'!A86) -> 78 | C87: =IF('TD Siniestros'!B86="","",'TD Siniestros'!B86) -> Crabi | D87: =IF('TD Siniestros'!C86="","",'TD Siniestros'!C86) -> 16287.30838 | E87: =IF('TD Siniestros'!D86="","",'TD Siniestros'!D86) -> -24.62583006 | F87: =IF('TD Siniestros'!E86="","",'TD Siniestros'!E86) -> 0 | G87: =IF('TD Siniestros'!F86="","",'TD Siniestros'!F86) -> 125.5988817 | H87: =IF('TD Siniestros'!G86="","",'TD Siniestros'!G86) -> 121.2791946 | I87: 0.008128435889
B88: =IF('TD Siniestros'!A87="","",'TD Siniestros'!A87) -> 79 | C88: =IF('TD Siniestros'!B87="","",'TD Siniestros'!B87) -> Pensiones Inbursa | D88: =IF('TD Siniestros'!C87="","",'TD Siniestros'!C87) -> 12111.23476 | E88: =IF('TD Siniestros'!D87="","",'TD Siniestros'!D87) -> 4.319076804 | F88: =IF('TD Siniestros'!E87="","",'TD Siniestros'!E87) -> 0 | G88: =IF('TD Siniestros'!F87="","",'TD Siniestros'!F87) -> 1676.557545 | H88: =IF('TD Siniestros'!G87="","",'TD Siniestros'!G87) -> 21555.15158 | I88: 0.006044301059
B89: =IF('TD Siniestros'!A88="","",'TD Siniestros'!A88) -> 80 | C89: =IF('TD Siniestros'!B88="","",'TD Siniestros'!B88) -> Aserta Seguros de Vida | D89: =IF('TD Siniestros'!C88="","",'TD Siniestros'!C88) -> 23036.63652 | E89: =IF('TD Siniestros'!D88="","",'TD Siniestros'!D88) -> -91.96176605 | F89: =IF('TD Siniestros'!E88="","",'TD Siniestros'!E88) -> 0 | G89: =IF('TD Siniestros'!F88="","",'TD Siniestros'!F88) -> 3802.097123 | H89: =IF('TD Siniestros'!G88="","",'TD Siniestros'!G88) -> 240.9871043 | I89: 0.01149679362
B90: =IF('TD Siniestros'!A89="","",'TD Siniestros'!A89) -> 81 | C90: =IF('TD Siniestros'!B89="","",'TD Siniestros'!B89) -> Principal México | D90: =IF('TD Siniestros'!C89="","",'TD Siniestros'!C89) -> 0 | E90: =IF('TD Siniestros'!D89="","",'TD Siniestros'!D89) -> 0 | F90: =IF('TD Siniestros'!E89="","",'TD Siniestros'!E89) -> 0 | G90: =IF('TD Siniestros'!F89="","",'TD Siniestros'!F89) -> 0 | H90: =IF('TD Siniestros'!G89="","",'TD Siniestros'!G89) -> 0 | I90: 0
B91: =IF('TD Siniestros'!A90="","",'TD Siniestros'!A90) -> 82 | C91: =IF('TD Siniestros'!B90="","",'TD Siniestros'!B90) -> HSBC Pensiones | D91: =IF('TD Siniestros'!C90="","",'TD Siniestros'!C90) -> 0 | E91: =IF('TD Siniestros'!D90="","",'TD Siniestros'!D90) -> -100 | F91: =IF('TD Siniestros'!E90="","",'TD Siniestros'!E90) -> 0 | G91: =IF('TD Siniestros'!F90="","",'TD Siniestros'!F90) -> 0 | H91: =IF('TD Siniestros'!G90="","",'TD Siniestros'!G90) -> 8356.040229 | I91: 0
B92: =IF('TD Siniestros'!A91="","",'TD Siniestros'!A91) -> 150.1 | C92: =IF('TD Siniestros'!B91="","",'TD Siniestros'!B91) -> TOTAL RESTO | D92: =IF('TD Siniestros'!C91="","",'TD Siniestros'!C91) -> 35165956.19 | E92: =IF('TD Siniestros'!D91="","",'TD Siniestros'!D91) -> -2.931854515 | F92: =IF('TD Siniestros'!E91="","",'TD Siniestros'!E91) -> 375634.8897 | G92: =IF('TD Siniestros'!F91="","",'TD Siniestros'!F91) -> 44.52409783 | H92: =IF('TD Siniestros'!G91="","",'TD Siniestros'!G91) -> 50.14862288 | I92: 17.55012024
B93: =IF('TD Siniestros'!A92="","",'TD Siniestros'!A92) -> 151.1 | C93: =IF('TD Siniestros'!B92="","",'TD Siniestros'!B92) -> TOTAL | D93: =IF('TD Siniestros'!C92="","",'TD Siniestros'!C92) -> 200374446 | E93: =IF('TD Siniestros'!D92="","",'TD Siniestros'!D92) -> 2.995886803 | F93: =IF('TD Siniestros'!E92="","",'TD Siniestros'!E92) -> 1327038.158 | G93: =IF('TD Siniestros'!F92="","",'TD Siniestros'!F92) -> 57.15823301 | H93: =IF('TD Siniestros'!G92="","",'TD Siniestros'!G92) -> 57.92605216 | I93: 100
B94: =IF('TD Siniestros'!A93="","",'TD Siniestros'!A93) -> 200 | C94: =IF('TD Siniestros'!B93="","",'TD Siniestros'!B93) -> Patria | D94: =IF('TD Siniestros'!C93="","",'TD Siniestros'!C93) -> 0 | E94: =IF('TD Siniestros'!D93="","",'TD Siniestros'!D93) -> 0 | F94: =IF('TD Siniestros'!E93="","",'TD Siniestros'!E93) -> 0 | G94: =IF('TD Siniestros'!F93="","",'TD Siniestros'!F93) -> 0 | H94: =IF('TD Siniestros'!G93="","",'TD Siniestros'!G93) -> 0 | I94: 0
B95: =IF('TD Siniestros'!A94="","",'TD Siniestros'!A94) ->  | C95: =IF('TD Siniestros'!B94="","",'TD Siniestros'!B94) ->  | D95: =IF('TD Siniestros'!C94="","",'TD Siniestros'!C94) ->  | E95: =IF('TD Siniestros'!D94="","",'TD Siniestros'!D94) ->  | F95: =IF('TD Siniestros'!E94="","",'TD Siniestros'!E94) ->  | G95: =IF('TD Siniestros'!F94="","",'TD Siniestros'!F94) ->  | H95: =IF('TD Siniestros'!G94="","",'TD Siniestros'!G94) -> 
B96: =IF('TD Siniestros'!A95="","",'TD Siniestros'!A95) ->  | C96: =IF('TD Siniestros'!B95="","",'TD Siniestros'!B95) ->  | D96: =IF('TD Siniestros'!C95="","",'TD Siniestros'!C95) ->  | E96: =IF('TD Siniestros'!D95="","",'TD Siniestros'!D95) ->  | F96: =IF('TD Siniestros'!E95="","",'TD Siniestros'!E95) ->  | G96: =IF('TD Siniestros'!F95="","",'TD Siniestros'!F95) ->  | H96: =IF('TD Siniestros'!G95="","",'TD Siniestros'!G95) -> 
B97: =IF('TD Siniestros'!A96="","",'TD Siniestros'!A96) ->  | C97: =IF('TD Siniestros'!B96="","",'TD Siniestros'!B96) ->  | D97: =IF('TD Siniestros'!C96="","",'TD Siniestros'!C96) ->  | E97: =IF('TD Siniestros'!D96="","",'TD Siniestros'!D96) ->  | F97: =IF('TD Siniestros'!E96="","",'TD Siniestros'!E96) ->  | G97: =IF('TD Siniestros'!F96="","",'TD Siniestros'!F96) ->  | H97: =IF('TD Siniestros'!G96="","",'TD Siniestros'!G96) -> 
B98: =IF('TD Siniestros'!A97="","",'TD Siniestros'!A97) ->  | C98: =IF('TD Siniestros'!B97="","",'TD Siniestros'!B97) ->  | D98: =IF('TD Siniestros'!C97="","",'TD Siniestros'!C97) ->  | E98: =IF('TD Siniestros'!D97="","",'TD Siniestros'!D97) ->  | F98: =IF('TD Siniestros'!E97="","",'TD Siniestros'!E97) ->  | G98: =IF('TD Siniestros'!F97="","",'TD Siniestros'!F97) ->  | H98: =IF('TD Siniestros'!G97="","",'TD Siniestros'!G97) -> 
B99: =IF('TD Siniestros'!A98="","",'TD Siniestros'!A98) ->  | C99: =IF('TD Siniestros'!B98="","",'TD Siniestros'!B98) ->  | D99: =IF('TD Siniestros'!C98="","",'TD Siniestros'!C98) ->  | E99: =IF('TD Siniestros'!D98="","",'TD Siniestros'!D98) ->  | F99: =IF('TD Siniestros'!E98="","",'TD Siniestros'!E98) ->  | G99: =IF('TD Siniestros'!F98="","",'TD Siniestros'!F98) ->  | H99: =IF('TD Siniestros'!G98="","",'TD Siniestros'!G98) -> 
B100: =IF('TD Siniestros'!A99="","",'TD Siniestros'!A99) ->  | C100: =IF('TD Siniestros'!B99="","",'TD Siniestros'!B99) ->  | D100: =IF('TD Siniestros'!C99="","",'TD Siniestros'!C99) ->  | E100: =IF('TD Siniestros'!D99="","",'TD Siniestros'!D99) ->  | F100: =IF('TD Siniestros'!E99="","",'TD Siniestros'!E99) ->  | G100: =IF('TD Siniestros'!F99="","",'TD Siniestros'!F99) ->  | H100: =IF('TD Siniestros'!G99="","",'TD Siniestros'!G99) -> 
B101: =IF('TD Siniestros'!A100="","",'TD Siniestros'!A100) ->  | C101: =IF('TD Siniestros'!B100="","",'TD Siniestros'!B100) ->  | D101: =IF('TD Siniestros'!C100="","",'TD Siniestros'!C100) ->  | E101: =IF('TD Siniestros'!D100="","",'TD Siniestros'!D100) ->  | F101: =IF('TD Siniestros'!E100="","",'TD Siniestros'!E100) ->  | G101: =IF('TD Siniestros'!F100="","",'TD Siniestros'!F100) ->  | H101: =IF('TD Siniestros'!G100="","",'TD Siniestros'!G100) -> 
B102: =IF('TD Siniestros'!A101="","",'TD Siniestros'!A101) ->  | C102: =IF('TD Siniestros'!B101="","",'TD Siniestros'!B101) ->  | D102: =IF('TD Siniestros'!C101="","",'TD Siniestros'!C101) ->  | E102: =IF('TD Siniestros'!D101="","",'TD Siniestros'!D101) ->  | F102: =IF('TD Siniestros'!E101="","",'TD Siniestros'!E101) ->  | G102: =IF('TD Siniestros'!F101="","",'TD Siniestros'!F101) ->  | H102: =IF('TD Siniestros'!G101="","",'TD Siniestros'!G101) -> 
B103: =IF('TD Siniestros'!A102="","",'TD Siniestros'!A102) ->  | C103: =IF('TD Siniestros'!B102="","",'TD Siniestros'!B102) ->  | D103: =IF('TD Siniestros'!C102="","",'TD Siniestros'!C102) ->  | E103: =IF('TD Siniestros'!D102="","",'TD Siniestros'!D102) ->  | F103: =IF('TD Siniestros'!E102="","",'TD Siniestros'!E102) ->  | G103: =IF('TD Siniestros'!F102="","",'TD Siniestros'!F102) ->  | H103: =IF('TD Siniestros'!G102="","",'TD Siniestros'!G102) -> 
B104: =IF('TD Siniestros'!A103="","",'TD Siniestros'!A103) ->  | C104: =IF('TD Siniestros'!B103="","",'TD Siniestros'!B103) ->  | D104: =IF('TD Siniestros'!C103="","",'TD Siniestros'!C103) ->  | E104: =IF('TD Siniestros'!D103="","",'TD Siniestros'!D103) ->  | F104: =IF('TD Siniestros'!E103="","",'TD Siniestros'!E103) ->  | G104: =IF('TD Siniestros'!F103="","",'TD Siniestros'!F103) ->  | H104: =IF('TD Siniestros'!G103="","",'TD Siniestros'!G103) -> 
B105: =IF('TD Siniestros'!A104="","",'TD Siniestros'!A104) ->  | C105: =IF('TD Siniestros'!B104="","",'TD Siniestros'!B104) ->  | D105: =IF('TD Siniestros'!C104="","",'TD Siniestros'!C104) ->  | E105: =IF('TD Siniestros'!D104="","",'TD Siniestros'!D104) ->  | F105: =IF('TD Siniestros'!E104="","",'TD Siniestros'!E104) ->  | G105: =IF('TD Siniestros'!F104="","",'TD Siniestros'!F104) ->  | H105: =IF('TD Siniestros'!G104="","",'TD Siniestros'!G104) -> 
B106: =IF('TD Siniestros'!A105="","",'TD Siniestros'!A105) ->  | C106: =IF('TD Siniestros'!B105="","",'TD Siniestros'!B105) ->  | D106: =IF('TD Siniestros'!C105="","",'TD Siniestros'!C105) ->  | E106: =IF('TD Siniestros'!D105="","",'TD Siniestros'!D105) ->  | F106: =IF('TD Siniestros'!E105="","",'TD Siniestros'!E105) ->  | G106: =IF('TD Siniestros'!F105="","",'TD Siniestros'!F105) ->  | H106: =IF('TD Siniestros'!G105="","",'TD Siniestros'!G105) -> 
B107: =IF('TD Siniestros'!A106="","",'TD Siniestros'!A106) ->  | C107: =IF('TD Siniestros'!B106="","",'TD Siniestros'!B106) ->  | D107: =IF('TD Siniestros'!C106="","",'TD Siniestros'!C106) ->  | E107: =IF('TD Siniestros'!D106="","",'TD Siniestros'!D106) ->  | F107: =IF('TD Siniestros'!E106="","",'TD Siniestros'!E106) ->  | G107: =IF('TD Siniestros'!F106="","",'TD Siniestros'!F106) ->  | H107: =IF('TD Siniestros'!G106="","",'TD Siniestros'!G106) -> 
B108: =IF('TD Siniestros'!A107="","",'TD Siniestros'!A107) ->  | C108: =IF('TD Siniestros'!B107="","",'TD Siniestros'!B107) ->  | D108: =IF('TD Siniestros'!C107="","",'TD Siniestros'!C107) ->  | E108: =IF('TD Siniestros'!D107="","",'TD Siniestros'!D107) ->  | F108: =IF('TD Siniestros'!E107="","",'TD Siniestros'!E107) ->  | G108: =IF('TD Siniestros'!F107="","",'TD Siniestros'!F107) ->  | H108: =IF('TD Siniestros'!G107="","",'TD Siniestros'!G107) -> 
B109: =IF('TD Siniestros'!A108="","",'TD Siniestros'!A108) ->  | C109: =IF('TD Siniestros'!B108="","",'TD Siniestros'!B108) ->  | D109: =IF('TD Siniestros'!C108="","",'TD Siniestros'!C108) ->  | E109: =IF('TD Siniestros'!D108="","",'TD Siniestros'!D108) ->  | F109: =IF('TD Siniestros'!E108="","",'TD Siniestros'!E108) ->  | G109: =IF('TD Siniestros'!F108="","",'TD Siniestros'!F108) ->  | H109: =IF('TD Siniestros'!G108="","",'TD Siniestros'!G108) -> 
B110: =IF('TD Siniestros'!A109="","",'TD Siniestros'!A109) ->  | C110: =IF('TD Siniestros'!B109="","",'TD Siniestros'!B109) ->  | D110: =IF('TD Siniestros'!C109="","",'TD Siniestros'!C109) ->  | E110: =IF('TD Siniestros'!D109="","",'TD Siniestros'!D109) ->  | F110: =IF('TD Siniestros'!E109="","",'TD Siniestros'!E109) ->  | G110: =IF('TD Siniestros'!F109="","",'TD Siniestros'!F109) ->  | H110: =IF('TD Siniestros'!G109="","",'TD Siniestros'!G109) -> 
B111: =IF('TD Siniestros'!A110="","",'TD Siniestros'!A110) ->  | C111: =IF('TD Siniestros'!B110="","",'TD Siniestros'!B110) ->  | D111: =IF('TD Siniestros'!C110="","",'TD Siniestros'!C110) ->  | E111: =IF('TD Siniestros'!D110="","",'TD Siniestros'!D110) ->  | F111: =IF('TD Siniestros'!E110="","",'TD Siniestros'!E110) ->  | G111: =IF('TD Siniestros'!F110="","",'TD Siniestros'!F110) ->  | H111: =IF('TD Siniestros'!G110="","",'TD Siniestros'!G110) -> 
B112: =IF('TD Siniestros'!A111="","",'TD Siniestros'!A111) ->  | C112: =IF('TD Siniestros'!B111="","",'TD Siniestros'!B111) ->  | D112: =IF('TD Siniestros'!C111="","",'TD Siniestros'!C111) ->  | E112: =IF('TD Siniestros'!D111="","",'TD Siniestros'!D111) ->  | F112: =IF('TD Siniestros'!E111="","",'TD Siniestros'!E111) ->  | G112: =IF('TD Siniestros'!F111="","",'TD Siniestros'!F111) ->  | H112: =IF('TD Siniestros'!G111="","",'TD Siniestros'!G111) -> 
B113: =IF('TD Siniestros'!A112="","",'TD Siniestros'!A112) ->  | C113: =IF('TD Siniestros'!B112="","",'TD Siniestros'!B112) ->  | D113: =IF('TD Siniestros'!C112="","",'TD Siniestros'!C112) ->  | E113: =IF('TD Siniestros'!D112="","",'TD Siniestros'!D112) ->  | F113: =IF('TD Siniestros'!E112="","",'TD Siniestros'!E112) ->  | G113: =IF('TD Siniestros'!F112="","",'TD Siniestros'!F112) ->  | H113: =IF('TD Siniestros'!G112="","",'TD Siniestros'!G112) -> 
B114: =IF('TD Siniestros'!A113="","",'TD Siniestros'!A113) ->  | C114: =IF('TD Siniestros'!B113="","",'TD Siniestros'!B113) ->  | D114: =IF('TD Siniestros'!C113="","",'TD Siniestros'!C113) ->  | E114: =IF('TD Siniestros'!D113="","",'TD Siniestros'!D113) ->  | F114: =IF('TD Siniestros'!E113="","",'TD Siniestros'!E113) ->  | G114: =IF('TD Siniestros'!F113="","",'TD Siniestros'!F113) ->  | H114: =IF('TD Siniestros'!G113="","",'TD Siniestros'!G113) -> 
B115: =IF('TD Siniestros'!A114="","",'TD Siniestros'!A114) ->  | C115: =IF('TD Siniestros'!B114="","",'TD Siniestros'!B114) ->  | D115: =IF('TD Siniestros'!C114="","",'TD Siniestros'!C114) ->  | E115: =IF('TD Siniestros'!D114="","",'TD Siniestros'!D114) ->  | F115: =IF('TD Siniestros'!E114="","",'TD Siniestros'!E114) ->  | G115: =IF('TD Siniestros'!F114="","",'TD Siniestros'!F114) ->  | H115: =IF('TD Siniestros'!G114="","",'TD Siniestros'!G114) -> 
B116: =IF('TD Siniestros'!A115="","",'TD Siniestros'!A115) ->  | C116: =IF('TD Siniestros'!B115="","",'TD Siniestros'!B115) ->  | D116: =IF('TD Siniestros'!C115="","",'TD Siniestros'!C115) ->  | E116: =IF('TD Siniestros'!D115="","",'TD Siniestros'!D115) ->  | F116: =IF('TD Siniestros'!E115="","",'TD Siniestros'!E115) ->  | G116: =IF('TD Siniestros'!F115="","",'TD Siniestros'!F115) ->  | H116: =IF('TD Siniestros'!G115="","",'TD Siniestros'!G115) -> 
B117: =IF('TD Siniestros'!A116="","",'TD Siniestros'!A116) ->  | C117: =IF('TD Siniestros'!B116="","",'TD Siniestros'!B116) ->  | D117: =IF('TD Siniestros'!C116="","",'TD Siniestros'!C116) ->  | E117: =IF('TD Siniestros'!D116="","",'TD Siniestros'!D116) ->  | F117: =IF('TD Siniestros'!E116="","",'TD Siniestros'!E116) ->  | G117: =IF('TD Siniestros'!F116="","",'TD Siniestros'!F116) ->  | H117: =IF('TD Siniestros'!G116="","",'TD Siniestros'!G116) -> 
B118: =IF('TD Siniestros'!A117="","",'TD Siniestros'!A117) ->  | C118: =IF('TD Siniestros'!B117="","",'TD Siniestros'!B117) ->  | D118: =IF('TD Siniestros'!C117="","",'TD Siniestros'!C117) ->  | E118: =IF('TD Siniestros'!D117="","",'TD Siniestros'!D117) ->  | F118: =IF('TD Siniestros'!E117="","",'TD Siniestros'!E117) ->  | G118: =IF('TD Siniestros'!F117="","",'TD Siniestros'!F117) ->  | H118: =IF('TD Siniestros'!G117="","",'TD Siniestros'!G117) -> 
B119: =IF('TD Siniestros'!A118="","",'TD Siniestros'!A118) ->  | C119: =IF('TD Siniestros'!B118="","",'TD Siniestros'!B118) ->  | D119: =IF('TD Siniestros'!C118="","",'TD Siniestros'!C118) ->  | E119: =IF('TD Siniestros'!D118="","",'TD Siniestros'!D118) ->  | F119: =IF('TD Siniestros'!E118="","",'TD Siniestros'!E118) ->  | G119: =IF('TD Siniestros'!F118="","",'TD Siniestros'!F118) ->  | H119: =IF('TD Siniestros'!G118="","",'TD Siniestros'!G118) -> 
B120: =IF('TD Siniestros'!A119="","",'TD Siniestros'!A119) ->  | C120: =IF('TD Siniestros'!B119="","",'TD Siniestros'!B119) ->  | D120: =IF('TD Siniestros'!C119="","",'TD Siniestros'!C119) ->  | E120: =IF('TD Siniestros'!D119="","",'TD Siniestros'!D119) ->  | F120: =IF('TD Siniestros'!E119="","",'TD Siniestros'!E119) ->  | G120: =IF('TD Siniestros'!F119="","",'TD Siniestros'!F119) ->  | H120: =IF('TD Siniestros'!G119="","",'TD Siniestros'!G119) -> 
B121: =IF('TD Siniestros'!A120="","",'TD Siniestros'!A120) ->  | C121: =IF('TD Siniestros'!B120="","",'TD Siniestros'!B120) ->  | D121: =IF('TD Siniestros'!C120="","",'TD Siniestros'!C120) ->  | E121: =IF('TD Siniestros'!D120="","",'TD Siniestros'!D120) ->  | F121: =IF('TD Siniestros'!E120="","",'TD Siniestros'!E120) ->  | G121: =IF('TD Siniestros'!F120="","",'TD Siniestros'!F120) ->  | H121: =IF('TD Siniestros'!G120="","",'TD Siniestros'!G120) -> 
B122: =IF('TD Siniestros'!A121="","",'TD Siniestros'!A121) ->  | C122: =IF('TD Siniestros'!B121="","",'TD Siniestros'!B121) ->  | D122: =IF('TD Siniestros'!C121="","",'TD Siniestros'!C121) ->  | E122: =IF('TD Siniestros'!D121="","",'TD Siniestros'!D121) ->  | F122: =IF('TD Siniestros'!E121="","",'TD Siniestros'!E121) ->  | G122: =IF('TD Siniestros'!F121="","",'TD Siniestros'!F121) ->  | H122: =IF('TD Siniestros'!G121="","",'TD Siniestros'!G121) -> 
B123: =IF('TD Siniestros'!A122="","",'TD Siniestros'!A122) ->  | C123: =IF('TD Siniestros'!B122="","",'TD Siniestros'!B122) ->  | D123: =IF('TD Siniestros'!C122="","",'TD Siniestros'!C122) ->  | E123: =IF('TD Siniestros'!D122="","",'TD Siniestros'!D122) ->  | F123: =IF('TD Siniestros'!E122="","",'TD Siniestros'!E122) ->  | G123: =IF('TD Siniestros'!F122="","",'TD Siniestros'!F122) ->  | H123: =IF('TD Siniestros'!G122="","",'TD Siniestros'!G122) -> 
B124: =IF('TD Siniestros'!A123="","",'TD Siniestros'!A123) ->  | C124: =IF('TD Siniestros'!B123="","",'TD Siniestros'!B123) ->  | D124: =IF('TD Siniestros'!C123="","",'TD Siniestros'!C123) ->  | E124: =IF('TD Siniestros'!D123="","",'TD Siniestros'!D123) ->  | F124: =IF('TD Siniestros'!E123="","",'TD Siniestros'!E123) ->  | G124: =IF('TD Siniestros'!F123="","",'TD Siniestros'!F123) ->  | H124: =IF('TD Siniestros'!G123="","",'TD Siniestros'!G123) -> 

Sheet Primas Directas (Vida)
C1: Análisis de Primas Directas | L1: ='Primas Directas'!L1 -> Segundo Trimestre 2022
C2: =UPPER(RIGHT('TDPrimas Vida'!B3,LEN('TDPrimas Vida'!B3)-3)) -> VIDA TOTAL
L3: Cifras en miles
E4: 2 | F4: 3 | G4: 4 | H4: 5 | I4: 6 | J4: 7 | K4: 8 | L4: 9
E5: Primas Directas | G5: % Part. en Merc. | I5: Incremento | K5: % de Cartera
C6: Compañías | E6: ='Primas Directas'!$D$6 -> 2022 | F6: ='Primas Directas'!$E$6 -> 2021 | G6: =$E$6 -> 2022 | H6: =$F$6 -> 2021 | I6: Importe | J6: % | K6: Por | L6: Total
E7: Importe | F7: Importe | K7: Operación | L7: Cartera
B8: =IF(C8="",B2,D8) -> TOTAL | C8: 151.1 | D8: TOTAL | E8: =VLOOKUP($D8,$D$12:$L$211,E$4,0) -> 136396157.7 | F8: =VLOOKUP($D8,$D$12:$L$211,F$4,0) -> 134125979.7 | G8: 100 | H8: 101.6925715 | I8: 2270178.061 | J8: 1.692571467 | K8: 38.90797216 | L8: 48.51687329
B9: =IF(C9="",B8,D9) -> TOTAL | D9: =IF(D8="","","1er Año") -> 1er Año | E9: =IF(E8="","",(VLOOKUP(B9,'TDPrimas Vida'!$B:$N,5,0))) -> 58733658.25 | F9: =IF(E8="","",(VLOOKUP(B9,'TDPrimas Vida'!$B:$N,6,0))) -> 59869110.13 | G9: =IFERROR((E9/VLOOKUP("TOTAL",$D$12:$L$312,2,0))*100,"") -> 43.06107975 | H9: =IFERROR((E9/VLOOKUP("TOTAL",$D$12:$L$312,3,0))*100,"") -> 43.7899193 | I9: =IF(E8="","",E9-F9) -> -1135451.876 | J9: =IF(E8="","",IFERROR((E9/F9-1)*100,"ND")) -> -1.896557129 | K9: =IF(E8="","",IFERROR((E9/VLOOKUP(B9&"|"&VLOOKUP(TDPrimas!$B$4,Cat!R:T,2,0),'TD Operación'!A:D,4,0))*100,"ND")) -> 16.75419292 | L9: =IF(E8="","",(VLOOKUP(B9,'TDPrimas Vida'!$B:$N,7,0))) -> 20.8918895
B10: TOTAL | D10: =IF(D9="","","Renovación") -> Renovación | E10: =IF(E8="","",(VLOOKUP(B10,'TDPrimas Vida'!$B:$N,8,0))) -> 62428199.91 | F10: =IF(E8="","",(VLOOKUP(B10,'TDPrimas Vida'!$B:$N,9,0))) -> 60381428.68 | G10: =IFERROR((E10/VLOOKUP("TOTAL",$D$12:$L$312,2,0))*100,"") -> 45.76976431 | H10: =IFERROR((E10/VLOOKUP("TOTAL",$D$12:$L$312,3,0))*100,"") -> 46.54445028 | I10: =IF(E8="","",E10-F10) -> 2046771.232 | J10: =IF(E8="","",IFERROR((E10/F10-1)*100,"ND")) -> 3.389736343 | K10: =IF(E8="","",IFERROR((E10/VLOOKUP(B10&"|"&VLOOKUP(TDPrimas!$B$4,Cat!R:T,2,0),'TD Operación'!A:D,4,0))*100,"ND")) -> 17.80808715 | L10: =IF(E8="","",(VLOOKUP(B10,'TDPrimas Vida'!$B:$N,10,0))) -> 22.20605855
B11: TOTAL | D11: =IF(D10="","","Únicas") -> Únicas | E11: =IF(E9="","",(VLOOKUP(B11,'TDPrimas Vida'!$B:$N,11,0))) -> 15234299.56 | F11: =IF(E9="","",(VLOOKUP(B11,'TDPrimas Vida'!$B:$N,12,0))) -> 13875328.31 | G11: =IFERROR((E11/VLOOKUP("TOTAL",$D$12:$L$312,2,0))*100,"") -> 11.16915595 | H11: =IFERROR((E11/VLOOKUP("TOTAL",$D$12:$L$312,3,0))*100,"") -> 11.35820189 | I11: =IF(E8="","",E11-F11) -> 1358971.255 | J11: =IF(E8="","",IFERROR((E11/F11-1)*100,"ND")) -> 9.794155675 | K11: =IF(E8="","",IFERROR((E11/VLOOKUP(B11&"|"&VLOOKUP(TDPrimas!$B$4,Cat!R:T,2,0),'TD Operación'!A:D,4,0))*100,"ND")) -> 4.345692085 | L11: =IF(E8="","",(VLOOKUP(B11,'TDPrimas Vida'!$B:$N,13,0))) -> 5.418925237
B12: =IF(C12="",B7,D12) -> Metlife México | C12: =IF('TDPrimas Vida'!A7="","",'TDPrimas Vida'!A7) -> 1 | D12: =IF('TDPrimas Vida'!B7="","",'TDPrimas Vida'!B7) -> Metlife México | E12: =IF('TDPrimas Vida'!C7="","",'TDPrimas Vida'!C7) -> 27318453.45 | F12: =IF('TDPrimas Vida'!D7="","",'TDPrimas Vida'!D7) -> 25834248.85 | G12: =IF('TDPrimas Vida'!C7="","",IFERROR((E12/VLOOKUP("TOTAL",$D$12:$L$312,2,0))*100,"")) -> 20.02875587 | H12: =IF('TDPrimas Vida'!C7="","",IFERROR((E12/VLOOKUP("TOTAL",$D$12:$L$312,3,0))*100,"")) -> 20.36775688 | I12: =IF('TDPrimas Vida'!C7="","",E12-F12) -> 1484204.592 | J12: =IFERROR(IF('TDPrimas Vida'!C7="","",(E12/F12-1)*100),"ND") -> 5.745104494 | K12: =IFERROR((E12/VLOOKUP(B12&"|"&VLOOKUP(TDPrimas!$B$4,Cat!R:T,2,0),'TD Operación'!A:D,4,0))*100,"ND") -> 70.25954291 | L12: =IF('TDPrimas Vida'!E7="","",'TDPrimas Vida'!E7) -> 70.25954291
B13: =IF(C13="",B12,D13) -> Metlife México | D13: =IF(D12="","","1er Año") -> 1er Año | E13: =IF(E12="","",(VLOOKUP(B13,'TDPrimas Vida'!$B:$N,5,0))) -> 4552954.008 | F13: =IF(E12="","",(VLOOKUP(B13,'TDPrimas Vida'!$B:$N,6,0))) -> 4305259.649 | G13: =IFERROR((E13/VLOOKUP("TOTAL",$D$12:$L$312,2,0))*100,"") -> 3.338036851 | H13: =IFERROR((E13/VLOOKUP("TOTAL",$D$12:$L$312,3,0))*100,"") -> 3.39453551 | I13: =IF(E12="","",E13-F13) -> 247694.3598 | J13: =IF(E12="","",IFERROR((E13/F13-1)*100,"ND")) -> 5.753296664 | K13: =IF(E12="","",IFERROR((E13/VLOOKUP(B13&"|"&VLOOKUP(TDPrimas!$B$4,Cat!R:T,2,0),'TD Operación'!A:D,4,0))*100,"ND")) -> 11.70961117 | L13: =IF(E12="","",(VLOOKUP(B13,'TDPrimas Vida'!$B:$N,7,0))) -> 11.70961117
B14: Metlife México | D14: =IF(D13="","","Renovación") -> Renovación | E14: =IF(E12="","",(VLOOKUP(B14,'TDPrimas Vida'!$B:$N,8,0))) -> 19555964.16 | F14: =IF(E12="","",(VLOOKUP(B14,'TDPrimas Vida'!$B:$N,9,0))) -> 18581390.38 | G14: =IFERROR((E14/VLOOKUP("TOTAL",$D$12:$L$312,2,0))*100,"") -> 14.337621 | H14: =IFERROR((E14/VLOOKUP("TOTAL",$D$12:$L$312,3,0))*100,"") -> 14.58029549 | I14: =IF(E12="","",E14-F14) -> 974573.7784 | J14: =IF(E12="","",IFERROR((E14/F14-1)*100,"ND")) -> 5.244891574 | K14: =IF(E12="","",IFERROR((E14/VLOOKUP(B14&"|"&VLOOKUP(TDPrimas!$B$4,Cat!R:T,2,0),'TD Operación'!A:D,4,0))*100,"ND")) -> 50.29542048 | L14: =IF(E12="","",(VLOOKUP(B14,'TDPrimas Vida'!$B:$N,10,0))) -> 50.29542048
B15: Metlife México | D15: =IF(D14="","","Únicas") -> Únicas | E15: =IF(E13="","",(VLOOKUP(B15,'TDPrimas Vida'!$B:$N,11,0))) -> 3209535.28 | F15: =IF(E13="","",(VLOOKUP(B15,'TDPrimas Vida'!$B:$N,12,0))) -> 2947598.826 | G15: =IFERROR((E15/VLOOKUP("TOTAL",$D$12:$L$312,2,0))*100,"") -> 2.353098015 | H15: =IFERROR((E15/VLOOKUP("TOTAL",$D$12:$L$312,3,0))*100,"") -> 2.392925881 | I15: =IF(E12="","",E15-F15) -> 261936.4537 | J15: =IF(E12="","",IFERROR((E15/F15-1)*100,"ND")) -> 8.886434998 | K15: =IF(E12="","",IFERROR((E15/VLOOKUP(B15&"|"&VLOOKUP(TDPrimas!$B$4,Cat!R:T,2,0),'TD Operación'!A:D,4,0))*100,"ND")) -> 8.254511265 | L15: =IF(E12="","",(VLOOKUP(B15,'TDPrimas Vida'!$B:$N,13,0))) -> 8.254511265
B16: BBVA Bancomer | C16: =IF('TDPrimas Vida'!A8="","",'TDPrimas Vida'!A8) -> 2 | D16: =IF('TDPrimas Vida'!B8="","",'TDPrimas Vida'!B8) -> BBVA Bancomer | E16: =IF('TDPrimas Vida'!C8="","",'TDPrimas Vida'!C8) -> 23210937.64 | F16: =IF('TDPrimas Vida'!D8="","",'TDPrimas Vida'!D8) -> 22596794.93 | G16: =IF('TDPrimas Vida'!C8="","",IFERROR((E16/VLOOKUP("TOTAL",$D$12:$L$312,2,0))*100,"")) -> 17.01729582 | H16: =IF('TDPrimas Vida'!C8="","",IFERROR((E16/VLOOKUP("TOTAL",$D$12:$L$312,3,0))*100,"")) -> 17.30532571 | I16: =IF('TDPrimas Vida'!C8="","",E16-F16) -> 614142.7067 | J16: =IFERROR(IF('TDPrimas Vida'!C8="","",(E16/F16-1)*100),"ND") -> 2.717831039 | K16: =IF(E16="","",IFERROR((E16/VLOOKUP(D16&"|"&VLOOKUP(TDPrimas!$B$4,Cat!R:T,2,0),'TD Operación'!A:D,4,0))*100,"ND")) -> 81.15977443 | L16: =IF('TDPrimas Vida'!E8="","",'TDPrimas Vida'!E8) -> 81.15977443
B17: BBVA Bancomer | D17: =IF(D16="","","1er Año") -> 1er Año | E17: =IF(E16="","",(VLOOKUP(B17,'TDPrimas Vida'!$B:$N,5,0))) -> 20352632.24 | F17: =IF(E16="","",(VLOOKUP(B17,'TDPrimas Vida'!$B:$N,6,0))) -> 20235488.4 | G17: =IFERROR((E17/VLOOKUP("TOTAL",$D$12:$L$312,2,0))*100,"") -> 14.92170497 | H17: =IFERROR((E17/VLOOKUP("TOTAL",$D$12:$L$312,3,0))*100,"") -> 15.17426549 | I17: =IF(E16="","",E17-F17) -> 117143.8409 | J17: =IF(E16="","",IFERROR((E17/F17-1)*100,"ND")) -> 0.5789029579 | K17: =IF(E16="","",IFERROR((E17/VLOOKUP(B17&"|"&VLOOKUP(TDPrimas!$B$4,Cat!R:T,2,0),'TD Operación'!A:D,4,0))*100,"ND")) -> 71.1653733 | L17: =IF(E16="","",(VLOOKUP(B17,'TDPrimas Vida'!$B:$N,7,0))) -> 71.1653733
B18: BBVA Bancomer | D18: =IF(D17="","","Renovación") -> Renovación | E18: =IF(E16="","",(VLOOKUP(B18,'TDPrimas Vida'!$B:$N,8,0))) -> 1829783.148 | F18: =IF(E16="","",(VLOOKUP(B18,'TDPrimas Vida'!$B:$N,9,0))) -> 1765060.483 | G18: =IFERROR((E18/VLOOKUP("TOTAL",$D$12:$L$312,2,0))*100,"") -> 1.341521036 | H18: =IFERROR((E18/VLOOKUP("TOTAL",$D$12:$L$312,3,0))*100,"") -> 1.364227238 | I18: =IF(E16="","",E18-F18) -> 64722.66515 | J18: =IF(E16="","",IFERROR((E18/F18-1)*100,"ND")) -> 3.666880868 | K18: =IF(E16="","",IFERROR((E18/VLOOKUP(B18&"|"&VLOOKUP(TDPrimas!$B$4,Cat!R:T,2,0),'TD Operación'!A:D,4,0))*100,"ND")) -> 6.398052067 | L18: =IF(E16="","",(VLOOKUP(B18,'TDPrimas Vida'!$B:$N,10,0))) -> 6.398052067
B19: BBVA Bancomer | D19: =IF(D18="","","Únicas") -> Únicas | E19: =IF(E17="","",(VLOOKUP(B19,'TDPrimas Vida'!$B:$N,11,0))) -> 1028522.25 | F19: =IF(E17="","",(VLOOKUP(B19,'TDPrimas Vida'!$B:$N,12,0))) -> 596246.0496 | G19: =IFERROR((E19/VLOOKUP("TOTAL",$D$12:$L$312,2,0))*100,"") -> 0.754069812 | H19: =IFERROR((E19/VLOOKUP("TOTAL",$D$12:$L$312,3,0))*100,"") -> 0.7668329825 | I19: =IF(E16="","",E19-F19) -> 432276.2006 | J19: =IF(E16="","",IFERROR((E19/F19-1)*100,"ND")) -> 72.49963348 | K19: =IF(E16="","",IFERROR((E19/VLOOKUP(B19&"|"&VLOOKUP(TDPrimas!$B$4,Cat!R:T,2,0),'TD Operación'!A:D,4,0))*100,"ND")) -> 3.596349062 | L19: =IF(E16="","",(VLOOKUP(B19,'TDPrimas Vida'!$B:$N,13,0))) -> 3.596349062
B20: =IF(C20="",B16,D20) -> G.N.P. | C20: =IF('TDPrimas Vida'!A9="","",'TDPrimas Vida'!A9) -> 3 | D20: =IF('TDPrimas Vida'!B9="","",'TDPrimas Vida'!B9) -> G.N.P. | E20: =IF('TDPrimas Vida'!C9="","",'TDPrimas Vida'!C9) -> 14839603.46 | F20: =IF('TDPrimas Vida'!D9="","",'TDPrimas Vida'!D9) -> 14136497.58 | G20: =IF('TDPrimas Vida'!C9="","",IFERROR((E20/VLOOKUP("TOTAL",$D$12:$L$312,2,0))*100,"")) -> 10.87978115 | H20: =IF('TDPrimas Vida'!C9="","",IFERROR((E20/VLOOKUP("TOTAL",$D$12:$L$312,3,0))*100,"")) -> 11.06392922 | I20: =IF('TDPrimas Vida'!C9="","",E20-F20) -> 703105.8792 | J20: =IFERROR(IF('TDPrimas Vida'!C9="","",(E20/F20-1)*100),"ND") -> 4.973692212 | K20: =IF(E20="","",IFERROR((E20/VLOOKUP(D20&"|"&VLOOKUP(TDPrimas!$B$4,Cat!R:T,2,0),'TD Operación'!A:D,4,0))*100,"ND")) -> 34.83250395 | L20: =IF('TDPrimas Vida'!E9="","",'TDPrimas Vida'!E9) -> 34.83250395
B21: =IF(C21="",B20,D21) -> G.N.P. | D21: =IF(D20="","","1er Año") -> 1er Año | E21: =IF(E20="","",(VLOOKUP(B21,'TDPrimas Vida'!$B:$N,5,0))) -> 3014544.09 | F21: =IF(E20="","",(VLOOKUP(B21,'TDPrimas Vida'!$B:$N,6,0))) -> 2897814.091 | G21: =IFERROR((E21/VLOOKUP("TOTAL",$D$12:$L$312,2,0))*100,"") -> 2.21013857 | H21: =IFERROR((E21/VLOOKUP("TOTAL",$D$12:$L$312,3,0))*100,"") -> 2.247546745 | I21: =IF(E20="","",E21-F21) -> 116729.9984 | J21: =IF(E20="","",IFERROR((E21/F21-1)*100,"ND")) -> 4.028208669 | K21: =IF(E20="","",IFERROR((E21/VLOOKUP(B21&"|"&VLOOKUP(TDPrimas!$B$4,Cat!R:T,2,0),'TD Operación'!A:D,4,0))*100,"ND")) -> 7.075938328 | L21: =IF(E20="","",(VLOOKUP(B21,'TDPrimas Vida'!$B:$N,7,0))) -> 7.075938328
B22: =IF(C22="",B21,D22) -> G.N.P. | D22: =IF(D21="","","Renovación") -> Renovación | E22: =IF(E20="","",(VLOOKUP(B22,'TDPrimas Vida'!$B:$N,8,0))) -> 8374876.286 | F22: =IF(E20="","",(VLOOKUP(B22,'TDPrimas Vida'!$B:$N,9,0))) -> 7982219.842 | G22: =IFERROR((E22/VLOOKUP("TOTAL",$D$12:$L$312,2,0))*100,"") -> 6.140111588 | H22: =IFERROR((E22/VLOOKUP("TOTAL",$D$12:$L$312,3,0))*100,"") -> 6.244037365 | I22: =IF(E20="","",E22-F22) -> 392656.444 | J22: =IF(E20="","",IFERROR((E22/F22-1)*100,"ND")) -> 4.919138433 | K22: =IF(E20="","",IFERROR((E22/VLOOKUP(B22&"|"&VLOOKUP(TDPrimas!$B$4,Cat!R:T,2,0),'TD Operación'!A:D,4,0))*100,"ND")) -> 19.65806648 | L22: =IF(E20="","",(VLOOKUP(B22,'TDPrimas Vida'!$B:$N,10,0))) -> 19.65806648
B23: =IF(C23="",B22,D23) -> G.N.P. | D23: =IF(D22="","","Únicas") -> Únicas | E23: =IF(E21="","",(VLOOKUP(B23,'TDPrimas Vida'!$B:$N,11,0))) -> 3450183.085 | F23: =IF(E21="","",(VLOOKUP(B23,'TDPrimas Vida'!$B:$N,12,0))) -> 3256463.648 | G23: =IFERROR((E23/VLOOKUP("TOTAL",$D$12:$L$312,2,0))*100,"") -> 2.529530995 | H23: =IFERROR((E23/VLOOKUP("TOTAL",$D$12:$L$312,3,0))*100,"") -> 2.572345114 | I23: =IF(E20="","",E23-F23) -> 193719.4368 | J23: =IF(E20="","",IFERROR((E23/F23-1)*100,"ND")) -> 5.948767058 | K23: =IF(E20="","",IFERROR((E23/VLOOKUP(B23&"|"&VLOOKUP(TDPrimas!$B$4,Cat!R:T,2,0),'TD Operación'!A:D,4,0))*100,"ND")) -> 8.098499144 | L23: =IF(E20="","",(VLOOKUP(B23,'TDPrimas Vida'!$B:$N,13,0))) -> 8.098499144
B24: =IF(C24="",B20,D24) -> Monterrey New York Life | C24: =IF('TDPrimas Vida'!A10="","",'TDPrimas Vida'!A10) -> 4 | D24: =IF('TDPrimas Vida'!B10="","",'TDPrimas Vida'!B10) -> Monterrey New York Life | E24: =IF('TDPrimas Vida'!C10="","",'TDPrimas Vida'!C10) -> 12366540.38 | F24: =IF('TDPrimas Vida'!D10="","",'TDPrimas Vida'!D10) -> 11486031.33 | G24: =IF('TDPrimas Vida'!C10="","",IFERROR((E24/VLOOKUP("TOTAL",$D$12:$L$312,2,0))*100,"")) -> 9.066633976 | H24: =IF('TDPrimas Vida'!C10="","",IFERROR((E24/VLOOKUP("TOTAL",$D$12:$L$312,3,0))*100,"")) -> 9.220093236 | I24: =IF('TDPrimas Vida'!C10="","",E24-F24) -> 880509.0479 | J24: =IFERROR(IF('TDPrimas Vida'!C10="","",(E24/F24-1)*100),"ND") -> 7.665911946 | K24: =IF(E24="","",IFERROR((E24/VLOOKUP(D24&"|"&VLOOKUP(TDPrimas!$B$4,Cat!R:T,2,0),'TD Operación'!A:D,4,0))*100,"ND")) -> 67.31191374 | L24: =IF('TDPrimas Vida'!E10="","",'TDPrimas Vida'!E10) -> 67.31191374
B25: =IF(C25="",B24,D25) -> Monterrey New York Life | D25: =IF(D24="","","1er Año") -> 1er Año | E25: =IF(E24="","",(VLOOKUP(B25,'TDPrimas Vida'!$B:$N,5,0))) -> 1101765.55 | F25: =IF(E24="","",(VLOOKUP(B25,'TDPrimas Vida'!$B:$N,6,0))) -> 1071158.749 | G25: =IFERROR((E25/VLOOKUP("TOTAL",$D$12:$L$312,2,0))*100,"") -> 0.8077687586 | H25: =IFERROR((E25/VLOOKUP("TOTAL",$D$12:$L$312,3,0))*100,"") -> 0.8214408221 | I25: =IF(E24="","",E25-F25) -> 30606.80141 | J25: =IF(E24="","",IFERROR((E25/F25-1)*100,"ND")) -> 2.857354379 | K25: =IF(E24="","",IFERROR((E25/VLOOKUP(B25&"|"&VLOOKUP(TDPrimas!$B$4,Cat!R:T,2,0),'TD Operación'!A:D,4,0))*100,"ND")) -> 5.996984233 | L25: =IF(E24="","",(VLOOKUP(B25,'TDPrimas Vida'!$B:$N,7,0))) -> 5.996984233
B26: =IF(C26="",B25,D26) -> Monterrey New York Life | D26: =IF(D25="","","Renovación") -> Renovación | E26: =IF(E24="","",(VLOOKUP(B26,'TDPrimas Vida'!$B:$N,8,0))) -> 8158729.689 | F26: =IF(E24="","",(VLOOKUP(B26,'TDPrimas Vida'!$B:$N,9,0))) -> 7477865.285 | G26: =IFERROR((E26/VLOOKUP("TOTAL",$D$12:$L$312,2,0))*100,"") -> 5.981641877 | H26: =IFERROR((E26/VLOOKUP("TOTAL",$D$12:$L$312,3,0))*100,"") -> 6.082885441 | I26: =IF(E24="","",E26-F26) -> 680864.4043 | J26: =IF(E24="","",IFERROR((E26/F26-1)*100,"ND")) -> 9.105063789 | K26: =IF(E24="","",IFERROR((E26/VLOOKUP(B26&"|"&VLOOKUP(TDPrimas!$B$4,Cat!R:T,2,0),'TD Operación'!A:D,4,0))*100,"ND")) -> 44.40851623 | L26: =IF(E24="","",(VLOOKUP(B26,'TDPrimas Vida'!$B:$N,10,0))) -> 44.40851623
B27: =IF(C27="",B26,D27) -> Monterrey New York Life | D27: =IF(D26="","","Únicas") -> Únicas | E27: =IF(E25="","",(VLOOKUP(B27,'TDPrimas Vida'!$B:$N,11,0))) -> 3106045.139 | F27: =IF(E25="","",(VLOOKUP(B27,'TDPrimas Vida'!$B:$N,12,0))) -> 2937007.297 | G27: =IFERROR((E27/VLOOKUP("TOTAL",$D$12:$L$312,2,0))*100,"") -> 2.27722334 | H27: =IFERROR((E27/VLOOKUP("TOTAL",$D$12:$L$312,3,0))*100,"") -> 2.315766973 | I27: =IF(E24="","",E27-F27) -> 169037.8422 | J27: =IF(E24="","",IFERROR((E27/F27-1)*100,"ND")) -> 5.755445087 | K27: =IF(E24="","",IFERROR((E27/VLOOKUP(B27&"|"&VLOOKUP(TDPrimas!$B$4,Cat!R:T,2,0),'TD Operación'!A:D,4,0))*100,"ND")) -> 16.90641328 | L27: =IF(E24="","",(VLOOKUP(B27,'TDPrimas Vida'!$B:$N,13,0))) -> 16.90641328
B28: =IF(C28="",B24,D28) -> Banorte | C28: =IF('TDPrimas Vida'!A11="","",'TDPrimas Vida'!A11) -> 5 | D28: =IF('TDPrimas Vida'!B11="","",'TDPrimas Vida'!B11) -> Banorte | E28: =IF('TDPrimas Vida'!C11="","",'TDPrimas Vida'!C11) -> 11676310.84 | F28: =IF('TDPrimas Vida'!D11="","",'TDPrimas Vida'!D11) -> 10641220.85 | G28: =IF('TDPrimas Vida'!C11="","",IFERROR((E28/VLOOKUP("TOTAL",$D$12:$L$312,2,0))*100,"")) -> 8.560586334 | H28: =IF('TDPrimas Vida'!C11="","",IFERROR((E28/VLOOKUP("TOTAL",$D$12:$L$312,3,0))*100,"")) -> 8.705480376 | I28: =IF('TDPrimas Vida'!C11="","",E28-F28) -> 1035089.986 | J28: =IFERROR(IF('TDPrimas Vida'!C11="","",(E28/F28-1)*100),"ND") -> 9.727173232 | K28: =IF(E28="","",IFERROR((E28/VLOOKUP(D28&"|"&VLOOKUP(TDPrimas!$B$4,Cat!R:T,2,0),'TD Operación'!A:D,4,0))*100,"ND")) -> 63.08131109 | L28: =IF('TDPrimas Vida'!E11="","",'TDPrimas Vida'!E11) -> 63.08131109
B29: =IF(C29="",B28,D29) -> Banorte | D29: =IF(D28="","","1er Año") -> 1er Año | E29: =IF(E28="","",(VLOOKUP(B29,'TDPrimas Vida'!$B:$N,5,0))) -> 2819216.692 | F29: =IF(E28="","",(VLOOKUP(B29,'TDPrimas Vida'!$B:$N,6,0))) -> 1953400.795 | G29: =IFERROR((E29/VLOOKUP("TOTAL",$D$12:$L$312,2,0))*100,"") -> 2.066932631 | H29: =IFERROR((E29/VLOOKUP("TOTAL",$D$12:$L$312,3,0))*100,"") -> 2.101916943 | I29: =IF(E28="","",E29-F29) -> 865815.8966 | J29: =IF(E28="","",IFERROR((E29/F29-1)*100,"ND")) -> 44.32351511 | K29: =IF(E28="","",IFERROR((E29/VLOOKUP(B29&"|"&VLOOKUP(TDPrimas!$B$4,Cat!R:T,2,0),'TD Operación'!A:D,4,0))*100,"ND")) -> 15.23082827 | L29: =IF(E28="","",(VLOOKUP(B29,'TDPrimas Vida'!$B:$N,7,0))) -> 15.23082827
B30: =IF(C30="",B29,D30) -> Banorte | D30: =IF(D29="","","Renovación") -> Renovación | E30: =IF(E28="","",(VLOOKUP(B30,'TDPrimas Vida'!$B:$N,8,0))) -> 7429052.427 | F30: =IF(E28="","",(VLOOKUP(B30,'TDPrimas Vida'!$B:$N,9,0))) -> 7132290.461 | G30: =IFERROR((E30/VLOOKUP("TOTAL",$D$12:$L$312,2,0))*100,"") -> 5.446672803 | H30: =IFERROR((E30/VLOOKUP("TOTAL",$D$12:$L$312,3,0))*100,"") -> 5.538861633 | I30: =IF(E28="","",E30-F30) -> 296761.9656 | J30: =IF(E28="","",IFERROR((E30/F30-1)*100,"ND")) -> 4.16082277 | K30: =IF(E28="","",IFERROR((E30/VLOOKUP(B30&"|"&VLOOKUP(TDPrimas!$B$4,Cat!R:T,2,0),'TD Operación'!A:D,4,0))*100,"ND")) -> 40.13548232 | L30: =IF(E28="","",(VLOOKUP(B30,'TDPrimas Vida'!$B:$N,10,0))) -> 40.13548232
B31: =IF(C31="",B30,D31) -> Banorte | D31: =IF(D30="","","Únicas") -> Únicas | E31: =IF(E29="","",(VLOOKUP(B31,'TDPrimas Vida'!$B:$N,11,0))) -> 1428041.72 | F31: =IF(E29="","",(VLOOKUP(B31,'TDPrimas Vida'!$B:$N,12,0))) -> 1555529.596 | G31: =IFERROR((E31/VLOOKUP("TOTAL",$D$12:$L$312,2,0))*100,"") -> 1.0469809 | H31: =IFERROR((E31/VLOOKUP("TOTAL",$D$12:$L$312,3,0))*100,"") -> 1.0647018 | I31: =IF(E28="","",E31-F31) -> -127487.8759 | J31: =IF(E28="","",IFERROR((E31/F31-1)*100,"ND")) -> -8.195785939 | K31: =IF(E28="","",IFERROR((E31/VLOOKUP(B31&"|"&VLOOKUP(TDPrimas!$B$4,Cat!R:T,2,0),'TD Operación'!A:D,4,0))*100,"ND")) -> 7.715000503 | L31: =IF(E28="","",(VLOOKUP(B31,'TDPrimas Vida'!$B:$N,13,0))) -> 7.715000503
B32: =IF(C32="",B28,D32) -> TOTAL GRANDES | C32: =IF('TDPrimas Vida'!A12="","",'TDPrimas Vida'!A12) -> 5.1 | D32: =IF('TDPrimas Vida'!B12="","",'TDPrimas Vida'!B12) -> TOTAL GRANDES | E32: =IF('TDPrimas Vida'!C12="","",'TDPrimas Vida'!C12) -> 89411845.76 | F32: =IF('TDPrimas Vida'!D12="","",'TDPrimas Vida'!D12) -> 84694793.55 | G32: =IF('TDPrimas Vida'!C12="","",IFERROR((E32/VLOOKUP("TOTAL",$D$12:$L$312,2,0))*100,"")) -> 65.55305315 | H32: =IF('TDPrimas Vida'!C12="","",IFERROR((E32/VLOOKUP("TOTAL",$D$12:$L$312,3,0))*100,"")) -> 66.66258542 | I32: =IF('TDPrimas Vida'!C12="","",E32-F32) -> 4717052.212 | J32: =IFERROR(IF('TDPrimas Vida'!C12="","",(E32/F32-1)*100),"ND") -> 5.569471291 | K32: =IF(E32="","",IFERROR((E32/VLOOKUP(D32&"|"&VLOOKUP(TDPrimas!$B$4,Cat!R:T,2,0),'TD Operación'!A:D,4,0))*100,"ND")) -> 58.01473883 | L32: =IF('TDPrimas Vida'!E12="","",'TDPrimas Vida'!E12) -> 60.83848132
B33: =IF(C33="",B32,D33) -> TOTAL GRANDES | D33: =IF(D32="","","1er Año") -> 1er Año | E33: =IF(E32="","",(VLOOKUP(B33,'TDPrimas Vida'!$B:$N,5,0))) -> 31841112.58 | F33: =IF(E32="","",(VLOOKUP(B33,'TDPrimas Vida'!$B:$N,6,0))) -> 30463121.69 | G33: =IFERROR((E33/VLOOKUP("TOTAL",$D$12:$L$312,2,0))*100,"") -> 23.34458178 | H33: =IFERROR((E33/VLOOKUP("TOTAL",$D$12:$L$312,3,0))*100,"") -> 23.73970551 | I33: =IF(E32="","",E33-F33) -> 1377990.897 | J33: =IF(E32="","",IFERROR((E33/F33-1)*100,"ND")) -> 4.523472385 | K33: =IF(E32="","",IFERROR((E33/VLOOKUP(B33&"|"&VLOOKUP(TDPrimas!$B$4,Cat!R:T,2,0),'TD Operación'!A:D,4,0))*100,"ND")) -> 20.66005701 | L33: =IF(E32="","",(VLOOKUP(B33,'TDPrimas Vida'!$B:$N,7,0))) -> 21.6656408
B34: =IF(C34="",B33,D34) -> TOTAL GRANDES | D34: =IF(D33="","","Renovación") -> Renovación | E34: =IF(E32="","",(VLOOKUP(B34,'TDPrimas Vida'!$B:$N,8,0))) -> 45348405.71 | F34: =IF(E32="","",(VLOOKUP(B34,'TDPrimas Vida'!$B:$N,9,0))) -> 42938826.45 | G34: =IFERROR((E34/VLOOKUP("TOTAL",$D$12:$L$312,2,0))*100,"") -> 33.24756831 | H34: =IFERROR((E34/VLOOKUP("TOTAL",$D$12:$L$312,3,0))*100,"") -> 33.81030716 | I34: =IF(E32="","",E34-F34) -> 2409579.257 | J34: =IF(E32="","",IFERROR((E34/F34-1)*100,"ND")) -> 5.611656062 | K34: =IF(E32="","",IFERROR((E34/VLOOKUP(B34&"|"&VLOOKUP(TDPrimas!$B$4,Cat!R:T,2,0),'TD Operación'!A:D,4,0))*100,"ND")) -> 29.42424341 | L34: =IF(E32="","",(VLOOKUP(B34,'TDPrimas Vida'!$B:$N,10,0))) -> 30.8564051
B35: =IF(C35="",B34,D35) -> TOTAL GRANDES | D35: =IF(D34="","","Únicas") -> Únicas | E35: =IF(E33="","",(VLOOKUP(B35,'TDPrimas Vida'!$B:$N,11,0))) -> 12222327.47 | F35: =IF(E33="","",(VLOOKUP(B35,'TDPrimas Vida'!$B:$N,12,0))) -> 11292845.42 | G35: =IFERROR((E35/VLOOKUP("TOTAL",$D$12:$L$312,2,0))*100,"") -> 8.960903062 | H35: =IFERROR((E35/VLOOKUP("TOTAL",$D$12:$L$312,3,0))*100,"") -> 9.11257275 | I35: =IF(E32="","",E35-F35) -> 929482.0573 | J35: =IF(E32="","",IFERROR((E35/F35-1)*100,"ND")) -> 8.230716202 | K35: =IF(E32="","",IFERROR((E35/VLOOKUP(B35&"|"&VLOOKUP(TDPrimas!$B$4,Cat!R:T,2,0),'TD Operación'!A:D,4,0))*100,"ND")) -> 7.930438414 | L35: =IF(E32="","",(VLOOKUP(B35,'TDPrimas Vida'!$B:$N,13,0))) -> 8.316435427
B36: =IF(C36="",B32,D36) -> Citibanamex Seguros | C36: =IF('TDPrimas Vida'!A13="","",'TDPrimas Vida'!A13) -> 6 | D36: =IF('TDPrimas Vida'!B13="","",'TDPrimas Vida'!B13) -> Citibanamex Seguros | E36: =IF('TDPrimas Vida'!C13="","",'TDPrimas Vida'!C13) -> 8414678.178 | F36: =IF('TDPrimas Vida'!D13="","",'TDPrimas Vida'!D13) -> 12347637.76 | G36: =IF('TDPrimas Vida'!C13="","",IFERROR((E36/VLOOKUP("TOTAL",$D$12:$L$312,2,0))*100,"")) -> 6.169292683 | H36: =IF('TDPrimas Vida'!C13="","",IFERROR((E36/VLOOKUP("TOTAL",$D$12:$L$312,3,0))*100,"")) -> 6.273712371 | I36: =IF('TDPrimas Vida'!C13="","",E36-F36) -> -3932959.585 | J36: =IFERROR(IF('TDPrimas Vida'!C13="","",(E36/F36-1)*100),"ND") -> -31.85191905 | K36: =IF(E36="","",IFERROR((E36/VLOOKUP(D36&"|"&VLOOKUP(TDPrimas!$B$4,Cat!R:T,2,0),'TD Operación'!A:D,4,0))*100,"ND")) -> 94.84170658 | L36: =IF('TDPrimas Vida'!E13="","",'TDPrimas Vida'!E13) -> 94.84170658
B37: =IF(C37="",B36,D37) -> Citibanamex Seguros | D37: =IF(D36="","","1er Año") -> 1er Año | E37: =IF(E36="","",(VLOOKUP(B37,'TDPrimas Vida'!$B:$N,5,0))) -> 4888035.687 | F37: =IF(E36="","",(VLOOKUP(B37,'TDPrimas Vida'!$B:$N,6,0))) -> 7390405.421 | G37: =IFERROR((E37/VLOOKUP("TOTAL",$D$12:$L$312,2,0))*100,"") -> 3.583704826 | H37: =IFERROR((E37/VLOOKUP("TOTAL",$D$12:$L$312,3,0))*100,"") -> 3.644361591 | I37: =IF(E36="","",E37-F37) -> -2502369.734 | J37: =IF(E36="","",IFERROR((E37/F37-1)*100,"ND")) -> -33.85970853 | K37: =IF(E36="","",IFERROR((E37/VLOOKUP(B37&"|"&VLOOKUP(TDPrimas!$B$4,Cat!R:T,2,0),'TD Operación'!A:D,4,0))*100,"ND")) -> 55.09297403 | L37: =IF(E36="","",(VLOOKUP(B37,'TDPrimas Vida'!$B:$N,7,0))) -> 55.09297403
B38: =IF(C38="",B37,D38) -> Citibanamex Seguros | D38: =IF(D37="","","Renovación") -> Renovación | E38: =IF(E36="","",(VLOOKUP(B38,'TDPrimas Vida'!$B:$N,8,0))) -> 3526642.491 | F38: =IF(E36="","",(VLOOKUP(B38,'TDPrimas Vida'!$B:$N,9,0))) -> 4957232.342 | G38: =IFERROR((E38/VLOOKUP("TOTAL",$D$12:$L$312,2,0))*100,"") -> 2.585587857 | H38: =IFERROR((E38/VLOOKUP("TOTAL",$D$12:$L$312,3,0))*100,"") -> 2.629350779 | I38: =IF(E36="","",E38-F38) -> -1430589.85 | J38: =IF(E36="","",IFERROR((E38/F38-1)*100,"ND")) -> -28.8586403 | K38: =IF(E36="","",IFERROR((E38/VLOOKUP(B38&"|"&VLOOKUP(TDPrimas!$B$4,Cat!R:T,2,0),'TD Operación'!A:D,4,0))*100,"ND")) -> 39.74873255 | L38: =IF(E36="","",(VLOOKUP(B38,'TDPrimas Vida'!$B:$N,10,0))) -> 39.74873255
B39: =IF(C39="",B38,D39) -> Citibanamex Seguros | D39: =IF(D38="","","Únicas") -> Únicas | E39: =IF(E37="","",(VLOOKUP(B39,'TDPrimas Vida'!$B:$N,11,0))) -> 0 | F39: =IF(E37="","",(VLOOKUP(B39,'TDPrimas Vida'!$B:$N,12,0))) -> 0 | G39: =IFERROR((E39/VLOOKUP("TOTAL",$D$12:$L$312,2,0))*100,"") -> 0 | H39: =IFERROR((E39/VLOOKUP("TOTAL",$D$12:$L$312,3,0))*100,"") -> 0 | I39: =IF(E36="","",E39-F39) -> 0 | J39: =IF(E36="","",IFERROR((E39/F39-1)*100,"ND")) -> ND | K39: =IF(E36="","",IFERROR((E39/VLOOKUP(B39&"|"&VLOOKUP(TDPrimas!$B$4,Cat!R:T,2,0),'TD Operación'!A:D,4,0))*100,"ND")) -> 0 | L39: =IF(E36="","",(VLOOKUP(B39,'TDPrimas Vida'!$B:$N,13,0))) -> 0
B40: =IF(C40="",B36,D40) -> Zurich Santander | C40: =IF('TDPrimas Vida'!A14="","",'TDPrimas Vida'!A14) -> 7 | D40: =IF('TDPrimas Vida'!B14="","",'TDPrimas Vida'!B14) -> Zurich Santander | E40: =IF('TDPrimas Vida'!C14="","",'TDPrimas Vida'!C14) -> 4825198.451 | F40: =IF('TDPrimas Vida'!D14="","",'TDPrimas Vida'!D14) -> 5262630.548 | G40: =IF('TDPrimas Vida'!C14="","",IFERROR((E40/VLOOKUP("TOTAL",$D$12:$L$312,2,0))*100,"")) -> 3.537635174 | H40: =IF('TDPrimas Vida'!C14="","",IFERROR((E40/VLOOKUP("TOTAL",$D$12:$L$312,3,0))*100,"")) -> 3.597512177 | I40: =IF('TDPrimas Vida'!C14="","",E40-F40) -> -437432.0971 | J40: =IFERROR(IF('TDPrimas Vida'!C14="","",(E40/F40-1)*100),"ND") -> -8.312042677 | K40: =IF(E40="","",IFERROR((E40/VLOOKUP(D40&"|"&VLOOKUP(TDPrimas!$B$4,Cat!R:T,2,0),'TD Operación'!A:D,4,0))*100,"ND")) -> 66.64071451 | L40: =IF('TDPrimas Vida'!E14="","",'TDPrimas Vida'!E14) -> 66.64071451
B41: =IF(C41="",B40,D41) -> Zurich Santander | D41: =IF(D40="","","1er Año") -> 1er Año | E41: =IF(E40="","",(VLOOKUP(B41,'TDPrimas Vida'!$B:$N,5,0))) -> 1897312.568 | F41: =IF(E40="","",(VLOOKUP(B41,'TDPrimas Vida'!$B:$N,6,0))) -> 2971722.7 | G41: =IFERROR((E41/VLOOKUP("TOTAL",$D$12:$L$312,2,0))*100,"") -> 1.391030803 | H41: =IFERROR((E41/VLOOKUP("TOTAL",$D$12:$L$312,3,0))*100,"") -> 1.414574994 | I41: =IF(E40="","",E41-F41) -> -1074410.132 | J41: =IF(E40="","",IFERROR((E41/F41-1)*100,"ND")) -> -36.15445451 | K41: =IF(E40="","",IFERROR((E41/VLOOKUP(B41&"|"&VLOOKUP(TDPrimas!$B$4,Cat!R:T,2,0),'TD Operación'!A:D,4,0))*100,"ND")) -> 26.20374405 | L41: =IF(E40="","",(VLOOKUP(B41,'TDPrimas Vida'!$B:$N,7,0))) -> 26.20374405
B42: =IF(C42="",B41,D42) -> Zurich Santander | D42: =IF(D41="","","Renovación") -> Renovación | E42: =IF(E40="","",(VLOOKUP(B42,'TDPrimas Vida'!$B:$N,8,0))) -> 688417.8136 | F42: =IF(E40="","",(VLOOKUP(B42,'TDPrimas Vida'!$B:$N,9,0))) -> 601578.4027 | G42: =IFERROR((E42/VLOOKUP("TOTAL",$D$12:$L$312,2,0))*100,"") -> 0.5047193594 | H42: =IFERROR((E42/VLOOKUP("TOTAL",$D$12:$L$312,3,0))*100,"") -> 0.5132620953 | I42: =IF(E40="","",E42-F42) -> 86839.41089 | J42: =IF(E40="","",IFERROR((E42/F42-1)*100,"ND")) -> 14.43526072 | K42: =IF(E40="","",IFERROR((E42/VLOOKUP(B42&"|"&VLOOKUP(TDPrimas!$B$4,Cat!R:T,2,0),'TD Operación'!A:D,4,0))*100,"ND")) -> 9.507723971 | L42: =IF(E40="","",(VLOOKUP(B42,'TDPrimas Vida'!$B:$N,10,0))) -> 9.507723971
B43: =IF(C43="",B42,D43) -> Zurich Santander | D43: =IF(D42="","","Únicas") -> Únicas | E43: =IF(E41="","",(VLOOKUP(B43,'TDPrimas Vida'!$B:$N,11,0))) -> 2239468.069 | F43: =IF(E41="","",(VLOOKUP(B43,'TDPrimas Vida'!$B:$N,12,0))) -> 1689329.446 | G43: =IFERROR((E43/VLOOKUP("TOTAL",$D$12:$L$312,2,0))*100,"") -> 1.641885011 | H43: =IFERROR((E43/VLOOKUP("TOTAL",$D$12:$L$312,3,0))*100,"") -> 1.669675088 | I43: =IF(E40="","",E43-F43) -> 550138.6238 | J43: =IF(E40="","",IFERROR((E43/F43-1)*100,"ND")) -> 32.56550256 | K43: =IF(E40="","",IFERROR((E43/VLOOKUP(B43&"|"&VLOOKUP(TDPrimas!$B$4,Cat!R:T,2,0),'TD Operación'!A:D,4,0))*100,"ND")) -> 30.92924649 | L43: =IF(E40="","",(VLOOKUP(B43,'TDPrimas Vida'!$B:$N,13,0))) -> 30.92924649
B44: =IF(C44="",B40,D44) -> Allianz México | C44: =IF('TDPrimas Vida'!A15="","",'TDPrimas Vida'!A15) -> 8 | D44: =IF('TDPrimas Vida'!B15="","",'TDPrimas Vida'!B15) -> Allianz México | E44: =IF('TDPrimas Vida'!C15="","",'TDPrimas Vida'!C15) -> 4577049.652 | F44: =IF('TDPrimas Vida'!D15="","",'TDPrimas Vida'!D15) -> 4437046.522 | G44: =IF('TDPrimas Vida'!C15="","",IFERROR((E44/VLOOKUP("TOTAL",$D$12:$L$312,2,0))*100,"")) -> 3.355702776 | H44: =IF('TDPrimas Vida'!C15="","",IFERROR((E44/VLOOKUP("TOTAL",$D$12:$L$312,3,0))*100,"")) -> 3.412500444 | I44: =IF('TDPrimas Vida'!C15="","",E44-F44) -> 140003.1298 | J44: =IFERROR(IF('TDPrimas Vida'!C15="","",(E44/F44-1)*100),"ND") -> 3.155322558 | K44: =IF(E44="","",IFERROR((E44/VLOOKUP(D44&"|"&VLOOKUP(TDPrimas!$B$4,Cat!R:T,2,0),'TD Operación'!A:D,4,0))*100,"ND")) -> 50.25662343 | L44: =IF('TDPrimas Vida'!E15="","",'TDPrimas Vida'!E15) -> 50.25662343
B45: =IF(C45="",B44,D45) -> Allianz México | D45: =IF(D44="","","1er Año") -> 1er Año | E45: =IF(E44="","",(VLOOKUP(B45,'TDPrimas Vida'!$B:$N,5,0))) -> 2149406.017 | F45: =IF(E44="","",(VLOOKUP(B45,'TDPrimas Vida'!$B:$N,6,0))) -> 2290813.003 | G45: =IFERROR((E45/VLOOKUP("TOTAL",$D$12:$L$312,2,0))*100,"") -> 1.575855253 | H45: =IFERROR((E45/VLOOKUP("TOTAL",$D$12:$L$312,3,0))*100,"") -> 1.60252773 | I45: =IF(E44="","",E45-F45) -> -141406.986 | J45: =IF(E44="","",IFERROR((E45/F45-1)*100,"ND")) -> -6.172786075 | K45: =IF(E44="","",IFERROR((E45/VLOOKUP(B45&"|"&VLOOKUP(TDPrimas!$B$4,Cat!R:T,2,0),'TD Operación'!A:D,4,0))*100,"ND")) -> 23.6007684 | L45: =IF(E44="","",(VLOOKUP(B45,'TDPrimas Vida'!$B:$N,7,0))) -> 23.6007684
B46: =IF(C46="",B45,D46) -> Allianz México | D46: =IF(D45="","","Renovación") -> Renovación | E46: =IF(E44="","",(VLOOKUP(B46,'TDPrimas Vida'!$B:$N,8,0))) -> 2427643.635 | F46: =IF(E44="","",(VLOOKUP(B46,'TDPrimas Vida'!$B:$N,9,0))) -> 2146233.519 | G46: =IFERROR((E46/VLOOKUP("TOTAL",$D$12:$L$312,2,0))*100,"") -> 1.779847523 | H46: =IFERROR((E46/VLOOKUP("TOTAL",$D$12:$L$312,3,0))*100,"") -> 1.809972714 | I46: =IF(E44="","",E46-F46) -> 281410.1158 | J46: =IF(E44="","",IFERROR((E46/F46-1)*100,"ND")) -> 13.11181255 | K46: =IF(E44="","",IFERROR((E46/VLOOKUP(B46&"|"&VLOOKUP(TDPrimas!$B$4,Cat!R:T,2,0),'TD Operación'!A:D,4,0))*100,"ND")) -> 26.65585503 | L46: =IF(E44="","",(VLOOKUP(B46,'TDPrimas Vida'!$B:$N,10,0))) -> 26.65585503
B47: =IF(C47="",B46,D47) -> Allianz México | D47: =IF(D46="","","Únicas") -> Únicas | E47: =IF(E45="","",(VLOOKUP(B47,'TDPrimas Vida'!$B:$N,11,0))) -> 0 | F47: =IF(E45="","",(VLOOKUP(B47,'TDPrimas Vida'!$B:$N,12,0))) -> 0 | G47: =IFERROR((E47/VLOOKUP("TOTAL",$D$12:$L$312,2,0))*100,"") -> 0 | H47: =IFERROR((E47/VLOOKUP("TOTAL",$D$12:$L$312,3,0))*100,"") -> 0 | I47: =IF(E44="","",E47-F47) -> 0 | J47: =IF(E44="","",IFERROR((E47/F47-1)*100,"ND")) -> ND | K47: =IF(E44="","",IFERROR((E47/VLOOKUP(B47&"|"&VLOOKUP(TDPrimas!$B$4,Cat!R:T,2,0),'TD Operación'!A:D,4,0))*100,"ND")) -> 0 | L47: =IF(E44="","",(VLOOKUP(B47,'TDPrimas Vida'!$B:$N,13,0))) -> 0
B48: =IF(C48="",B44,D48) -> Inbursa | C48: =IF('TDPrimas Vida'!A16="","",'TDPrimas Vida'!A16) -> 9 | D48: =IF('TDPrimas Vida'!B16="","",'TDPrimas Vida'!B16) -> Inbursa | E48: =IF('TDPrimas Vida'!C16="","",'TDPrimas Vida'!C16) -> 3081362.417 | F48: =IF('TDPrimas Vida'!D16="","",'TDPrimas Vida'!D16) -> 3143864.516 | G48: =IF('TDPrimas Vida'!C16="","",IFERROR((E48/VLOOKUP("TOTAL",$D$12:$L$312,2,0))*100,"")) -> 2.259126993 | H48: =IF('TDPrimas Vida'!C16="","",IFERROR((E48/VLOOKUP("TOTAL",$D$12:$L$312,3,0))*100,"")) -> 2.297364332 | I48: =IF('TDPrimas Vida'!C16="","",E48-F48) -> -62502.09933 | J48: =IFERROR(IF('TDPrimas Vida'!C16="","",(E48/F48-1)*100),"ND") -> -1.98806593 | K48: =IF(E48="","",IFERROR((E48/VLOOKUP(D48&"|"&VLOOKUP(TDPrimas!$B$4,Cat!R:T,2,0),'TD Operación'!A:D,4,0))*100,"ND")) -> 24.04737039 | L48: =IF('TDPrimas Vida'!E16="","",'TDPrimas Vida'!E16) -> 24.04737039
B49: =IF(C49="",B48,D49) -> Inbursa | D49: =IF(D48="","","1er Año") -> 1er Año | E49: =IF(E48="","",(VLOOKUP(B49,'TDPrimas Vida'!$B:$N,5,0))) -> 1948690.125 | F49: =IF(E48="","",(VLOOKUP(B49,'TDPrimas Vida'!$B:$N,6,0))) -> 2086856.862 | G49: =IFERROR((E49/VLOOKUP("TOTAL",$D$12:$L$312,2,0))*100,"") -> 1.428698694 | H49: =IFERROR((E49/VLOOKUP("TOTAL",$D$12:$L$312,3,0))*100,"") -> 1.452880441 | I49: =IF(E48="","",E49-F49) -> -138166.7373 | J49: =IF(E48="","",IFERROR((E49/F49-1)*100,"ND")) -> -6.620805662 | K49: =IF(E48="","",IFERROR((E49/VLOOKUP(B49&"|"&VLOOKUP(TDPrimas!$B$4,Cat!R:T,2,0),'TD Operación'!A:D,4,0))*100,"ND")) -> 15.20784214 | L49: =IF(E48="","",(VLOOKUP(B49,'TDPrimas Vida'!$B:$N,7,0))) -> 15.20784214
B50: =IF(C50="",B49,D50) -> Inbursa | D50: =IF(D49="","","Renovación") -> Renovación | E50: =IF(E48="","",(VLOOKUP(B50,'TDPrimas Vida'!$B:$N,8,0))) -> 1132672.292 | F50: =IF(E48="","",(VLOOKUP(B50,'TDPrimas Vida'!$B:$N,9,0))) -> 1057007.654 | G50: =IFERROR((E50/VLOOKUP("TOTAL",$D$12:$L$312,2,0))*100,"") -> 0.8304282989 | H50: =IFERROR((E50/VLOOKUP("TOTAL",$D$12:$L$312,3,0))*100,"") -> 0.8444838913 | I50: =IF(E48="","",E50-F50) -> 75664.63795 | J50: =IF(E48="","",IFERROR((E50/F50-1)*100,"ND")) -> 7.15838127 | K50: =IF(E48="","",IFERROR((E50/VLOOKUP(B50&"|"&VLOOKUP(TDPrimas!$B$4,Cat!R:T,2,0),'TD Operación'!A:D,4,0))*100,"ND")) -> 8.839528255 | L50: =IF(E48="","",(VLOOKUP(B50,'TDPrimas Vida'!$B:$N,10,0))) -> 8.839528255
B51: =IF(C51="",B50,D51) -> Inbursa | D51: =IF(D50="","","Únicas") -> Únicas | E51: =IF(E49="","",(VLOOKUP(B51,'TDPrimas Vida'!$B:$N,11,0))) -> 0 | F51: =IF(E49="","",(VLOOKUP(B51,'TDPrimas Vida'!$B:$N,12,0))) -> 0 | G51: =IFERROR((E51/VLOOKUP("TOTAL",$D$12:$L$312,2,0))*100,"") -> 0 | H51: =IFERROR((E51/VLOOKUP("TOTAL",$D$12:$L$312,3,0))*100,"") -> 0 | I51: =IF(E48="","",E51-F51) -> 0 | J51: =IF(E48="","",IFERROR((E51/F51-1)*100,"ND")) -> ND | K51: =IF(E48="","",IFERROR((E51/VLOOKUP(B51&"|"&VLOOKUP(TDPrimas!$B$4,Cat!R:T,2,0),'TD Operación'!A:D,4,0))*100,"ND")) -> 0 | L51: =IF(E48="","",(VLOOKUP(B51,'TDPrimas Vida'!$B:$N,13,0))) -> 0
B52: =IF(C52="",B48,D52) -> AXA Seguros | C52: =IF('TDPrimas Vida'!A17="","",'TDPrimas Vida'!A17) -> 10 | D52: =IF('TDPrimas Vida'!B17="","",'TDPrimas Vida'!B17) -> AXA Seguros | E52: =IF('TDPrimas Vida'!C17="","",'TDPrimas Vida'!C17) -> 2816308.991 | F52: =IF('TDPrimas Vida'!D17="","",'TDPrimas Vida'!D17) -> 2910306.753 | G52: =IF('TDPrimas Vida'!C17="","",IFERROR((E52/VLOOKUP("TOTAL",$D$12:$L$312,2,0))*100,"")) -> 2.064800825 | H52: =IF('TDPrimas Vida'!C17="","",IFERROR((E52/VLOOKUP("TOTAL",$D$12:$L$312,3,0))*100,"")) -> 2.099749055 | I52: =IF('TDPrimas Vida'!C17="","",E52-F52) -> -93997.76246 | J52: =IFERROR(IF('TDPrimas Vida'!C17="","",(E52/F52-1)*100),"ND") -> -3.229823192 | K52: =IF(E52="","",IFERROR((E52/VLOOKUP(D52&"|"&VLOOKUP(TDPrimas!$B$4,Cat!R:T,2,0),'TD Operación'!A:D,4,0))*100,"ND")) -> 11.03342628 | L52: =IF('TDPrimas Vida'!E17="","",'TDPrimas Vida'!E17) -> 11.03342628
B53: =IF(C53="",B52,D53) -> AXA Seguros | D53: =IF(D52="","","1er Año") -> 1er Año | E53: =IF(E52="","",(VLOOKUP(B53,'TDPrimas Vida'!$B:$N,5,0))) -> 586811.4678 | F53: =IF(E52="","",(VLOOKUP(B53,'TDPrimas Vida'!$B:$N,6,0))) -> 569625.6737 | G53: =IFERROR((E53/VLOOKUP("TOTAL",$D$12:$L$312,2,0))*100,"") -> 0.4302258052 | H53: =IFERROR((E53/VLOOKUP("TOTAL",$D$12:$L$312,3,0))*100,"") -> 0.4375076844 | I53: =IF(E52="","",E53-F53) -> 17185.79403 | J53: =IF(E52="","",IFERROR((E53/F53-1)*100,"ND")) -> 3.017032908 | K53: =IF(E52="","",IFERROR((E53/VLOOKUP(B53&"|"&VLOOKUP(TDPrimas!$B$4,Cat!R:T,2,0),'TD Operación'!A:D,4,0))*100,"ND")) -> 2.298945568 | L53: =IF(E52="","",(VLOOKUP(B53,'TDPrimas Vida'!$B:$N,7,0))) -> 2.298945568
B54: =IF(C54="",B53,D54) -> AXA Seguros | D54: =IF(D53="","","Renovación") -> Renovación | E54: =IF(E52="","",(VLOOKUP(B54,'TDPrimas Vida'!$B:$N,8,0))) -> 2227667.075 | F54: =IF(E52="","",(VLOOKUP(B54,'TDPrimas Vida'!$B:$N,9,0))) -> 2338140.439 | G54: =IFERROR((E54/VLOOKUP("TOTAL",$D$12:$L$312,2,0))*100,"") -> 1.633233012 | H54: =IFERROR((E54/VLOOKUP("TOTAL",$D$12:$L$312,3,0))*100,"") -> 1.660876648 | I54: =IF(E52="","",E54-F54) -> -110473.3639 | J54: =IF(E52="","",IFERROR((E54/F54-1)*100,"ND")) -> -4.724838682 | K54: =IF(E52="","",IFERROR((E54/VLOOKUP(B54&"|"&VLOOKUP(TDPrimas!$B$4,Cat!R:T,2,0),'TD Operación'!A:D,4,0))*100,"ND")) -> 8.727309586 | L54: =IF(E52="","",(VLOOKUP(B54,'TDPrimas Vida'!$B:$N,10,0))) -> 8.727309586
B55: =IF(C55="",B54,D55) -> AXA Seguros | D55: =IF(D54="","","Únicas") -> Únicas | E55: =IF(E53="","",(VLOOKUP(B55,'TDPrimas Vida'!$B:$N,11,0))) -> 1830.44806 | F55: =IF(E53="","",(VLOOKUP(B55,'TDPrimas Vida'!$B:$N,12,0))) -> 2540.64067 | G55: =IFERROR((E55/VLOOKUP("TOTAL",$D$12:$L$312,2,0))*100,"") -> 0.001342008522 | H55: =IFERROR((E55/VLOOKUP("TOTAL",$D$12:$L$312,3,0))*100,"") -> 0.001364722975 | I55: =IF(E52="","",E55-F55) -> -710.19261 | J55: =IF(E52="","",IFERROR((E55/F55-1)*100,"ND")) -> -27.95328825 | K55: =IF(E52="","",IFERROR((E55/VLOOKUP(B55&"|"&VLOOKUP(TDPrimas!$B$4,Cat!R:T,2,0),'TD Operación'!A:D,4,0))*100,"ND")) -> 0.007171128523 | L55: =IF(E52="","",(VLOOKUP(B55,'TDPrimas Vida'!$B:$N,13,0))) -> 0.007171128523
B56: =IF(C56="",B52,D56) -> HSBC Seguros | C56: =IF('TDPrimas Vida'!A18="","",'TDPrimas Vida'!A18) -> 11 | D56: =IF('TDPrimas Vida'!B18="","",'TDPrimas Vida'!B18) -> HSBC Seguros | E56: =IF('TDPrimas Vida'!C18="","",'TDPrimas Vida'!C18) -> 2810516.831 | F56: =IF('TDPrimas Vida'!D18="","",'TDPrimas Vida'!D18) -> 2661628.648 | G56: =IF('TDPrimas Vida'!C18="","",IFERROR((E56/VLOOKUP("TOTAL",$D$12:$L$312,2,0))*100,"")) -> 2.060554254 | H56: =IF('TDPrimas Vida'!C18="","",IFERROR((E56/VLOOKUP("TOTAL",$D$12:$L$312,3,0))*100,"")) -> 2.095430608 | I56: =IF('TDPrimas Vida'!C18="","",E56-F56) -> 148888.1831 | J56: =IFERROR(IF('TDPrimas Vida'!C18="","",(E56/F56-1)*100),"ND") -> 5.593875135 | K56: =IF(E56="","",IFERROR((E56/VLOOKUP(D56&"|"&VLOOKUP(TDPrimas!$B$4,Cat!R:T,2,0),'TD Operación'!A:D,4,0))*100,"ND")) -> 93.44240027 | L56: =IF('TDPrimas Vida'!E18="","",'TDPrimas Vida'!E18) -> 93.44240027
B57: =IF(C57="",B56,D57) -> HSBC Seguros | D57: =IF(D56="","","1er Año") -> 1er Año | E57: =IF(E56="","",(VLOOKUP(B57,'TDPrimas Vida'!$B:$N,5,0))) -> 1742244.943 | F57: =IF(E56="","",(VLOOKUP(B57,'TDPrimas Vida'!$B:$N,6,0))) -> 1755634.092 | G57: =IFERROR((E57/VLOOKUP("TOTAL",$D$12:$L$312,2,0))*100,"") -> 1.277341658 | H57: =IFERROR((E57/VLOOKUP("TOTAL",$D$12:$L$312,3,0))*100,"") -> 1.298961579 | I57: =IF(E56="","",E57-F57) -> -13389.14945 | J57: =IF(E56="","",IFERROR((E57/F57-1)*100,"ND")) -> -0.7626389525 | K57: =IF(E56="","",IFERROR((E57/VLOOKUP(B57&"|"&VLOOKUP(TDPrimas!$B$4,Cat!R:T,2,0),'TD Operación'!A:D,4,0))*100,"ND")) -> 57.92512876 | L57: =IF(E56="","",(VLOOKUP(B57,'TDPrimas Vida'!$B:$N,7,0))) -> 57.92512876
B58: =IF(C58="",B57,D58) -> HSBC Seguros | D58: =IF(D57="","","Renovación") -> Renovación | E58: =IF(E56="","",(VLOOKUP(B58,'TDPrimas Vida'!$B:$N,8,0))) -> 1068271.888 | F58: =IF(E56="","",(VLOOKUP(B58,'TDPrimas Vida'!$B:$N,9,0))) -> 905994.5556 | G58: =IFERROR((E58/VLOOKUP("TOTAL",$D$12:$L$312,2,0))*100,"") -> 0.7832125963 | H58: =IFERROR((E58/VLOOKUP("TOTAL",$D$12:$L$312,3,0))*100,"") -> 0.7964690292 | I58: =IF(E56="","",E58-F58) -> 162277.3326 | J58: =IF(E56="","",IFERROR((E58/F58-1)*100,"ND")) -> 17.91151299 | K58: =IF(E56="","",IFERROR((E58/VLOOKUP(B58&"|"&VLOOKUP(TDPrimas!$B$4,Cat!R:T,2,0),'TD Operación'!A:D,4,0))*100,"ND")) -> 35.51727151 | L58: =IF(E56="","",(VLOOKUP(B58,'TDPrimas Vida'!$B:$N,10,0))) -> 35.51727151
B59: =IF(C59="",B58,D59) -> HSBC Seguros | D59: =IF(D58="","","Únicas") -> Únicas | E59: =IF(E57="","",(VLOOKUP(B59,'TDPrimas Vida'!$B:$N,11,0))) -> 0 | F59: =IF(E57="","",(VLOOKUP(B59,'TDPrimas Vida'!$B:$N,12,0))) -> 0 | G59: =IFERROR((E59/VLOOKUP("TOTAL",$D$12:$L$312,2,0))*100,"") -> 0 | H59: =IFERROR((E59/VLOOKUP("TOTAL",$D$12:$L$312,3,0))*100,"") -> 0 | I59: =IF(E56="","",E59-F59) -> 0 | J59: =IF(E56="","",IFERROR((E59/F59-1)*100,"ND")) -> ND | K59: =IF(E56="","",IFERROR((E59/VLOOKUP(B59&"|"&VLOOKUP(TDPrimas!$B$4,Cat!R:T,2,0),'TD Operación'!A:D,4,0))*100,"ND")) -> 0 | L59: =IF(E56="","",(VLOOKUP(B59,'TDPrimas Vida'!$B:$N,13,0))) -> 0
B60: =IF(C60="",B56,D60) -> Mapfre México | C60: =IF('TDPrimas Vida'!A19="","",'TDPrimas Vida'!A19) -> 12 | D60: =IF('TDPrimas Vida'!B19="","",'TDPrimas Vida'!B19) -> Mapfre México | E60: =IF('TDPrimas Vida'!C19="","",'TDPrimas Vida'!C19) -> 2621174.193 | F60: =IF('TDPrimas Vida'!D19="","",'TDPrimas Vida'!D19) -> 2369796.855 | G60: =IF('TDPrimas Vida'!C19="","",IFERROR((E60/VLOOKUP("TOTAL",$D$12:$L$312,2,0))*100,"")) -> 1.921736093 | H60: =IF('TDPrimas Vida'!C19="","",IFERROR((E60/VLOOKUP("TOTAL",$D$12:$L$312,3,0))*100,"")) -> 1.95426285 | I60: =IF('TDPrimas Vida'!C19="","",E60-F60) -> 251377.3384 | J60: =IFERROR(IF('TDPrimas Vida'!C19="","",(E60/F60-1)*100),"ND") -> 10.60754798 | K60: =IF(E60="","",IFERROR((E60/VLOOKUP(D60&"|"&VLOOKUP(TDPrimas!$B$4,Cat!R:T,2,0),'TD Operación'!A:D,4,0))*100,"ND")) -> 20.03427326 | L60: =IF('TDPrimas Vida'!E19="","",'TDPrimas Vida'!E19) -> 20.03427326
B61: =IF(C61="",B60,D61) -> Mapfre México | D61: =IF(D60="","","1er Año") -> 1er Año | E61: =IF(E60="","",(VLOOKUP(B61,'TDPrimas Vida'!$B:$N,5,0))) -> 2199992.515 | F61: =IF(E60="","",(VLOOKUP(B61,'TDPrimas Vida'!$B:$N,6,0))) -> 1975049.299 | G61: =IFERROR((E61/VLOOKUP("TOTAL",$D$12:$L$312,2,0))*100,"") -> 1.612943174 | H61: =IFERROR((E61/VLOOKUP("TOTAL",$D$12:$L$312,3,0))*100,"") -> 1.64024339 | I61: =IF(E60="","",E61-F61) -> 224943.2164 | J61: =IF(E60="","",IFERROR((E61/F61-1)*100,"ND")) -> 11.38924565 | K61: =IF(E60="","",IFERROR((E61/VLOOKUP(B61&"|"&VLOOKUP(TDPrimas!$B$4,Cat!R:T,2,0),'TD Operación'!A:D,4,0))*100,"ND")) -> 16.81507903 | L61: =IF(E60="","",(VLOOKUP(B61,'TDPrimas Vida'!$B:$N,7,0))) -> 16.81507903
B62: =IF(C62="",B61,D62) -> Mapfre México | D62: =IF(D61="","","Renovación") -> Renovación | E62: =IF(E60="","",(VLOOKUP(B62,'TDPrimas Vida'!$B:$N,8,0))) -> 421348.1401 | F62: =IF(E60="","",(VLOOKUP(B62,'TDPrimas Vida'!$B:$N,9,0))) -> 394416.9167 | G62: =IFERROR((E62/VLOOKUP("TOTAL",$D$12:$L$312,2,0))*100,"") -> 0.3089149629 | H62: =IFERROR((E62/VLOOKUP("TOTAL",$D$12:$L$312,3,0))*100,"") -> 0.3141435695 | I62: =IF(E60="","",E62-F62) -> 26931.22339 | J62: =IF(E60="","",IFERROR((E62/F62-1)*100,"ND")) -> 6.828110623 | K62: =IF(E60="","",IFERROR((E62/VLOOKUP(B62&"|"&VLOOKUP(TDPrimas!$B$4,Cat!R:T,2,0),'TD Operación'!A:D,4,0))*100,"ND")) -> 3.220466536 | L62: =IF(E60="","",(VLOOKUP(B62,'TDPrimas Vida'!$B:$N,10,0))) -> 3.220466536
B63: =IF(C63="",B62,D63) -> Mapfre México | D63: =IF(D62="","","Únicas") -> Únicas | E63: =IF(E61="","",(VLOOKUP(B63,'TDPrimas Vida'!$B:$N,11,0))) -> -166.46212 | F63: =IF(E61="","",(VLOOKUP(B63,'TDPrimas Vida'!$B:$N,12,0))) -> 330.63931 | G63: =IFERROR((E63/VLOOKUP("TOTAL",$D$12:$L$312,2,0))*100,"") -> -0.0001220431153 | H63: =IFERROR((E63/VLOOKUP("TOTAL",$D$12:$L$312,3,0))*100,"") -> -0.0001241087822 | I63: =IF(E60="","",E63-F63) -> -497.10143 | J63: =IF(E60="","",IFERROR((E63/F63-1)*100,"ND")) -> -150.3455321 | K63: =IF(E60="","",IFERROR((E63/VLOOKUP(B63&"|"&VLOOKUP(TDPrimas!$B$4,Cat!R:T,2,0),'TD Operación'!A:D,4,0))*100,"ND")) -> -0.001272310558 | L63: =IF(E60="","",(VLOOKUP(B63,'TDPrimas Vida'!$B:$N,13,0))) -> -0.001272310558
B64: =IF(C64="",B60,D64) -> Seguros Azteca | C64: =IF('TDPrimas Vida'!A20="","",'TDPrimas Vida'!A20) -> 13 | D64: =IF('TDPrimas Vida'!B20="","",'TDPrimas Vida'!B20) -> Seguros Azteca | E64: =IF('TDPrimas Vida'!C20="","",'TDPrimas Vida'!C20) -> 2291506.533 | F64: =IF('TDPrimas Vida'!D20="","",'TDPrimas Vida'!D20) -> 3466688.312 | G64: =IF('TDPrimas Vida'!C20="","",IFERROR((E64/VLOOKUP("TOTAL",$D$12:$L$312,2,0))*100,"")) -> 1.680037452 | H64: =IF('TDPrimas Vida'!C20="","",IFERROR((E64/VLOOKUP("TOTAL",$D$12:$L$312,3,0))*100,"")) -> 1.708473286 | I64: =IF('TDPrimas Vida'!C20="","",E64-F64) -> -1175181.779 | J64: =IFERROR(IF('TDPrimas Vida'!C20="","",(E64/F64-1)*100),"ND") -> -33.89926274 | K64: =IF(E64="","",IFERROR((E64/VLOOKUP(D64&"|"&VLOOKUP(TDPrimas!$B$4,Cat!R:T,2,0),'TD Operación'!A:D,4,0))*100,"ND")) -> 95.96406093 | L64: =IF('TDPrimas Vida'!E20="","",'TDPrimas Vida'!E20) -> 95.96406093
B65: =IF(C65="",B64,D65) -> Seguros Azteca | D65: =IF(D64="","","1er Año") -> 1er Año | E65: =IF(E64="","",(VLOOKUP(B65,'TDPrimas Vida'!$B:$N,5,0))) -> 2244156.464 | F65: =IF(E64="","",(VLOOKUP(B65,'TDPrimas Vida'!$B:$N,6,0))) -> 3416387.57 | G65: =IFERROR((E65/VLOOKUP("TOTAL",$D$12:$L$312,2,0))*100,"") -> 1.645322347 | H65: =IFERROR((E65/VLOOKUP("TOTAL",$D$12:$L$312,3,0))*100,"") -> 1.673170604 | I65: =IF(E64="","",E65-F65) -> -1172231.107 | J65: =IF(E64="","",IFERROR((E65/F65-1)*100,"ND")) -> -34.31200596 | K65: =IF(E64="","",IFERROR((E65/VLOOKUP(B65&"|"&VLOOKUP(TDPrimas!$B$4,Cat!R:T,2,0),'TD Operación'!A:D,4,0))*100,"ND")) -> 93.98112749 | L65: =IF(E64="","",(VLOOKUP(B65,'TDPrimas Vida'!$B:$N,7,0))) -> 93.98112749
B66: =IF(C66="",B65,D66) -> Seguros Azteca | D66: =IF(D65="","","Renovación") -> Renovación | E66: =IF(E64="","",(VLOOKUP(B66,'TDPrimas Vida'!$B:$N,8,0))) -> 3755.71059 | F66: =IF(E64="","",(VLOOKUP(B66,'TDPrimas Vida'!$B:$N,9,0))) -> 2487.26237 | G66: =IFERROR((E66/VLOOKUP("TOTAL",$D$12:$L$312,2,0))*100,"") -> 0.002753531076 | H66: =IFERROR((E66/VLOOKUP("TOTAL",$D$12:$L$312,3,0))*100,"") -> 0.002800136558 | I66: =IF(E64="","",E66-F66) -> 1268.44822 | J66: =IF(E64="","",IFERROR((E66/F66-1)*100,"ND")) -> 50.99776506 | K66: =IF(E64="","",IFERROR((E66/VLOOKUP(B66&"|"&VLOOKUP(TDPrimas!$B$4,Cat!R:T,2,0),'TD Operación'!A:D,4,0))*100,"ND")) -> 0.1572822223 | L66: =IF(E64="","",(VLOOKUP(B66,'TDPrimas Vida'!$B:$N,10,0))) -> 0.1572822223
B67: =IF(C67="",B66,D67) -> Seguros Azteca | D67: =IF(D66="","","Únicas") -> Únicas | E67: =IF(E65="","",(VLOOKUP(B67,'TDPrimas Vida'!$B:$N,11,0))) -> 43594.35851 | F67: =IF(E65="","",(VLOOKUP(B67,'TDPrimas Vida'!$B:$N,12,0))) -> 47813.47897 | G67: =IFERROR((E67/VLOOKUP("TOTAL",$D$12:$L$312,2,0))*100,"") -> 0.03196157373 | H67: =IFERROR((E67/VLOOKUP("TOTAL",$D$12:$L$312,3,0))*100,"") -> 0.0325025462 | I67: =IF(E64="","",E67-F67) -> -4219.12046 | J67: =IF(E64="","",IFERROR((E67/F67-1)*100,"ND")) -> -8.824123554 | K67: =IF(E64="","",IFERROR((E67/VLOOKUP(B67&"|"&VLOOKUP(TDPrimas!$B$4,Cat!R:T,2,0),'TD Operación'!A:D,4,0))*100,"ND")) -> 1.825651211 | L67: =IF(E64="","",(VLOOKUP(B67,'TDPrimas Vida'!$B:$N,13,0))) -> 1.825651211
B68: =IF(C68="",B64,D68) -> Patrimonial Vida | C68: =IF('TDPrimas Vida'!A21="","",'TDPrimas Vida'!A21) -> 14 | D68: =IF('TDPrimas Vida'!B21="","",'TDPrimas Vida'!B21) -> Patrimonial Vida | E68: =IF('TDPrimas Vida'!C21="","",'TDPrimas Vida'!C21) -> 2216494.766 | F68: =IF('TDPrimas Vida'!D21="","",'TDPrimas Vida'!D21) -> 1019576.817 | G68: =IF('TDPrimas Vida'!C21="","",IFERROR((E68/VLOOKUP("TOTAL",$D$12:$L$312,2,0))*100,"")) -> 1.625041939 | H68: =IF('TDPrimas Vida'!C21="","",IFERROR((E68/VLOOKUP("TOTAL",$D$12:$L$312,3,0))*100,"")) -> 1.652546935 | I68: =IF('TDPrimas Vida'!C21="","",E68-F68) -> 1196917.949 | J68: =IFERROR(IF('TDPrimas Vida'!C21="","",(E68/F68-1)*100),"ND") -> 117.3936019 | K68: =IF(E68="","",IFERROR((E68/VLOOKUP(D68&"|"&VLOOKUP(TDPrimas!$B$4,Cat!R:T,2,0),'TD Operación'!A:D,4,0))*100,"ND")) -> 100 | L68: =IF('TDPrimas Vida'!E21="","",'TDPrimas Vida'!E21) -> 100
B69: =IF(C69="",B68,D69) -> Patrimonial Vida | D69: =IF(D68="","","1er Año") -> 1er Año | E69: =IF(E68="","",(VLOOKUP(B69,'TDPrimas Vida'!$B:$N,5,0))) -> 2216494.766 | F69: =IF(E68="","",(VLOOKUP(B69,'TDPrimas Vida'!$B:$N,6,0))) -> 1019576.817 | G69: =IFERROR((E69/VLOOKUP("TOTAL",$D$12:$L$312,2,0))*100,"") -> 1.625041939 | H69: =IFERROR((E69/VLOOKUP("TOTAL",$D$12:$L$312,3,0))*100,"") -> 1.652546935 | I69: =IF(E68="","",E69-F69) -> 1196917.949 | J69: =IF(E68="","",IFERROR((E69/F69-1)*100,"ND")) -> 117.3936019 | K69: =IF(E68="","",IFERROR((E69/VLOOKUP(B69&"|"&VLOOKUP(TDPrimas!$B$4,Cat!R:T,2,0),'TD Operación'!A:D,4,0))*100,"ND")) -> 100 | L69: =IF(E68="","",(VLOOKUP(B69,'TDPrimas Vida'!$B:$N,7,0))) -> 100
B70: =IF(C70="",B69,D70) -> Patrimonial Vida | D70: =IF(D69="","","Renovación") -> Renovación | E70: =IF(E68="","",(VLOOKUP(B70,'TDPrimas Vida'!$B:$N,8,0))) -> 0 | F70: =IF(E68="","",(VLOOKUP(B70,'TDPrimas Vida'!$B:$N,9,0))) -> 0 | G70: =IFERROR((E70/VLOOKUP("TOTAL",$D$12:$L$312,2,0))*100,"") -> 0 | H70: =IFERROR((E70/VLOOKUP("TOTAL",$D$12:$L$312,3,0))*100,"") -> 0 | I70: =IF(E68="","",E70-F70) -> 0 | J70: =IF(E68="","",IFERROR((E70/F70-1)*100,"ND")) -> ND | K70: =IF(E68="","",IFERROR((E70/VLOOKUP(B70&"|"&VLOOKUP(TDPrimas!$B$4,Cat!R:T,2,0),'TD Operación'!A:D,4,0))*100,"ND")) -> 0 | L70: =IF(E68="","",(VLOOKUP(B70,'TDPrimas Vida'!$B:$N,10,0))) -> 0
B71: =IF(C71="",B70,D71) -> Patrimonial Vida | D71: =IF(D70="","","Únicas") -> Únicas | E71: =IF(E69="","",(VLOOKUP(B71,'TDPrimas Vida'!$B:$N,11,0))) -> 0 | F71: =IF(E69="","",(VLOOKUP(B71,'TDPrimas Vida'!$B:$N,12,0))) -> 0 | G71: =IFERROR((E71/VLOOKUP("TOTAL",$D$12:$L$312,2,0))*100,"") -> 0 | H71: =IFERROR((E71/VLOOKUP("TOTAL",$D$12:$L$312,3,0))*100,"") -> 0 | I71: =IF(E68="","",E71-F71) -> 0 | J71: =IF(E68="","",IFERROR((E71/F71-1)*100,"ND")) -> ND | K71: =IF(E68="","",IFERROR((E71/VLOOKUP(B71&"|"&VLOOKUP(TDPrimas!$B$4,Cat!R:T,2,0),'TD Operación'!A:D,4,0))*100,"ND")) -> 0 | L71: =IF(E68="","",(VLOOKUP(B71,'TDPrimas Vida'!$B:$N,13,0))) -> 0
B72: =IF(C72="",B68,D72) -> Seguros Argos | C72: =IF('TDPrimas Vida'!A22="","",'TDPrimas Vida'!A22) -> 15 | D72: =IF('TDPrimas Vida'!B22="","",'TDPrimas Vida'!B22) -> Seguros Argos | E72: =IF('TDPrimas Vida'!C22="","",'TDPrimas Vida'!C22) -> 1922501.305 | F72: =IF('TDPrimas Vida'!D22="","",'TDPrimas Vida'!D22) -> 1337289.562 | G72: =IF('TDPrimas Vida'!C22="","",IFERROR((E72/VLOOKUP("TOTAL",$D$12:$L$312,2,0))*100,"")) -> 1.409498139 | H72: =IF('TDPrimas Vida'!C22="","",IFERROR((E72/VLOOKUP("TOTAL",$D$12:$L$312,3,0))*100,"")) -> 1.433354903 | I72: =IF('TDPrimas Vida'!C22="","",E72-F72) -> 585211.7436 | J72: =IFERROR(IF('TDPrimas Vida'!C22="","",(E72/F72-1)*100),"ND") -> 43.76103429 | K72: =IF(E72="","",IFERROR((E72/VLOOKUP(D72&"|"&VLOOKUP(TDPrimas!$B$4,Cat!R:T,2,0),'TD Operación'!A:D,4,0))*100,"ND")) -> 100 | L72: =IF('TDPrimas Vida'!E22="","",'TDPrimas Vida'!E22) -> 100
B73: =IF(C73="",B72,D73) -> Seguros Argos | D73: =IF(D72="","","1er Año") -> 1er Año | E73: =IF(E72="","",(VLOOKUP(B73,'TDPrimas Vida'!$B:$N,5,0))) -> 679770.6615 | F73: =IF(E72="","",(VLOOKUP(B73,'TDPrimas Vida'!$B:$N,6,0))) -> 367215.1912 | G73: =IFERROR((E73/VLOOKUP("TOTAL",$D$12:$L$312,2,0))*100,"") -> 0.4983796265 | H73: =IFERROR((E73/VLOOKUP("TOTAL",$D$12:$L$312,3,0))*100,"") -> 0.5068150579 | I73: =IF(E72="","",E73-F73) -> 312555.4703 | J73: =IF(E72="","",IFERROR((E73/F73-1)*100,"ND")) -> 85.11507088 | K73: =IF(E72="","",IFERROR((E73/VLOOKUP(B73&"|"&VLOOKUP(TDPrimas!$B$4,Cat!R:T,2,0),'TD Operación'!A:D,4,0))*100,"ND")) -> 35.358658 | L73: =IF(E72="","",(VLOOKUP(B73,'TDPrimas Vida'!$B:$N,7,0))) -> 35.358658
B74: =IF(C74="",B73,D74) -> Seguros Argos | D74: =IF(D73="","","Renovación") -> Renovación | E74: =IF(E72="","",(VLOOKUP(B74,'TDPrimas Vida'!$B:$N,8,0))) -> 1101487.54 | F74: =IF(E72="","",(VLOOKUP(B74,'TDPrimas Vida'!$B:$N,9,0))) -> 720702.8072 | G74: =IFERROR((E74/VLOOKUP("TOTAL",$D$12:$L$312,2,0))*100,"") -> 0.807564933 | H74: =IFERROR((E74/VLOOKUP("TOTAL",$D$12:$L$312,3,0))*100,"") -> 0.8212335466 | I74: =IF(E72="","",E74-F74) -> 380784.7325 | J74: =IF(E72="","",IFERROR((E74/F74-1)*100,"ND")) -> 52.83519486 | K74: =IF(E72="","",IFERROR((E74/VLOOKUP(B74&"|"&VLOOKUP(TDPrimas!$B$4,Cat!R:T,2,0),'TD Operación'!A:D,4,0))*100,"ND")) -> 57.29450153 | L74: =IF(E72="","",(VLOOKUP(B74,'TDPrimas Vida'!$B:$N,10,0))) -> 57.29450153
B75: =IF(C75="",B74,D75) -> Seguros Argos | D75: =IF(D74="","","Únicas") -> Únicas | E75: =IF(E73="","",(VLOOKUP(B75,'TDPrimas Vida'!$B:$N,11,0))) -> 141243.1039 | F75: =IF(E73="","",(VLOOKUP(B75,'TDPrimas Vida'!$B:$N,12,0))) -> 249371.5631 | G75: =IFERROR((E75/VLOOKUP("TOTAL",$D$12:$L$312,2,0))*100,"") -> 0.1035535797 | H75: =IFERROR((E75/VLOOKUP("TOTAL",$D$12:$L$312,3,0))*100,"") -> 0.105306298 | I75: =IF(E72="","",E75-F75) -> -108128.4592 | J75: =IF(E72="","",IFERROR((E75/F75-1)*100,"ND")) -> -43.36038075 | K75: =IF(E72="","",IFERROR((E75/VLOOKUP(B75&"|"&VLOOKUP(TDPrimas!$B$4,Cat!R:T,2,0),'TD Operación'!A:D,4,0))*100,"ND")) -> 7.346840468 | L75: =IF(E72="","",(VLOOKUP(B75,'TDPrimas Vida'!$B:$N,13,0))) -> 7.346840468
B76: =IF(C76="",B72,D76) -> TOTAL MEDIANAS | C76: =IF('TDPrimas Vida'!A23="","",'TDPrimas Vida'!A23) -> 15.1 | D76: =IF('TDPrimas Vida'!B23="","",'TDPrimas Vida'!B23) -> TOTAL MEDIANAS | E76: =IF('TDPrimas Vida'!C23="","",'TDPrimas Vida'!C23) -> 35576791.32 | F76: =IF('TDPrimas Vida'!D23="","",'TDPrimas Vida'!D23) -> 38956466.3 | G76: =IF('TDPrimas Vida'!C23="","",IFERROR((E76/VLOOKUP("TOTAL",$D$12:$L$312,2,0))*100,"")) -> 26.08342633 | H76: =IF('TDPrimas Vida'!C23="","",IFERROR((E76/VLOOKUP("TOTAL",$D$12:$L$312,3,0))*100,"")) -> 26.52490696 | I76: =IF('TDPrimas Vida'!C23="","",E76-F76) -> -3379674.979 | J76: =IFERROR(IF('TDPrimas Vida'!C23="","",(E76/F76-1)*100),"ND") -> -8.675517315 | K76: =IF(E76="","",IFERROR((E76/VLOOKUP(D76&"|"&VLOOKUP(TDPrimas!$B$4,Cat!R:T,2,0),'TD Operación'!A:D,4,0))*100,"ND")) -> 30.28845394 | L76: =IF('TDPrimas Vida'!E23="","",'TDPrimas Vida'!E23) -> 41.28322526
B77: =IF(C77="",B76,D77) -> TOTAL MEDIANAS | D77: =IF(D76="","","1er Año") -> 1er Año | E77: =IF(E76="","",(VLOOKUP(B77,'TDPrimas Vida'!$B:$N,5,0))) -> 20552915.21 | F77: =IF(E76="","",(VLOOKUP(B77,'TDPrimas Vida'!$B:$N,6,0))) -> 23843286.63 | G77: =IFERROR((E77/VLOOKUP("TOTAL",$D$12:$L$312,2,0))*100,"") -> 15.06854413 | H77: =IFERROR((E77/VLOOKUP("TOTAL",$D$12:$L$312,3,0))*100,"") -> 15.32359 | I77: =IF(E76="","",E77-F77) -> -3290371.416 | J77: =IF(E76="","",IFERROR((E77/F77-1)*100,"ND")) -> -13.79999103 | K77: =IF(E76="","",IFERROR((E77/VLOOKUP(B77&"|"&VLOOKUP(TDPrimas!$B$4,Cat!R:T,2,0),'TD Operación'!A:D,4,0))*100,"ND")) -> 17.49781255 | L77: =IF(E76="","",(VLOOKUP(B77,'TDPrimas Vida'!$B:$N,7,0))) -> 23.84955464
B78: =IF(C78="",B77,D78) -> TOTAL MEDIANAS | D78: =IF(D77="","","Renovación") -> Renovación | E78: =IF(E76="","",(VLOOKUP(B78,'TDPrimas Vida'!$B:$N,8,0))) -> 12597906.59 | F78: =IF(E76="","",(VLOOKUP(B78,'TDPrimas Vida'!$B:$N,9,0))) -> 13123793.9 | G78: =IFERROR((E78/VLOOKUP("TOTAL",$D$12:$L$312,2,0))*100,"") -> 9.236262073 | H78: =IFERROR((E78/VLOOKUP("TOTAL",$D$12:$L$312,3,0))*100,"") -> 9.39259241 | I78: =IF(E76="","",E78-F78) -> -525887.3128 | J78: =IF(E76="","",IFERROR((E78/F78-1)*100,"ND")) -> -4.007128707 | K78: =IF(E76="","",IFERROR((E78/VLOOKUP(B78&"|"&VLOOKUP(TDPrimas!$B$4,Cat!R:T,2,0),'TD Operación'!A:D,4,0))*100,"ND")) -> 10.72528182 | L78: =IF(E76="","",(VLOOKUP(B78,'TDPrimas Vida'!$B:$N,10,0))) -> 14.61858128
B79: =IF(C79="",B78,D79) -> TOTAL MEDIANAS | D79: =IF(D78="","","Únicas") -> Únicas | E79: =IF(E77="","",(VLOOKUP(B79,'TDPrimas Vida'!$B:$N,11,0))) -> 2425969.518 | F79: =IF(E77="","",(VLOOKUP(B79,'TDPrimas Vida'!$B:$N,12,0))) -> 1989385.768 | G79: =IFERROR((E79/VLOOKUP("TOTAL",$D$12:$L$312,2,0))*100,"") -> 1.77862013 | H79: =IFERROR((E79/VLOOKUP("TOTAL",$D$12:$L$312,3,0))*100,"") -> 1.808724547 | I79: =IF(E76="","",E79-F79) -> 436583.75 | J79: =IF(E76="","",IFERROR((E79/F79-1)*100,"ND")) -> 21.94565565 | K79: =IF(E76="","",IFERROR((E79/VLOOKUP(B79&"|"&VLOOKUP(TDPrimas!$B$4,Cat!R:T,2,0),'TD Operación'!A:D,4,0))*100,"ND")) -> 2.065359558 | L79: =IF(E76="","",(VLOOKUP(B79,'TDPrimas Vida'!$B:$N,13,0))) -> 2.815089342
B80: =IF(C80="",B76,D80) -> Hir Seguros | C80: =IF('TDPrimas Vida'!A24="","",'TDPrimas Vida'!A24) -> 16 | D80: =IF('TDPrimas Vida'!B24="","",'TDPrimas Vida'!B24) -> Hir Seguros | E80: =IF('TDPrimas Vida'!C24="","",'TDPrimas Vida'!C24) -> 1849323.173 | F80: =IF('TDPrimas Vida'!D24="","",'TDPrimas Vida'!D24) -> 1273070.499 | G80: =IF('TDPrimas Vida'!C24="","",IFERROR((E80/VLOOKUP("TOTAL",$D$12:$L$312,2,0))*100,"")) -> 1.355846971 | H80: =IF('TDPrimas Vida'!C24="","",IFERROR((E80/VLOOKUP("TOTAL",$D$12:$L$312,3,0))*100,"")) -> 1.37879565 | I80: =IF('TDPrimas Vida'!C24="","",E80-F80) -> 576252.6746 | J80: =IFERROR(IF('TDPrimas Vida'!C24="","",(E80/F80-1)*100),"ND") -> 45.26478896 | K80: =IF(E80="","",IFERROR((E80/VLOOKUP(D80&"|"&VLOOKUP(TDPrimas!$B$4,Cat!R:T,2,0),'TD Operación'!A:D,4,0))*100,"ND")) -> 99.34511786 | L80: =IF('TDPrimas Vida'!E24="","",'TDPrimas Vida'!E24) -> 99.34511786
B81: =IF(C81="",B80,D81) -> Hir Seguros | D81: =IF(D80="","","1er Año") -> 1er Año | E81: =IF(E80="","",(VLOOKUP(B81,'TDPrimas Vida'!$B:$N,5,0))) -> 633454.1664 | F81: =IF(E80="","",(VLOOKUP(B81,'TDPrimas Vida'!$B:$N,6,0))) -> 174167.4951 | G81: =IFERROR((E81/VLOOKUP("TOTAL",$D$12:$L$312,2,0))*100,"") -> 0.4644222953 | H81: =IFERROR((E81/VLOOKUP("TOTAL",$D$12:$L$312,3,0))*100,"") -> 0.4722829745 | I81: =IF(E80="","",E81-F81) -> 459286.6713 | J81: =IF(E80="","",IFERROR((E81/F81-1)*100,"ND")) -> 263.7040116 | K81: =IF(E80="","",IFERROR((E81/VLOOKUP(B81&"|"&VLOOKUP(TDPrimas!$B$4,Cat!R:T,2,0),'TD Operación'!A:D,4,0))*100,"ND")) -> 34.02897867 | L81: =IF(E80="","",(VLOOKUP(B81,'TDPrimas Vida'!$B:$N,7,0))) -> 34.02897867
B82: =IF(C82="",B81,D82) -> Hir Seguros | D82: =IF(D81="","","Renovación") -> Renovación | E82: =IF(E80="","",(VLOOKUP(B82,'TDPrimas Vida'!$B:$N,8,0))) -> 1215869.007 | F82: =IF(E80="","",(VLOOKUP(B82,'TDPrimas Vida'!$B:$N,9,0))) -> 1098903.004 | G82: =IFERROR((E82/VLOOKUP("TOTAL",$D$12:$L$312,2,0))*100,"") -> 0.8914246759 | H82: =IFERROR((E82/VLOOKUP("TOTAL",$D$12:$L$312,3,0))*100,"") -> 0.9065126757 | I82: =IF(E80="","",E82-F82) -> 116966.0033 | J82: =IF(E80="","",IFERROR((E82/F82-1)*100,"ND")) -> 10.64388785 | K82: =IF(E80="","",IFERROR((E82/VLOOKUP(B82&"|"&VLOOKUP(TDPrimas!$B$4,Cat!R:T,2,0),'TD Operación'!A:D,4,0))*100,"ND")) -> 65.31613919 | L82: =IF(E80="","",(VLOOKUP(B82,'TDPrimas Vida'!$B:$N,10,0))) -> 65.31613919
B83: =IF(C83="",B82,D83) -> Hir Seguros | D83: =IF(D82="","","Únicas") -> Únicas | E83: =IF(E81="","",(VLOOKUP(B83,'TDPrimas Vida'!$B:$N,11,0))) -> 0 | F83: =IF(E81="","",(VLOOKUP(B83,'TDPrimas Vida'!$B:$N,12,0))) -> 0 | G83: =IFERROR((E83/VLOOKUP("TOTAL",$D$12:$L$312,2,0))*100,"") -> 0 | H83: =IFERROR((E83/VLOOKUP("TOTAL",$D$12:$L$312,3,0))*100,"") -> 0 | I83: =IF(E80="","",E83-F83) -> 0 | J83: =IF(E80="","",IFERROR((E83/F83-1)*100,"ND")) -> ND | K83: =IF(E80="","",IFERROR((E83/VLOOKUP(B83&"|"&VLOOKUP(TDPrimas!$B$4,Cat!R:T,2,0),'TD Operación'!A:D,4,0))*100,"ND")) -> 0 | L83: =IF(E80="","",(VLOOKUP(B83,'TDPrimas Vida'!$B:$N,13,0))) -> 0
B84: =IF(C84="",B80,D84) -> Atlas | C84: =IF('TDPrimas Vida'!A25="","",'TDPrimas Vida'!A25) -> 17 | D84: =IF('TDPrimas Vida'!B25="","",'TDPrimas Vida'!B25) -> Atlas | E84: =IF('TDPrimas Vida'!C25="","",'TDPrimas Vida'!C25) -> 1635605.923 | F84: =IF('TDPrimas Vida'!D25="","",'TDPrimas Vida'!D25) -> 1240077.801 | G84: =IF('TDPrimas Vida'!C25="","",IFERROR((E84/VLOOKUP("TOTAL",$D$12:$L$312,2,0))*100,"")) -> 1.199158356 | H84: =IF('TDPrimas Vida'!C25="","",IFERROR((E84/VLOOKUP("TOTAL",$D$12:$L$312,3,0))*100,"")) -> 1.219454968 | I84: =IF('TDPrimas Vida'!C25="","",E84-F84) -> 395528.1219 | J84: =IFERROR(IF('TDPrimas Vida'!C25="","",(E84/F84-1)*100),"ND") -> 31.89542799 | K84: =IF(E84="","",IFERROR((E84/VLOOKUP(D84&"|"&VLOOKUP(TDPrimas!$B$4,Cat!R:T,2,0),'TD Operación'!A:D,4,0))*100,"ND")) -> 17.99151171 | L84: =IF('TDPrimas Vida'!E25="","",'TDPrimas Vida'!E25) -> 17.99151171
B85: =IF(C85="",B84,D85) -> Atlas | D85: =IF(D84="","","1er Año") -> 1er Año | E85: =IF(E84="","",(VLOOKUP(B85,'TDPrimas Vida'!$B:$N,5,0))) -> 1282119.609 | F85: =IF(E84="","",(VLOOKUP(B85,'TDPrimas Vida'!$B:$N,6,0))) -> 862923.0918 | G85: =IFERROR((E85/VLOOKUP("TOTAL",$D$12:$L$312,2,0))*100,"") -> 0.939996867 | H85: =IFERROR((E85/VLOOKUP("TOTAL",$D$12:$L$312,3,0))*100,"") -> 0.9559069858 | I85: =IF(E84="","",E85-F85) -> 419196.5176 | J85: =IF(E84="","",IFERROR((E85/F85-1)*100,"ND")) -> 48.57866495 | K85: =IF(E84="","",IFERROR((E85/VLOOKUP(B85&"|"&VLOOKUP(TDPrimas!$B$4,Cat!R:T,2,0),'TD Operación'!A:D,4,0))*100,"ND")) -> 14.10319542 | L85: =IF(E84="","",(VLOOKUP(B85,'TDPrimas Vida'!$B:$N,7,0))) -> 14.10319542
B86: =IF(C86="",B85,D86) -> Atlas | D86: =IF(D85="","","Renovación") -> Renovación | E86: =IF(E84="","",(VLOOKUP(B86,'TDPrimas Vida'!$B:$N,8,0))) -> 319240.1723 | F86: =IF(E84="","",(VLOOKUP(B86,'TDPrimas Vida'!$B:$N,9,0))) -> 290611.5135 | G86: =IFERROR((E86/VLOOKUP("TOTAL",$D$12:$L$312,2,0))*100,"") -> 0.2340536402 | H86: =IFERROR((E86/VLOOKUP("TOTAL",$D$12:$L$312,3,0))*100,"") -> 0.2380151654 | I86: =IF(E84="","",E86-F86) -> 28628.65879 | J86: =IF(E84="","",IFERROR((E86/F86-1)*100,"ND")) -> 9.851178449 | K86: =IF(E84="","",IFERROR((E86/VLOOKUP(B86&"|"&VLOOKUP(TDPrimas!$B$4,Cat!R:T,2,0),'TD Operación'!A:D,4,0))*100,"ND")) -> 3.511611946 | L86: =IF(E84="","",(VLOOKUP(B86,'TDPrimas Vida'!$B:$N,10,0))) -> 3.511611946
B87: =IF(C87="",B86,D87) -> Atlas | D87: =IF(D86="","","Únicas") -> Únicas | E87: =IF(E85="","",(VLOOKUP(B87,'TDPrimas Vida'!$B:$N,11,0))) -> 34246.14094 | F87: =IF(E85="","",(VLOOKUP(B87,'TDPrimas Vida'!$B:$N,12,0))) -> 86543.19539 | G87: =IFERROR((E87/VLOOKUP("TOTAL",$D$12:$L$312,2,0))*100,"") -> 0.02510784872 | H87: =IFERROR((E87/VLOOKUP("TOTAL",$D$12:$L$312,3,0))*100,"") -> 0.025532817 | I87: =IF(E84="","",E87-F87) -> -52297.05445 | J87: =IF(E84="","",IFERROR((E87/F87-1)*100,"ND")) -> -60.42884621 | K87: =IF(E84="","",IFERROR((E87/VLOOKUP(B87&"|"&VLOOKUP(TDPrimas!$B$4,Cat!R:T,2,0),'TD Operación'!A:D,4,0))*100,"ND")) -> 0.3767043376 | L87: =IF(E84="","",(VLOOKUP(B87,'TDPrimas Vida'!$B:$N,13,0))) -> 0.3767043376
B88: =IF(C88="",B84,D88) -> Cardif Vida | C88: =IF('TDPrimas Vida'!A26="","",'TDPrimas Vida'!A26) -> 18 | D88: =IF('TDPrimas Vida'!B26="","",'TDPrimas Vida'!B26) -> Cardif Vida | E88: =IF('TDPrimas Vida'!C26="","",'TDPrimas Vida'!C26) -> 1417017.494 | F88: =IF('TDPrimas Vida'!D26="","",'TDPrimas Vida'!D26) -> 1263020.487 | G88: =IF('TDPrimas Vida'!C26="","",IFERROR((E88/VLOOKUP("TOTAL",$D$12:$L$312,2,0))*100,"")) -> 1.038898395 | H88: =IF('TDPrimas Vida'!C26="","",IFERROR((E88/VLOOKUP("TOTAL",$D$12:$L$312,3,0))*100,"")) -> 1.056482493 | I88: =IF('TDPrimas Vida'!C26="","",E88-F88) -> 153997.007 | J88: =IFERROR(IF('TDPrimas Vida'!C26="","",(E88/F88-1)*100),"ND") -> 12.19275607 | K88: =IF(E88="","",IFERROR((E88/VLOOKUP(D88&"|"&VLOOKUP(TDPrimas!$B$4,Cat!R:T,2,0),'TD Operación'!A:D,4,0))*100,"ND")) -> 91.99602881 | L88: =IF('TDPrimas Vida'!E26="","",'TDPrimas Vida'!E26) -> 91.99602881
B89: =IF(C89="",B88,D89) -> Cardif Vida | D89: =IF(D88="","","1er Año") -> 1er Año | E89: =IF(E88="","",(VLOOKUP(B89,'TDPrimas Vida'!$B:$N,5,0))) -> 231792.766 | F89: =IF(E88="","",(VLOOKUP(B89,'TDPrimas Vida'!$B:$N,6,0))) -> 23620.79885 | G89: =IFERROR((E89/VLOOKUP("TOTAL",$D$12:$L$312,2,0))*100,"") -> 0.1699408325 | H89: =IFERROR((E89/VLOOKUP("TOTAL",$D$12:$L$312,3,0))*100,"") -> 0.1728172026 | I89: =IF(E88="","",E89-F89) -> 208171.9671 | J89: =IF(E88="","",IFERROR((E89/F89-1)*100,"ND")) -> 881.3079035 | K89: =IF(E88="","",IFERROR((E89/VLOOKUP(B89&"|"&VLOOKUP(TDPrimas!$B$4,Cat!R:T,2,0),'TD Operación'!A:D,4,0))*100,"ND")) -> 15.0485185 | L89: =IF(E88="","",(VLOOKUP(B89,'TDPrimas Vida'!$B:$N,7,0))) -> 15.0485185
B90: =IF(C90="",B89,D90) -> Cardif Vida | D90: =IF(D89="","","Renovación") -> Renovación | E90: =IF(E88="","",(VLOOKUP(B90,'TDPrimas Vida'!$B:$N,8,0))) -> 858692.57 | F90: =IF(E88="","",(VLOOKUP(B90,'TDPrimas Vida'!$B:$N,9,0))) -> 1008050.705 | G90: =IFERROR((E90/VLOOKUP("TOTAL",$D$12:$L$312,2,0))*100,"") -> 0.6295577415 | H90: =IFERROR((E90/VLOOKUP("TOTAL",$D$12:$L$312,3,0))*100,"") -> 0.6402134562 | I90: =IF(E88="","",E90-F90) -> -149358.1349 | J90: =IF(E88="","",IFERROR((E90/F90-1)*100,"ND")) -> -14.81652998 | K90: =IF(E88="","",IFERROR((E90/VLOOKUP(B90&"|"&VLOOKUP(TDPrimas!$B$4,Cat!R:T,2,0),'TD Operación'!A:D,4,0))*100,"ND")) -> 55.74829298 | L90: =IF(E88="","",(VLOOKUP(B90,'TDPrimas Vida'!$B:$N,10,0))) -> 55.74829298
B91: =IF(C91="",B90,D91) -> Cardif Vida | D91: =IF(D90="","","Únicas") -> Únicas | E91: =IF(E89="","",(VLOOKUP(B91,'TDPrimas Vida'!$B:$N,11,0))) -> 326532.1579 | F91: =IF(E89="","",(VLOOKUP(B91,'TDPrimas Vida'!$B:$N,12,0))) -> 231348.9831 | G91: =IFERROR((E91/VLOOKUP("TOTAL",$D$12:$L$312,2,0))*100,"") -> 0.2393998213 | H91: =IFERROR((E91/VLOOKUP("TOTAL",$D$12:$L$312,3,0))*100,"") -> 0.2434518344 | I91: =IF(E88="","",E91-F91) -> 95183.17481 | J91: =IF(E88="","",IFERROR((E91/F91-1)*100,"ND")) -> 41.1426813 | K91: =IF(E88="","",IFERROR((E91/VLOOKUP(B91&"|"&VLOOKUP(TDPrimas!$B$4,Cat!R:T,2,0),'TD Operación'!A:D,4,0))*100,"ND")) -> 21.19921732 | L91: =IF(E88="","",(VLOOKUP(B91,'TDPrimas Vida'!$B:$N,13,0))) -> 21.19921732
B92: =IF(C92="",B88,D92) -> Afirme | C92: =IF('TDPrimas Vida'!A27="","",'TDPrimas Vida'!A27) -> 19 | D92: =IF('TDPrimas Vida'!B27="","",'TDPrimas Vida'!B27) -> Afirme | E92: =IF('TDPrimas Vida'!C27="","",'TDPrimas Vida'!C27) -> 1318775.509 | F92: =IF('TDPrimas Vida'!D27="","",'TDPrimas Vida'!D27) -> 1668681.277 | G92: =IF('TDPrimas Vida'!C27="","",IFERROR((E92/VLOOKUP("TOTAL",$D$12:$L$312,2,0))*100,"")) -> 0.966871451 | H92: =IF('TDPrimas Vida'!C27="","",IFERROR((E92/VLOOKUP("TOTAL",$D$12:$L$312,3,0))*100,"")) -> 0.9832364413 | I92: =IF('TDPrimas Vida'!C27="","",E92-F92) -> -349905.7676 | J92: =IFERROR(IF('TDPrimas Vida'!C27="","",(E92/F92-1)*100),"ND") -> -20.96899944 | K92: =IF(E92="","",IFERROR((E92/VLOOKUP(D92&"|"&VLOOKUP(TDPrimas!$B$4,Cat!R:T,2,0),'TD Operación'!A:D,4,0))*100,"ND")) -> 34.92905425 | L92: =IF('TDPrimas Vida'!E27="","",'TDPrimas Vida'!E27) -> 34.92905425
B93: =IF(C93="",B92,D93) -> Afirme | D93: =IF(D92="","","1er Año") -> 1er Año | E93: =IF(E92="","",(VLOOKUP(B93,'TDPrimas Vida'!$B:$N,5,0))) -> 1318775.509 | F93: =IF(E92="","",(VLOOKUP(B93,'TDPrimas Vida'!$B:$N,6,0))) -> 1668681.277 | G93: =IFERROR((E93/VLOOKUP("TOTAL",$D$12:$L$312,2,0))*100,"") -> 0.966871451 | H93: =IFERROR((E93/VLOOKUP("TOTAL",$D$12:$L$312,3,0))*100,"") -> 0.9832364413 | I93: =IF(E92="","",E93-F93) -> -349905.7676 | J93: =IF(E92="","",IFERROR((E93/F93-1)*100,"ND")) -> -20.96899944 | K93: =IF(E92="","",IFERROR((E93/VLOOKUP(B93&"|"&VLOOKUP(TDPrimas!$B$4,Cat!R:T,2,0),'TD Operación'!A:D,4,0))*100,"ND")) -> 34.92905425 | L93: =IF(E92="","",(VLOOKUP(B93,'TDPrimas Vida'!$B:$N,7,0))) -> 34.92905425
B94: =IF(C94="",B93,D94) -> Afirme | D94: =IF(D93="","","Renovación") -> Renovación | E94: =IF(E92="","",(VLOOKUP(B94,'TDPrimas Vida'!$B:$N,8,0))) -> 0 | F94: =IF(E92="","",(VLOOKUP(B94,'TDPrimas Vida'!$B:$N,9,0))) -> 0 | G94: =IFERROR((E94/VLOOKUP("TOTAL",$D$12:$L$312,2,0))*100,"") -> 0 | H94: =IFERROR((E94/VLOOKUP("TOTAL",$D$12:$L$312,3,0))*100,"") -> 0 | I94: =IF(E92="","",E94-F94) -> 0 | J94: =IF(E92="","",IFERROR((E94/F94-1)*100,"ND")) -> ND | K94: =IF(E92="","",IFERROR((E94/VLOOKUP(B94&"|"&VLOOKUP(TDPrimas!$B$4,Cat!R:T,2,0),'TD Operación'!A:D,4,0))*100,"ND")) -> 0 | L94: =IF(E92="","",(VLOOKUP(B94,'TDPrimas Vida'!$B:$N,10,0))) -> 0
B95: =IF(C95="",B94,D95) -> Afirme | D95: =IF(D94="","","Únicas") -> Únicas | E95: =IF(E93="","",(VLOOKUP(B95,'TDPrimas Vida'!$B:$N,11,0))) -> 0 | F95: =IF(E93="","",(VLOOKUP(B95,'TDPrimas Vida'!$B:$N,12,0))) -> 0 | G95: =IFERROR((E95/VLOOKUP("TOTAL",$D$12:$L$312,2,0))*100,"") -> 0 | H95: =IFERROR((E95/VLOOKUP("TOTAL",$D$12:$L$312,3,0))*100,"") -> 0 | I95: =IF(E92="","",E95-F95) -> 0 | J95: =IF(E92="","",IFERROR((E95/F95-1)*100,"ND")) -> ND | K95: =IF(E92="","",IFERROR((E95/VLOOKUP(B95&"|"&VLOOKUP(TDPrimas!$B$4,Cat!R:T,2,0),'TD Operación'!A:D,4,0))*100,"ND")) -> 0 | L95: =IF(E92="","",(VLOOKUP(B95,'TDPrimas Vida'!$B:$N,13,0))) -> 0
B96: =IF(C96="",B92,D96) -> Seguros SURA | C96: =IF('TDPrimas Vida'!A28="","",'TDPrimas Vida'!A28) -> 20 | D96: =IF('TDPrimas Vida'!B28="","",'TDPrimas Vida'!B28) -> Seguros SURA | E96: =IF('TDPrimas Vida'!C28="","",'TDPrimas Vida'!C28) -> 980852.8888 | F96: =IF('TDPrimas Vida'!D28="","",'TDPrimas Vida'!D28) -> 674731.0438 | G96: =IF('TDPrimas Vida'!C28="","",IFERROR((E96/VLOOKUP("TOTAL",$D$12:$L$312,2,0))*100,"")) -> 0.7191206154 | H96: =IF('TDPrimas Vida'!C28="","",IFERROR((E96/VLOOKUP("TOTAL",$D$12:$L$312,3,0))*100,"")) -> 0.7312922457 | I96: =IF('TDPrimas Vida'!C28="","",E96-F96) -> 306121.8449 | J96: =IFERROR(IF('TDPrimas Vida'!C28="","",(E96/F96-1)*100),"ND") -> 45.36946206 | K96: =IF(E96="","",IFERROR((E96/VLOOKUP(D96&"|"&VLOOKUP(TDPrimas!$B$4,Cat!R:T,2,0),'TD Operación'!A:D,4,0))*100,"ND")) -> 28.24454642 | L96: =IF('TDPrimas Vida'!E28="","",'TDPrimas Vida'!E28) -> 28.24454642
B97: =IF(C97="",B96,D97) -> Seguros SURA | D97: =IF(D96="","","1er Año") -> 1er Año | E97: =IF(E96="","",(VLOOKUP(B97,'TDPrimas Vida'!$B:$N,5,0))) -> 825574.2479 | F97: =IF(E96="","",(VLOOKUP(B97,'TDPrimas Vida'!$B:$N,6,0))) -> 478351.6215 | G97: =IFERROR((E97/VLOOKUP("TOTAL",$D$12:$L$312,2,0))*100,"") -> 0.6052767627 | H97: =IFERROR((E97/VLOOKUP("TOTAL",$D$12:$L$312,3,0))*100,"") -> 0.6155215045 | I97: =IF(E96="","",E97-F97) -> 347222.6264 | J97: =IF(E96="","",IFERROR((E97/F97-1)*100,"ND")) -> 72.58732086 | K97: =IF(E96="","",IFERROR((E97/VLOOKUP(B97&"|"&VLOOKUP(TDPrimas!$B$4,Cat!R:T,2,0),'TD Operación'!A:D,4,0))*100,"ND")) -> 23.77315746 | L97: =IF(E96="","",(VLOOKUP(B97,'TDPrimas Vida'!$B:$N,7,0))) -> 23.77315746
B98: =IF(C98="",B97,D98) -> Seguros SURA | D98: =IF(D97="","","Renovación") -> Renovación | E98: =IF(E96="","",(VLOOKUP(B98,'TDPrimas Vida'!$B:$N,8,0))) -> 154371.5903 | F98: =IF(E96="","",(VLOOKUP(B98,'TDPrimas Vida'!$B:$N,9,0))) -> 193281.4987 | G98: =IFERROR((E98/VLOOKUP("TOTAL",$D$12:$L$312,2,0))*100,"") -> 0.1131788409 | H98: =IFERROR((E98/VLOOKUP("TOTAL",$D$12:$L$312,3,0))*100,"") -> 0.1150944736 | I98: =IF(E96="","",E98-F98) -> -38909.90842 | J98: =IF(E96="","",IFERROR((E98/F98-1)*100,"ND")) -> -20.13121208 | K98: =IF(E96="","",IFERROR((E98/VLOOKUP(B98&"|"&VLOOKUP(TDPrimas!$B$4,Cat!R:T,2,0),'TD Operación'!A:D,4,0))*100,"ND")) -> 4.445269619 | L98: =IF(E96="","",(VLOOKUP(B98,'TDPrimas Vida'!$B:$N,10,0))) -> 4.445269619
B99: =IF(C99="",B98,D99) -> Seguros SURA | D99: =IF(D98="","","Únicas") -> Únicas | E99: =IF(E97="","",(VLOOKUP(B99,'TDPrimas Vida'!$B:$N,11,0))) -> 907.05056 | F99: =IF(E97="","",(VLOOKUP(B99,'TDPrimas Vida'!$B:$N,12,0))) -> 3097.92357 | G99: =IFERROR((E99/VLOOKUP("TOTAL",$D$12:$L$312,2,0))*100,"") -> 0.000665011812 | H99: =IFERROR((E99/VLOOKUP("TOTAL",$D$12:$L$312,3,0))*100,"") -> 0.0006762676122 | I99: =IF(E96="","",E99-F99) -> -2190.87301 | J99: =IF(E96="","",IFERROR((E99/F99-1)*100,"ND")) -> -70.72069276 | K99: =IF(E96="","",IFERROR((E99/VLOOKUP(B99&"|"&VLOOKUP(TDPrimas!$B$4,Cat!R:T,2,0),'TD Operación'!A:D,4,0))*100,"ND")) -> 0.02611934158 | L99: =IF(E96="","",(VLOOKUP(B99,'TDPrimas Vida'!$B:$N,13,0))) -> 0.02611934158
B100: =IF(C100="",B96,D100) -> Insignia Life | C100: =IF('TDPrimas Vida'!A29="","",'TDPrimas Vida'!A29) -> 21 | D100: =IF('TDPrimas Vida'!B29="","",'TDPrimas Vida'!B29) -> Insignia Life | E100: =IF('TDPrimas Vida'!C29="","",'TDPrimas Vida'!C29) -> 766919.544 | F100: =IF('TDPrimas Vida'!D29="","",'TDPrimas Vida'!D29) -> 699225.8606 | G100: =IF('TDPrimas Vida'!C29="","",IFERROR((E100/VLOOKUP("TOTAL",$D$12:$L$312,2,0))*100,"")) -> 0.562273569 | H100: =IF('TDPrimas Vida'!C29="","",IFERROR((E100/VLOOKUP("TOTAL",$D$12:$L$312,3,0))*100,"")) -> 0.571790451 | I100: =IF('TDPrimas Vida'!C29="","",E100-F100) -> 67693.68337 | J100: =IFERROR(IF('TDPrimas Vida'!C29="","",(E100/F100-1)*100),"ND") -> 9.681232801 | K100: =IF(E100="","",IFERROR((E100/VLOOKUP(D100&"|"&VLOOKUP(TDPrimas!$B$4,Cat!R:T,2,0),'TD Operación'!A:D,4,0))*100,"ND")) -> 100 | L100: =IF('TDPrimas Vida'!E29="","",'TDPrimas Vida'!E29) -> 100
B101: =IF(C101="",B100,D101) -> Insignia Life | D101: =IF(D100="","","1er Año") -> 1er Año | E101: =IF(E100="","",(VLOOKUP(B101,'TDPrimas Vida'!$B:$N,5,0))) -> 248225.3129 | F101: =IF(E100="","",(VLOOKUP(B101,'TDPrimas Vida'!$B:$N,6,0))) -> 246873.0395 | G101: =IFERROR((E101/VLOOKUP("TOTAL",$D$12:$L$312,2,0))*100,"") -> 0.1819884937 | H101: =IFERROR((E101/VLOOKUP("TOTAL",$D$12:$L$312,3,0))*100,"") -> 0.185068779 | I101: =IF(E100="","",E101-F101) -> 1352.27345 | J101: =IF(E100="","",IFERROR((E101/F101-1)*100,"ND")) -> 0.5477606841 | K101: =IF(E100="","",IFERROR((E101/VLOOKUP(B101&"|"&VLOOKUP(TDPrimas!$B$4,Cat!R:T,2,0),'TD Operación'!A:D,4,0))*100,"ND")) -> 32.36653895 | L101: =IF(E100="","",(VLOOKUP(B101,'TDPrimas Vida'!$B:$N,7,0))) -> 32.36653895
B102: =IF(C102="",B101,D102) -> Insignia Life | D102: =IF(D101="","","Renovación") -> Renovación | E102: =IF(E100="","",(VLOOKUP(B102,'TDPrimas Vida'!$B:$N,8,0))) -> 519929.2129 | F102: =IF(E100="","",(VLOOKUP(B102,'TDPrimas Vida'!$B:$N,9,0))) -> 457003.423 | G102: =IFERROR((E102/VLOOKUP("TOTAL",$D$12:$L$312,2,0))*100,"") -> 0.3811905127 | H102: =IFERROR((E102/VLOOKUP("TOTAL",$D$12:$L$312,3,0))*100,"") -> 0.3876424345 | I102: =IF(E100="","",E102-F102) -> 62925.78989 | J102: =IF(E100="","",IFERROR((E102/F102-1)*100,"ND")) -> 13.76921632 | K102: =IF(E100="","",IFERROR((E102/VLOOKUP(B102&"|"&VLOOKUP(TDPrimas!$B$4,Cat!R:T,2,0),'TD Operación'!A:D,4,0))*100,"ND")) -> 67.79449252 | L102: =IF(E100="","",(VLOOKUP(B102,'TDPrimas Vida'!$B:$N,10,0))) -> 67.79449252
B103: =IF(C103="",B102,D103) -> Insignia Life | D103: =IF(D102="","","Únicas") -> Únicas | E103: =IF(E101="","",(VLOOKUP(B103,'TDPrimas Vida'!$B:$N,11,0))) -> -1234.98186 | F103: =IF(E101="","",(VLOOKUP(B103,'TDPrimas Vida'!$B:$N,12,0))) -> -4650.60189 | G103: =IFERROR((E103/VLOOKUP("TOTAL",$D$12:$L$312,2,0))*100,"") -> -0.0009054374262 | H103: =IFERROR((E103/VLOOKUP("TOTAL",$D$12:$L$312,3,0))*100,"") -> -0.0009207626018 | I103: =IF(E100="","",E103-F103) -> 3415.62003 | J103: =IF(E100="","",IFERROR((E103/F103-1)*100,"ND")) -> -73.44468761 | K103: =IF(E100="","",IFERROR((E103/VLOOKUP(B103&"|"&VLOOKUP(TDPrimas!$B$4,Cat!R:T,2,0),'TD Operación'!A:D,4,0))*100,"ND")) -> -0.1610314758 | L103: =IF(E100="","",(VLOOKUP(B103,'TDPrimas Vida'!$B:$N,13,0))) -> -0.1610314758
B104: =IF(C104="",B100,D104) -> Prudential | C104: =IF('TDPrimas Vida'!A30="","",'TDPrimas Vida'!A30) -> 22 | D104: =IF('TDPrimas Vida'!B30="","",'TDPrimas Vida'!B30) -> Prudential | E104: =IF('TDPrimas Vida'!C30="","",'TDPrimas Vida'!C30) -> 727320.8938 | F104: =IF('TDPrimas Vida'!D30="","",'TDPrimas Vida'!D30) -> 519351.5095 | G104: =IF('TDPrimas Vida'!C30="","",IFERROR((E104/VLOOKUP("TOTAL",$D$12:$L$312,2,0))*100,"")) -> 0.5332414827 | H104: =IF('TDPrimas Vida'!C30="","",IFERROR((E104/VLOOKUP("TOTAL",$D$12:$L$312,3,0))*100,"")) -> 0.5422669759 | I104: =IF('TDPrimas Vida'!C30="","",E104-F104) -> 207969.3843 | J104: =IFERROR(IF('TDPrimas Vida'!C30="","",(E104/F104-1)*100),"ND") -> 40.04405118 | K104: =IF(E104="","",IFERROR((E104/VLOOKUP(D104&"|"&VLOOKUP(TDPrimas!$B$4,Cat!R:T,2,0),'TD Operación'!A:D,4,0))*100,"ND")) -> 100 | L104: =IF('TDPrimas Vida'!E30="","",'TDPrimas Vida'!E30) -> 100
B105: =IF(C105="",B104,D105) -> Prudential | D105: =IF(D104="","","1er Año") -> 1er Año | E105: =IF(E104="","",(VLOOKUP(B105,'TDPrimas Vida'!$B:$N,5,0))) -> 269116.9808 | F105: =IF(E104="","",(VLOOKUP(B105,'TDPrimas Vida'!$B:$N,6,0))) -> 204902.3507 | G105: =IFERROR((E105/VLOOKUP("TOTAL",$D$12:$L$312,2,0))*100,"") -> 0.1973053972 | H105: =IFERROR((E105/VLOOKUP("TOTAL",$D$12:$L$312,3,0))*100,"") -> 0.2006449321 | I105: =IF(E104="","",E105-F105) -> 64214.6301 | J105: =IF(E104="","",IFERROR((E105/F105-1)*100,"ND")) -> 31.33913782 | K105: =IF(E104="","",IFERROR((E105/VLOOKUP(B105&"|"&VLOOKUP(TDPrimas!$B$4,Cat!R:T,2,0),'TD Operación'!A:D,4,0))*100,"ND")) -> 37.00113431 | L105: =IF(E104="","",(VLOOKUP(B105,'TDPrimas Vida'!$B:$N,7,0))) -> 37.00113431
B106: =IF(C106="",B105,D106) -> Prudential | D106: =IF(D105="","","Renovación") -> Renovación | E106: =IF(E104="","",(VLOOKUP(B106,'TDPrimas Vida'!$B:$N,8,0))) -> 445600.5236 | F106: =IF(E104="","",(VLOOKUP(B106,'TDPrimas Vida'!$B:$N,9,0))) -> 294514.5044 | G106: =IFERROR((E106/VLOOKUP("TOTAL",$D$12:$L$312,2,0))*100,"") -> 0.3266958036 | H106: =IFERROR((E106/VLOOKUP("TOTAL",$D$12:$L$312,3,0))*100,"") -> 0.3322253636 | I106: =IF(E104="","",E106-F106) -> 151086.0193 | J106: =IF(E104="","",IFERROR((E106/F106-1)*100,"ND")) -> 51.30002666 | K106: =IF(E104="","",IFERROR((E106/VLOOKUP(B106&"|"&VLOOKUP(TDPrimas!$B$4,Cat!R:T,2,0),'TD Operación'!A:D,4,0))*100,"ND")) -> 61.26601441 | L106: =IF(E104="","",(VLOOKUP(B106,'TDPrimas Vida'!$B:$N,10,0))) -> 61.26601441
B107: =IF(C107="",B106,D107) -> Prudential | D107: =IF(D106="","","Únicas") -> Únicas | E107: =IF(E105="","",(VLOOKUP(B107,'TDPrimas Vida'!$B:$N,11,0))) -> 12603.38939 | F107: =IF(E105="","",(VLOOKUP(B107,'TDPrimas Vida'!$B:$N,12,0))) -> 19934.65445 | G107: =IFERROR((E107/VLOOKUP("TOTAL",$D$12:$L$312,2,0))*100,"") -> 0.009240281838 | H107: =IFERROR((E107/VLOOKUP("TOTAL",$D$12:$L$312,3,0))*100,"") -> 0.009396680212 | I107: =IF(E104="","",E107-F107) -> -7331.26506 | J107: =IF(E104="","",IFERROR((E107/F107-1)*100,"ND")) -> -36.77648428 | K107: =IF(E104="","",IFERROR((E107/VLOOKUP(B107&"|"&VLOOKUP(TDPrimas!$B$4,Cat!R:T,2,0),'TD Operación'!A:D,4,0))*100,"ND")) -> 1.732851276 | L107: =IF(E104="","",(VLOOKUP(B107,'TDPrimas Vida'!$B:$N,13,0))) -> 1.732851276
B108: =IF(C108="",B104,D108) -> Chubb Seguros México | C108: =IF('TDPrimas Vida'!A31="","",'TDPrimas Vida'!A31) -> 23 | D108: =IF('TDPrimas Vida'!B31="","",'TDPrimas Vida'!B31) -> Chubb Seguros México | E108: =IF('TDPrimas Vida'!C31="","",'TDPrimas Vida'!C31) -> 592571.0396 | F108: =IF('TDPrimas Vida'!D31="","",'TDPrimas Vida'!D31) -> 666479.0692 | G108: =IF('TDPrimas Vida'!C31="","",IFERROR((E108/VLOOKUP("TOTAL",$D$12:$L$312,2,0))*100,"")) -> 0.4344484841 | H108: =IF('TDPrimas Vida'!C31="","",IFERROR((E108/VLOOKUP("TOTAL",$D$12:$L$312,3,0))*100,"")) -> 0.4418018352 | I108: =IF('TDPrimas Vida'!C31="","",E108-F108) -> -73908.02955 | J108: =IFERROR(IF('TDPrimas Vida'!C31="","",(E108/F108-1)*100),"ND") -> -11.08932493 | K108: =IF(E108="","",IFERROR((E108/VLOOKUP(D108&"|"&VLOOKUP(TDPrimas!$B$4,Cat!R:T,2,0),'TD Operación'!A:D,4,0))*100,"ND")) -> 5.195793182 | L108: =IF('TDPrimas Vida'!E31="","",'TDPrimas Vida'!E31) -> 5.195793182
B109: =IF(C109="",B108,D109) -> Chubb Seguros México | D109: =IF(D108="","","1er Año") -> 1er Año | E109: =IF(E108="","",(VLOOKUP(B109,'TDPrimas Vida'!$B:$N,5,0))) -> 592571.0396 | F109: =IF(E108="","",(VLOOKUP(B109,'TDPrimas Vida'!$B:$N,6,0))) -> 666479.0692 | G109: =IFERROR((E109/VLOOKUP("TOTAL",$D$12:$L$312,2,0))*100,"") -> 0.4344484841 | H109: =IFERROR((E109/VLOOKUP("TOTAL",$D$12:$L$312,3,0))*100,"") -> 0.4418018352 | I109: =IF(E108="","",E109-F109) -> -73908.02955 | J109: =IF(E108="","",IFERROR((E109/F109-1)*100,"ND")) -> -11.08932493 | K109: =IF(E108="","",IFERROR((E109/VLOOKUP(B109&"|"&VLOOKUP(TDPrimas!$B$4,Cat!R:T,2,0),'TD Operación'!A:D,4,0))*100,"ND")) -> 5.195793182 | L109: =IF(E108="","",(VLOOKUP(B109,'TDPrimas Vida'!$B:$N,7,0))) -> 5.195793182
B110: =IF(C110="",B109,D110) -> Chubb Seguros México | D110: =IF(D109="","","Renovación") -> Renovación | E110: =IF(E108="","",(VLOOKUP(B110,'TDPrimas Vida'!$B:$N,8,0))) -> 0 | F110: =IF(E108="","",(VLOOKUP(B110,'TDPrimas Vida'!$B:$N,9,0))) -> 0 | G110: =IFERROR((E110/VLOOKUP("TOTAL",$D$12:$L$312,2,0))*100,"") -> 0 | H110: =IFERROR((E110/VLOOKUP("TOTAL",$D$12:$L$312,3,0))*100,"") -> 0 | I110: =IF(E108="","",E110-F110) -> 0 | J110: =IF(E108="","",IFERROR((E110/F110-1)*100,"ND")) -> ND | K110: =IF(E108="","",IFERROR((E110/VLOOKUP(B110&"|"&VLOOKUP(TDPrimas!$B$4,Cat!R:T,2,0),'TD Operación'!A:D,4,0))*100,"ND")) -> 0 | L110: =IF(E108="","",(VLOOKUP(B110,'TDPrimas Vida'!$B:$N,10,0))) -> 0
B111: =IF(C111="",B110,D111) -> Chubb Seguros México | D111: =IF(D110="","","Únicas") -> Únicas | E111: =IF(E109="","",(VLOOKUP(B111,'TDPrimas Vida'!$B:$N,11,0))) -> 0 | F111: =IF(E109="","",(VLOOKUP(B111,'TDPrimas Vida'!$B:$N,12,0))) -> 0 | G111: =IFERROR((E111/VLOOKUP("TOTAL",$D$12:$L$312,2,0))*100,"") -> 0 | H111: =IFERROR((E111/VLOOKUP("TOTAL",$D$12:$L$312,3,0))*100,"") -> 0 | I111: =IF(E108="","",E111-F111) -> 0 | J111: =IF(E108="","",IFERROR((E111/F111-1)*100,"ND")) -> ND | K111: =IF(E108="","",IFERROR((E111/VLOOKUP(B111&"|"&VLOOKUP(TDPrimas!$B$4,Cat!R:T,2,0),'TD Operación'!A:D,4,0))*100,"ND")) -> 0 | L111: =IF(E108="","",(VLOOKUP(B111,'TDPrimas Vida'!$B:$N,13,0))) -> 0
B112: =IF(C112="",B108,D112) -> Ve Por Más | C112: =IF('TDPrimas Vida'!A32="","",'TDPrimas Vida'!A32) -> 24 | D112: =IF('TDPrimas Vida'!B32="","",'TDPrimas Vida'!B32) -> Ve Por Más | E112: =IF('TDPrimas Vida'!C32="","",'TDPrimas Vida'!C32) -> 320459.1933 | F112: =IF('TDPrimas Vida'!D32="","",'TDPrimas Vida'!D32) -> 530490.6573 | G112: =IF('TDPrimas Vida'!C32="","",IFERROR((E112/VLOOKUP("TOTAL",$D$12:$L$312,2,0))*100,"")) -> 0.2349473759 | H112: =IF('TDPrimas Vida'!C32="","",IFERROR((E112/VLOOKUP("TOTAL",$D$12:$L$312,3,0))*100,"")) -> 0.2389240281 | I112: =IF('TDPrimas Vida'!C32="","",E112-F112) -> -210031.464 | J112: =IFERROR(IF('TDPrimas Vida'!C32="","",(E112/F112-1)*100),"ND") -> -39.59192515 | K112: =IF(E112="","",IFERROR((E112/VLOOKUP(D112&"|"&VLOOKUP(TDPrimas!$B$4,Cat!R:T,2,0),'TD Operación'!A:D,4,0))*100,"ND")) -> 19.53712451 | L112: =IF('TDPrimas Vida'!E32="","",'TDPrimas Vida'!E32) -> 19.53712451
B113: =IF(C113="",B112,D113) -> Ve Por Más | D113: =IF(D112="","","1er Año") -> 1er Año | E113: =IF(E112="","",(VLOOKUP(B113,'TDPrimas Vida'!$B:$N,5,0))) -> 71102.00924 | F113: =IF(E112="","",(VLOOKUP(B113,'TDPrimas Vida'!$B:$N,6,0))) -> 46868.57459 | G113: =IFERROR((E113/VLOOKUP("TOTAL",$D$12:$L$312,2,0))*100,"") -> 0.05212904119 | H113: =IFERROR((E113/VLOOKUP("TOTAL",$D$12:$L$312,3,0))*100,"") -> 0.05301136247 | I113: =IF(E112="","",E113-F113) -> 24233.43465 | J113: =IF(E112="","",IFERROR((E113/F113-1)*100,"ND")) -> 51.70508142 | K113: =IF(E112="","",IFERROR((E113/VLOOKUP(B113&"|"&VLOOKUP(TDPrimas!$B$4,Cat!R:T,2,0),'TD Operación'!A:D,4,0))*100,"ND")) -> 4.334807166 | L113: =IF(E112="","",(VLOOKUP(B113,'TDPrimas Vida'!$B:$N,7,0))) -> 4.334807166
B114: =IF(C114="",B113,D114) -> Ve Por Más | D114: =IF(D113="","","Renovación") -> Renovación | E114: =IF(E112="","",(VLOOKUP(B114,'TDPrimas Vida'!$B:$N,8,0))) -> 186068.1841 | F114: =IF(E112="","",(VLOOKUP(B114,'TDPrimas Vida'!$B:$N,9,0))) -> 353840.7354 | G114: =IFERROR((E114/VLOOKUP("TOTAL",$D$12:$L$312,2,0))*100,"") -> 0.1364174675 | H114: =IFERROR((E114/VLOOKUP("TOTAL",$D$12:$L$312,3,0))*100,"") -> 0.1387264306 | I114: =IF(E112="","",E114-F114) -> -167772.5513 | J114: =IF(E112="","",IFERROR((E114/F114-1)*100,"ND")) -> -47.41470795 | K114: =IF(E112="","",IFERROR((E114/VLOOKUP(B114&"|"&VLOOKUP(TDPrimas!$B$4,Cat!R:T,2,0),'TD Operación'!A:D,4,0))*100,"ND")) -> 11.34383833 | L114: =IF(E112="","",(VLOOKUP(B114,'TDPrimas Vida'!$B:$N,10,0))) -> 11.34383833
B115: =IF(C115="",B114,D115) -> Ve Por Más | D115: =IF(D114="","","Únicas") -> Únicas | E115: =IF(E113="","",(VLOOKUP(B115,'TDPrimas Vida'!$B:$N,11,0))) -> 63289 | F115: =IF(E113="","",(VLOOKUP(B115,'TDPrimas Vida'!$B:$N,12,0))) -> 129781.3473 | G115: =IFERROR((E115/VLOOKUP("TOTAL",$D$12:$L$312,2,0))*100,"") -> 0.04640086719 | H115: =IFERROR((E115/VLOOKUP("TOTAL",$D$12:$L$312,3,0))*100,"") -> 0.04718623503 | I115: =IF(E112="","",E115-F115) -> -66492.34732 | J115: =IF(E112="","",IFERROR((E115/F115-1)*100,"ND")) -> -51.2341324 | K115: =IF(E112="","",IFERROR((E115/VLOOKUP(B115&"|"&VLOOKUP(TDPrimas!$B$4,Cat!R:T,2,0),'TD Operación'!A:D,4,0))*100,"ND")) -> 3.858479017 | L115: =IF(E112="","",(VLOOKUP(B115,'TDPrimas Vida'!$B:$N,13,0))) -> 3.858479017
B116: =IF(C116="",B112,D116) -> General de Seguros | C116: =IF('TDPrimas Vida'!A33="","",'TDPrimas Vida'!A33) -> 25 | D116: =IF('TDPrimas Vida'!B33="","",'TDPrimas Vida'!B33) -> General de Seguros | E116: =IF('TDPrimas Vida'!C33="","",'TDPrimas Vida'!C33) -> 316649.8536 | F116: =IF('TDPrimas Vida'!D33="","",'TDPrimas Vida'!D33) -> 356933.035 | G116: =IF('TDPrimas Vida'!C33="","",IFERROR((E116/VLOOKUP("TOTAL",$D$12:$L$312,2,0))*100,"")) -> 0.2321545261 | H116: =IF('TDPrimas Vida'!C33="","",IFERROR((E116/VLOOKUP("TOTAL",$D$12:$L$312,3,0))*100,"")) -> 0.2360839074 | I116: =IF('TDPrimas Vida'!C33="","",E116-F116) -> -40283.18139 | J116: =IFERROR(IF('TDPrimas Vida'!C33="","",(E116/F116-1)*100),"ND") -> -11.28592129 | K116: =IF(E116="","",IFERROR((E116/VLOOKUP(D116&"|"&VLOOKUP(TDPrimas!$B$4,Cat!R:T,2,0),'TD Operación'!A:D,4,0))*100,"ND")) -> 24.71764047 | L116: =IF('TDPrimas Vida'!E33="","",'TDPrimas Vida'!E33) -> 24.71764047
B117: =IF(C117="",B116,D117) -> General de Seguros | D117: =IF(D116="","","1er Año") -> 1er Año | E117: =IF(E116="","",(VLOOKUP(B117,'TDPrimas Vida'!$B:$N,5,0))) -> 63650.48621 | F117: =IF(E116="","",(VLOOKUP(B117,'TDPrimas Vida'!$B:$N,6,0))) -> 219903.7307 | G117: =IFERROR((E117/VLOOKUP("TOTAL",$D$12:$L$312,2,0))*100,"") -> 0.04666589387 | H117: =IFERROR((E117/VLOOKUP("TOTAL",$D$12:$L$312,3,0))*100,"") -> 0.04745574748 | I117: =IF(E116="","",E117-F117) -> -156253.2444 | J117: =IF(E116="","",IFERROR((E117/F117-1)*100,"ND")) -> -71.05529496 | K117: =IF(E116="","",IFERROR((E117/VLOOKUP(B117&"|"&VLOOKUP(TDPrimas!$B$4,Cat!R:T,2,0),'TD Operación'!A:D,4,0))*100,"ND")) -> 4.968547486 | L117: =IF(E116="","",(VLOOKUP(B117,'TDPrimas Vida'!$B:$N,7,0))) -> 4.968547486
B118: =IF(C118="",B117,D118) -> General de Seguros | D118: =IF(D117="","","Renovación") -> Renovación | E118: =IF(E116="","",(VLOOKUP(B118,'TDPrimas Vida'!$B:$N,8,0))) -> 252999.3674 | F118: =IF(E116="","",(VLOOKUP(B118,'TDPrimas Vida'!$B:$N,9,0))) -> 137029.3043 | G118: =IFERROR((E118/VLOOKUP("TOTAL",$D$12:$L$312,2,0))*100,"") -> 0.1854886323 | H118: =IFERROR((E118/VLOOKUP("TOTAL",$D$12:$L$312,3,0))*100,"") -> 0.1886281599 | I118: =IF(E116="","",E118-F118) -> 115970.0631 | J118: =IF(E116="","",IFERROR((E118/F118-1)*100,"ND")) -> 84.63157834 | K118: =IF(E116="","",IFERROR((E118/VLOOKUP(B118&"|"&VLOOKUP(TDPrimas!$B$4,Cat!R:T,2,0),'TD Operación'!A:D,4,0))*100,"ND")) -> 19.74909299 | L118: =IF(E116="","",(VLOOKUP(B118,'TDPrimas Vida'!$B:$N,10,0))) -> 19.74909299
B119: =IF(C119="",B118,D119) -> General de Seguros | D119: =IF(D118="","","Únicas") -> Únicas | E119: =IF(E117="","",(VLOOKUP(B119,'TDPrimas Vida'!$B:$N,11,0))) -> 0 | F119: =IF(E117="","",(VLOOKUP(B119,'TDPrimas Vida'!$B:$N,12,0))) -> 0 | G119: =IFERROR((E119/VLOOKUP("TOTAL",$D$12:$L$312,2,0))*100,"") -> 0 | H119: =IFERROR((E119/VLOOKUP("TOTAL",$D$12:$L$312,3,0))*100,"") -> 0 | I119: =IF(E116="","",E119-F119) -> 0 | J119: =IF(E116="","",IFERROR((E119/F119-1)*100,"ND")) -> ND | K119: =IF(E116="","",IFERROR((E119/VLOOKUP(B119&"|"&VLOOKUP(TDPrimas!$B$4,Cat!R:T,2,0),'TD Operación'!A:D,4,0))*100,"ND")) -> 0 | L119: =IF(E116="","",(VLOOKUP(B119,'TDPrimas Vida'!$B:$N,13,0))) -> 0
B120: =IF(C120="",B116,D120) -> Patrimonial Inbursa | C120: =IF('TDPrimas Vida'!A34="","",'TDPrimas Vida'!A34) -> 26 | D120: =IF('TDPrimas Vida'!B34="","",'TDPrimas Vida'!B34) -> Patrimonial Inbursa | E120: =IF('TDPrimas Vida'!C34="","",'TDPrimas Vida'!C34) -> 305561.8961 | F120: =IF('TDPrimas Vida'!D34="","",'TDPrimas Vida'!D34) -> 343098.1235 | G120: =IF('TDPrimas Vida'!C34="","",IFERROR((E120/VLOOKUP("TOTAL",$D$12:$L$312,2,0))*100,"")) -> 0.224025296 | H120: =IF('TDPrimas Vida'!C34="","",IFERROR((E120/VLOOKUP("TOTAL",$D$12:$L$312,3,0))*100,"")) -> 0.2278170843 | I120: =IF('TDPrimas Vida'!C34="","",E120-F120) -> -37536.22743 | J120: =IFERROR(IF('TDPrimas Vida'!C34="","",(E120/F120-1)*100),"ND") -> -10.94037678 | K120: =IF(E120="","",IFERROR((E120/VLOOKUP(D120&"|"&VLOOKUP(TDPrimas!$B$4,Cat!R:T,2,0),'TD Operación'!A:D,4,0))*100,"ND")) -> 66.81012489 | L120: =IF('TDPrimas Vida'!E34="","",'TDPrimas Vida'!E34) -> 66.81012489
B121: =IF(C121="",B120,D121) -> Patrimonial Inbursa | D121: =IF(D120="","","1er Año") -> 1er Año | E121: =IF(E120="","",(VLOOKUP(B121,'TDPrimas Vida'!$B:$N,5,0))) -> 305561.8961 | F121: =IF(E120="","",(VLOOKUP(B121,'TDPrimas Vida'!$B:$N,6,0))) -> 343098.1235 | G121: =IFERROR((E121/VLOOKUP("TOTAL",$D$12:$L$312,2,0))*100,"") -> 0.224025296 | H121: =IFERROR((E121/VLOOKUP("TOTAL",$D$12:$L$312,3,0))*100,"") -> 0.2278170843 | I121: =IF(E120="","",E121-F121) -> -37536.22743 | J121: =IF(E120="","",IFERROR((E121/F121-1)*100,"ND")) -> -10.94037678 | K121: =IF(E120="","",IFERROR((E121/VLOOKUP(B121&"|"&VLOOKUP(TDPrimas!$B$4,Cat!R:T,2,0),'TD Operación'!A:D,4,0))*100,"ND")) -> 66.81012489 | L121: =IF(E120="","",(VLOOKUP(B121,'TDPrimas Vida'!$B:$N,7,0))) -> 66.81012489
B122: =IF(C122="",B121,D122) -> Patrimonial Inbursa | D122: =IF(D121="","","Renovación") -> Renovación | E122: =IF(E120="","",(VLOOKUP(B122,'TDPrimas Vida'!$B:$N,8,0))) -> 0 | F122: =IF(E120="","",(VLOOKUP(B122,'TDPrimas Vida'!$B:$N,9,0))) -> 0 | G122: =IFERROR((E122/VLOOKUP("TOTAL",$D$12:$L$312,2,0))*100,"") -> 0 | H122: =IFERROR((E122/VLOOKUP("TOTAL",$D$12:$L$312,3,0))*100,"") -> 0 | I122: =IF(E120="","",E122-F122) -> 0 | J122: =IF(E120="","",IFERROR((E122/F122-1)*100,"ND")) -> ND | K122: =IF(E120="","",IFERROR((E122/VLOOKUP(B122&"|"&VLOOKUP(TDPrimas!$B$4,Cat!R:T,2,0),'TD Operación'!A:D,4,0))*100,"ND")) -> 0 | L122: =IF(E120="","",(VLOOKUP(B122,'TDPrimas Vida'!$B:$N,10,0))) -> 0
B123: =IF(C123="",B122,D123) -> Patrimonial Inbursa | D123: =IF(D122="","","Únicas") -> Únicas | E123: =IF(E121="","",(VLOOKUP(B123,'TDPrimas Vida'!$B:$N,11,0))) -> 0 | F123: =IF(E121="","",(VLOOKUP(B123,'TDPrimas Vida'!$B:$N,12,0))) -> 0 | G123: =IFERROR((E123/VLOOKUP("TOTAL",$D$12:$L$312,2,0))*100,"") -> 0 | H123: =IFERROR((E123/VLOOKUP("TOTAL",$D$12:$L$312,3,0))*100,"") -> 0 | I123: =IF(E120="","",E123-F123) -> 0 | J123: =IF(E120="","",IFERROR((E123/F123-1)*100,"ND")) -> ND | K123: =IF(E120="","",IFERROR((E123/VLOOKUP(B123&"|"&VLOOKUP(TDPrimas!$B$4,Cat!R:T,2,0),'TD Operación'!A:D,4,0))*100,"ND")) -> 0 | L123: =IF(E120="","",(VLOOKUP(B123,'TDPrimas Vida'!$B:$N,13,0))) -> 0
B124: =IF(C124="",B120,D124) -> Skandia Life | C124: =IF('TDPrimas Vida'!A35="","",'TDPrimas Vida'!A35) -> 27 | D124: =IF('TDPrimas Vida'!B35="","",'TDPrimas Vida'!B35) -> Skandia Life | E124: =IF('TDPrimas Vida'!C35="","",'TDPrimas Vida'!C35) -> 247785.1426 | F124: =IF('TDPrimas Vida'!D35="","",'TDPrimas Vida'!D35) -> 216736.6044 | G124: =IF('TDPrimas Vida'!C35="","",IFERROR((E124/VLOOKUP("TOTAL",$D$12:$L$312,2,0))*100,"")) -> 0.1816657791 | H124: =IF('TDPrimas Vida'!C35="","",IFERROR((E124/VLOOKUP("TOTAL",$D$12:$L$312,3,0))*100,"")) -> 0.1847406023 | I124: =IF('TDPrimas Vida'!C35="","",E124-F124) -> 31048.5382 | J124: =IFERROR(IF('TDPrimas Vida'!C35="","",(E124/F124-1)*100),"ND") -> 14.32547044 | K124: =IF(E124="","",IFERROR((E124/VLOOKUP(D124&"|"&VLOOKUP(TDPrimas!$B$4,Cat!R:T,2,0),'TD Operación'!A:D,4,0))*100,"ND")) -> 100 | L124: =IF('TDPrimas Vida'!E35="","",'TDPrimas Vida'!E35) -> 100
B125: =IF(C125="",B124,D125) -> Skandia Life | D125: =IF(D124="","","1er Año") -> 1er Año | E125: =IF(E124="","",(VLOOKUP(B125,'TDPrimas Vida'!$B:$N,5,0))) -> 130027.7971 | F125: =IF(E124="","",(VLOOKUP(B125,'TDPrimas Vida'!$B:$N,6,0))) -> 116821.0794 | G125: =IFERROR((E125/VLOOKUP("TOTAL",$D$12:$L$312,2,0))*100,"") -> 0.09533098238 | H125: =IFERROR((E125/VLOOKUP("TOTAL",$D$12:$L$312,3,0))*100,"") -> 0.09694452739 | I125: =IF(E124="","",E125-F125) -> 13206.71773 | J125: =IF(E124="","",IFERROR((E125/F125-1)*100,"ND")) -> 11.30508107 | K125: =IF(E124="","",IFERROR((E125/VLOOKUP(B125&"|"&VLOOKUP(TDPrimas!$B$4,Cat!R:T,2,0),'TD Operación'!A:D,4,0))*100,"ND")) -> 52.47602649 | L125: =IF(E124="","",(VLOOKUP(B125,'TDPrimas Vida'!$B:$N,7,0))) -> 52.47602649
B126: =IF(C126="",B125,D126) -> Skandia Life | D126: =IF(D125="","","Renovación") -> Renovación | E126: =IF(E124="","",(VLOOKUP(B126,'TDPrimas Vida'!$B:$N,8,0))) -> 117757.3455 | F126: =IF(E124="","",(VLOOKUP(B126,'TDPrimas Vida'!$B:$N,9,0))) -> 99915.52508 | G126: =IFERROR((E126/VLOOKUP("TOTAL",$D$12:$L$312,2,0))*100,"") -> 0.08633479675 | H126: =IFERROR((E126/VLOOKUP("TOTAL",$D$12:$L$312,3,0))*100,"") -> 0.08779607489 | I126: =IF(E124="","",E126-F126) -> 17841.82047 | J126: =IF(E124="","",IFERROR((E126/F126-1)*100,"ND")) -> 17.85690508 | K126: =IF(E124="","",IFERROR((E126/VLOOKUP(B126&"|"&VLOOKUP(TDPrimas!$B$4,Cat!R:T,2,0),'TD Operación'!A:D,4,0))*100,"ND")) -> 47.52397351 | L126: =IF(E124="","",(VLOOKUP(B126,'TDPrimas Vida'!$B:$N,10,0))) -> 47.52397351
B127: =IF(C127="",B126,D127) -> Skandia Life | D127: =IF(D126="","","Únicas") -> Únicas | E127: =IF(E125="","",(VLOOKUP(B127,'TDPrimas Vida'!$B:$N,11,0))) -> 0 | F127: =IF(E125="","",(VLOOKUP(B127,'TDPrimas Vida'!$B:$N,12,0))) -> 0 | G127: =IFERROR((E127/VLOOKUP("TOTAL",$D$12:$L$312,2,0))*100,"") -> 0 | H127: =IFERROR((E127/VLOOKUP("TOTAL",$D$12:$L$312,3,0))*100,"") -> 0 | I127: =IF(E124="","",E127-F127) -> 0 | J127: =IF(E124="","",IFERROR((E127/F127-1)*100,"ND")) -> ND | K127: =IF(E124="","",IFERROR((E127/VLOOKUP(B127&"|"&VLOOKUP(TDPrimas!$B$4,Cat!R:T,2,0),'TD Operación'!A:D,4,0))*100,"ND")) -> 0 | L127: =IF(E124="","",(VLOOKUP(B127,'TDPrimas Vida'!$B:$N,13,0))) -> 0
B128: =IF(C128="",B124,D128) -> Zurich Vida | C128: =IF('TDPrimas Vida'!A36="","",'TDPrimas Vida'!A36) -> 28 | D128: =IF('TDPrimas Vida'!B36="","",'TDPrimas Vida'!B36) -> Zurich Vida | E128: =IF('TDPrimas Vida'!C36="","",'TDPrimas Vida'!C36) -> 240159.4534 | F128: =IF('TDPrimas Vida'!D36="","",'TDPrimas Vida'!D36) -> 246247.7121 | G128: =IF('TDPrimas Vida'!C36="","",IFERROR((E128/VLOOKUP("TOTAL",$D$12:$L$312,2,0))*100,"")) -> 0.1760749404 | H128: =IF('TDPrimas Vida'!C36="","",IFERROR((E128/VLOOKUP("TOTAL",$D$12:$L$312,3,0))*100,"")) -> 0.1790551346 | I128: =IF('TDPrimas Vida'!C36="","",E128-F128) -> -6088.25869 | J128: =IFERROR(IF('TDPrimas Vida'!C36="","",(E128/F128-1)*100),"ND") -> -2.472412287 | K128: =IF(E128="","",IFERROR((E128/VLOOKUP(D128&"|"&VLOOKUP(TDPrimas!$B$4,Cat!R:T,2,0),'TD Operación'!A:D,4,0))*100,"ND")) -> 33.98189296 | L128: =IF('TDPrimas Vida'!E36="","",'TDPrimas Vida'!E36) -> 33.98189296
B129: =IF(C129="",B128,D129) -> Zurich Vida | D129: =IF(D128="","","1er Año") -> 1er Año | E129: =IF(E128="","",(VLOOKUP(B129,'TDPrimas Vida'!$B:$N,5,0))) -> -5108.74368 | F129: =IF(E128="","",(VLOOKUP(B129,'TDPrimas Vida'!$B:$N,6,0))) -> 32094.35738 | G129: =IFERROR((E129/VLOOKUP("TOTAL",$D$12:$L$312,2,0))*100,"") -> -0.003745518763 | H129: =IFERROR((E129/VLOOKUP("TOTAL",$D$12:$L$312,3,0))*100,"") -> -0.003808914345 | I129: =IF(E128="","",E129-F129) -> -37203.10106 | J129: =IF(E128="","",IFERROR((E129/F129-1)*100,"ND")) -> -115.9178874 | K129: =IF(E128="","",IFERROR((E129/VLOOKUP(B129&"|"&VLOOKUP(TDPrimas!$B$4,Cat!R:T,2,0),'TD Operación'!A:D,4,0))*100,"ND")) -> -0.7228729848 | L129: =IF(E128="","",(VLOOKUP(B129,'TDPrimas Vida'!$B:$N,7,0))) -> -0.7228729848
B130: =IF(C130="",B129,D130) -> Zurich Vida | D130: =IF(D129="","","Renovación") -> Renovación | E130: =IF(E128="","",(VLOOKUP(B130,'TDPrimas Vida'!$B:$N,8,0))) -> 130401.6105 | F130: =IF(E128="","",(VLOOKUP(B130,'TDPrimas Vida'!$B:$N,9,0))) -> 144057.1233 | G130: =IFERROR((E130/VLOOKUP("TOTAL",$D$12:$L$312,2,0))*100,"") -> 0.09560504682 | H130: =IFERROR((E130/VLOOKUP("TOTAL",$D$12:$L$312,3,0))*100,"") -> 0.09722323057 | I130: =IF(E128="","",E130-F130) -> -13655.51281 | J130: =IF(E128="","",IFERROR((E130/F130-1)*100,"ND")) -> -9.479234695 | K130: =IF(E128="","",IFERROR((E130/VLOOKUP(B130&"|"&VLOOKUP(TDPrimas!$B$4,Cat!R:T,2,0),'TD Operación'!A:D,4,0))*100,"ND")) -> 18.45146425 | L130: =IF(E128="","",(VLOOKUP(B130,'TDPrimas Vida'!$B:$N,10,0))) -> 18.45146425
B131: =IF(C131="",B130,D131) -> Zurich Vida | D131: =IF(D130="","","Únicas") -> Únicas | E131: =IF(E129="","",(VLOOKUP(B131,'TDPrimas Vida'!$B:$N,11,0))) -> 114866.5866 | F131: =IF(E129="","",(VLOOKUP(B131,'TDPrimas Vida'!$B:$N,12,0))) -> 70096.23145 | G131: =IFERROR((E131/VLOOKUP("TOTAL",$D$12:$L$312,2,0))*100,"") -> 0.08421541233 | H131: =IFERROR((E131/VLOOKUP("TOTAL",$D$12:$L$312,3,0))*100,"") -> 0.08564081837 | I131: =IF(E128="","",E131-F131) -> 44770.35518 | J131: =IF(E128="","",IFERROR((E131/F131-1)*100,"ND")) -> 63.86984614 | K131: =IF(E128="","",IFERROR((E131/VLOOKUP(B131&"|"&VLOOKUP(TDPrimas!$B$4,Cat!R:T,2,0),'TD Operación'!A:D,4,0))*100,"ND")) -> 16.2533017 | L131: =IF(E128="","",(VLOOKUP(B131,'TDPrimas Vida'!$B:$N,13,0))) -> 16.2533017
B132: =IF(C132="",B128,D132) -> La Latinoamericana | C132: =IF('TDPrimas Vida'!A37="","",'TDPrimas Vida'!A37) -> 29 | D132: =IF('TDPrimas Vida'!B37="","",'TDPrimas Vida'!B37) -> La Latinoamericana | E132: =IF('TDPrimas Vida'!C37="","",'TDPrimas Vida'!C37) -> 198016.8525 | F132: =IF('TDPrimas Vida'!D37="","",'TDPrimas Vida'!D37) -> 205337.9579 | G132: =IF('TDPrimas Vida'!C37="","",IFERROR((E132/VLOOKUP("TOTAL",$D$12:$L$312,2,0))*100,"")) -> 0.145177735 | H132: =IF('TDPrimas Vida'!C37="","",IFERROR((E132/VLOOKUP("TOTAL",$D$12:$L$312,3,0))*100,"")) -> 0.147634972 | I132: =IF('TDPrimas Vida'!C37="","",E132-F132) -> -7321.10539 | J132: =IFERROR(IF('TDPrimas Vida'!C37="","",(E132/F132-1)*100),"ND") -> -3.565393104 | K132: =IF(E132="","",IFERROR((E132/VLOOKUP(D132&"|"&VLOOKUP(TDPrimas!$B$4,Cat!R:T,2,0),'TD Operación'!A:D,4,0))*100,"ND")) -> 29.04533033 | L132: =IF('TDPrimas Vida'!E37="","",'TDPrimas Vida'!E37) -> 29.04533033
B133: =IF(C133="",B132,D133) -> La Latinoamericana | D133: =IF(D132="","","1er Año") -> 1er Año | E133: =IF(E132="","",(VLOOKUP(B133,'TDPrimas Vida'!$B:$N,5,0))) -> 91827.96701 | F133: =IF(E132="","",(VLOOKUP(B133,'TDPrimas Vida'!$B:$N,6,0))) -> 97835.80626 | G133: =IFERROR((E133/VLOOKUP("TOTAL",$D$12:$L$312,2,0))*100,"") -> 0.06732445293 | H133: =IFERROR((E133/VLOOKUP("TOTAL",$D$12:$L$312,3,0))*100,"") -> 0.06846396741 | I133: =IF(E132="","",E133-F133) -> -6007.83925 | J133: =IF(E132="","",IFERROR((E133/F133-1)*100,"ND")) -> -6.140736689 | K133: =IF(E132="","",IFERROR((E133/VLOOKUP(B133&"|"&VLOOKUP(TDPrimas!$B$4,Cat!R:T,2,0),'TD Operación'!A:D,4,0))*100,"ND")) -> 13.46942749 | L133: =IF(E132="","",(VLOOKUP(B133,'TDPrimas Vida'!$B:$N,7,0))) -> 13.46942749
B134: =IF(C134="",B133,D134) -> La Latinoamericana | D134: =IF(D133="","","Renovación") -> Renovación | E134: =IF(E132="","",(VLOOKUP(B134,'TDPrimas Vida'!$B:$N,8,0))) -> 106188.8855 | F134: =IF(E132="","",(VLOOKUP(B134,'TDPrimas Vida'!$B:$N,9,0))) -> 107502.1516 | G134: =IFERROR((E134/VLOOKUP("TOTAL",$D$12:$L$312,2,0))*100,"") -> 0.07785328212 | H134: =IFERROR((E134/VLOOKUP("TOTAL",$D$12:$L$312,3,0))*100,"") -> 0.07917100456 | I134: =IF(E132="","",E134-F134) -> -1313.26614 | J134: =IF(E132="","",IFERROR((E134/F134-1)*100,"ND")) -> -1.22161847 | K134: =IF(E132="","",IFERROR((E134/VLOOKUP(B134&"|"&VLOOKUP(TDPrimas!$B$4,Cat!R:T,2,0),'TD Operación'!A:D,4,0))*100,"ND")) -> 15.57590285 | L134: =IF(E132="","",(VLOOKUP(B134,'TDPrimas Vida'!$B:$N,10,0))) -> 15.57590285
B135: =IF(C135="",B134,D135) -> La Latinoamericana | D135: =IF(D134="","","Únicas") -> Únicas | E135: =IF(E133="","",(VLOOKUP(B135,'TDPrimas Vida'!$B:$N,11,0))) -> 0 | F135: =IF(E133="","",(VLOOKUP(B135,'TDPrimas Vida'!$B:$N,12,0))) -> 0 | G135: =IFERROR((E135/VLOOKUP("TOTAL",$D$12:$L$312,2,0))*100,"") -> 0 | H135: =IFERROR((E135/VLOOKUP("TOTAL",$D$12:$L$312,3,0))*100,"") -> 0 | I135: =IF(E132="","",E135-F135) -> 0 | J135: =IF(E132="","",IFERROR((E135/F135-1)*100,"ND")) -> ND | K135: =IF(E132="","",IFERROR((E135/VLOOKUP(B135&"|"&VLOOKUP(TDPrimas!$B$4,Cat!R:T,2,0),'TD Operación'!A:D,4,0))*100,"ND")) -> 0 | L135: =IF(E132="","",(VLOOKUP(B135,'TDPrimas Vida'!$B:$N,13,0))) -> 0
B136: =IF(C136="",B132,D136) -> El Potosí | C136: =IF('TDPrimas Vida'!A38="","",'TDPrimas Vida'!A38) -> 30 | D136: =IF('TDPrimas Vida'!B38="","",'TDPrimas Vida'!B38) -> El Potosí | E136: =IF('TDPrimas Vida'!C38="","",'TDPrimas Vida'!C38) -> 148742.3828 | F136: =IF('TDPrimas Vida'!D38="","",'TDPrimas Vida'!D38) -> 115934.0464 | G136: =IF('TDPrimas Vida'!C38="","",IFERROR((E136/VLOOKUP("TOTAL",$D$12:$L$312,2,0))*100,"")) -> 0.1090517396 | H136: =IF('TDPrimas Vida'!C38="","",IFERROR((E136/VLOOKUP("TOTAL",$D$12:$L$312,3,0))*100,"")) -> 0.1108975183 | I136: =IF('TDPrimas Vida'!C38="","",E136-F136) -> 32808.33634 | J136: =IFERROR(IF('TDPrimas Vida'!C38="","",(E136/F136-1)*100),"ND") -> 28.29913847 | K136: =IF(E136="","",IFERROR((E136/VLOOKUP(D136&"|"&VLOOKUP(TDPrimas!$B$4,Cat!R:T,2,0),'TD Operación'!A:D,4,0))*100,"ND")) -> 14.09170479 | L136: =IF('TDPrimas Vida'!E38="","",'TDPrimas Vida'!E38) -> 14.09170479
B137: =IF(C137="",B136,D137) -> El Potosí | D137: =IF(D136="","","1er Año") -> 1er Año | E137: =IF(E136="","",(VLOOKUP(B137,'TDPrimas Vida'!$B:$N,5,0))) -> 50504.09346 | F137: =IF(E136="","",(VLOOKUP(B137,'TDPrimas Vida'!$B:$N,6,0))) -> 32542.06545 | G137: =IFERROR((E137/VLOOKUP("TOTAL",$D$12:$L$312,2,0))*100,"") -> 0.03702750452 | H137: =IFERROR((E137/VLOOKUP("TOTAL",$D$12:$L$312,3,0))*100,"") -> 0.03765422149 | I137: =IF(E136="","",E137-F137) -> 17962.02801 | J137: =IF(E136="","",IFERROR((E137/F137-1)*100,"ND")) -> 55.19633668 | K137: =IF(E136="","",IFERROR((E137/VLOOKUP(B137&"|"&VLOOKUP(TDPrimas!$B$4,Cat!R:T,2,0),'TD Operación'!A:D,4,0))*100,"ND")) -> 4.784707373 | L137: =IF(E136="","",(VLOOKUP(B137,'TDPrimas Vida'!$B:$N,7,0))) -> 4.784707373
B138: =IF(C138="",B137,D138) -> El Potosí | D138: =IF(D137="","","Renovación") -> Renovación | E138: =IF(E136="","",(VLOOKUP(B138,'TDPrimas Vida'!$B:$N,8,0))) -> 98129.45319 | F138: =IF(E136="","",(VLOOKUP(B138,'TDPrimas Vida'!$B:$N,9,0))) -> 83391.981 | G138: =IFERROR((E138/VLOOKUP("TOTAL",$D$12:$L$312,2,0))*100,"") -> 0.07194444098 | H138: =IFERROR((E138/VLOOKUP("TOTAL",$D$12:$L$312,3,0))*100,"") -> 0.07316215206 | I138: =IF(E136="","",E138-F138) -> 14737.47219 | J138: =IF(E136="","",IFERROR((E138/F138-1)*100,"ND")) -> 17.6725292 | K138: =IF(E136="","",IFERROR((E138/VLOOKUP(B138&"|"&VLOOKUP(TDPrimas!$B$4,Cat!R:T,2,0),'TD Operación'!A:D,4,0))*100,"ND")) -> 9.296686388 | L138: =IF(E136="","",(VLOOKUP(B138,'TDPrimas Vida'!$B:$N,10,0))) -> 9.296686388
B139: =IF(C139="",B138,D139) -> El Potosí | D139: =IF(D138="","","Únicas") -> Únicas | E139: =IF(E137="","",(VLOOKUP(B139,'TDPrimas Vida'!$B:$N,11,0))) -> 108.83614 | F139: =IF(E137="","",(VLOOKUP(B139,'TDPrimas Vida'!$B:$N,12,0))) -> 0 | G139: =IFERROR((E139/VLOOKUP("TOTAL",$D$12:$L$312,2,0))*100,"") -> 7.979413923e-05 | H139: =IFERROR((E139/VLOOKUP("TOTAL",$D$12:$L$312,3,0))*100,"") -> 8.114471206e-05 | I139: =IF(E136="","",E139-F139) -> 108.83614 | J139: =IF(E136="","",IFERROR((E139/F139-1)*100,"ND")) -> ND | K139: =IF(E136="","",IFERROR((E139/VLOOKUP(B139&"|"&VLOOKUP(TDPrimas!$B$4,Cat!R:T,2,0),'TD Operación'!A:D,4,0))*100,"ND")) -> 0.0103110272 | L139: =IF(E136="","",(VLOOKUP(B139,'TDPrimas Vida'!$B:$N,13,0))) -> 0.0103110272
B140: =IF(C140="",B136,D140) -> Pan-American México | C140: =IF('TDPrimas Vida'!A39="","",'TDPrimas Vida'!A39) -> 31 | D140: =IF('TDPrimas Vida'!B39="","",'TDPrimas Vida'!B39) -> Pan-American México | E140: =IF('TDPrimas Vida'!C39="","",'TDPrimas Vida'!C39) -> 123298.0927 | F140: =IF('TDPrimas Vida'!D39="","",'TDPrimas Vida'!D39) -> 60231.8981 | G140: =IF('TDPrimas Vida'!C39="","",IFERROR((E140/VLOOKUP("TOTAL",$D$12:$L$312,2,0))*100,"")) -> 0.09039704256 | H140: =IF('TDPrimas Vida'!C39="","",IFERROR((E140/VLOOKUP("TOTAL",$D$12:$L$312,3,0))*100,"")) -> 0.09192707711 | I140: =IF('TDPrimas Vida'!C39="","",E140-F140) -> 63066.19465 | J140: =IFERROR(IF('TDPrimas Vida'!C39="","",(E140/F140-1)*100),"ND") -> 104.7056404 | K140: =IF(E140="","",IFERROR((E140/VLOOKUP(D140&"|"&VLOOKUP(TDPrimas!$B$4,Cat!R:T,2,0),'TD Operación'!A:D,4,0))*100,"ND")) -> 31.95895601 | L140: =IF('TDPrimas Vida'!E39="","",'TDPrimas Vida'!E39) -> 31.95895601
B141: =IF(C141="",B140,D141) -> Pan-American México | D141: =IF(D140="","","1er Año") -> 1er Año | E141: =IF(E140="","",(VLOOKUP(B141,'TDPrimas Vida'!$B:$N,5,0))) -> 34133.73456 | F141: =IF(E140="","",(VLOOKUP(B141,'TDPrimas Vida'!$B:$N,6,0))) -> 29344.92833 | G141: =IFERROR((E141/VLOOKUP("TOTAL",$D$12:$L$312,2,0))*100,"") -> 0.02502543703 | H141: =IFERROR((E141/VLOOKUP("TOTAL",$D$12:$L$312,3,0))*100,"") -> 0.02544901043 | I141: =IF(E140="","",E141-F141) -> 4788.80623 | J141: =IF(E140="","",IFERROR((E141/F141-1)*100,"ND")) -> 16.31902513 | K141: =IF(E140="","",IFERROR((E141/VLOOKUP(B141&"|"&VLOOKUP(TDPrimas!$B$4,Cat!R:T,2,0),'TD Operación'!A:D,4,0))*100,"ND")) -> 8.847489015 | L141: =IF(E140="","",(VLOOKUP(B141,'TDPrimas Vida'!$B:$N,7,0))) -> 8.847489015
B142: =IF(C142="",B141,D142) -> Pan-American México | D142: =IF(D141="","","Renovación") -> Renovación | E142: =IF(E140="","",(VLOOKUP(B142,'TDPrimas Vida'!$B:$N,8,0))) -> 54463.83949 | F142: =IF(E140="","",(VLOOKUP(B142,'TDPrimas Vida'!$B:$N,9,0))) -> 199.91439 | G142: =IFERROR((E142/VLOOKUP("TOTAL",$D$12:$L$312,2,0))*100,"") -> 0.03993062591 | H142: =IFERROR((E142/VLOOKUP("TOTAL",$D$12:$L$312,3,0))*100,"") -> 0.04060648029 | I142: =IF(E140="","",E142-F142) -> 54263.9251 | J142: =IF(E140="","",IFERROR((E142/F142-1)*100,"ND")) -> 27143.58136 | K142: =IF(E140="","",IFERROR((E142/VLOOKUP(B142&"|"&VLOOKUP(TDPrimas!$B$4,Cat!R:T,2,0),'TD Operación'!A:D,4,0))*100,"ND")) -> 14.11706711 | L142: =IF(E140="","",(VLOOKUP(B142,'TDPrimas Vida'!$B:$N,10,0))) -> 14.11706711
B143: =IF(C143="",B142,D143) -> Pan-American México | D143: =IF(D142="","","Únicas") -> Únicas | E143: =IF(E141="","",(VLOOKUP(B143,'TDPrimas Vida'!$B:$N,11,0))) -> 34700.5187 | F143: =IF(E141="","",(VLOOKUP(B143,'TDPrimas Vida'!$B:$N,12,0))) -> 30687.05538 | G143: =IFERROR((E143/VLOOKUP("TOTAL",$D$12:$L$312,2,0))*100,"") -> 0.02544097963 | H143: =IFERROR((E143/VLOOKUP("TOTAL",$D$12:$L$312,3,0))*100,"") -> 0.02587158639 | I143: =IF(E140="","",E143-F143) -> 4013.46332 | J143: =IF(E140="","",IFERROR((E143/F143-1)*100,"ND")) -> 13.07868504 | K143: =IF(E140="","",IFERROR((E143/VLOOKUP(B143&"|"&VLOOKUP(TDPrimas!$B$4,Cat!R:T,2,0),'TD Operación'!A:D,4,0))*100,"ND")) -> 8.994399879 | L143: =IF(E140="","",(VLOOKUP(B143,'TDPrimas Vida'!$B:$N,13,0))) -> 8.994399879
B144: =IF(C144="",B140,D144) -> Zurich Aseguradora Mexicana | C144: =IF('TDPrimas Vida'!A40="","",'TDPrimas Vida'!A40) -> 32 | D144: =IF('TDPrimas Vida'!B40="","",'TDPrimas Vida'!B40) -> Zurich Aseguradora Mexicana | E144: =IF('TDPrimas Vida'!C40="","",'TDPrimas Vida'!C40) -> 121647.8225 | F144: =IF('TDPrimas Vida'!D40="","",'TDPrimas Vida'!D40) -> 152712.7145 | G144: =IF('TDPrimas Vida'!C40="","",IFERROR((E144/VLOOKUP("TOTAL",$D$12:$L$312,2,0))*100,"")) -> 0.08918713295 | H144: =IF('TDPrimas Vida'!C40="","",IFERROR((E144/VLOOKUP("TOTAL",$D$12:$L$312,3,0))*100,"")) -> 0.09069668892 | I144: =IF('TDPrimas Vida'!C40="","",E144-F144) -> -31064.89196 | J144: =IFERROR(IF('TDPrimas Vida'!C40="","",(E144/F144-1)*100),"ND") -> -20.34204687 | K144: =IF(E144="","",IFERROR((E144/VLOOKUP(D144&"|"&VLOOKUP(TDPrimas!$B$4,Cat!R:T,2,0),'TD Operación'!A:D,4,0))*100,"ND")) -> 97.80711268 | L144: =IF('TDPrimas Vida'!E40="","",'TDPrimas Vida'!E40) -> 97.80711268
